Workbook

Sheet Code (hidden)
A1: DIVNAME | B1: =VLOOKUP($B$25,$C$25:$H$63,2) -> School Division Name | DC1: Current total lines | DD1: =COUNTA(Ratios!A5:A59) -> 55 | DE1: Hide as I don't
A2: Address1 | B2: =VLOOKUP($B$25,$C$25:$H$63,5) -> Address1 | DD2: =IF(MAX(DD7:DD44)>DD1,"Check:!!! Ajust lines in ratios page","") ->  | DE2: know how this
A3: Address2 | B3: =VLOOKUP($B$25,$C$25:$H$63,6) -> Address2 | BG3: Update! Ask Marianne | DE3: checking works
BF4: =+LASTYR -> 2023/24 | DD4: Check Ratios if they have enough lines | DE4: so don't
A5: Title | B5: =IF(Eng_Fren=1,H5,G5) -> 2024/25 FRAME Budget | G5: ="Budget FRAME "&THISCALYR&"-"&yrend -> Budget FRAME 2024-2025 | H5: =THISCALYR&"/"&RIGHT(yrend,2)&" FRAME Budget" -> 2024/25 FRAME Budget | BF5: TIG Guarantee adjustment | CW5: =+Ratios!B61 -> Total of Ratios & Tax Notices > | CX5: =+Ratios!B62 -> Special Levy on Special Levy Form > | CY5: Variance | CZ5: Tig Code page | DA5: Tig Formula | DB5: Variance | DE5: accidentally
BF6: IN | BG6: 0 | CT6: 1 | CV6: Result of each page | CW6: =+Ratios!D61 -> 0 | CX6: =+Ratios!D62 -> 0 | CY6: =+CW6-CX6 -> 0 | CZ6: =VLOOKUP(DIVCODE,DATA,51,FALSE) ->  | DA6: =+TIG ->  | DB6: =+CZ6-DA6 ->  | DC6: DSFM Kids | DE6: click
B7: =PREVCALYR-1&"/"&MID(THISCALYR,3,2)-1 -> 2022/23 | BC7: Note: | BF7: TR | BG7: 0 | CT7: 2 | CU7: =+E26 -> BE | CV7: Beautiful Plains School Division | CW7: 4773131 | CX7: 4773132 | CY7: -1 | CZ7: 252166 | DA7: 252166 | DB7: 0 | DC7: =VLOOKUP(CU7,$BX$58:$CF$93,6,FALSE) ->  | DD7: =COUNTIF(Ratios!$AL$68:$AL$366,CU7) -> 10
A8: ForYr | B8: =IF(Eng_Fren=1,H8,G8) -> Budget for the Year Ending June 30, 2025 | G8: ="Budget pour l'exercice se terminant le 30 juin "&yrend -> Budget pour l'exercice se terminant le 30 juin 2025 | H8: ="Budget for the Year Ending June 30, "&yrend -> Budget for the Year Ending June 30, 2025 | BE8: This is a formula based on selection in the dropdown menu=> | BF8: =DIVCODE -> Co. | BG8: =IF(BF8=BF6,BG6,IF(BF8=BF7,BG7,0)) -> 0 | CT8: 3 | CU8: BO | CV8: Border Land School Division | CW8: 8023650 | CX8: 8023651 | CY8: -1 | CZ8: 2575999 | DA8: 2562850 | DB8: 13149 | DD8: =COUNTIF(Ratios!$AL$68:$AL$366,CU8) -> 9
BC9: it will bring the right amount when you select IN or TR | CT9: 4 | CU9: BR | CV9: Brandon School Division | CW9: 27290653 | CX9: 27290654 | CY9: -1 | CZ9: 924007 | DA9: 909009 | DB9: 14998 | DD9: =COUNTIF(Ratios!$AL$68:$AL$366,CU9) -> 9
A10: yrend | B10: 2025 | C10: <= just change this date only | CT10: 5 | CU10: DI | CV10: la Division scolaire franco-manitobaine | CW10: 0 | CX10: 0 | CY10: 0 | CZ10: 0 | DA10: 1127680 | DB10: -1127680 | DD10: =COUNTIF(Ratios!$AL$68:$AL$366,CU10) -> 0
B11: =+yrend+1 -> 2026 | CT11: 6 | CU11: EV | CV11: Evergreen School Division | CW11: 5863829 | CX11: 5863830 | CY11: -1 | CZ11: 1501499 | DA11: 1501499 | DB11: 0 | DD11: =COUNTIF(Ratios!$AL$68:$AL$366,CU11) -> 9
A12: DATE | B12: =IF(Eng_Fren=1,H12,G12) -> 2024-02-09T11:53:25.340 | G12: =IF(YESNO=TRUE,NOW(),"") -> 2024-02-09T11:53:25.340 | H12: =IF(YESNO=TRUE,NOW(),"") -> 2024-02-09T11:53:25.340 | CT12: 7 | CU12: FL | CV12: Flin Flon School Division | CW12: 2096706 | CX12: 2096707 | CY12: -1 | CZ12: 376357 | DA12: 376357 | DB12: 0 | DD12: =COUNTIF(Ratios!$AL$68:$AL$366,CU12) -> 1
CT13: 8 | CU13: FO | CV13: Fort La Bosse School Division | CW13: 5292007 | CX13: 5292007 | CY13: 0 | CZ13: 459100 | DA13: 458758 | DB13: 342 | DD13: =COUNTIF(Ratios!$AL$68:$AL$366,CU13) -> 7
A14: ATSEP | B14: =IF(Eng_Fren=1,H14,G14) -> September 29, 2024 | G14: ="au 29 septembre "&THISCALYR -> au 29 septembre 2024 | H14: ="September 29, "&THISCALYR -> September 29, 2024 | CT14: 9 | CU14: FR | CV14: Frontier School Division | CW14: 1982515 | CX14: 1982516 | CY14: -1 | CZ14: 159237 | DA14: 159237 | DB14: 0 | DD14: =COUNTIF(Ratios!$AL$68:$AL$366,CU14) -> 55
CT15: 10 | CU15: GA | CV15: Garden Valley School Division | CW15: 9841847 | CX15: 9841847 | CY15: 0 | CZ15: 323087 | DA15: 323087 | DB15: 0 | DD15: =COUNTIF(Ratios!$AL$68:$AL$366,CU15) -> 4
A16: THISCALYR | B16: =+yrend-1 -> 2024 | G16: Update Ratios on Ratios worksheet!!! | BD16: FR Fed Bus Amortization | BE16: -955234 | CT16: 11 | CU16: HA | CV16: Hanover School Division | CW16: 20687209 | CX16: 20687210 | CY16: -1 | CZ16: 754063 | DA16: 747253 | DB16: 6810 | DD16: =COUNTIF(Ratios!$AL$68:$AL$366,CU16) -> 9
A17: PREVCALYR | B17: =+THISCALYR-1 -> 2023 | BK17: old formula/amount, retreived from bottom of retreivel column. | CJ17: needs to be updated. | CT17: 12 | CU17: IN | CV17: Interlake School Division | CW17: 9970089 | CX17: 9970090 | CY17: -1 | CZ17: 808470 | DA17: 808470 | DB17: 0 | DD17: =COUNTIF(Ratios!$AL$68:$AL$366,CU17) -> 10
A18: LASTYR | B18: =PREVCALYR&"/"&MID(THISCALYR,3,2) -> 2023/24 | BK18: 6375.821146 | BV18: formula | CA18: (has data below) | CB18: (has data below) | CT18: 13 | CU18: KE | CV18: Kelsey School Division | CW18: 1912855 | CX18: 1912856 | CY18: -1 | CZ18: 154704 | DA18: 154704 | DB18: 0 | DD18: =COUNTIF(Ratios!$AL$68:$AL$366,CU18) -> 2
A19: THISYR | B19: =THISCALYR&"/"&MID(yrend,3,2) -> 2024/25 | AJ19: Fix it for next year after col 45 | BK19: DSFM PTOG | BV19: Updated - DK | BW19: Updated - DK | BX19: Updated - DK | BY19: Updated - DK | CJ19: Use this one Col E | CT19: 14 | CU19: LA | CV19: Lakeshore School Division | CW19: 2834127 | CX19: 2834128 | CY19: -1 | CZ19: 414194 | DA19: 414194 | DB19: 0 | DD19: =COUNTIF(Ratios!$AL$68:$AL$366,CU19) -> 8
BF20: =+THISCALYR&" % Gross TIG" -> 2024 % Gross TIG | BK20: =BJ29 -> 1113458 | BL20: Increase in PTOG | BT20: 1 | BU20: 2 | BV20: 3 | BW20: 4 | BX20: 5 | BY20: 6 | BZ20: 7 | CA20: 8 | CB20: 9 | CC20: 10 | CD20: 11 | CE20: 12 | CF20: 13 | CJ20: School Total Less DSFM | CO20: Formulas | CT20: 15 | CU20: LO | CV20: Lord Selkirk School Division | CW20: 17716831 | CX20: 17716830 | CY20: 1 | CZ20: 2534539 | DA20: 2534539 | DB20: 0 | DD20: =COUNTIF(Ratios!$AL$68:$AL$366,CU20) -> 6
A21: YESNO | B21: TRUE | J21: Updated - DK | K21: Updated - DK | L21: Updated - DK | M21: Updated - DK | N21: Updated - DK | O21: Updated - DK | P21: Updated - DK | Q21: Updated - DK | R21: Updated - DK | S21: Updated - DK | T21: Updated - DK | U21: Updated - DK | V21: Updated - DK | W21: Updated - DK | X21: Updated - DK | Y21: Updated - DK | Z21: Updated - DK | AA21: Updated - DK | AB21: Updated - DK | AC21: Updated - DK | AD21: Updated - DK | AE21: Updated - DK | AF21: Updated - DK | AG21: Updated - DK | AH21: Updated - DK | AI21: Updated - DK | AJ21: Updated - DK | AK21: Updated - DK | AL21: Updated - DK | AM21: Updated - DK | AN21: Updated - DK | AO21: Updated - DK | AP21: Updated - DK | AQ21: Updated - DK | AR21: Updated - DK | AS21: Updated - DK | AT21: Updated - DK | AU21: Updated - DK | AV21: Updated - DK | AW21: Updated - DK | AX21: Updated - DK | AY21: Updated - DK | AZ21: Updated - DK | BA21: Updated - DK | BB21: Updated - DK | BC21: Updated - DK | BD21: Updated - DK | BE21: Updated - DK | BF21: Frozen | BG21: Frozen | BH21: Updated - DK | BI21: Updated - DK | BJ21: Updated - DK | BK21: Updated - DK | BL21: Updated - DK | BM21: FROZEN | BN21: FROZEN | BO21: FROZEN | BP21: Updated - DK | BQ21: Updated - DK | BR21: Updated - DK | BX21: =PREVCALYR -> 2023 | BY21: =BX21 -> 2023 | CC21: formulas | CD21: formulas | CE21: formulas | CF21: formulas | CH21: PROPLIST: | CI21: BOLD = Provider or LT | CM21: =PREVCALYR&" Special Levy (excluding DSFM portion) (1)" -> 2023 Special Levy (excluding DSFM portion) (1) | CN21: ="Resident non-D.S.F.M. pupils at September 30, "&PREVCALYR-1&" (2)" -> Resident non-D.S.F.M. pupils at September 30, 2022 (2) | CO21: Special Levy per Pupil (A ÷ B) | CP21: ="Resident D.S.F.M. Pupils at September 30, "&PREVCALYR-1&" (2)" -> Resident D.S.F.M. Pupils at September 30, 2022 (2) | CQ21: =PREVCALYR&" Special Levy for D.S.F.M. (C x D)" -> 2023 Special Levy for D.S.F.M. (C x D) | CR21: =PREVCALYR&" Special Levy paid to D.S.F.M. (3)" -> 2023 Special Levy paid to D.S.F.M. (3) | CS21: =PREVCALYR&" Calendar Year Adjustment (E - F)" -> 2023 Calendar Year Adjustment (E - F) | CT21: 16 | CU21: LR | CV21: Louis Riel School Division | CW21: 66539133 | CX21: 66539136 | CY21: -3 | CZ21: 3270502 | DA21: 2910580 | DB21: 359922 | DD21: =COUNTIF(Ratios!$AL$68:$AL$366,CU21) -> 3
A22: YESNO2 | B22: TRUE | I22: 1 | J22: =+I22+1 -> 2 | K22: =+J22+1 -> 3 | L22: 4 | M22: 5 | N22: 6 | O22: 7 | P22: 8 | Q22: 9 | R22: 10 | S22: 11 | T22: 12 | U22: 13 | V22: 14 | W22: 15 | X22: 16 | Y22: 17 | Z22: 18 | AA22: 19 | AB22: 20 | AC22: 21 | AD22: 22 | AE22: 23 | AF22: 24 | AG22: 25 | AH22: 26 | AI22: 27 | AJ22: 28 | AK22: 29 | AL22: 30 | AM22: 31 | AN22: 32 | AO22: 33 | AP22: 34 | AQ22: 35 | AR22: 36 | AS22: 37 | AT22: 38 | AU22: 39 | AV22: 40 | AW22: 41 | AX22: 42 | AY22: 43 | AZ22: 44 | BA22: 45 | BB22: 46 | BC22: 47 | BD22: 48 | BE22: 49 | BF22: 50 | BG22: 51 | BH22: 52 | BI22: 53 | BJ22: =+BI22+1 -> 54 | BK22: 55 | BL22: 56 | BM22: 57 | BN22: 58 | BO22: 59 | BP22: 60 | BQ22: 61 | BR22: 62 | BV22: (Net of PTOG) | BW22: Amount incl | BX22: Special Levy | BY22: Special Levy | CC22: =LEFT(CC56,4) -> 9/22 | CE22: =LEFT(CE56,4) -> 9/23 | CJ22: EPTCA School tot less DSFM | CT22: 17 | CU22: MO | CV22: Mountain View School Division | CW22: 10251232 | CX22: 10251232 | CY22: 0 | CZ22: 345180 | DA22: 345180 | DB22: 0 | DD22: =COUNTIF(Ratios!$AL$68:$AL$366,CU22) -> 11
A23: YESNO3 | B23: TRUE | J23: Function 100 | Q23: Function 200 | Y23: Function 500 | AD23: Function 600 | AN23: Use File Link file (e.g. 11b_links.xls) | BC23: Non-Provider | BD23: Provider | BE23: SCHOOL BUS AMORTIZATION | BF23: Division | BG23: Total | BH23: General Support | BI23: 23/24 PTOG incl DSFM | BJ23: 23/24 PTOG Net DSFM | BK23: 23/24 PTOG | BL23: 23/24 PTOG Net | BM23: Special Needs Additional Funding | BN23: Wage Assistance | BO23: Student Presence & Engagement | BP23: Additional Operating + | BQ23: Nutrition | BR23: Suppport for | BV23: =LASTYR&" Special" -> 2023/24 Special | BW23: ="in the "&PREVCALYR -> in the 2023 | BX23: Division | BY23: for DSFM | BZ23: =LASTYR&" Special" -> 2023/24 Special | CC23: RESIDENT PUPILS | CE23: RESIDENT PUPILS | CI23: School Division | CT23: 18 | CU23: MY | CV23: Mystery Lake School Division | CW23: 5158181 | CX23: 5158181 | CY23: 0 | CZ23: 543025 | DA23: 526089 | DB23: 16936 | DD23: =COUNTIF(Ratios!$AL$68:$AL$366,CU23) -> 1
J24: Administration | K24: English Language | L24: Francais | M24: French Immersion | N24: Dual Track | O24: Senior Yrs Tech | P24: Total FCN 100 | Q24: Adminstration | S24: Clinical Services | T24: Special Placement | U24: Regular Placement | V24: Resource Services | W24: Counselling | X24: Total Fcn 200 | Y24: Board of Trustees | Z24: Instructional Mgmt | AA24: Business Admin | AB24: Mgmt Info Services | AC24: Total Fcn 500 | AD24: Curr Consult Admin | AE24: Curr Consulting | AF24: Library/Media Cntre | AG24: Proff/Staff Develop | AH24: Other | AI24: Total Fcn 600 | AJ24: Bed Debt Exp | AK24: FTE K-12 | AL24: Instuct - Teaching | AM24: Teachers | AN24: Regular Transport | AO24: Cost per Transported | AP24: Cost per Total KM | AQ24: Cost per Loaded KM | AR24: Admin, Reg & Other | AS24: Cost per Total KM | AU24: Operating Transfers | AV24: Fcn 300 + 400 | AW24: Total Salaries | AX24: Benefits & Allowances | AY24: Services | AZ24: Supplies | BA24: Short Term Loan | BB24: Transfers | BC24: Special Levy 1 | BD24: Special Levy 2 | BE24: BUSDEPR | BG24: incl DSFM portion | BH24: July 2023 | BK24: DSFM Portion | BL24: Increase in PTOG | BQ24: Support | BR24: Enrolment Growth | BV24: Requirement | BW24: Special Levy | BX24: (G)=(C+E+F) | BY24: (H) | BZ24: Requirement | CC24: non-DSFM | CD24: DSFM | CE24: non-DSFM | CF24: DSFM | CT24: 19 | CU24: PA | CV24: Park West School Division | CW24: 5360510 | CX24: 5360511 | CY24: -1 | CZ24: 769286 | DA24: 746973 | DB24: 22313 | DD24: =COUNTIF(Ratios!$AL$68:$AL$366,CU24) -> 10
A25: DIVNUM | B25: 1 | C25: 1 | D25: School Division Name | E25: Co. | F25: DSFM | G25: Address1 | H25: Address2 | I25: DIV | J25: _CPP110 | K25: _CPP120 | L25: _CPP150 | M25: _CPP170 | N25: _CPP180 | O25: _CPP190 | P25: _CPP100 | Q25: _CPP210 | R25: CPP220 | S25: _CPP230 | T25: _CPP240 | U25: _CPP250 | V25: _CPP260 | W25: CPP270 | X25: _CPP200 | Y25: _CPP510 | Z25: _CPP520 | AA25: _CPP530 | AB25: _CPP550 | AC25: _CPP500 | AD25: _CPP605 | AE25: _CPP610 | AF25: _CPP620 | AG25: _CPP630 | AH25: _CPP680 | AI25: _CPP600 | AJ25: BADDEBT | AK25: ENROLTOT | AL25: PERS133 | AM25: EDUCATOR | AN25: FRAME720 | AO25: _CPP720 | AP25: CPTK720 | AQ25: CPLK720 | AR25: FRAME7129 | AS25: CPTK7129 | AT25: Total Expenses | AU25: OPTRANS | AV25: _OE300400 | AW25: SAL | AX25: BEN | AY25: SERV | AZ25: SUPP | BA25: _OE910 | BB25: TRANS | BC25: PERCENT1 | BD25: PERCENT2 | BE25: 2021/22 ACTUALS | BL25: dunsel | BT25: DSFM: | BV25: SPECREQ | BW25: SLCURRPORT | BX25: SPLEVDIV | BY25: SPLEVDSFM | BZ25: SPECREQ | CH25: BE | CI25: Beautiful Plains | CT25: 20 | CU25: PE | CV25: Pembina Trails School Division | CW25: 64943587 | CX25: 64943587 | CY25: 0 | CZ25: 2429845 | DA25: 2402081 | DB25: 27764 | DD25: =COUNTIF(Ratios!$AL$68:$AL$366,CU25) -> 3
C26: 2 | D26: Beautiful Plains School Division | E26: BE | F26: N | G26: P.O. BOX 700 | H26: NEEPAWA, MANITOBA R0J 1H0 | I26: BE | J26: 867.2715455 | K26: 7282.900818 | L26: 0 | M26: 0 | N26: 0 | O26: 0 | P26: 8150.172364 | Q26: 92.93452094 | S26: 181.5142032 | T26: 0 | U26: 576.694752 | V26: 496.2200289 | W26: 217.1608089 | X26: 1691.483871 | Y26: 69.58883004 | Z26: 85.19691863 | AA26: 219.9504092 | AB26: 7.510832932 | AC26: 382.2469909 | AD26: 0 | AE26: 62.32113625 | AF26: 131.701974 | AG26: 82.33028406 | AH26: 7.938854117 | AI26: 7.938854117 | AJ26: 0 | AK26: 2077 | AL26: 129.5 | AM26: 150.25 | AN26: 1412831 | AO26: 2282.441034 | AP26: 2.455030896 | AQ26: 3.441136856 | AR26: 1655722 | AS26: 2.720600341 | AT26: 26557996 | AU26: -85700 | AV26: -32980 | AW26: 20624755 | AX26: 1789475 | AY26: 2133593 | AZ26: 1475605 | BA26: 7500 | BB26: 527068 | BC26: 0.48 | BE26: 173443 | BF26: 252166 | BG26: 252166 | BH26: 345336 | BI26: 596979 | BJ26: 596979 | BK26: 0 | BL26: 203010.8128 | BM26: 190812 | BN26: 677565 | BO26: 220000 | BP26: 1318000 | BQ26: 158000 | BR26: 181000 | BT26: BO | BU26: Borderland | BV26: 19024733 | BW26: 7609893 | BX26: 18800912 | BY26: 103441 | BZ26: 19024733 | CC26: =SUMIF($CA$58:$CA$93,BT26,$CC$58:$CC$93) -> 1999.3 | CD26: =SUMIF($CA$58:$CA$93,BT26,$CD$58:$CD$93) -> 11 | CE26: =SUMIF($CA$58:$CA$93,BT26,$CE$58:$CE$93) -> 2022.4 | CF26: =SUMIF($CA$58:$CA$93,BT26,$CF$58:$CF$93) -> 10.5 | CH26: BO | CI26: Borderland | CL26: Borderland | CM26: =BX26 -> 18800912 | CN26: =CC26 -> 1999.3 | CO26: =ROUND(CM26/CN26,2) -> 9403.75 | CP26: =CD26 -> 11 | CQ26: =ROUND(CO26*CP26,0) -> 103441 | CR26: =BY26 -> 103441 | CS26: =CQ26-CR26 -> 0 | CT26: 21 | CU26: PI | CV26: Pine Creek School Division | CW26: 3648869 | CX26: 3648868 | CY26: 1 | CZ26: 312678 | DA26: 312066 | DB26: 612 | DD26: =COUNTIF(Ratios!$AL$68:$AL$366,CU26) -> 7
A27: DIVCODE | B27: =VLOOKUP(B25,DIVLIST,3) -> Co. | C27: 3 | D27: Border Land School Division | E27: BO | F27: Y | G27: 120-9th Street NW | H27: Altona, MANITOBA R0G 0B1 | I27: BO | J27: 1472.789791 | K27: 9986.464403 | L27: 0 | M27: 0 | N27: 7872.274823 | O27: 7654.363636 | P27: 10724.41512 | Q27: 95.01276186 | S27: 374.9116301 | T27: 0 | U27: 1333.943655 | V27: 748.4724296 | W27: 261.3045991 | X27: 2813.645076 | Y27: 89.32675175 | Z27: 97.66530219 | AA27: 327.3667229 | AB27: 29.09703829 | AC27: 543.4558151 | AD27: 0 | AE27: 0 | AF27: 146.2441608 | AG27: 173.9600289 | AH27: 75.36575969 | AI27: 75.36575969 | AJ27: 0 | AK27: 2076.5 | AL27: 163.2 | AM27: 202.545 | AN27: 2248825 | AO27: 1342.58209 | AP27: 2.029493571 | AQ27: 3.211230901 | AR27: 2705152 | AS27: 2.282689997 | AT27: 38524395 | AU27: -560000 | AV27: -411985 | AW27: 28219410 | AX27: 2568792 | AY27: 3425432 | AZ27: 3108761 | BA27: 50000 | BB27: 1152000 | BD27: 0.4 | BE27: 417542 | BF27: 2562850 | BG27: 2575999 | BH27: 478251 | BI27: 1096941 | BJ27: 1109209 | BK27: -12268 | BL27: 391640.2933 | BM27: 205563 | BN27: 1028247 | BO27: 322000 | BP27: 316000 | BQ27: 297000 | BR27: 18000 | BT27: BR | BU27: Brandon | BV27: 52195502 | BW27: 22705043 | BX27: 51617257 | BY27: 862197 | BZ27: 52195502 | CC27: 8924 | CD27: 149 | CE27: 9201 | CF27: 132 | CH27: BR | CI27: Brandon | CL27: Brandon | CM27: 51617257 | CN27: 8924 | CO27: 5784.09 | CP27: 149 | CQ27: 861829 | CR27: 862197 | CS27: -368 | CT27: 22 | CU27: PO | CV27: Portage La Prairie School Division | CW27: 9683606 | CX27: 9683606 | CY27: 0 | CZ27: 270928 | DA27: 269506 | DB27: 1422 | DD27: =COUNTIF(Ratios!$AL$68:$AL$366,CU27) -> 8
C28: 4 | D28: Brandon School Division | E28: BR | F28: Y | G28: 1031 - 6th STREET | H28: BRANDON, MANITOBA R7A 4K5 | I28: BR | J28: 945.5223553 | K28: 7276.71691 | L28: 0 | M28: 7087.859425 | N28: 6765.065847 | O28: 8645.701717 | P28: 8221.806877 | Q28: 23.50873338 | S28: 384.8934417 | T28: 0 | U28: 1376.727452 | V28: 479.1782929 | W28: 348.5653081 | X28: 2677.39097 | Y28: 43.0154894 | Z28: 71.93892123 | AA28: 209.6297924 | AB28: 35.69372734 | AC28: 360.2779304 | AD28: 15.12248709 | AE28: 66.5725585 | AF28: 84.29385917 | AG28: 169.0372405 | AH28: 11.04141492 | AI28: 11.04141492 | AJ28: 0 | AK28: 9103 | AL28: 557.805 | AM28: 704.455 | AN28: 2639710 | AO28: 824.909375 | AP28: 3.180373494 | AQ28: 5.186070727 | AR28: 2973020 | AS28: 3.303355556 | AT28: 122173967 | AU28: -92950 | AV28: -431630 | AW28: 97425670 | AX28: 8022240 | AY28: 7451714 | AZ28: 7061214 | BA28: 26250 | BB28: 2186879 | BD28: 0.435 | BE28: 456111 | BF28: 909001 | BG28: 924007 | BH28: 1655036 | BI28: 2516079 | BJ28: 2418624 | BK28: 97455 | BL28: 957745.8798 | BM28: 833532 | BN28: 3586303 | BO28: 959000 | BP28: 1839000 | BQ28: 1020000 | BR28: 366000 | BT28: FO | BU28: Fort La Bosse | BV28: 10913235 | BW28: 4692691 | BX28: 10791261 | BY28: 15481 | BZ28: 10913235 | CC28: 1394.5 | CD28: 2 | CE28: 1419.5 | CF28: 2.5 | CH28: DI | CI28: DSFM | CL28: Fort La Bosse | CM28: 10791261 | CN28: 1394.5 | CO28: 7738.44 | CP28: 2 | CQ28: 15477 | CR28: 15481 | CS28: -4 | CT28: 23 | CU28: PR | CV28: Prairie Rose School Division | CW28: 9657080 | CX28: 9657079 | CY28: 1 | CZ28: 1085297 | DA28: 1058585 | DB28: 26712 | DD28: =COUNTIF(Ratios!$AL$68:$AL$366,CU28) -> 16
A29: DSFMCODE | B29: =VLOOKUP(B25,DIVLIST,4) -> DSFM | C29: 5 | D29: la Division scolaire franco-manitobaine | E29: DI | F29: N | G29: C.P. 204, 485, CHEMIN DAWSON | H29: LORETTE, MANITOBA R0A 0Y0 | I29: DI | J29: 1309.121132 | K29: 0 | L29: 8629.671088 | M29: 0 | N29: 0 | O29: 12151.45374 | P29: 9951.949638 | Q29: 86.22251481 | S29: 255.2967413 | T29: 0 | U29: 913.9098091 | V29: 587.6435155 | W29: 318.8515471 | X29: 2350.778308 | Y29: 111.9884793 | Z29: 277.8584595 | AA29: 222.983871 | AB29: 29.43416722 | AC29: 642.264977 | AD29: 39.18005267 | AE29: 350.9479921 | AF29: 158.9341672 | AG29: 116.1800527 | AH29: 27.30513496 | AI29: 27.30513496 | AJ29: 0 | AK29: 6076 | AL29: 407.46 | AM29: 511.72 | AN29: 11180707 | AO29: 2510.262012 | AP29: 3.294854635 | AQ29: 6.326176379 | AR29: 11778634 | AS29: Error | AT29: 111021156 | AU29: -1079733 | AV29: -1167181 | AW29: 75411521 | AX29: 6574398 | AY29: 21955658 | AZ29: 4378569 | BA29: 5000 | BB29: 2696010 | BE29: 12620 | BF29: 1129569 | BG29: 0 | BH29: 1274131 | BI29: 1113458 | BJ29: 1113458 | BK29: 0 | BL29: 6375.821146 | BM29: 505993 | BN29: 2663926 | BO29: 458000 | BP29: 804000 | BQ29: 629000 | BR29: 248000 | BT29: HA | BU29: Hanover | BV29: 38323055 | BW29: 15329222 | BX29: 37872195 | BY29: 437132 | BZ29: 38323055 | CC29: 8492 | CD29: 98 | CE29: 8807.5 | CF29: 104.5 | CH29: EV | CI29: Evergreen | CK29: 2937332.94 | CL29: Hanover | CM29: 37872195 | CN29: 8492 | CO29: 4459.75 | CP29: 98 | CQ29: 437056 | CR29: 437132 | CS29: -76 | CT29: 24 | CU29: PS | CV29: Prairie Spirit School Division | CW29: 8219674 | CX29: 8219673 | CY29: 1 | CZ29: 841411 | DA29: 763122 | DB29: 78289 | DD29: =COUNTIF(Ratios!$AL$68:$AL$366,CU29) -> 14
C30: 6 | D30: Evergreen School Division | E30: EV | F30: N | G30: P.O. BOX 1200 | H30: GIMLI, MANITOBA R0C 1B0 | I30: EV | J30: 1324.207736 | K30: 7761.87064 | L30: 0 | M30: 0 | N30: 0 | O30: 14250 | P30: 9179.031519 | Q30: 92.44985673 | S30: 341.2750716 | T30: 0 | U30: 1160.458453 | V30: 714.237106 | W30: 428.1339542 | X30: 2756.611748 | Y30: 123.5988539 | Z30: 106.9555874 | AA30: 296.3359599 | AB30: 14.32664756 | AC30: 541.2170487 | AD30: 23.63896848 | AE30: 200.9204871 | AF30: 106.3037249 | AG30: 133.3896848 | AH30: 1.504297994 | AI30: 1.504297994 | AJ30: 0 | AK30: 1396 | AL30: 83.6 | AM30: 106.25 | AN30: 1574368 | AO30: 1599.96748 | AP30: 2.111709334 | AQ30: 3.72428737 | AR30: 1880203 | AS30: 2.521927671 | AT30: 23507800 | AU30: -70500 | AV30: -56600 | AW30: 17497356 | AX30: 1848850 | AY30: 2370743 | AZ30: 1344158 | BA30: 0 | BB30: 446693 | BC30: 0.43 | BE30: 160908 | BF30: 1501499 | BG30: 1501499 | BH30: 285804 | BI30: 797708 | BJ30: 797708 | BK30: 0 | BL30: 271185.156 | BM30: 139565 | BN30: 586928 | BO30: 323000 | BP30: 257000 | BQ30: 156000 | BR30: 26000 | BT30: IN | BU30: Interlake | BV30: 22436655 | BW30: 10769594 | BX30: 22207888 | BY30: 0 | BZ30: 22436655 | CC30: 2978.9 | CD30: 0 | CE30: 2944 | CF30: 0 | CH30: FL | CI30: Flin Flon | CL30: Interlake | CM30: 22207888 | CN30: 2978.9 | CO30: 7455.06 | CP30: 0 | CQ30: 0 | CR30: 0 | CS30: 0 | CT30: 25 | CU30: RE | CV30: Red River Valley School Division | CW30: 12653157 | CX30: 12653157 | CY30: 0 | CZ30: 818721 | DA30: 657254 | DB30: 161467 | DD30: =COUNTIF(Ratios!$AL$68:$AL$366,CU30) -> 12
C31: 7 | D31: Flin Flon School Division | E31: FL | F31: N | G31: 9 TERRACE AVENUE | H31: FLIN FLON, MANITOBA R8A 1S2 | I31: FL | J31: 1700.645809 | K31: 9114.136767 | L31: 0 | M31: 0 | N31: 9440.105634 | O31: 0 | P31: 10924.08028 | Q31: 191.8536009 | S31: 474.2243211 | T31: 0 | U31: 1588.815821 | V31: 892.6528926 | W31: 372.4628099 | X31: 3755.79693 | Y31: 164.8417946 | Z31: 134.6965762 | AA31: 503.1145218 | AB31: 42.64817001 | AC31: 845.3010626 | AD31: 0 | AE31: 0 | AF31: 206.7709563 | AG31: 114.866588 | AH31: 56.28571429 | AI31: 56.28571429 | AJ31: 0 | AK31: 847 | AL31: 62.625 | AM31: 79 | AN31: 401016 | AO31: 2460.220859 | AP31: 6.435820896 | AQ31: 10.26666667 | AR31: 558247 | AS31: 8.959187931 | AT31: 16848718 | AU31: -1300 | AV31: -111661 | AW31: 12470075 | AX31: 1141570 | AY31: 2152469 | AZ31: 795412 | BA31: 20000 | BB31: 269192 | BC31: 0.5 | BE31: 0 | BF31: 376357 | BG31: 376357 | BH31: 218874 | BI31: 251285 | BJ31: 251285 | BK31: 0 | BL31: 101911.2202 | BM31: 88947 | BN31: 444052 | BO31: 121000 | BP31: 151000 | BQ31: 362500 | BR31: 0 | BT31: KE | BU31: Kelsey | BV31: 4878449 | BW31: 2219235 | BX31: 4878449 | BY31: 0 | BZ31: 4878449 | CC31: 1418.5 | CD31: 0 | CE31: 1385.5 | CF31: 0 | CH31: FO | CI31: Fort La Bosse | CL31: Kelsey | CM31: 4878449 | CN31: 1418.5 | CO31: 3439.16 | CP31: 0 | CQ31: 0 | CR31: 0 | CS31: 0 | CT31: 26 | CU31: RI | CV31: River East Transcona School Division | CW31: 56191474 | CX31: 56191473 | CY31: 1 | CZ31: 745262 | DA31: 730515 | DB31: 14747 | DD31: =COUNTIF(Ratios!$AL$68:$AL$366,CU31) -> 3
C32: 8 | D32: Fort La Bosse School Division | E32: FO | F32: Y | G32: P.O. BOX 1420 | H32: VIRDEN, MANITOBA R0M 2C0 | I32: FO | J32: 977.2240582 | K32: 7800.135777 | L32: 0 | M32: 0 | N32: 0 | O32: 5870 | P32: 8726.331791 | Q32: 93.80039656 | S32: 223.3641771 | T32: 0 | U32: 651.8043622 | V32: 596.4639788 | W32: 129.4448116 | X32: 1694.877726 | Y32: 84.05816259 | Z32: 127.7065433 | AA32: 247.9662921 | AB32: 62.26040978 | AC32: 521.9914078 | AD32: 0 | AE32: 44.28288169 | AF32: 171.4540648 | AG32: 70.01982816 | AH32: 0.9914077991 | AI32: 0.9914077991 | AJ32: 0 | AK32: 1513 | AL32: 100.68 | AM32: 115.76 | AN32: 1568076 | AO32: 2177.883333 | AP32: 1.559964186 | AQ32: 2.393406241 | AR32: 1681421 | AS32: 1.593265614 | AT32: 21571758 | AU32: -76050 | AV32: -250780 | AW32: 16886370 | AX32: 1294200 | AY32: 1644399 | AZ32: 1206739 | BA32: 100000 | BB32: 440050 | BD32: 0.43 | BE32: 221655 | BF32: 458758 | BG32: 459100 | BH32: 287497 | BI32: 630313 | BJ32: 626354 | BK32: 3958 | BL32: 215385.5843 | BM32: 131463 | BN32: 594224 | BO32: 160000 | BP32: 758000 | BQ32: 232000 | BR32: 27000 | BT32: LA | BU32: Lakeshore | BV32: 5860325 | BW32: 2344130 | BX32: 5790961.48 | BY32: 0 | BZ32: 5860325 | CC32: 925 | CD32: 0 | CE32: 957.5 | CF32: 0 | CH32: FR | CI32: Frontier | CL32: Lakeshore | CM32: 5790961.48 | CN32: 925 | CO32: 6260.5 | CP32: 0 | CQ32: 0 | CR32: 0 | CS32: 0 | CT32: 27 | CU32: RO | CV32: Rolling River School Division | CW32: 6811514 | CX32: 6811514 | CY32: 0 | CZ32: 718967 | DA32: 717687 | DB32: 1280 | DD32: =COUNTIF(Ratios!$AL$68:$AL$366,CU32) -> 9
C33: 9 | D33: Frontier School Division | E33: FR | F33: N | G33: 30 SPEERS ROAD | H33: WINNIPEG, MANITOBA R2J 1L9 | I33: FR | J33: 1433.898938 | K33: 9924.78554 | L33: 0 | M33: 0 | N33: 0 | O33: 9042.372881 | P33: 11350.30624 | Q33: 12.31091085 | S33: 315.2270679 | T33: 0 | U33: 2360.877696 | V33: 746.9411007 | W33: 907.0062762 | X33: 4342.363051 | Y33: 202.4111683 | Z33: 459.7838751 | AA33: 570.9993563 | AB33: 149.7088832 | AC33: 1382.903283 | AD33: 0 | AE33: 1024.97393 | AF33: 270.369971 | AG33: 147.3020599 | AH33: 317.5967171 | AI33: 317.5967171 | AJ33: 0 | AK33: 6214 | AL33: 445.91 | AM33: 556.69 | AN33: 8777485 | AO33: 1584.383574 | AP33: 5.073690751 | AQ33: 7.679339458 | AR33: 10479500 | AS33: 5.664594595 | AT33: 168341065 | AU33: -2761001 | AV33: -4923835 | AW33: 110478397 | AX33: 10704012 | AY33: 29283565 | AZ33: 13781715 | BA33: 0 | BB33: 4093376 | BC33: 0.4 | BE33: 522157 | BF33: 159237 | BG33: 159237 | BH33: 1142227 | BI33: 179574 | BJ33: 179574 | BK33: 0 | BL33: 73580.35192 | BM33: 207677 | BN33: 3285507 | BO33: 1002000 | BP33: 450000 | BQ33: 1299500 | BR33: 0 | BT33: LO | BU33: Lord Selkirk | BV33: 36534559 | BW33: 14613824 | BX33: 36104739 | BY33: 0 | BZ33: 36534559 | CC33: 3757.4 | CD33: 0 | CE33: 3761 | CF33: 0.5 | CH33: GA | CI33: Garden Valley | CL33: Lord Selkirk | CM33: 36104739 | CN33: 3757.4 | CO33: 9608.97 | CP33: 0 | CQ33: 0 | CR33: 0 | CS33: 0 | CT33: 28 | CU33: SE | CV33: Seine River School Division | CW33: 16148673 | CX33: 16148673 | CY33: 0 | CZ33: 1289547 | DA33: 1027489 | DB33: 262058 | DD33: =COUNTIF(Ratios!$AL$68:$AL$366,CU33) -> 10
C34: 10 | D34: Garden Valley School Division | E34: GA | F34: N | G34: BOX 1330, 750 TRIPLE E. BLVD | H34: WINKLER, MANITOBA R6W 4B3 | I34: GA | J34: 766.6161137 | K34: 6839.499271 | L34: 0 | M34: 0 | N34: 0 | O34: 12958.77358 | P34: 7759.822275 | Q34: 36.24881517 | S34: 315.5521327 | T34: 0 | U34: 901.7061611 | V34: 582.0047393 | W34: 275.8862559 | X34: 2456.362559 | Y34: 53.28672986 | Z34: 86.92417062 | AA34: 218.1824645 | AB34: 40.83412322 | AC34: 399.2274882 | AD34: 12.49526066 | AE34: 75.73222749 | AF34: 107.549763 | AG34: 121.0094787 | AH34: 59.23222749 | AI34: 59.23222749 | AJ34: 0 | AK34: 4220 | AL34: 244.87 | AM34: 296.88 | AN34: 2683080 | AO34: 925.2 | AP34: 3.252218182 | AQ34: 5.7825 | AR34: 2974170 | AS34: 3.949760956 | AT34: 56563410 | AU34: -508000 | AV34: -52370 | AW34: 43198210 | AX34: 4517500 | AY34: 4377700 | AZ34: 2997200 | BA34: 36000 | BB34: 1436800 | BC34: 0.5 | BE34: 555801 | BF34: 323087 | BG34: 323087 | BH34: 736225 | BI34: 1256740 | BJ34: 1256740 | BK34: 0 | BL34: 427252.5502 | BM34: 412082 | BN34: 1582612 | BO34: 458000 | BP34: 1375000 | BQ34: 365000 | BR34: 161000 | BT34: LR | BU34: Louis Riel | BV34: 112054662 | BW34: 44821865 | BX34: 110736372 | BY34: 12605392 | BZ34: 112054662 | CC34: 15642.9 | CD34: 1778.2 | CE34: 16416.3 | CF34: 1819.5 | CH34: HA | CI34: Hanover | CL34: Louis Riel | CM34: 110736372 | CN34: 15642.9 | CO34: 7079.02 | CP34: 1778.2 | CQ34: 12587913 | CR34: 12605392 | CS34: -17479 | CT34: 29 | CU34: SO | CV34: Seven Oaks School Division | CW34: 35365538 | CX34: 35365535 | CY34: 3 | CZ34: 2681917 | DA34: 2675129 | DB34: 6788 | DD34: =COUNTIF(Ratios!$AL$68:$AL$366,CU34) -> 3
C35: 11 | D35: Hanover School Division | E35: HA | F35: Y | G35: 5 CHRYSLER GATE | H35: STEINBACH, MANITOBA R5G 0E2 | I35: HA | J35: 876.5422977 | K35: 6719.207161 | L35: 0 | M35: 0 | N35: 0 | O35: 6454.084617 | P35: 7579.005049 | Q35: 62.80014777 | S35: 322.1401305 | T35: 0 | U35: 724.4920576 | V35: 920.2068711 | W35: 269.3510651 | X35: 2400.517178 | Y35: 35.56212289 | Z35: 81.89878094 | AA35: 169.3633789 | AB35: 11.4394779 | AC35: 298.2637606 | AD35: 0 | AE35: 27.70594754 | AF35: 123.470016 | AG35: 67.60251201 | AH35: 30.14407093 | AI35: 30.14407093 | AJ35: 0 | AK35: 8121 | AL35: 436.3799 | AM35: 536.4799 | AN35: 3800000 | AO35: 692.9248724 | AP35: 2.804173496 | AQ35: 4.784363692 | AR35: 4749100 | AS35: 2.760873508 | AT35: 105146400 | AU35: -2800700 | AV35: -111200 | AW35: 80971700 | AX35: 6780300 | AY35: 5005200 | AZ35: 7549800 | BA35: 295900 | BB35: 4543500 | BD35: 0.4 | BE35: 590003 | BF35: 747252 | BG35: 754063 | BH35: 1406338 | BI35: 2287989 | BJ35: 2294347 | BK35: -6358 | BL35: 850829.5732 | BM35: 774562 | BN35: 2996667 | BO35: 807000 | BP35: 1724000 | BQ35: 575000 | BR35: 359000 | BT35: MO | BU35: Mountain View | BV35: 19114653 | BW35: 7645861 | BX35: 18889775 | BY35: 0 | BZ35: 19114653 | CC35: 2880.3 | CD35: 0 | CE35: 2848.1 | CF35: 0 | CH35: IN | CI35: Interlake | CL35: Mountain View | CM35: 18889775 | CN35: 2880.3 | CO35: 6558.27 | CP35: 0 | CQ35: 0 | CR35: 0 | CS35: 0 | CT35: 30 | CU35: SR | CV35: Southwest Horizon School Division | CW35: 6966463 | CX35: 6966462 | CY35: 1 | CZ35: 713853 | DA35: 714156 | DB35: -303 | DD35: =COUNTIF(Ratios!$AL$68:$AL$366,CU35) -> 13
C36: 12 | D36: Interlake School Division | E36: IN | F36: Y | G36: 192 - 2nd AVENUE NORTH | H36: STONEWALL, MANITOBA R0C 2Z0 | I36: IN | J36: 1141.333567 | K36: 7469.08619 | L36: 0 | M36: 0 | N36: 6118.328161 | O36: 0 | P36: 7999.39077 | Q36: 65.00579049 | S36: 282.847868 | T36: 0 | U36: 1186.148447 | V36: 842.0989647 | W36: 466.8748903 | X36: 2921.916126 | Y36: 68.60852781 | Z36: 154.09721 | AA36: 234.9535006 | AB36: 18.24881558 | AC36: 475.908054 | AD36: 0 | AE36: 0 | AF36: 173.1531848 | AG36: 158.2284611 | AH36: 60.37129321 | AI36: 60.37129321 | AJ36: 0 | AK36: 2849.5 | AL36: 164.91 | AM36: 220.58 | AN36: 2439000 | AO36: 1320.519762 | AP36: 2.524139216 | AQ36: 4.663194604 | AR36: 2737500 | AS36: 3.421875 | AT36: 41235000 | AU36: -261036 | AV36: 0 | AW36: 32069000 | AX36: 2916133 | AY36: 2678898 | AZ36: 2558933 | BA36: 60000 | BB36: 952036 | BD36: 0.48 | BE36: 165211 | BF36: 808470 | BG36: 808470 | BH36: 587531 | BI36: 1280899 | BJ36: 1280899 | BK36: 0 | BL36: 435448.3321 | BM36: 274666 | BN36: 1257103 | BO36: 250000 | BP36: 478000 | BQ36: 168000 | BR36: 0 | BT36: MY | BU36: Mystery Lake | BV36: 9447509 | BW36: 3779004 | BX36: 9447509 | BY36: 213959 | BZ36: 9447509 | CC36: 2693.5 | CD36: 61 | CE36: 2739.5 | CF36: 78 | CH36: KE | CI36: Kelsey | CL36: Mystery Lake | CM36: 9447509 | CN36: 2693.5 | CO36: 3507.52 | CP36: 61 | CQ36: 213959 | CR36: 213959 | CS36: 0 | CT36: 31 | CU36: ST | CV36: St. James - Assiniboia School Division | CW36: 34990531 | CX36: 34990531 | CY36: 0 | CZ36: 1771167 | DA36: 1751360 | DB36: 19807 | DD36: =COUNTIF(Ratios!$AL$68:$AL$366,CU36) -> 2
C37: 13 | D37: Kelsey School Division | E37: KE | F37: Y | G37: P.O. BOX 4700 | H37: THE PAS, MANITOBA R9A 1R4 | I37: KE | J37: 1134.067133 | K37: 6346.005013 | L37: 0 | M37: 0 | N37: 7709.433387 | O37: 6207.222222 | P37: 8073.195804 | Q37: 20.09230769 | S37: 201.7636364 | T37: 0 | U37: 591.4195804 | V37: 1024.325175 | W37: 463.3237762 | X37: 3075.177622 | Y37: 76.70559441 | Z37: 124.6853147 | AA37: 439.6363636 | AB37: 31.46853147 | AC37: 672.4958042 | AD37: 22.21048951 | AE37: 137.0944056 | AF37: 165.5643357 | AG37: 50.59020979 | AH37: 0 | AI37: 0 | AJ37: 0 | AK37: 1430 | AL37: 89.89 | AM37: 116.54 | AN37: 428196 | AO37: 1044.380488 | AP37: 2.677028108 | AQ37: 3.961549848 | AR37: 558092 | AS37: 4.108330143 | AT37: 21906025 | AU37: -11000 | AV37: -920770 | AW37: 17353520 | AX37: 1802811 | AY37: 1576161 | AZ37: 784814 | BA37: 4000 | BB37: 384719 | BD37: 0.45 | BE37: 71844 | BF37: 154704 | BG37: 154704 | BH37: 300606 | BI37: 719655 | BJ37: 719655 | BK37: 0 | BL37: 95656.89802 | BM37: 138732 | BN37: 677641 | BO37: 186000 | BP37: 798000 | BQ37: 661000 | BR37: 0 | BT37: PA | BU37: Park West | BV37: 11587466 | BW37: 5144835 | BX37: 11461140 | BY37: 250667 | BZ37: 11587466 | CC37: 1555 | CD37: 34 | CE37: 1593 | CF37: 32.5 | CH37: LA | CI37: Lakeshore | CL37: Park West | CM37: 11461140 | CN37: 1555 | CO37: 7370.51 | CP37: 34 | CQ37: 250597 | CR37: 250667 | CS37: -70 | CT37: 32 | CU37: SU | CV37: Sunrise School Division | CW37: 21365197 | CX37: 21365196 | CY37: 1 | CZ37: 1489849 | DA37: 1465599 | DB37: 24250 | DD37: =COUNTIF(Ratios!$AL$68:$AL$366,CU37) -> 12
C38: 14 | D38: Lakeshore School Division | E38: LA | F38: Y | G38: P.O. BOX 100 | H38: ERIKSDALE, MANITOBA R0C 0W0 | I38: LA | J38: 1258.191781 | K38: 8279.637576 | L38: 0 | M38: 0 | N38: 0 | O38: 11692.30769 | P38: 9586.448219 | Q38: 171.2328767 | S38: 353.9726027 | T38: 0 | U38: 1736.986301 | V38: 760.5479452 | W38: 392.3287671 | X38: 3415.068493 | Y38: 121.6438356 | Z38: 154.2465753 | AA38: 333.9726027 | AB38: 21.91780822 | AC38: 631.7808219 | AD38: 0 | AE38: 59.7260274 | AF38: 125.260274 | AG38: 174.7945205 | AH38: 7.671232877 | AI38: 7.671232877 | AJ38: 0 | AK38: 912.5 | AL38: 61.25 | AM38: 78.8 | AN38: 1716800 | AO38: 2764.573269 | AP38: 2.043809524 | AQ38: 3.36627451 | AR38: 1840100 | AS38: 2.503537415 | AT38: 17116879 | AU38: -80700 | AV38: -386850 | AW38: 12373733 | AX38: 1353300 | AY38: 1772947 | AZ38: 1271199 | BA38: 5000 | BB38: 340700 | BD38: 0.4 | BE38: 248494 | BF38: 414194 | BG38: 414194 | BH38: 218679 | BI38: 333928 | BJ38: 333928 | BK38: 0 | BL38: 113549.9904 | BM38: 90484 | BN38: 452798 | BO38: 296000 | BP38: 181000 | BQ38: 104000 | BR38: 83000 | BT38: PE | BU38: Pembina Trails | BV38: 120028099 | BW38: 48011239 | BX38: 118618214 | BY38: 1415222 | BZ38: 120028099 | CC38: 15513.7 | CD38: 187 | CE38: 16273.4 | CF38: 209 | CH38: LO | CI38: Lord Selkirk | CL38: Pembina Trails | CM38: 118618214 | CN38: 15513.7 | CO38: 7646.03 | CP38: 187 | CQ38: 1429808 | CR38: 1415222 | CS38: 14586 | CT38: 33 | CU38: SW | CV38: Swan Valley School Division | CW38: 3985632 | CX38: 3985631 | CY38: 1 | CZ38: 994366 | DA38: 994366 | DB38: 0 | DD38: =COUNTIF(Ratios!$AL$68:$AL$366,CU38) -> 4
C39: 15 | D39: Lord Selkirk School Division | E39: LO | F39: Y | G39: 205 MERCY STREET | H39: SELKIRK, MANITOBA R1A 2C8 | I39: LO | J39: 1451.1933 | K39: 8859.911708 | L39: 0 | M39: 8472.425234 | N39: 7658.024523 | O39: 9726.778846 | P39: 10102.43738 | Q39: 90.21909067 | S39: 504.554108 | T39: 0 | U39: 949.9920234 | V39: 734.9973411 | W39: 485.92954 | X39: 2856.378091 | Y39: 84.58601436 | Z39: 100.6301516 | AA39: 268.2015421 | AB39: 46.16857219 | AC39: 499.5862802 | AD39: 0 | AE39: 33.1964903 | AF39: 166.5626163 | AG39: 91.97287955 | AH39: 31.17654879 | AI39: 31.17654879 | AJ39: 0 | AK39: 3761 | AL39: 254.5 | AM39: 319.75 | AN39: 2734979 | AO39: 1072.961554 | AP39: 2.686092123 | AQ39: 4.058434486 | AR39: 3063714 | AS39: 3.00895109 | AT39: 63703861 | AU39: -182000 | AV39: -731963 | AW39: 49639849 | AX39: 4702205 | AY39: 4012356 | AZ39: 3974751 | BA39: 125000 | BB39: 1249700 | BD39: 0.4 | BE39: 547803 | BF39: 2534539 | BG39: 2534539 | BH39: 888861 | BI39: 2082440 | BJ39: 2082440 | BK39: 0 | BL39: 707938.1522 | BM39: 355865 | BN39: 1846394 | BO39: 458000 | BP39: 405000 | BQ39: 435000 | BR39: 0 | BT39: PI | BU39: Pine Creek | BV39: 8645880 | BW39: 4366169 | BX39: 8561963 | BY39: 32462 | BZ39: 8645880 | CC39: 1052 | CD39: 4 | CE39: 1022 | CF39: 3 | CH39: LR | CI39: Louis Riel | CL39: Pine Creek | CM39: 8561963 | CN39: 1052 | CO39: 8138.75 | CP39: 4 | CQ39: 32555 | CR39: 32462 | CS39: 93 | CT39: 34 | CU39: TM | CV39: Turtle Mountain School Division | CW39: 4452898 | CX39: 4452897 | CY39: 1 | CZ39: 0 | DA39: 0 | DB39: 0 | DD39: =COUNTIF(Ratios!$AL$68:$AL$366,CU39) -> 6
C40: 16 | D40: Louis Riel School Division | E40: LR | F40: Y | G40: 900 ST.MARY'S ROAD | H40: WINNIPEG, MANITOBA R2M 3R3 | I40: LR | J40: 1050.064939 | K40: 6601.605804 | L40: 0 | M40: 6075.053711 | N40: 5291.739782 | O40: 16557.74834 | P40: 7526.333045 | Q40: 69.88719154 | S40: 289.9004886 | T40: 0 | U40: 875.6362175 | V40: 707.870864 | W40: 268.1394644 | X40: 2908.763622 | Y40: 38.31059435 | Z40: 39.43329829 | AA40: 309.7936793 | AB40: 69.98441462 | AC40: 457.5219865 | AD40: 35.33533304 | AE40: 114.9887439 | AF40: 289.9967221 | AG40: 84.55476529 | AH40: 51.68427237 | AI40: 51.68427237 | AJ40: 0 | AK40: 16169 | AL40: 877.1647 | AM40: 1156.6947 | AN40: 5931606 | AO40: 1950.544558 | AP40: 5.63878395 | AQ40: 11.74619639 | AR40: 6566842 | AS40: 4.66936914 | AT40: 223545879 | AU40: -1138500 | AV40: -3624293 | AW40: 172507601 | AX40: 14856876 | AY40: 21430209 | AZ40: 9730534 | BA40: 215000 | BB40: 4805659 | BD40: 0.4 | BE40: 368856 | BF40: 2910676 | BG40: 3270502 | BH40: 2976602 | BI40: 6063371 | BJ40: 6324643 | BK40: -261272 | BL40: 1867047.518 | BM40: 1492943 | BN40: 6271862 | BO40: 1379000 | BP40: 2002000 | BQ40: 1535000 | BR40: 958000 | BT40: PO | BU40: Portage La Prairie | BV40: 20592710 | BW40: 9884501 | BX40: 20382746 | BY40: 109036 | BZ40: 20592710 | CC40: 3084.5 | CD40: 16.5 | CE40: 3058 | CF40: 18 | CH40: MO | CI40: Mountain View | CL40: Portage La Prairie | CM40: 20382746 | CN40: 3084.5 | CO40: 6608.12 | CP40: 16.5 | CQ40: 109034 | CR40: 109036 | CS40: -2 | CT40: 35 | CU40: TR | CV40: Turtle River School Division | CW40: 1675856 | CX40: 1675856 | CY40: 0 | CZ40: 271971 | DA40: 263938 | DB40: 8033 | DD40: =COUNTIF(Ratios!$AL$68:$AL$366,CU40) -> 7
C41: 17 | D41: Mountain View School Division | E41: MO | F41: Y | G41: BOX 715 | H41: DAUPHIN, MANITOBA R7N 3B3 | I41: MO | J41: 1355.78225 | K41: 7422.025424 | L41: 0 | M41: 6793.235294 | N41: 5564.497309 | O41: 14379.60459 | P41: 8644.893435 | Q41: 53.94160343 | S41: 285.0847905 | T41: 0 | U41: 720.2197295 | V41: 747.1207522 | W41: 417.9729462 | X41: 2225.989442 | Y41: 77.02342461 | Z41: 136.3091389 | AA41: 249.7321016 | AB41: 11.21741999 | AC41: 474.2820851 | AD41: 7.322995711 | AE41: 133.9534807 | AF41: 173.1402177 | AG41: 134.2847245 | AH41: 98.84658529 | AI41: 98.84658529 | AJ41: 0 | AK41: 3031 | AL41: 187.45 | AM41: 235.22 | AN41: 2827515 | AO41: 1749.699876 | AP41: 2.165319236 | AQ41: 2.977770312 | AR41: 3275828 | AS41: 2.37238045 | AT41: 46137463 | AU41: -5000 | AV41: -100573 | AW41: 33683414 | AX41: 3688650 | AY41: 4783935 | AZ41: 3102560 | BA41: 160000 | BB41: 718904 | BD41: 0.4 | BE41: 420103 | BF41: 345180 | BG41: 345180 | BH41: 608206 | BI41: 1088497 | BJ41: 1088497 | BK41: 0 | BL41: 370387.4599 | BM41: 279297 | BN41: 1227311 | BO41: 356000 | BP41: 558000 | BQ41: 275000 | BR41: 0 | BT41: PR | BU41: Prairie Rose | BV41: 19549695 | BW41: 8210872 | BX41: 19328515 | BY41: 630936 | BZ41: 19549695 | CC41: 2299.6 | CD41: 75 | CE41: 2277 | CF41: 88 | CH41: MY | CI41: Mystery Lake | CL41: Prairie Rose | CM41: 19328515 | CN41: 2299.6 | CO41: 8405.16 | CP41: 75 | CQ41: 630387 | CR41: 630936 | CS41: -549 | CT41: 36 | CU41: WE | CV41: Western School Division | CW41: 5669505 | CX41: 5669504 | CY41: 1 | CZ41: 0 | DA41: 0 | DB41: 0 | DD41: =COUNTIF(Ratios!$AL$68:$AL$366,CU41) -> 5
C42: 18 | D42: Mystery Lake School Division | E42: MY | F42: Y | G42: 408 THOMPSON DRIVE N. | H42: THOMPSON, MANITOBA R8N 0C5 | I42: MY | J42: 1079.777092 | K42: 8394.27339 | L42: 0 | M42: 0 | N42: 7657.588571 | O42: 8602.026983 | P42: 9392.015974 | Q42: 90.98348158 | S42: 178.0613541 | T42: 0 | U42: 623.7901616 | V42: 1024.71483 | W42: 469.6126339 | X42: 3392.792521 | Y42: 92.08967145 | Z42: 193.8758395 | AA42: 328.2984208 | AB42: 76.74278453 | AC42: 691.0067163 | AD42: 0 | AE42: 264.2207297 | AF42: 331.3886368 | AG42: 50.46287893 | AH42: 3.26738065 | AI42: 3.26738065 | AJ42: 0 | AK42: 2754.5 | AL42: 185 | AM42: 230.5 | AN42: 57500 | AO42: 0 | AR42: 229500 | AS42: 0 | AT42: 46390227 | AU42: -9200 | AV42: -60491 | AW42: 35079236 | AX42: 4687413 | AY42: 4071027 | AZ42: 1740740 | BA42: 49600 | BB42: 762211 | BD42: 0.4 | BE42: 0 | BF42: 526084 | BG42: 543025 | BH42: 633611 | BI42: 213441 | BJ42: 236479 | BK42: -23038 | BL42: 50680.76036 | BM42: 292783 | BN42: 1365457 | BO42: 547000 | BP42: 383000 | BQ42: 1156000 | BR42: 59000 | BT42: PS | BU42: Prairie Spirit | BV42: 15606002 | BW42: 6710581 | BX42: 15431582 | BY42: 1664481 | BZ42: 15606002 | CC42: 2086 | CD42: 225 | CE42: 2086 | CF42: 228 | CH42: PA | CI42: Park West | CL42: Prairie Spirit | CM42: 15431582 | CN42: 2086 | CO42: 7397.69 | CP42: 225 | CQ42: 1664480 | CR42: 1664481 | CS42: -1 | CT42: 37 | CU42: WI | CV42: Winnipeg School Division | CW42: 115418636 | CX42: 115418637 | CY42: -1 | CZ42: 4790198 | DA42: 4731647 | DB42: 58551 | DD42: =COUNTIF(Ratios!$AL$68:$AL$366,CU42) -> 1
C43: 19 | D43: Park West School Division | E43: PA | F43: Y | G43: P.O. BOX 68, 1161 ST. CLAIRE STREET | H43: BIRTLE, MANITOBA R0M 0C0 | I43: PA | J43: 1198.241208 | K43: 7954.025018 | L43: 0 | M43: 0 | N43: 0 | O43: 0 | P43: 9152.266226 | Q43: 69.08142554 | S43: 256.0915742 | T43: 0 | U43: 680.8373849 | V43: 797.5364645 | W43: 313.6521123 | X43: 2117.198962 | Y43: 71.75548737 | Z43: 190.0788294 | AA43: 245.809299 | AB43: 40.14632995 | AC43: 547.7899457 | AD43: 23.18196837 | AE43: 0.4621194241 | AF43: 156.5154591 | AG43: 168.5938164 | AH43: 0 | AI43: 0 | AJ43: 0 | AK43: 2118.5 | AL43: 142.27 | AM43: 174.3 | AN43: 2027492 | AO43: 2472.55122 | AP43: 2.027492 | AQ43: 2.896417143 | AR43: 2147974 | AS43: 2.386637778 | AT43: 32510598 | AU43: -85000 | AV43: -202952 | AW43: 24411895 | AX43: 1866566 | AY43: 3454462 | AZ43: 2166075 | BA43: 92600 | BB43: 519000 | BD43: 0.444 | BE43: 160908 | BF43: 746973 | BG43: 769286 | BH43: 389851 | BI43: 589091 | BJ43: 602855 | BK43: -13764 | BL43: 160090.5852 | BM43: 143466 | BN43: 913207 | BO43: 255000 | BP43: 1598000 | BQ43: 242000 | BR43: 53000 | BT43: RE | BU43: Red River Valley | BV43: 20422245 | BW43: 8168898 | BX43: 19643072 | BY43: 4831585 | BZ43: 20422245 | CC43: 1952.5 | CD43: 480.5 | CE43: 1959.5 | CF43: 492.5 | CH43: PE | CI43: Pembina Trails | CL43: Red River Valley | CM43: 19643072 | CN43: 1952.5 | CO43: 10060.47 | CP43: 480.5 | CQ43: 4834056 | CR43: 4831585 | CS43: 2471 | CT43: 38 | CU43: WT | CV43: Manitoba Institute of Trades and Technology | CW43: 0 | CX43: 0 | CY43: 0 | CZ43: 0 | DA43: 0 | DB43: 0 | DD43: =COUNTIF(Ratios!$AL$68:$AL$366,CU43) -> 0
C44: 20 | D44: Pembina Trails School Division | E44: PE | F44: Y | G44: 181 HENLOW BAY | H44: WINNIPEG, MANITOBA R3Y 1M7 | I44: PE | J44: 1064.623403 | K44: 6600.225794 | L44: 0 | M44: 6641.593717 | N44: 6039.148693 | O44: 0 | P44: 7505.740812 | Q44: 40.66613049 | S44: 259.4372742 | T44: 0 | U44: 1013.06729 | V44: 998.5492704 | W44: 275.423321 | X44: 2634.313699 | Y44: 32.68475611 | Z44: 171.0976217 | AA44: 133.956187 | AB44: 65.56764071 | AC44: 403.3062056 | AD44: 27.92041668 | AE44: 30.24185209 | AF44: 270.3086822 | AG44: 99.54929595 | AH44: 51.17332414 | AI44: 51.17332414 | AJ44: 0 | AK44: 15666.6 | AL44: 842.98 | AM44: 1052.76 | AN44: 3646215 | AO44: 1195.480328 | AP44: 5.362080882 | AQ44: 9.595302632 | AR44: 4425192 | AS44: 6.18907972 | AT44: 206537578 | AU44: -2466000 | AV44: -234016 | AW44: 160065877 | AX44: 14014499 | AY44: 17265035 | AZ44: 9014700 | BA44: 0 | BB44: 6177467 | BD44: 0.4 | BE44: 544248 | BF44: 2401827 | BG44: 2429845 | BH44: 2669817 | BI44: 6889658 | BJ44: 6903885 | BK44: -14226 | BL44: 2425359.626 | BM44: 1442887 | BN44: 5517087 | BO44: 1115000 | BP44: 2106000 | BQ44: 1129000 | BR44: 902000 | BT44: RI | BU44: River East Transcona | BV44: 100688199 | BW44: 40275280 | BX44: 99504113 | BY44: 1934750 | BZ44: 100688199 | CC44: 17065.1 | CD44: 332.5 | CE44: 17866.1 | CF44: 360.5 | CH44: PI | CI44: Pine Creek | CL44: River East Transcona | CM44: 99504113 | CN44: 17065.1 | CO44: 5830.85 | CP44: 332.5 | CQ44: 1938758 | CR44: 1934750 | CS44: 4008 | CT44: 39 | CU44: XW | CV44: Whiteshell School District | CW44: 1397937 | CX44: 1397939 | CY44: -2 | CZ44: 22588 | DA44: 22588 | DB44: 0 | DD44: =COUNTIF(Ratios!$AL$68:$AL$366,CU44) -> 0
C45: 21 | D45: Pine Creek School Division | E45: PI | F45: Y | G45: P.O. BOX 420 | H45: GLADSTONE, MANITOBA R0J 0T0 | I45: PI | J45: 1223.191489 | K45: 8663.564612 | L45: 0 | M45: 0 | N45: 0 | O45: 5764.426667 | P45: 9685.613321 | Q45: 180.827012 | S45: 469.1008326 | T45: 0 | U45: 464.4079556 | V45: 771.9740981 | W45: 45.79000925 | X45: 1932.099907 | Y45: 116.5892692 | Z45: 124.6216466 | AA45: 286.4912118 | AB45: 22.1720629 | AC45: 549.8741906 | AD45: 0 | AE45: 0 | AF45: 317.7483811 | AG45: 93.7400555 | AH45: 9.166512488 | AI45: 9.166512488 | AJ45: 0 | AK45: 1081 | AL45: 74.77 | AM45: 91.73 | AN45: 1383324 | AO45: 2385.041379 | AP45: 2.120725814 | AQ45: 3.694302013 | AR45: 1628942 | AS45: 3.144086918 | AT45: 17288369 | AU45: 0 | AV45: -14790 | AW45: 12955499 | AX45: 1123556 | AY45: 1570536 | AZ45: 1360173 | BA45: 0 | BB45: 278605 | BD45: 0.505 | BE45: 143411 | BF45: 312067 | BG45: 312678 | BH45: 246801 | BI45: 510486 | BJ45: 509512 | BK45: 975 | BL45: 183259.9035 | BM45: 100847 | BN45: 482233 | BO45: 255000 | BP45: 235000 | BQ45: 74000 | BR45: 0 | BT45: RO | BU45: Rolling River | BV45: 14094680 | BW45: 5962050 | BX45: 13936248 | BY45: 16314 | BZ45: 14094680 | CC45: 1708.5 | CD45: 2 | CE45: 1691.6 | CF45: 2 | CH45: PO | CI45: Portage La Prairie | CL45: Rolling River | CM45: 13936248 | CN45: 1708.5 | CO45: 8157.01 | CP45: 2 | CQ45: 16314 | CR45: 16314 | CS45: 0
C46: 22 | D46: Portage La Prairie School Division | E46: PO | F46: Y | G46: 535 - 3rd STREET N.W. | H46: PORTAGE LA PRAIRIE, MANITOBA R1N 2C4 | I46: PO | J46: 1081.358595 | K46: 7967.983358 | L46: 0 | M46: 0 | N46: 5038.776295 | O46: 6672.211538 | P46: 8213.696574 | Q46: 52.60307782 | S46: 295.1747967 | T46: 0 | U46: 870.2439024 | V46: 486.8466899 | W46: 433.0429733 | X46: 2400.19367 | Y46: 53.85307782 | Z46: 86.9018583 | AA46: 159.8847271 | AB46: 19.3960511 | AC46: 320.0357143 | AD46: 25.51684088 | AE46: 34.20876887 | AF46: 118.3493031 | AG46: 124.2804878 | AH46: 229.8368177 | AI46: 229.8368177 | AJ46: 0 | AK46: 3444 | AL46: 217.9 | AM46: 267.75 | AN46: 1247663 | AO46: 871.2730447 | AP46: 2.106087359 | AQ46: 3.213530868 | AR46: 1462793 | AS46: 3.096054776 | AT46: 46343259 | AU46: -45000 | AV46: -58165 | AW46: 36810880 | AX46: 2903214 | AY46: 3065716 | AZ46: 2729449 | BA46: 15000 | BB46: 819000 | BD46: 0.48 | BE46: 274977 | BF46: 269506 | BG46: 270928 | BH46: 639967 | BI46: 1173716 | BJ46: 1177653 | BK46: -3937 | BL46: 409266.8936 | BM46: 298368 | BN46: 1350756 | BO46: 433000 | BP46: 1307000 | BQ46: 561000 | BR46: 0 | BT46: SE | BU46: Seine River | BV46: 26470391 | BW46: 11117564 | BX46: 25861412 | BY46: 6506340 | BZ46: 26470391 | CC46: 4605.5 | CD46: 1157.5 | CE46: 4748.5 | CF46: 1157.5 | CH46: PR | CI46: Prairie Rose | CL46: Seine River | CM46: 25861412 | CN46: 4605.5 | CO46: 5615.33 | CP46: 1157.5 | CQ46: 6499744 | CR46: 6506340 | CS46: -6596 | CV46: TOTAL | CW46: =SUM(CW7:CW44) -> 624840332 | CX46: 624840336 | CY46: -4 | CZ46: 37413980 | DA46: 37415713 | DB46: -1733
C47: 23 | D47: Prairie Rose School Division | E47: PR | F47: Y | G47: 45 MAIN STREET S. | H47: CARMAN, MANITOBA R0G 0J0 | I47: PR | J47: 1238.965166 | K47: 7516.378146 | L47: 0 | M47: 6991.733906 | N47: 6436.353422 | O47: 0 | P47: 8504.793968 | Q47: 70.53950722 | S47: 309.6440102 | T47: 0 | U47: 783.2956669 | V47: 803.2544605 | W47: 430.1142736 | X47: 2396.847918 | Y47: 93.30926083 | Z47: 82.17926933 | AA47: 249.8513169 | AB47: 27.61257434 | AC47: 452.9524214 | AD47: 0 | AE47: 62.57774002 | AF47: 164.0407816 | AG47: 121.3912489 | AH47: 0.849617672 | AI47: 0.849617672 | AJ47: 0 | AK47: 2354 | AL47: 157.67 | AM47: 196.17 | AN47: 2493978 | AO47: 1612.138332 | AP47: 2.206831682 | AQ47: 3.472530012 | AR47: 2738848 | AS47: 2.580452108 | AT47: 34983442 | AU47: -175500 | AV47: -365038 | AW47: 26623566 | AX47: 2565091 | AY47: 2622075 | AZ47: 2352210 | BA47: 90000 | BB47: 730500 | BD47: 0.42 | BE47: 272250 | BF47: 1058604 | BG47: 1085297 | BH47: 476038 | BI47: 1283895 | BJ47: 1215336 | BK47: 68559 | BL47: 472048.1173 | BM47: 220431 | BN47: 978139 | BO47: 263000 | BP47: 692000 | BQ47: 150000 | BR47: 0 | BT47: SO | BU47: Seven Oaks | BV47: 71140294 | BW47: 28456118 | BX47: 68730562 | BY47: 264758 | BZ47: 71140294 | CC47: 10660 | CD47: 41 | CE47: 11159 | CF47: 50.5 | CH47: PS | CI47: Prairie Spirit | CL47: Seven Oaks | CM47: 68730562 | CN47: 10660 | CO47: 6447.52 | CP47: 41 | CQ47: 264348 | CR47: 264758 | CS47: -410
C48: 24 | D48: Prairie Spirit School Division | E48: PS | F48: Y | G48: Box 130 15 Lorne Avenue | H48: Swan Lake, Manitoba R0G 2S0 | I48: PS | J48: 1416.236034 | K48: 6976.881246 | L48: 0 | M48: 0 | N48: 6909.597315 | O48: 0 | P48: 8379.115456 | Q48: 103.391527 | S48: 250.7332402 | T48: 0 | U48: 678.6615456 | V48: 897.2299814 | W48: 257.2276536 | X48: 2187.243948 | Y48: 83.91527002 | Z48: 107.8747672 | AA48: 209.8766294 | AB48: 18.97113594 | AC48: 420.6378026 | AD48: 0 | AE48: 69.80446927 | AF48: 215.0837989 | AG48: 57.93296089 | AH48: 5.353817505 | AI48: 5.353817505 | AJ48: 0 | AK48: 2148 | AL48: 131.894 | AM48: 161.454 | AN48: 2602125 | AO48: 2294.642857 | AP48: 1.792430411 | AQ48: 2.981653741 | AR48: 2809240 | AS48: 1.883209428 | AT48: 31368590 | AU48: -80000 | AV48: -38900 | AW48: 23724320 | AX48: 2136865 | AY48: 2761340 | AZ48: 2159065 | BA48: 42500 | BB48: 544500 | BD48: 0.43 | BE48: 368058 | BF48: 763122 | BG48: 841411 | BH48: 410535 | BI48: 1062712 | BJ48: 982940 | BK48: 79772 | BL48: 365625.6309 | BM48: 195147 | BN48: 843818 | BO48: 289000 | BP48: 480000 | BQ48: 171000 | BR48: 9000 | BT48: SR | BU48: Southwest Horizon | BV48: 15401717 | BW48: 7084790 | BX48: 15238643 | BY48: 20051 | BZ48: 15401717 | CC48: 1521 | CD48: 2 | CE48: 1488 | CF48: 0 | CH48: RE | CI48: Red River Valley | CL48: Southwest Horizon | CM48: 15238643 | CN48: 1521 | CO48: 10018.83 | CP48: 2 | CQ48: 20038 | CR48: 20051 | CS48: -13
C49: 25 | D49: Red River Valley School Division | E49: RE | F49: Y | G49: P.O. BOX 400 | H49: MORRIS, MANITOBA R0G 1K0 | I49: RE | J49: 1341.836484 | K49: 7512.994712 | L49: 0 | M49: 6923.292035 | N49: 7880.461176 | O49: 17719.39535 | P49: 8897.738901 | Q49: 113 | S49: 320.1173626 | T49: 0 | U49: 770.1265934 | V49: 771.5340659 | W49: 491.1863736 | X49: 2690.060659 | Y49: 71.57098901 | Z49: 128.8698901 | AA49: 298.0523077 | AB49: 22.95736264 | AC49: 521.4505495 | AD49: 3.568351648 | AE49: 55.88307692 | AF49: 99.06417582 | AG49: 87.92967033 | AH49: 43.23252747 | AI49: 43.23252747 | AJ49: 0 | AK49: 2275 | AL49: 142.97 | AM49: 181.51 | AN49: 2759572 | AO49: 2011.349854 | AP49: 2.111149363 | AQ49: 3.432427289 | AR49: 3105364 | AS49: 2.653560781 | AT49: 35808754 | AU49: -392363 | AV49: -65372 | AW49: 27121706 | AX49: 2245123 | AY49: 2783128 | AZ49: 2559317 | BA49: 124000 | BB49: 975480 | BD49: 0.4 | BE49: 332000 | BF49: 657633 | BG49: 818721 | BH49: 473973 | BI49: 1391522 | BJ49: 1440652 | BK49: -49130 | BL49: 627188.9222 | BM49: 225267 | BN49: 956128 | BO49: 164000 | BP49: 273000 | BQ49: 140000 | BR49: 2000 | BT49: ST | BU49: St. James - Assiniboia | BV49: 72327383 | BW49: 32981287 | BX49: 71555891 | BY49: 842254 | BZ49: 72327383 | CC49: 8030 | CD49: 92.5 | CE49: 8072.3 | CF49: 94.5 | CH49: RI | CI49: River East Transcona | CL49: St. James - Assiniboia | CM49: 71555891 | CN49: 8030 | CO49: 8911.07 | CP49: 92.5 | CQ49: 824274 | CR49: 842254 | CS49: -17980
C50: 26 | D50: River East Transcona School Division | E50: RI | F50: Y | G50: 589 ROCH STREET | H50: WINNIPEG, MANITOBA R2K 2P7 | I50: RI | J50: 1038.591401 | K50: 8124.836609 | L50: 0 | M50: 6549.52832 | N50: 4873.316622 | O50: 4918.186947 | P50: 7663.028518 | Q50: 64.35165157 | S50: 251.0410622 | T50: 0 | U50: 1129.8201 | V50: 764.9054193 | W50: 208.3296697 | X50: 2604.669656 | Y50: 29.19985932 | Z50: 72.8154987 | AA50: 160.290454 | AB50: 74.56385005 | AC50: 336.8696621 | AD50: 30.3169495 | AE50: 83.4385533 | AF50: 268.5205897 | AG50: 101.2199654 | AH50: 34.42345907 | AI50: 34.42345907 | AJ50: 0 | AK50: 17059.5 | AL50: 941.88 | AM50: 1203.95 | AN50: 4849588 | AO50: 1603.169587 | AP50: 4.385711314 | AQ50: 9.649538773 | AR50: 5509478 | AS50: 4.78311842 | AT50: 224892401 | AU50: -57800 | AV50: -2254998 | AW50: 182624760 | AX50: 12607796 | AY50: 15209749 | AZ50: 10662296 | BA50: 59000 | BB50: 3728800 | BD50: 0.4 | BE50: 668899 | BF50: 730607 | BG50: 745262 | BH50: 3129204 | BI50: 5789617 | BJ50: 5899002 | BK50: -109385 | BL50: 2078631.972 | BM50: 1637623 | BN50: 6519275 | BO50: 1562000 | BP50: 2219000 | BQ50: 1325000 | BR50: 864000 | BT50: SU | BU50: Sunrise | BV50: 42205946 | BW50: 17937527 | BX50: 41730094 | BY50: 573492 | BZ50: 42205946 | CC50: 4767.1 | CD50: 65.5 | CE50: 4744 | CF50: 62.5 | CH50: RO | CI50: Rolling River | CL50: Sunrise | CM50: 41730094 | CN50: 4767.1 | CO50: 8753.77 | CP50: 65.5 | CQ50: 573372 | CR50: 573492 | CS50: -120
C51: 27 | D51: Rolling River School Division | E51: RO | F51: Y | G51: P.O. BOX 1170 | H51: MINNEDOSA, MANITOBA R0J 1E0 | I51: RO | J51: 1286.374929 | K51: 7562.947189 | L51: 0 | M51: 0 | N51: 0 | O51: 14999 | P51: 8891.309994 | Q51: 97.49011858 | S51: 259.2207792 | T51: 0 | U51: 448.3342744 | V51: 877.9136081 | W51: 357.1795596 | X51: 2040.13834 | Y51: 84.45793337 | Z51: 99.71485037 | AA51: 326.9904009 | AB51: 19.19819311 | AC51: 530.3613778 | AD51: 14.16713721 | AE51: 57.26990401 | AF51: 138.1789949 | AG51: 71.99322417 | AH51: 15.47148504 | AI51: 15.47148504 | AJ51: 0 | AK51: 1771 | AL51: 109.075 | AM51: 133.425 | AN51: 1840725 | AO51: 2022.774725 | AP51: 2.168829929 | AQ51: 3.477291275 | AR51: 2005875 | AS51: 2.261644361 | AT51: 27111655 | AU51: -360000 | AV51: -30390 | AW51: 20257865 | AX51: 1825840 | AY51: 2071050 | AZ51: 1969400 | BA51: 193000 | BB51: 794500 | BD51: 0.423 | BE51: 313563 | BF51: 717685 | BG51: 718967 | BH51: 348731 | BI51: 793167 | BJ51: 817725 | BK51: -24558 | BL51: 289455.0404 | BM51: 153760 | BN51: 739542 | BO51: 275000 | BP51: 617000 | BQ51: 143000 | BR51: 0 | BT51: TR | BU51: Turtle River | BV51: 4203613 | BW51: 2101807 | BX51: 4162401 | BY51: 229370 | BZ51: 4203613 | CC51: 617 | CD51: 34 | CE51: 631.5 | CF51: 37 | CH51: SE | CI51: Seine River | CK51: 6533991.58 | CL51: Turtle River | CM51: 4162401 | CN51: 617 | CO51: 6746.19 | CP51: 34 | CQ51: 229370 | CR51: 229370 | CS51: 0
C52: 28 | D52: Seine River School Division | E52: SE | F52: Y | G52: 475-A SENEZ STREET | H52: LORETTE, MANITOBA R5K 1E3 | I52: SE | J52: 1151.43572 | K52: 6455.911209 | L52: 0 | M52: 6239.774156 | N52: 6520.257673 | O52: 0 | P52: 7587.793567 | Q52: 54.80732156 | S52: 235.9250514 | T52: 0 | U52: 1070.045706 | V52: 676.6808188 | W52: 318.2003682 | X52: 2355.659266 | Y52: 51.2299361 | Z52: 84.78111123 | AA52: 262.6548251 | AB52: 23.93588216 | AC52: 422.6017546 | AD52: 42.10830716 | AE52: 150.9639337 | AF52: 126.5198744 | AG52: 83.00162461 | AH52: 18.73713852 | AI52: 18.73713852 | AJ52: 0 | AK52: 4616.5 | AL52: 0 | AM52: 0 | AN52: 3799973 | AO52: Error | AP52: Error | AQ52: Error | AR52: 4096200 | AS52: Error | AT52: 62077231 | AU52: -514600 | AV52: -1111210 | AW52: 48036979 | AX52: 3504922 | AY52: 4912947 | AZ52: 4197783 | BA52: 60000 | BB52: 1364600 | BD52: 0.42 | BE52: 552468 | BF52: 1027613 | BG52: 1289547 | BH52: 836159 | BI52: 1765656 | BJ52: 2052661 | BK52: -287005 | BL52: 957330.614 | BM52: 428010 | BN52: 1768235 | BO52: 460000 | BP52: 899000 | BQ52: 266000 | BR52: 163000 | BT52: WI | BU52: Winnipeg | BV52: 214160999 | BW52: 85664400 | BX52: 211641458 | BY52: 2911038 | BZ52: 214160999 | CC52: 26020.2 | CD52: 358 | CE52: 26729.7 | CF52: 405 | CH52: SO | CI52: Seven Oaks | CL52: Winnipeg | CM52: 211641458 | CN52: 26020.2 | CO52: 8133.74 | CP52: 358 | CQ52: 2911879 | CR52: 2911038 | CS52: 841
C53: 29 | D53: Seven Oaks School Division | E53: SO | F53: Y | G53: 830 POWERS STREET | H53: WINNIPEG, MANITOBA R2V 4E7 | I53: SO | J53: 1046.432805 | K53: 7558.607842 | L53: 0 | M53: 5934.378367 | N53: 7303.99244 | O53: 8652.436548 | P53: 8389.478081 | Q53: 47.19509617 | S53: 149.4077362 | T53: 0 | U53: 1454.1171 | V53: 502.4240118 | W53: 315.4766434 | X53: 2508.871697 | Y53: 39.17734094 | Z53: 112.5859226 | AA53: 174.2430776 | AB53: 58.50348763 | AC53: 384.5098288 | AD53: 8.117522722 | AE53: 54.38089199 | AF53: 172.1346861 | AG53: 101.0086662 | AH53: 181.6044811 | AI53: 181.6044811 | AJ53: 0 | AK53: 11827.5 | AL53: 693.25 | AM53: 844.9 | AN53: 3795524 | AO53: 1290.555593 | AP53: 5.041460454 | AQ53: 9.380627909 | AR53: 4527794 | AS53: 3.876535959 | AT53: 168486575 | AU53: -1135250 | AV53: -4983990 | AW53: 130133631 | AX53: 14814000 | AY53: 10589109 | AZ53: 8786432 | BA53: 244163 | BB53: 3919240 | BD53: 0.4 | BE53: 503163 | BF53: 2675142 | BG53: 2681917 | BH53: 2315487 | BI53: 4002009 | BJ53: 4017116 | BK53: -15107 | BL53: 1437974.184 | BM53: 1105063 | BN53: 4654073 | BO53: 1160000 | BP53: 1461000 | BQ53: 856000 | BR53: 530000 | CC53: =SUM(CC26:CC52) -> 153644 | CD53: =SUM(CD26:CD52) -> 5206.2 | CE53: =SUM(CE26:CE52) -> 157901.9 | CF53: =SUM(CF26:CF52) -> 5388 | CH53: SR | CI53: Southwest Horizon | CQ53: =SUM(CQ26:CQ52) -> 36448689 | CR53: =SUM(CR26:CR52) -> 36470358 | CS53: =SUM(CS26:CS52) -> -21669
C54: 30 | D54: Southwest Horizon School Division | E54: SR | F54: Y | G54: P.O. BOX 820 | H54: SOURIS, MB R0K 2C0 | I54: SR | J54: 1106.31068 | K54: 8776.976422 | L54: 0 | M54: 0 | N54: 0 | O54: 0 | P54: 9883.287101 | Q54: 177.704577 | S54: 271.0818308 | T54: 0 | U54: 1368.030513 | V54: 573.0235784 | W54: 463.4188627 | X54: 2853.259362 | Y54: 106.1026352 | Z54: 145.631068 | AA54: 283.9805825 | AB54: 41.19278779 | AC54: 576.9070735 | AD54: 0 | AE54: 92.3370319 | AF54: 195.0762829 | AG54: 54.889043 | AH54: 20.73509015 | AI54: 20.73509015 | AJ54: 5000 | AK54: 1442 | AL54: 105.28 | AM54: 123.54 | AN54: 2318300 | AO54: 3279.066478 | AP54: 2.432194819 | AQ54: 4.0374434 | AR54: 2468500 | AS54: 2.850879979 | AT54: 25793700 | AU54: -286100 | AV54: -203800 | AW54: 19013600 | AX54: 1583900 | AY54: 2424250 | AZ54: 2046650 | BA54: 32400 | BB54: 687900 | BD54: 0.46 | BE54: 301805 | BF54: 712439 | BG54: 713853 | BH54: 331677 | BI54: 888968 | BJ54: 898679 | BK54: -9710 | BL54: 299480.1021 | BM54: 138136 | BN54: 693764 | BO54: 118000 | BP54: 195000 | BQ54: 97000 | BR54: 0 | BT54: non-DSFM: | BW54: SLCURRPOR | CH54: ST | CI54: St. James - Assiniboia | CL54: =COUNTA(CL26:CL52) -> 27
C55: 31 | D55: St. James - Assiniboia School Division | E55: ST | F55: Y | G55: 2574 PORTAGE AVENUE | H55: WINNIPEG, MANITOBA R3J 0H8 | I55: ST | J55: 1259.995104 | K55: 7546.432684 | L55: 0 | M55: 6463.652803 | N55: 5806.521008 | O55: 8799.59272 | P55: 8441.260984 | Q55: 28.04745167 | S55: 444.81647 | T55: 0 | U55: 1925.164072 | V55: 826.4298268 | W55: 428.4549335 | X55: 3701.933593 | Y55: 51.85538539 | Z55: 140.6824002 | AA55: 222.8060507 | AB55: 60.94991213 | AC55: 476.2937484 | AD55: 5.748932965 | AE55: 136.1763746 | AF55: 170.7736631 | AG55: 217.979287 | AH55: 51.25081597 | AI55: 51.25081597 | AJ55: 0 | AK55: 7966 | AL55: 456.64 | AM55: 600.01 | AN55: 2550891 | AO55: 1624.771338 | AP55: 4.587933453 | AQ55: 8.765948454 | AR55: 2847143 | AS55: 4.519274603 | AT55: 123310708 | AU55: -391000 | AV55: -956755 | AW55: 96564932 | AX55: 8267574 | AY55: 10304834 | AZ55: 5650187 | BA55: 56035 | BB55: 2467146 | BD55: 0.456 | BE55: 127830 | BF55: 1752308 | BG55: 1772637 | BH55: 1760314 | BI55: 4195011 | BJ55: 4131537 | BK55: 63473 | BL55: 1383136.944 | BM55: 783359 | BN55: 3486090 | BO55: 825000 | BP55: 872000 | BQ55: 575000 | BR55: 5000 | BT55: BE | BU55: Beautiful Plains | BV55: 10460260 | BW55: 5020925 | BZ55: 10460260 | CH55: SU | CI55: Sunrise
C56: 32 | D56: Sunrise School Division | E56: SU | F56: Y | G56: P.O. BOX 1206 | H56: BEAUSEJOUR, MANITOBA R0E 0C0 | I56: SU | J56: 1097.258043 | K56: 9815.242353 | L56: 0 | M56: 0 | N56: 6375.283103 | O56: 0 | P56: 8743.830435 | Q56: 61.53847826 | S56: 451.2828261 | T56: 0 | U56: 1215.673261 | V56: 914.2047826 | W56: 233.1717391 | X56: 3019.029565 | Y56: 67.05652174 | Z56: 86.38673913 | AA56: 309.14 | AB56: 33.56913043 | AC56: 496.1523913 | AD56: 0 | AE56: 120.1578261 | AF56: 137.1126087 | AG56: 86.51956522 | AH56: 7.178043478 | AI56: 7.178043478 | AJ56: 3000 | AK56: 4600 | AL56: 283.91 | AM56: 363.96 | AN56: 5288759 | AO56: 1452.15788 | AP56: 2.58858767 | AQ56: 4.177313681 | AR56: 5900994 | AS56: 3.05768887 | AT56: 74841554 | AU56: -774000 | AV56: -1110491 | AW56: 55912181 | AX56: 4205559 | AY56: 7762540 | AZ56: 4433131 | BA56: 510000 | BB56: 2015143 | BD56: 0.425 | BE56: 864887 | BF56: 1465596 | BG56: 1489849 | BH56: 995061 | BI56: 2218396 | BJ56: 2296766 | BK56: -78371 | BL56: 691522.1071 | BM56: 441631 | BN56: 2095396 | BO56: 396000 | BP56: 499000 | BQ56: 364000 | BR56: 7000 | BT56: EV | BU56: Evergreen | BV56: 13712536 | BW56: 5896390 | BZ56: 13712536 | CB56: Updated - VA | CC56: 9/22 RESIDENT PUPILS | CE56: 9/23 RESIDENT PUPILS | CH56: SW | CI56: Swan Valley
C57: 33 | D57: Swan Valley School Division | E57: SW | F57: N | G57: P.O. BOX 995, 431 3rd STREET N. | H57: SWAN RIVER, MANITOBA R0L 1Z0 | I57: SW | J57: 1580.680358 | K57: 7909.563162 | L57: 0 | M57: 0 | N57: 8274.251046 | O57: 9338.056648 | P57: 9690.932039 | Q57: 132.9133682 | S57: 284.596714 | T57: 0 | U57: 2706.648992 | V57: 684.2882748 | W57: 433.5675878 | X57: 4242.014937 | Y57: 132.5892457 | Z57: 159.454817 | AA57: 276.5265123 | AB57: 13.06945482 | AC57: 581.6400299 | AD57: 14.22180732 | AE57: 0 | AF57: 211.7729649 | AG57: 79.72068708 | AH57: 19.78043316 | AI57: 19.78043316 | AJ57: 0 | AK57: 1339 | AL57: 89.05 | AM57: 111.41 | AN57: 1883748 | AO57: 1577.678392 | AP57: 2.371266078 | AQ57: 2.766369139 | AR57: 2140602 | AS57: 2.905221413 | AT57: 25341416 | AU57: -62600 | AV57: -95766 | AW57: 18448877 | AX57: 2214572 | AY57: 2287873 | AZ57: 1906894 | BA57: 5000 | BB57: 478200 | BC57: 0.45 | BE57: 277474 | BF57: 994366 | BG57: 994366 | BH57: 305382 | BI57: 659197 | BJ57: 659197 | BK57: 0 | BL57: 190101.1259 | BM57: 125520 | BN57: 600884 | BO57: 302000 | BP57: 249000 | BQ57: 156000 | BR57: 40000 | BT57: FL | BU57: Flin Flon | BV57: 5248873 | BW57: 2624437 | BZ57: 5248873 | CB57: RESIDENT DIVISION | CC57: Non-DSFM | CD57: DSFM | CE57: Non-DSFM | CF57: DSFM | CH57: TM | CI57: Turtle Mountain
C58: 34 | D58: Turtle Mountain School Division | E58: TM | F58: N | G58: P.O. BOX 280 | H58: KILLARNEY, MANITOBA R0K 1G0 | I58: TM | J58: 912.9758221 | K58: 7002.032836 | L58: 0 | M58: 0 | N58: 0 | O58: 2145.37931 | P58: 7778.796905 | Q58: 123.4400387 | S58: 415.2166344 | T58: 0 | U58: 283.2572534 | V58: 1732.076402 | W58: 256.9729207 | X58: 2810.96325 | Y58: 88.82978723 | Z58: 127.622824 | AA58: 232.1450677 | AB58: 20.87234043 | AC58: 469.4700193 | AD58: 0 | AE58: 59.76982592 | AF58: 130.1982592 | AG58: 141.1673114 | AH58: 96.9729207 | AI58: 96.9729207 | AJ58: 0 | AK58: 1034 | AL58: 65.7 | AM58: 78.81 | AN58: 1168409 | AO58: 2729.92757 | AP58: 2.874095702 | AQ58: 1.962281294 | AR58: 1300884 | AS58: 2.482783103 | AT58: 14954385 | AU58: -26000 | AV58: -220377 | AW58: 11336977 | AX58: 870202 | AY58: 1528125 | AZ58: 897081 | BA58: 56000 | BB58: 266000 | BC58: 0 | BD58: 0 | BE58: 177056 | BF58: 0 | BG58: 0 | BH58: 205809 | BI58: 461002 | BJ58: 461002 | BK58: 0 | BL58: 156722.9378 | BM58: 95136 | BN58: 435940 | BO58: 95000 | BP58: 236000 | BQ58: 115000 | BR58: 34000 | BT58: FR | BU58: Frontier | BV58: 3797322 | BW58: 1518929 | BZ58: 3797322 | CA58: BE | CB58: Beautiful Plains | CC58: 2021 | CD58: 0 | CE58: 2180.5 | CF58: 0 | CH58: TR | CI58: Turtle River
C59: 35 | D59: Turtle River School Division | E59: TR | F59: Y | G59: P.O. BOX 309 | H59: MC CREARY, MANITOBA R0J 1B0 | I59: TR | J59: 1277.806341 | K59: 10151.73464 | L59: 0 | M59: 15709.81818 | N59: 0 | O59: 0 | P59: 11639.10026 | Q59: 167.8543273 | S59: 310.1456727 | T59: 0 | U59: 1768.075407 | V59: 829.059126 | W59: 159.4927164 | X59: 3234.627249 | Y59: 177.2887746 | Z59: 94.28791774 | AA59: 454.5844045 | AB59: 14.5672665 | AC59: 740.7283633 | AD59: 0 | AE59: 0 | AF59: 244.4850043 | AG59: 53.25278492 | AH59: 137.1036847 | AI59: 137.1036847 | AJ59: 0 | AK59: 583.5 | AL59: 53.23 | AM59: 62.18 | AN59: 1193773 | AO59: 3116.900783 | AP59: 1.7911449 | AQ59: 2.618767454 | AR59: 1307273 | AS59: 1.943036479 | AT59: 12347227 | AU59: -150180 | AV59: -28040 | AW59: 9016419 | AX59: 815511 | AY59: 1165692 | AZ59: 996659 | BA59: 3000 | BB59: 349946 | BD59: 0.5 | BE59: 279293 | BF59: 263938 | BG59: 271971 | BH59: 157617 | BI59: 403087 | BJ59: 318570 | BK59: 84518 | BL59: 104708.0697 | BM59: 65786 | BN59: 320077 | BO59: 225000 | BP59: 186000 | BQ59: 242000 | BR59: 23000 | BT59: GA | BU59: Garden Valley | BV59: 22005599 | BW59: 11002800 | BZ59: 22005599 | CA59: BO | CB59: Border Land | CC59: 1999.3 | CD59: 11 | CE59: 2022.4 | CF59: 10.5 | CH59: WE | CI59: Western
C60: 36 | D60: Western School Division | E60: WE | F60: N | G60: UNIT 4-75 THORNHILL | H60: MORDEN, MANITOBA R6M 1P2 | I60: WE | J60: 934.2849801 | K60: 7213.579229 | L60: 0 | M60: 0 | N60: 6420.994475 | O60: 12769.93333 | P60: 7790.104181 | Q60: 81.11702873 | S60: 204.0373744 | T60: 0 | U60: 600.5844429 | V60: 607.2071946 | W60: 314.4059799 | X60: 1942.754497 | Y60: 58.73580939 | Z60: 98.879701 | AA60: 228.3667367 | AB60: 27.09647279 | AC60: 413.0787199 | AD60: 0 | AE60: 0 | AF60: 134.1284747 | AG60: 61.71315113 | AH60: 91.66970334 | AI60: 91.66970334 | AJ60: 0 | AK60: 2140.5 | AL60: 125.46 | AM60: 150.26 | AN60: 977442 | AO60: 751.8784615 | AP60: 3.580373626 | AQ60: 5.923890909 | AR60: 1156386 | AS60: 3.671066667 | AT60: 26991845 | AU60: -114500 | AV60: -531680 | AW60: 21308941 | AX60: 1644657 | AY60: 1917809 | AZ60: 1512800 | BA60: 35000 | BB60: 572638 | BC60: 0.4 | BE60: 136541 | BF60: 0 | BG60: 0 | BH60: 350616 | BI60: 582992 | BJ60: 582992 | BK60: 0 | BL60: 198191.292 | BM60: 195731 | BN60: 719767 | BO60: 149000 | BP60: 1204000 | BQ60: 157000 | BR60: 148000 | BT60: SW | BU60: Swan Valley | BV60: 9800925 | BW60: 4410416 | BZ60: 9800925 | CA60: BR | CB60: Brandon | CC60: 8924 | CD60: 149 | CE60: 9201 | CF60: 132 | CH60: WI | CI60: Winnipeg
C61: 37 | D61: Winnipeg School Division | E61: WI | F61: Y | G61: 1577 WALL STREET EAST | H61: WINNIPEG, MANITOBA R3E 2S5 | I61: WI | J61: 1155.718084 | K61: 7985.738538 | L61: 0 | M61: 6730.374822 | N61: 6050.4853 | O61: 10509.67049 | P61: 8570.77055 | Q61: 27.31379039 | S61: 548.3077739 | T61: 0 | U61: 1024.199587 | V61: 803.9409323 | W61: 276.7075691 | X61: 3991.96701 | Y61: 37.07473986 | Z61: 112.578315 | AA61: 254.5934203 | AB61: 31.84170583 | AC61: 436.088181 | AD61: 35.6125304 | AE61: 80.14282318 | AF61: 67.4564307 | AG61: 98.36607355 | AH61: 110.3277801 | AI61: 110.3277801 | AJ61: 0 | AK61: 27341.5 | AL61: 1600.13 | AM61: 2155.85 | AN61: 6809294 | AO61: 3991.379836 | AP61: 9.75000179 | AQ61: 13.76040271 | AR61: 7965244 | AS61: 10.37000719 | AT61: 453150000 | AU61: -2452450 | AV61: -9067403 | AW61: 361547045 | AX61: 31314012 | AY61: 29396022 | AZ61: 20390729 | BA61: 435342 | BB61: 10066850 | BD61: 0.4 | BE61: 1028686 | BF61: 4729813 | BG61: 4790198 | BH61: 6404285 | BI61: 12601864 | BJ61: 12422614 | BK61: 179250 | BL61: 4264150.386 | BM61: 2769458 | BN61: 13217157 | BO61: 5336000 | BP61: 4520645 | BQ61: 4782000 | BR61: 934000 | BT61: TM | BU61: Turtle Mountain | BV61: 8087183 | BW61: 3267223 | BZ61: 8087183 | CA61: DI | CB61: D.S.F.M. | CC61: 0 | CD61: 0 | CE61: 0 | CF61: 0 | CH61: XW | CI61: Whiteshell
C62: 38 | D62: Manitoba Institute of Trades and Technology | E62: WT | F62: N | G62: 7 Fultz Blvd | H62: WINNIPEG, MANITOBA R3Y 1G4 | I62: WT | BT62: WE | BU62: Western | BV62: 10228090 | BW62: 4091236 | BZ62: 10228090 | CA62: EV | CB62: Evergreen | CC62: 1392.2 | CD62: 0 | CE62: 1407 | CF62: 0
C63: 39 | D63: Whiteshell School District | E63: XW | F63: N | G63: P.O. BOX 130 | H63: PINAWA, MANITOBA R0E 1L0 | I63: XW | J63: 1741.552326 | K63: 11756.17442 | L63: 0 | M63: 0 | N63: 0 | O63: 0 | P63: 13497.72674 | Q63: 148.5174419 | S63: 420.9302326 | T63: 0 | U63: 1601.674419 | V63: 15.94186047 | W63: 687.8255814 | X63: 2874.889535 | Y63: 324.4186047 | Z63: 153.9127907 | AA63: 462.2325581 | AB63: 59.30232558 | AC63: 999.8662791 | AD63: 0 | AE63: 0 | AF63: 91.86046512 | AG63: 266.122093 | AH63: 295.8895349 | AI63: 295.8895349 | AJ63: 0 | AK63: 172 | AL63: 16.4 | AM63: 19.57 | AN63: 0 | AO63: 0 | AP63: 0 | AQ63: 0 | AR63: 55931 | AS63: Error | AT63: 3994311 | AU63: -18200 | AV63: -208700 | AW63: 2792860 | AX63: 214814 | AY63: 759537 | AZ63: 208900 | BA63: 0 | BB63: 18200 | BC63: 0.44 | BE63: 0 | BF63: 22588 | BG63: 22588 | BH63: 29649 | BI63: 88370 | BJ63: 88370 | BK63: 0 | BL63: 29143.854 | BM63: 19387 | BN63: 98816 | BO63: 21000 | BP63: 65000 | BQ63: 27000 | BR63: 0 | BT63: XW | BU63: Whiteshell | BV63: 2665397 | BW63: 1172775 | BZ63: 2665397 | CA63: FL | CB63: Flin Flon | CC63: 775.5 | CD63: 0 | CE63: 760.9 | CF63: 0 | CI63: Totals | CJ63: =SUM(CJ25:CJ61) -> 0
D64: Total | BE64: =SUMIF($C$26:$C$63,DIVNUM,$BE$26:$BE$63) -> 0 | BF64: =SUM(BF26:BF63) -> 37415450 | BG64: =SUM(BG26:BG63) -> 37415450 | BH64: 36520788 | BI64: =SUM(BI26:BI63) -> 69859713 | BJ64: 70189883 | BK64: -330169 | BL64: 23863014.66 | BM64: 16999979 | BN64: 76934981 | BO64: 22000000 | BP64: 33710645 | BQ64: 21000000 | BR64: 6200000 | CA64: FO | CB64: Fort La Bosse | CC64: 1394.5 | CD64: 2 | CE64: 1419.5 | CF64: 2.5
BU65: Total | BV65: =SUM(BV26:BV63) -> 1193914841 | BW65: =SUM(BW26:BW63) -> 497613411 | BX65: =SUM(BX26:BX63) -> 1092925372 | BY65: =SUM(BY26:BY63) -> 36470358 | BZ65: =SUM(BZ26:BZ63) -> 1193914841 | CA65: FR | CB65: Frontier | CC65: 2135.5 | CD65: 0 | CE65: 2091.1 | CF65: 0 | CH65: folder | CI65: W:\Edusfb\Education Property Tax Credit\2020
CA66: GA | CB66: Garden Valley | CC66: 3941.4 | CD66: 0 | CE66: 4084.8 | CF66: 0 | CH66: file | CI66: 2020 DSFM Portions.xls
BH67: =ROUND(BH26,0) -> 345336 | BI67: 596979 | BJ67: 596979 | CA67: HA | CB67: Hanover* | CC67: 8492 | CD67: 98 | CE67: 8807.5 | CF67: 104.5 | CI67: coming from Finance ask Sinclair, Eleanor (FIN) <Eleanor.Sinclair@gov.mb.ca>
BH68: 478251 | BI68: 1096941 | BJ68: 1109209 | CA68: IN | CB68: Interlake | CC68: 2978.9 | CD68: 0 | CE68: 2944 | CF68: 0
BH69: 1655036 | BI69: 2516079 | BJ69: 2418624 | CA69: KE | CB69: Kelsey | CC69: 1418.5 | CD69: 0 | CE69: 1385.5 | CF69: 0 | CJ69: Rounding to 0
BH70: =ROUND(BH29,0) -> 1274131 | BI70: =ROUND(BK20,0) -> 1113458 | BJ70: =ROUND(BJ29,0) -> 1113458 | CA70: LA | CB70: Lakeshore | CC70: 925 | CD70: 0 | CE70: 957.5 | CF70: 0 | CI70: =+CI25 -> Beautiful Plains | CJ70: =ROUND(CJ25,0) -> 0
BH71: 285804 | BI71: =ROUND(BI30,0) -> 797708 | BJ71: 797708 | CA71: LO | CB71: Lord Selkirk | CC71: 3757.4 | CD71: 0 | CE71: 3761 | CF71: 0.5 | CI71: =+CI26 -> Borderland | CJ71: =ROUND(CJ26,0) -> 0
BH72: 218874 | BI72: 251285 | BJ72: 251285 | CA72: LR | CB72: Louis Riel | CC72: 15642.9 | CD72: 1778.2 | CE72: 16416.3 | CF72: 1819.5 | CI72: Brandon | CJ72: 0
BH73: 287497 | BI73: 630313 | BJ73: 626354 | CA73: MO | CB73: Mountain View | CC73: 2880.3 | CD73: 0 | CE73: 2848.1 | CF73: 0 | CI73: DSFM | CJ73: 0
BH74: 1142227 | BI74: 179574 | BJ74: 179574 | CA74: MY | CB74: Mystery Lake | CC74: 2693.5 | CD74: 61 | CE74: 2739.5 | CF74: 78 | CI74: Evergreen | CJ74: 0
BH75: 736225 | BI75: 1256740 | BJ75: 1256740 | CA75: PA | CB75: Park West | CC75: 1555 | CD75: 34 | CE75: 1593 | CF75: 32.5 | CI75: Flin Flon | CJ75: 0
BH76: 1406338 | BI76: 2287989 | BJ76: 2294347 | CA76: PE | CB76: Pembina Trails | CC76: 15513.7 | CD76: 187 | CE76: 16273.4 | CF76: 209 | CI76: Fort La Bosse | CJ76: 0
BH77: 587531 | BI77: 1280899 | BJ77: 1280899 | CA77: PI | CB77: Pine Creek | CC77: 1052 | CD77: 4 | CE77: 1022 | CF77: 3 | CI77: Frontier | CJ77: 0
BH78: 300606 | BI78: 719655 | BJ78: 719655 | CA78: PO | CB78: Portage La Prairie | CC78: 3084.5 | CD78: 16.5 | CE78: 3058 | CF78: 18 | CI78: Garden Valley | CJ78: 0
BH79: 218679 | BI79: 333928 | BJ79: 333928 | CA79: PR | CB79: Prairie Rose | CC79: 2299.6 | CD79: 75 | CE79: 2277 | CF79: 88 | CI79: Hanover | CJ79: 0
BH80: 888861 | BI80: 2082440 | BJ80: 2082440 | CA80: PS | CB80: Prairie Spirit | CC80: 2086 | CD80: 225 | CE80: 2086 | CF80: 228 | CI80: Interlake | CJ80: 0
BH81: 2976602 | BI81: 6063371 | BJ81: 6324643 | CA81: RE | CB81: Red River Valley | CC81: 1952.5 | CD81: 480.5 | CE81: 1959.5 | CF81: 492.5 | CI81: Kelsey | CJ81: 0
BH82: 608206 | BI82: 1088497 | BJ82: 1088497 | CA82: RI | CB82: River East Transcona | CC82: 17065.1 | CD82: 332.5 | CE82: 17866.1 | CF82: 360.5 | CI82: Lakeshore | CJ82: 0
BH83: 633611 | BI83: 213441 | BJ83: 236479 | CA83: RO | CB83: Rolling River | CC83: 1708.5 | CD83: 2 | CE83: 1691.6 | CF83: 2 | CI83: Lord Selkirk | CJ83: 0
BH84: 389851 | BI84: 589091 | BJ84: 602855 | CA84: SE | CB84: Seine River | CC84: 4605.5 | CD84: 1157.5 | CE84: 4748.5 | CF84: 1157.5 | CI84: Louis Riel | CJ84: 0
BH85: 2669817 | BI85: 6889658 | BJ85: 6903885 | CA85: SO | CB85: Seven Oaks | CC85: 10660 | CD85: 41 | CE85: 11159 | CF85: 50.5 | CI85: Mountain View | CJ85: 0
BH86: 246801 | BI86: 510486 | BJ86: 509512 | CA86: SR | CB86: Southwest Horizon | CC86: 1521 | CD86: 2 | CE86: 1488 | CF86: 0 | CI86: Mystery Lake | CJ86: 0
BH87: 639967 | BI87: 1173716 | BJ87: 1177653 | CA87: ST | CB87: St. James-Assiniboia | CC87: 8030 | CD87: 92.5 | CE87: 8072.3 | CF87: 94.5 | CI87: Park West | CJ87: 0
BH88: 476038 | BI88: 1283895 | BJ88: 1215336 | CA88: SU | CB88: Sunrise | CC88: 4767.1 | CD88: 65.5 | CE88: 4744 | CF88: 62.5 | CI88: Pembina Trails | CJ88: 0
BH89: 410535 | BI89: 1062712 | BJ89: 982940 | CA89: SW | CB89: Swan Valley | CC89: 1287.2 | CD89: 0 | CE89: 1321.5 | CF89: 0 | CI89: Pine Creek | CJ89: 0
BH90: 473973 | BI90: 1391522 | BJ90: 1440652 | CA90: TM | CB90: Turtle Mountain | CC90: 1011 | CD90: 0 | CE90: 1046 | CF90: 0 | CI90: Portage La Prairie | CJ90: 0
BH91: 3129204 | BI91: 5789617 | BJ91: 5899002 | CA91: TR | CB91: Turtle River | CC91: 617 | CD91: 34 | CE91: 631.5 | CF91: 37 | CI91: Prairie Rose | CJ91: 0
BH92: 348731 | BI92: 793167 | BJ92: 817725 | BZ92: 27948.6 | CA92: WE | CB92: Western | CC92: 1991.1 | CD92: 0 | CE92: 2116 | CF92: 0 | CI92: Prairie Spirit | CJ92: 0
BH93: 836159 | BI93: 1765656 | BJ93: 2052661 | BZ93: Include Nursery | CA93: WI | CB93: Winnipeg | CC93: 26020.2 | CD93: 358 | CE93: 26729.7 | CF93: 405 | CI93: Red River Valley | CJ93: 0
BH94: 2315487 | BI94: 4002009 | BJ94: 4017116 | BZ94: 840.5 | CI94: River East Transcona | CJ94: 0
BH95: 331677 | BI95: 888968 | BJ95: 898679 | CB95: TOTAL | CC95: =SUM(CC58:CC94) -> 168198.9 | CD95: =SUM(CD58:CD94) -> 5206.2 | CE95: =SUM(CE58:CE94) -> 172909.7 | CF95: =SUM(CF58:CF94) -> 5388 | CI95: Rolling River | CJ95: 0
BH96: 1760314 | BI96: 4195011 | BJ96: 4131537 | CI96: Seine River | CJ96: 0
BH97: 995061 | BI97: 2218396 | BJ97: 2296766 | BZ97: folder | CB97: Update both current and previous year from path and file, because both changes | CI97: Seven Oaks | CJ97: 0
BH98: 305382 | BI98: 659197 | BJ98: 659197 | BZ98: File | CI98: Southwest Horizon | CJ98: 0
BH99: 205809 | BI99: 461002 | BJ99: 461002 | CI99: St. James - Assiniboia | CJ99: 0
BH100: 157617 | BI100: 403087 | BJ100: 318570 | CI100: Sunrise | CJ100: 0
BH101: 350616 | BI101: 582992 | BJ101: 582992 | CI101: Swan Valley | CJ101: 0
BH102: 6404285 | BI102: 12601864 | BJ102: 12422614 | CI102: Turtle Mountain | CJ102: 0
BH103: 0 | BI103: 0 | BJ103: 0 | CI103: Turtle River | CJ103: 0
BH104: 29649 | BI104: 88370 | BJ104: 88370 | CI104: Western | CJ104: 0
CI105: Winnipeg | CJ105: 0
CI106: Whiteshell | CJ106: 0
CJ108: =SUM(CJ70:CJ106) -> 0

Sheet Instructions
C3: TO PRINT, CLICK THE PRINTER ICON ON YOUR TOOLBAR (PRINTS 1 LEGAL SIZE PAGE)
C5: PLEASE NOTE:
C6: 1) To erase an entry, press the Delete key or enter a zero into the "dashed" fields. Do not use the spacebar to erase an entry.
C7: 2) To move an entry, use copy and paste, then delete the original entry. Do not use cut and paste or drag a cell to move an entry.
A8: HOW TO COMPLETE AND SUBMIT YOUR BUDGET
C9: ="INSTRUCTIONS FOR THE COMPLETION AND SUBMISSION OF "&THISYR&" BUDGET" -> INSTRUCTIONS FOR THE COMPLETION AND SUBMISSION OF 2024/25 BUDGET
C11: 1) | D11: For full functionality, please ensure that macros have been enabled in your workbook before selecting your Division.
C12: 2) | D12: This workbook is available in English or French. You can select a preferred language using the drop down menu in the Identification sheet (default set to English). Please note: When entering the names of revenue on the Prov Rev 2 or Other Rev worksheets, use "Paste Special - Values" to ensure it is copied accurately.
C15: 3) | D15: When entering data, please round all reported amounts to the nearest dollar.
C16: 4) | D16: It is not necessary to enter zeros for nil amounts as blank cells are mathematically equivalent to zero.
C17: 5) | D17: FRAME statistics and salary/personnel information are summarized in the FRAME worksheet. Please verify that the information is accurate prior to submitting your budget.
C19: 6) | D19: Capital Expenses for Statistics Canada should be reported on page 14 (below the Details of Transfers to (from) Capital Fund). The amounts entered here are a Division expense only. It does not include funding through Long Term Debt (ie. debentures or promissory notes).
C21: 7) | D21: Upon approval by the School Board, please submit the completed budget template to the Education Funding Branch by March 31, 2024. Please email the completed Excel file, and PDF copies of the Division's signed special levy form(s) and tax notice(s) to efb@gov.mb.ca. All original signed copies should be kept at the division office. Should you have any questions, please contact the Education Funding Branch at (204) 945-6910 or by email at efb@gov.mb.ca.
C26: Templates and reporting forms can be found at:
C27: http://www.edu.gov.mb.ca/k12/finance/forms/index.html
C29: ="WHAT'S NEW FOR "&THISYR&" BUDGET" -> WHAT'S NEW FOR 2024/25 BUDGET
C31: 1) | D31: The Special Requirement entered on the "Other Rev" worksheet does not need to match with the 2023 amount.
C33: 2) | D33: The following grants for 2024-25 have been pre-entered on the "Prov Rev 2" worksheet under Other Department of Education and Early Learning: Special Needs Additional Funding, Wage Assistance, Student Presence and Engagement, Additional Operating Support. These grants have also been pre-entered on the "Allow Input" worksheet, except for the Function/Program.
C34: 3) | D34: On the "Prov Rev 2" worksheet, under Other Department of Education and Early Childhood Learning: - The General Support Grant (GSG) has been pre-entered at 85.03% of 2022 Payroll Tax paid as an estimate. This amount is not protected and can be overwritten with a different amount. - The Tax Incentive Grant (TIG) amount has been pre-entered. This amount is protected and is taken from the 2024 Special Levy page, net of DSFM. - The Property Tax Offset Grant (PTOG) in 2024 has been pre-entered. This amount is protected and is taken from the 2024 Special Levy page, net of DSFM. This revenue is deducted on Appendix B.
C36: RECOMMENDED ORDER FOR DATA ENTRY
C37: Operating Fund:
C38: 1) | D38: Revenue Detail - enter data on the "Prov Rev 1" worksheet first (before the "Prov Rev 2" worksheet). This will populate the total for Provincial Government Revenue. Please note that error messages will appear for certain categorical grants until Appendix A of the Allowable Expenses and Program expenses are completed.
C41: 2) | D41: Calculation of Allowable and Unsupported Expenses ("Allowable" worksheet - page 18) - Order of completion: "Appendix A", "Appendix B", "Allow Input", "Allow Input 2". These schedules will populate amounts directly into the "Allowable" worksheet.
C43: 3) | D43: Expense Detail - complete Functions 100 to 800 first, then enter Fiscal Function 900 on the "By Object" worksheet.
C44: 4) | D44: Transfers to/(from) Capital (worksheet "Transfers") - complete the Division's share of Capital expenditures for Statistics Canada (bottom section).
C46: Other:
C47: 1) | D47: Student and Transportation Statistics and Personnel can be entered last, but prior to reviewing the "FRAME" worksheet. Please note that student statistics determine your administration cost limit (except for northern divisions).
C49: 2) | D49: If applicable, Liability Insurance, Administration portion of self-funded expenses and Trustee election costs are entered in the "Admin Costs" worksheet.
C51: 3) | D51: The "Senior Staff" worksheet must be completed if Object 320 salaries are being allocated between more than one function.
C86: 1) | D86: Click Options
C87: 2) | D87: Click Enable this content
C88: 3) | D88: Click OK

Sheet Identification
B3: USE THIS PAGE TO SELECT YOUR DIVISION OR TO FIND HELP
B5: Using the down arrow button, select your Division/District and preferred language.
B8: This will retrieve your prior year FRAME data, special requirement and resident pupils (if
B9: applicable) and identify your division/district at the top of each page. It will also list your
B10: municipalities and assessment ratios on the 'Ratios' worksheet for allocating your special
B11: levy and printing your Tax Notice(s).
B13: Note: | C13: If you select the wrong division, reselect the appropriate division. Selecting an incorrect division/district does not affect the data input.
B16: Select the following Help buttons for each topic (to return to this page, click the "CONTROL" worksheet):
C18: Instructions for the Completion and Submission of Your Budget
C19: What's New
C20: Data Entry Order
C21: Instructions for Allowable Expenses ('Allow Guide')
C22: Contacts and Internet information
A23: English
A24: French
A25: 1

Sheet PRINTING
B3: USE THIS PAGE FOR AUTOMATED PRINTING FEATURES
B4: (note: to print Special Levy forms or Ratios you must go to the specific worksheets)
B5: Click the button or check the box beside each item to execute the task:
B6: Set pages to print on Legal-size paper (original setting)
B7: Set pages to print on Letter-size paper (except FRAME / Error Report and Special Levy)
B8: To print, choose an option below:
B9: Include Expenditure Definitions in Table of Contents
B10: Include Calculation of Allowable Expenditures in Table of Contents
B11: Include today's date on all budget pages (does not affect Allowable Expenditures)
B12: Print Budget including FRAME / Error Report and Allowable Expenditures
B13: Print Budget excluding FRAME / Error Report and Allowable Expenditures
B14: Print Budget cover > or Expenditure Definitions > or
B15: ="Notice of Tax Requirements "&IF(DIVCODE="XW","(this takes you to your Tax Notice form and print instructions)","(this takes you to your Ratios worksheet and print buttons)") -> Notice of Tax Requirements (this takes you to your Ratios worksheet and print buttons)
B16: Print Allowable Expenditures only (legal size for Schools' Finance)

Sheet FRAME
A1: =DIVNAME&" : "&Title -> School Division Name : 2024/25 FRAME Budget | F1: =IF(DATE=0,"",DATE) -> 2024-02-09T11:53:25.340
A3: =IF(Eng_Fren=1,IT3,IU3) -> FRAME / ERROR REPORT | IT3: FRAME / ERROR REPORT | IU3: RELEVÉ DES ERREURS – RAPPORT FRAME
D5: =IF(Eng_Fren=1,IL5,IS5) -> FRAME | E5: FTE | F5: COST PER PUPIL | IL5: FRAME | IM5: FTE | IN5: COST PER PUPIL | IS5: DÉPENSES | IT5: ÉLÈVES | IU5: COÛT PAR ÉLÈVE
A6: =IF(Eng_Fren=1,II6,IP6) -> FRAME EXPENSES: | B6: =IF(Eng_Fren=1,IJ6,IQ6) -> EXPENSES | C6: =IF(Eng_Fren=1,IK6,IR6) -> - TRANSFERS = | D6: EXPENSES | E6: PUPILS | F6: 2024/25 | G6: =IF(Eng_Fren=1,IO6,IV6) -> 2023/24 | II6: FRAME EXPENSES: | IJ6: EXPENSES | IK6: - TRANSFERS = | IL6: EXPENSES | IM6: PUPILS | IN6: =THISYR -> 2024/25 | IO6: =LASTYR -> 2023/24 | IP6: DÉPENSES FRAME : | IQ6: DÉPENSES | IR6: - TRANSFERTS = | IS6: FRAME | IT6: ETP | IU6: =IN6 -> 2024/25 | IV6: =IO6 -> 2023/24
A8: =IF(Eng_Fren=1,II8,IP8) -> FUNCTION 100 | II8: FUNCTION 100 | IP8: FONCTION 100
A9: =IF(Eng_Fren=1,II9,IP9) -> ADMINISTRATION | B9: =_OE110 -> 0 | C9: =OE11TRANS -> 0 | D9: =B9-C9 -> 0 | E9: =ENROLTOT -> 0 | F9: =IF(AND(D9=0,E9=0),0,IF(AND(D9=0,E9<>0),"Error",IF(AND(D9<>0,E9=0),"Error",D9/E9))) -> 0 | G9: =IF(DIVCODE="Co.",0,VLOOKUP(DIVCODE,DATA,2)) -> 0 | II9: ADMINISTRATION | IP9: ADMINISTRATION
A10: =IF(Eng_Fren=1,II14,IP14) -> SENIOR YEARS TECHNOLOGY | B10: =_OE190 -> 0 | C10: =OE19TRANS -> 0 | D10: =B10-C10 -> 0 | E10: =ENROL190 -> 0 | F10: =IF(AND(D10=0,E10=0),0,IF(AND(D10=0,E10<>0),"Error",IF(AND(D10<>0,E10=0),"Error",D10/E10))) -> 0 | G10: =IF(DIVCODE="Co.",0,VLOOKUP(DIVCODE,DATA,7)) -> 0 | II10: ENGLISH LANGUAGE | IP10: ANGLAIS
A11: =IF(Eng_Fren=1,II10,IP10) -> ENGLISH LANGUAGE | B11: =_OE120 -> 0 | C11: =OE12TRANS -> 0 | D11: 0 | E11: =ENROL120 -> 0 | F11: 0 | G11: =IF(DIVCODE="Co.",0,VLOOKUP(DIVCODE,DATA,3)) -> 0 | II11: FRANÇAIS | IP11: FRANÇAIS
A12: =IF(Eng_Fren=1,II11,IP11) -> FRANÇAIS | B12: =_OE150 -> 0 | C12: =OE15TRANS -> 0 | D12: 0 | E12: =ENROL150 -> 0 | F12: 0 | G12: =IF(DIVCODE="Co.",0,VLOOKUP(DIVCODE,DATA,4)) -> 0 | II12: FRENCH IMMERSION | IP12: IMMERSION FRANÇAISE
A13: =IF(Eng_Fren=1,II12,IP12) -> FRENCH IMMERSION | B13: =_OE170 -> 0 | C13: =OE17TRANS -> 0 | D13: 0 | E13: =ENROL170 -> 0 | F13: 0 | G13: =IF(DIVCODE="Co.",0,VLOOKUP(DIVCODE,DATA,5)) -> 0 | II13: DUAL TRACK | IP13: DOUBLE VOIE
A14: =IF(Eng_Fren=1,II13,IP13) -> DUAL TRACK | B14: =_OE180 -> 0 | C14: =OE18TRANS -> 0 | D14: 0 | E14: =ENROL180 -> 0 | F14: 0 | G14: =IF(DIVCODE="Co.",0,VLOOKUP(DIVCODE,DATA,6)) -> 0 | II14: SENIOR YEARS TECHNOLOGY | IP14: ÉTUDES TECHNOLOGIQUES DU SECONDAIRE
A15: =IF(Eng_Fren=1,II15,IP15) -> TOTAL FUNCTION 100 | B15: =_OE100 -> 0 | C15: =OE1TRANS -> 0 | D15: 0 | E15: =ENROLTOT -> 0 | F15: 0 | G15: =IF(DIVCODE="Co.",0,VLOOKUP(DIVCODE,DATA,8)) -> 0 | II15: TOTAL FUNCTION 100 | IP15: TOTAL – FONCTION 100
A17: =IF(Eng_Fren=1,II17,IP17) -> FUNCTION 200 | II17: FUNCTION 200 | IP17: FONCTION 200
A18: ADMINISTRATION/COORDINATION | B18: =_OE210 -> 0 | C18: =OE21TRANS -> 0 | D18: =B18-C18 -> 0 | E18: =ENROLTOT -> 0 | F18: =IF(E18=0,0,IF(AND(D18=0,E18=0),0,D18/E18)) -> 0 | G18: =IF(DIVCODE="Co.",0,VLOOKUP(DIVCODE,DATA,9)) -> 0 | II18: ADMINISTRATION/COORDINATION | IP18: ADMINISTRATION ET COORDINATION
A19: CLINICAL AND RELATED SERVICES | B19: =_OE230 -> 0 | C19: =OE23TRANS -> 0 | D19: 0 | E19: 0 | F19: =IF(E19=0,0,IF(AND(D19=0,E19=0),0,D19/E19)) -> 0 | G19: =IF(DIVCODE="Co.",0,VLOOKUP(DIVCODE,DATA,11)) -> 0 | II19: CLINICAL AND RELATED SERVICES | IP19: SERVICES DE SPÉCIALISTES ET SERVICES CONNEXES
A20: SPECIAL PLACEMENT | B20: =_OE240 -> 0 | C20: =OE24TRANS -> 0 | D20: 0 | II20: SPECIAL PLACEMENT | IP20: PLACEMENT SPÉCIAL
A21: REGULAR PLACEMENT | B21: =_OE250 -> 0 | C21: =OE25TRANS -> 0 | D21: 0 | E21: 0 | F21: 0 | G21: =IF(DIVCODE="Co.",0,VLOOKUP(DIVCODE,DATA,13)) -> 0 | II21: REGULAR PLACEMENT | IP21: PLACEMENT ORDINAIRE
A22: RESOURCE SERVICES | B22: =_OE260 -> 0 | C22: -- | D22: =B22 -> 0 | E22: 0 | F22: 0 | G22: =IF(DIVCODE="Co.",0,VLOOKUP(DIVCODE,DATA,14)) -> 0 | II22: RESOURCE SERVICES | IP22: RESSOURCES PÉDAGOGIQUES
A23: COUNSELLING & GUIDANCE | B23: =_OE270 -> 0 | C23: -- | D23: =B23 -> 0 | E23: 0 | F23: 0 | G23: =IF(DIVCODE="Co.",0,VLOOKUP(DIVCODE,DATA,15)) -> 0 | II23: COUNSELLING & GUIDANCE | IP23: ORIENTATION ET CONSULTATION
A24: TOTAL FUNCTION 200 | B24: =_OE200 -> 0 | C24: =OE2TRANS -> 0 | D24: 0 | E24: 0 | F24: 0 | G24: =IF(DIVCODE="Co.",0,VLOOKUP(DIVCODE,DATA,16)) -> 0 | II24: TOTAL FUNCTION 200 | IP24: TOTAL – FONCTION 200
A26: =IF(Eng_Fren=1,II26,IP26) -> FUNCTION 500 | II26: FUNCTION 500 | IP26: FONCTION 500
A27: BOARD OF TRUSTEES | B27: =_OE510 -> 0 | C27: =OE51TRANS -> 0 | D27: =B27-C27 -> 0 | E27: =ENROLTOT -> 0 | F27: =IF(E27=0,0,IF(AND(D27=0,E27=0),0,D27/E27)) -> 0 | G27: =IF(DIVCODE="Co.",0,VLOOKUP(DIVCODE,DATA,17)) -> 0 | II27: BOARD OF TRUSTEES | IP27: COMMISSION SCOLAIRE
A28: INSTRUCTIONAL MANAGEMENT & ADMINISTRATION | B28: =_OE520 -> 0 | C28: =OE52TRANS -> 0 | D28: =B28-C28+_OE5299 -> 0 | E28: =ENROLTOT -> 0 | F28: =IF(E28=0,0,IF(AND(D28=0,E28=0),0,D28/E28)) -> 0 | G28: =IF(DIVCODE="Co.",0,VLOOKUP(DIVCODE,DATA,18)) -> 0 | II28: INSTRUCTIONAL MANAGEMENT & ADMINISTRATION | IP28: GESTION ET ADMINISTRATION SCOLAIRES
A29: BUSINESS ADMINISTRATIVE SERVICES | B29: =_OE530 -> 0 | C29: =OE53TRANS -> 0 | D29: =B29-C29+_OE5399 -> 0 | E29: =ENROLTOT -> 0 | F29: =IF(E29=0,0,IF(AND(D29=0,E29=0),0,D29/E29)) -> 0 | G29: =IF(DIVCODE="Co.",0,VLOOKUP(DIVCODE,DATA,19)) -> 0 | II29: BUSINESS ADMINISTRATIVE SERVICES | IP29: SERVICES D'ADMINISTRATION ET DE FONCTIONNEMENT
A30: MANAGEMENT INFORMATION SERVICES | B30: =_OE550 -> 0 | C30: -- | D30: =B30 -> 0 | E30: =ENROLTOT -> 0 | F30: =IF(E30=0,0,IF(AND(D30=0,E30=0),0,D30/E30)) -> 0 | G30: =IF(DIVCODE="Co.",0,VLOOKUP(DIVCODE,DATA,20)) -> 0 | II30: MANAGEMENT INFORMATION SERVICES | IP30: SERVICES DE GESTION DE L'INFORMATION
A31: TOTAL FUNCTION 500 | B31: =_OE500 -> 0 | C31: =OE5TRANS -> 0 | D31: =B31-C31+OE599X -> 0 | E31: =ENROLTOT -> 0 | F31: =IF(E31=0,0,IF(AND(D31=0,E31=0),0,D31/E31)) -> 0 | G31: =IF(DIVCODE="Co.",0,VLOOKUP(DIVCODE,DATA,21)) -> 0 | II31: TOTAL FUNCTION 500 | IP31: TOTAL – FONCTION 500
A33: =IF(Eng_Fren=1,II33,IP33) -> FUNCTION 600 | II33: FUNCTION 600 | IP33: FONCTION 600
A34: CURRICULUM CONSULTING/DEVELOPMENT ADMIN. | B34: =_OE605 -> 0 | C34: -- | D34: =B34 -> 0 | E34: =ENROLTOT -> 0 | F34: =IF(E34=0,0,IF(AND(D34=0,E34=0),0,D34/E34)) -> 0 | G34: =IF(DIVCODE="Co.",0,VLOOKUP(DIVCODE,DATA,22)) -> 0 | II34: CURRICULUM CONSULTING/DEVELOPMENT ADMIN. | IP34: ADMIN. – PROGR. D'ÉTUDES – CONS. ET ÉLABORATION
A35: CURRICULUM CONSULTING/DEVELOPMENT | B35: =_OE610 -> 0 | C35: -- | D35: =B35 -> 0 | E35: 0 | F35: 0 | G35: =IF(DIVCODE="Co.",0,VLOOKUP(DIVCODE,DATA,23)) -> 0 | II35: CURRICULUM CONSULTING/DEVELOPMENT | IP35: PROGRAMMES D'ÉTUDES – CONS. ET ÉLABORATION
A36: LIBRARY/ MEDIA CENTRE | B36: =_OE620 -> 0 | C36: -- | D36: =B36 -> 0 | E36: 0 | F36: 0 | G36: =IF(DIVCODE="Co.",0,VLOOKUP(DIVCODE,DATA,24)) -> 0 | II36: LIBRARY/ MEDIA CENTRE | IP36: BIBLIOTHÈQUE ET MÉDIATHÈQUE
A37: PROFESSIONAL & STAFF DEVELOPMENT | B37: =_OE630 -> 0 | C37: -- | D37: =B37 -> 0 | E37: 0 | F37: 0 | G37: =IF(DIVCODE="Co.",0,VLOOKUP(DIVCODE,DATA,25)) -> 0 | II37: PROFESSIONAL & STAFF DEVELOPMENT | IP37: PERFECTIONNEMENT PROFESS. ET DU PERSONNEL
A38: OTHER | B38: =_OE680 -> 0 | C38: =OE68TRANS -> 0 | D38: =B38-C38 -> 0 | E38: 0 | F38: 0 | G38: =IF(DIVCODE="Co.",0,VLOOKUP(DIVCODE,DATA,26)) -> 0 | II38: OTHER | IP38: AUTRES
A39: TOTAL FUNCTION 600 | B39: =_OE600 -> 0 | C39: =OE6TRANS -> 0 | D39: =B39-C39 -> 0 | E39: 0 | F39: 0 | G39: =IF(DIVCODE="Co.",0,VLOOKUP(DIVCODE,DATA,27)) -> 0 | II39: TOTAL FUNCTION 600 | IP39: TOTAL – FONCTION 600
A41: =IF(Eng_Fren=1,II41,IP41) -> PUPIL/TEACHER RATIOS: | B41: =IF(Eng_Fren=1,IJ41,IQ41) -> REGULAR INSTRUCTION | D41: =IF(Eng_Fren=1,IL41,IS41) -> EDUCATOR | II41: PUPIL/TEACHER RATIOS: | IJ41: REGULAR INSTRUCTION | IL41: EDUCATOR | IP41: RAPPORTS ÉLÈVES-ENSEIGNANTS : | IQ41: ENSEIGNEMENT ORDINAIRE | IS41: ÉDUCATEUR
B42: =THISYR -> 2024/25 | C42: =LASTYR -> 2023/24 | D42: =THISYR -> 2024/25 | E42: =LASTYR -> 2023/24
A44: =IF(Eng_Fren=1,II44,IP44) -> ENROLMENT | B44: =E15 -> 0 | C44: =IF(DIVCODE="Co.",0,VLOOKUP(DIVCODE,DATA,29)) -> 0 | D44: =ENROLTOT -> 0 | E44: =IF(DIVCODE="Co.",0,VLOOKUP(DIVCODE,DATA,29)) -> 0 | II44: ENROLMENT | IP44: INSCRIPTIONS
A45: =IF(Eng_Fren=1,II45,IP45) -> TEACHERS | B45: =PERS133 -> 0 | C45: =IF(DIVCODE="Co.",0,VLOOKUP(DIVCODE,DATA,30)) -> 0 | D45: =SUM(PERS133,PERS233,PERS633,PERS132,PERS232,PERS632) -> 0 | E45: =IF(DIVCODE="Co.",0,VLOOKUP(DIVCODE,DATA,31)) -> 0 | II45: TEACHERS | IP45: ENSEIGNANTS
A46: =IF(Eng_Fren=1,II46,IP46) -> RATIO | B46: =IF(AND(B44=0,B45=0),0,B44/B45) -> 0 | C46: =IF(AND(C44=0,C45=0),0,C44/C45) -> 0 | D46: =IF(AND(D44=0,D45=0),0,D44/D45) -> 0 | E46: =IF(AND(E44=0,E45=0),0,E44/E45) -> 0 | II46: RATIO | IP46: RAPPORT
F47: =IF(Eng_Fren=1,IN47,IU47) -> ADMIN., | IN47: ADMIN., | IU47: ADMIN.,
A48: =IF(Eng_Fren=1,II48,IP48) -> ANALYSIS OF TRANSPORTATION EXPENSES: | B48: =IF(Eng_Fren=1,IJ48,IQ48) -> REGULAR | C48: =IF(Eng_Fren=1,IK48,IR48) -> COST PER | D48: =IF(Eng_Fren=1,IL48,IS48) -> COST PER | F48: =IF(Eng_Fren=1,IN48,IU48) -> REGULAR | G48: =IF(Eng_Fren=1,IO48,IV48) -> COST PER | II48: ANALYSIS OF TRANSPORTATION EXPENSES: | IJ48: REGULAR | IK48: COST PER | IL48: COST PER | IN48: REGULAR | IO48: COST PER | IP48: ANALYSE DES DÉPENSES DE TRANSPORT : | IQ48: TRANSPORT | IR48: COÛT PAR | IS48: COÛT PAR | IU48: ORDINAIRE | IV48: COÛT PAR
B49: =IF(Eng_Fren=1,IJ49,IQ49) -> TRANSPORT'N | C49: TRANSPORTED | D49: TOTAL KM | E49: COST PER | F49: =IF(Eng_Fren=1,IN49,IU49) -> AND OTHER | G49: =IF(Eng_Fren=1,IO49,IV49) -> TOTAL KM | IJ49: TRANSPORT'N | IK49: TRANSPORTED | IL49: TOTAL KM | IM49: COST PER | IN49: AND OTHER | IO49: TOTAL KM | IQ49: ORDINAIRE | IR49: ÉLÈVE | IS49: KM TOTAL | IT49: COÛT PAR KM | IU49: ET AUTRES | IV49: KM TOTAL
B50: PROGRAM 720 | C50: PUPIL | D50: (bus routes) | E50: LOADED KM | F50: =IF(Eng_Fren=1,IN50,IU50) -> (710, 720, 790) | G50: =IF(Eng_Fren=1,IO50,IV50) -> (log book) | IJ50: PROGRAM 720 | IK50: PUPIL | IL50: (bus routes) | IM50: LOADED KM | IN50: (710, 720, 790) | IO50: (log book) | IQ50: PROGRAMME 720 | IR50: TRANSPORTÉ | IS50: (parcours) | IT50: EN CHARGE | IU50: (710, 720, 790) | IV50: (carnet de bord)
A52: =THISYR -> 2024/25 | B52: =_OE720-OE72TRANS+_OE7299 -> 0 | C52: =IF(DIVCODE="MY",0,IF(AND(B52=0,TRANSPUP=0),0,IF(AND(B52=0,TRANSPUP<>0),"Error",IF(AND(B52<>0,TRANSPUP=0),"Error",B52/TRANSPUP)))) -> 0 | D52: =IF(AND(B52=0,TOTALKMROUTES=0),0,IF(AND(B52=0,TOTALKMROUTES<>0),"Error",IF(AND(B52<>0,TOTALKMROUTES=0),"Error",B52/TOTALKMROUTES))) -> 0 | E52: =IF(AND(B52=0,LOADEDKM=0),0,IF(AND(B52=0,LOADEDKM<>0),"Error",IF(AND(B52<>0,LOADEDKM=0),"Error",B52/LOADEDKM))) -> 0 | F52: =B52+_OE710-OE71TRANS+_OE7199+_OE790-OE79TRANS+_OE7999 -> 0 | G52: =IF(DIVCODE="MY",0,IF(AND(F52=0,TOTALKMLOG=0),0,IF(AND(F52=0,TOTALKMLOG<>0),"Error",IF(AND(F52<>0,TOTALKMLOG=0),"Error",F52/TOTALKMLOG)))) -> 0
A53: =LASTYR -> 2023/24 | B53: =IF(DIVCODE="Co.",0,VLOOKUP(DIVCODE,DATA,32)) -> 0 | C53: =IF(DIVCODE="Co.",0,VLOOKUP(DIVCODE,DATA,33)) -> 0 | D53: =IF(DIVCODE="Co.",0,VLOOKUP(DIVCODE,DATA,34)) -> 0 | E53: =IF(DIVCODE="Co.",0,VLOOKUP(DIVCODE,DATA,35)) -> 0 | F53: =IF(DIVCODE="Co.",0,VLOOKUP(DIVCODE,DATA,36)) -> 0 | G53: =IF(DIVCODE="Co.",0,VLOOKUP(DIVCODE,DATA,37)) -> 0
A55: =IF(Eng_Fren=1,II55,IP55) -> TOTAL OPERATING EXPENSE PER PUPIL: | B55: TOTAL | C55: - OPERATING | D55: CONSOLIDATED | E55: - FUNCTIONS | F55: EXPENSES | G55: COST | II55: TOTAL OPERATING EXPENSE PER PUPIL: | IJ55: TOTAL | IK55: - OPERATING | IL55: CONSOLIDATED | IM55: - FUNCTIONS | IN55: EXPENSES | IO55: COST | IP55: TOTAL DES DÉPENSES DU FONDS DE FONCTIONNEMENT | IQ55: TOTAL | IR55: - TRANSFERTS | IS55: DÉPENSES | IT55: - FONCTIONS | IU55: DÉP. POUR | IV55: COÛT
A56: =IF(Eng_Fren=1,"",IP56) ->  | B56: =IF(Eng_Fren=1,IJ56,IQ56) -> EXPENSES | C56: TRANSFERS | D56: EXPENSES | E56: 300 AND 400 | F56: FOR PER PUPIL | G56: PER PUPIL | IJ56: EXPENSES | IK56: TRANSFERS | IL56: EXPENSES | IM56: 300 AND 400 | IN56: FOR PER PUPIL | IO56: PER PUPIL | IP56: PAR ÉLÈVE : | IQ56: DES DÉPENSES | IR56: DU FONDS | IS56: CONSOLIDÉES | IT56: 300 ET 400 | IU56: LES ÉLÈVES | IV56: PAR ÉLÈVE
A58: =THISYR -> 2024/25 | B58: =OPEXP -> 0 | C58: =-TRANS+_OE970 -> 0 | D58: =B58+C58 -> 0 | E58: =-_OE400+OE4TRANS-OE499X-_OE300+OE3TRANS-OE399X -> 0 | F58: =D58+E58 -> 0 | G58: =IF(AND(F58=0,ENROLTOT=0),0,F58/ENROLTOT) -> 0
A59: =LASTYR -> 2023/24 | B59: =IF(DIVCODE="Co.",0,VLOOKUP(DIVCODE,DATA,38)) -> 0 | C59: =IF(DIVCODE="Co.",0,VLOOKUP(DIVCODE,DATA,39)) -> 0 | D59: =B59+C59 -> 0 | E59: =IF(DIVCODE="Co.",0,VLOOKUP(DIVCODE,DATA,40)) -> 0 | F59: =D59+E59 -> 0 | G59: =IF(E44=0,0,F59/E44) -> 0
A61: =IF(Eng_Fren=1,II61,IP61) -> SALARY/PERSONNEL REPORT: | B61: =IF(Eng_Fren=1,"FUNCTION 100","FONCTION 100") -> FUNCTION 100 | E61: =IF(Eng_Fren=1,"FUNCTION 200","FONCTION 200") -> FUNCTION 200 | II61: SALARY/PERSONNEL REPORT: | IJ61: FUNCTION 100 | IP61: RAPPORT SUR LES SALAIRES ET LE PERSONNEL : | IQ61: FONCTION 100
B62: =IF(Eng_Fren=1,IJ62,IQ62) -> SALARIES | C62: =IF(Eng_Fren=1,IK62,IR62) -> PERSONNEL | D62: =IF(Eng_Fren=1,IL62,IS62) -> AVERAGE | E62: =$B$62 -> SALARIES | F62: =$C$62 -> PERSONNEL | G62: =$D$62 -> AVERAGE | IJ62: SALARIES | IK62: PERSONNEL | IL62: AVERAGE | IQ62: SALAIRES | IR62: PERSONNEL | IS62: MOYENNE
A64: =IF(Eng_Fren=1,II64,IP64) -> 320 EXECUTIVE, MG'L & SUPERVISORY | B64: =_OE1320 -> 0 | C64: =PERS132 -> 0 | D64: =IF(AND(B64=0,C64=0),0,IF(AND(B64=0,C64<>0),"Error",IF(AND(B64<>0,C64=0),"Error",B64/C64))) -> 0 | E64: =_OE2320 -> 0 | F64: =PERS232 -> 0 | G64: =IF(AND(E64=0,F64=0),0,IF(AND(E64=0,F64<>0),"Error",IF(AND(E64<>0,F64=0),"Error",E64/F64))) -> 0 | II64: 320 EXECUTIVE, MG'L & SUPERVISORY | IP64: 320 CADRES, DIRIGEANTS ET SUPERVISEURS
A65: 330 INSTRUCTIONAL - TEACHING | B65: =_OE1330 -> 0 | C65: =PERS133 -> 0 | D65: =IF(AND(B65=0,C65=0),0,IF(AND(B65=0,C65<>0),"Error",IF(AND(B65<>0,C65=0),"Error",B65/C65))) -> 0 | E65: =_OE2330 -> 0 | F65: =PERS233 -> 0 | G65: 0 | II65: 330 INSTRUCTIONAL - TEACHING | IP65: 330 ÉDUCATEURS – ENSEIGNANTS
A66: 350 INSTRUCTIONAL - OTHER | B66: =_OE1350 -> 0 | C66: =PERS135 -> 0 | D66: =IF(AND(B66=0,C66=0),0,IF(AND(B66=0,C66<>0),"Error",IF(AND(B66<>0,C66=0),"Error",B66/C66))) -> 0 | E66: =_OE2350 -> 0 | F66: =PERS235 -> 0 | G66: 0 | II66: 350 INSTRUCTIONAL - OTHER | IP66: 350 ÉDUCATEURS – AUTRES
A67: 360 TECHNICAL, SPECLIZ'D & SERVICE | B67: =_OE1360 -> 0 | C67: =PERS136 -> 0 | D67: =IF(AND(B67=0,C67=0),0,IF(AND(B67=0,C67<>0),"Error",IF(AND(B67<>0,C67=0),"Error",B67/C67))) -> 0 | E67: =_OE2360 -> 0 | F67: =PERS236 -> 0 | G67: 0 | II67: 360 TECHNICAL, SPECLIZ'D & SERVICE | IP67: 360 PERSONNEL TECHN., SPÉCIALISÉ ET DE SOUTIEN
A68: 370 SECRETARIAL, CLERICAL & OTHER | B68: =_OE1370 -> 0 | C68: =PERS137 -> 0 | D68: =IF(AND(B68=0,C68=0),0,IF(AND(B68=0,C68<>0),"Error",IF(AND(B68<>0,C68=0),"Error",B68/C68))) -> 0 | E68: =_OE2370 -> 0 | F68: =PERS237 -> 0 | G68: 0 | II68: 370 SECRETARIAL, CLERICAL & OTHER | IP68: 370 PERSONNEL DE BUREAU ET AUTRE
A69: 380 CLINICIAN | E69: =_OE2380 -> 0 | F69: =PERS238 -> 0 | G69: 0 | II69: 380 CLINICIAN | IP69: 380 SPÉCIALISTES
A70: 390 INFORMATION TECHNOLOGY | B70: =_OE1390 -> 0 | C70: =PERS139 -> 0 | D70: =IF(AND(B70=0,C70=0),0,IF(AND(B70=0,C70<>0),"Error",IF(AND(B70<>0,C70=0),"Error",B70/C70))) -> 0 | E70: =_OE2390 -> 0 | F70: =PERS239 -> 0 | G70: 0 | II70: 390 INFORMATION TECHNOLOGY | IP70: 390 TECHNOLOGIE DE L'INFORMATION
B72: =IF(Eng_Fren=1,"FUNCTION 500","FONCTION 500") -> FUNCTION 500 | E72: =IF(Eng_Fren=1,"FUNCTION 600","FONCTION 600") -> FUNCTION 600
B73: =$B$62 -> SALARIES | C73: =$C$62 -> PERSONNEL | D73: =$D$62 -> AVERAGE | E73: =$B$62 -> SALARIES | F73: =$C$62 -> PERSONNEL | G73: =$D$62 -> AVERAGE
A75: =IF(Eng_Fren=1,II75,IP75) -> 320 EXECUTIVE, MG'L & SUPERVISORY | B75: =_OE5320 -> 0 | C75: =PERS532 -> 0 | D75: =IF(AND(B75=0,C75=0),0,IF(AND(B75=0,C75<>0),"Error",IF(AND(B75<>0,C75=0),"Error",B75/C75))) -> 0 | E75: =_OE6320 -> 0 | F75: =PERS632 -> 0 | G75: =IF(AND(E75=0,F75=0),0,IF(AND(E75=0,F75<>0),"Error",IF(AND(E75<>0,F75=0),"Error",E75/F75))) -> 0 | II75: 320 EXECUTIVE, MG'L & SUPERVISORY | IP75: 320 CADRES, DIRIGEANTS ET SUPERVISEURS
A76: 330 INSTRUCTIONAL - TEACHING | E76: =_OE6330 -> 0 | F76: =PERS633 -> 0 | G76: 0 | II76: 330 INSTRUCTIONAL - TEACHING | IP76: 330 ÉDUCATEURS – ENSEIGNANTS
A77: 350 INSTRUCTIONAL - OTHER | E77: =_OE6350 -> 0 | F77: =PERS635 -> 0 | G77: 0 | II77: 350 INSTRUCTIONAL - OTHER | IP77: 350 ÉDUCATEURS – AUTRES
A78: 360 TECHNICAL, SPECLIZ'D & SERVICE | B78: =_OE5360 -> 0 | C78: =PERS536 -> 0 | D78: =IF(AND(B78=0,C78=0),0,IF(AND(B78=0,C78<>0),"Error",IF(AND(B78<>0,C78=0),"Error",B78/C78))) -> 0 | E78: =_OE6360 -> 0 | F78: =PERS636 -> 0 | G78: 0 | II78: 360 TECHNICAL, SPECLIZ'D & SERVICE | IP78: 360 PERSONNEL TECHN., SPÉCIALISÉ ET DE SOUTIEN
A79: 370 SECRETARIAL, CLERICAL & OTHER | B79: =_OE5370 -> 0 | C79: =PERS537 -> 0 | D79: =IF(AND(B79=0,C79=0),0,IF(AND(B79=0,C79<>0),"Error",IF(AND(B79<>0,C79=0),"Error",B79/C79))) -> 0 | E79: =_OE6370 -> 0 | F79: =PERS637 -> 0 | G79: 0 | II79: 370 SECRETARIAL, CLERICAL & OTHER | IP79: 370 PERSONNEL DE BUREAU ET AUTRE
A80: 390 INFORMATION TECHNOLOGY | B80: =_OE5390 -> 0 | C80: =PERS539 -> 0 | D80: =IF(AND(B80=0,C80=0),0,IF(AND(B80=0,C80<>0),"Error",IF(AND(B80<>0,C80=0),"Error",B80/C80))) -> 0 | E80: =_OE6390 -> 0 | F80: =PERS639 -> 0 | G80: 0 | II80: 390 INFORMATION TECHNOLOGY | IP80: 390 TECHNOLOGIE DE L'INFORMATION
B82: =IF(Eng_Fren=1,"FUNCTION 700","FONCTION 700") -> FUNCTION 700 | E82: =IF(Eng_Fren=1,"FUNCTION 800","FONCTION 800") -> FUNCTION 800
B83: =$B$62 -> SALARIES | C83: =$C$62 -> PERSONNEL | D83: =$D$62 -> AVERAGE | E83: =$B$62 -> SALARIES | F83: =$C$62 -> PERSONNEL | G83: =$D$62 -> AVERAGE
A85: =IF(Eng_Fren=1,II85,IP85) -> 320 EXECUTIVE, MG'L & SUPERVISORY | B85: =_OE7320 -> 0 | C85: =PERS732 -> 0 | D85: =IF(AND(B85=0,C85=0),0,IF(AND(B85=0,C85<>0),"Error",IF(AND(B85<>0,C85=0),"Error",B85/C85))) -> 0 | E85: =_OE8320 -> 0 | F85: =PERS832 -> 0 | G85: =IF(AND(E85=0,F85=0),0,IF(AND(E85=0,F85<>0),"Error",IF(AND(E85<>0,F85=0),"Error",E85/F85))) -> 0 | II85: 320 EXECUTIVE, MG'L & SUPERVISORY | IP85: 320 CADRES, DIRIGEANTS ET SUPERVISEURS
A86: =IF(Eng_Fren=1,II86,IP86) -> 350 INSTRUCTIONAL - OTHER | B86: =_OE7350 -> 0 | C86: =PERS735 -> 0 | D86: =IF(AND(B86=0,C86=0),0,IF(AND(B86=0,C86<>0),"Error",IF(AND(B86<>0,C86=0),"Error",B86/C86))) -> 0 | II86: 350 INSTRUCTIONAL - OTHER | IP86: 350 ÉDUCATEURS – AUTRES
A87: =IF(Eng_Fren=1,II87,IP87) -> 360 TECHNICAL, SPECLIZ'D & SERVICE | B87: =_OE7360 -> 0 | C87: =PERS736 -> 0 | D87: =IF(AND(B87=0,C87=0),0,IF(AND(B87=0,C87<>0),"Error",IF(AND(B87<>0,C87=0),"Error",B87/C87))) -> 0 | E87: =_OE8360 -> 0 | F87: =PERS836 -> 0 | G87: =IF(AND(E87=0,F87=0),0,IF(AND(E87=0,F87<>0),"Error",IF(AND(E87<>0,F87=0),"Error",E87/F87))) -> 0 | II87: 360 TECHNICAL, SPECLIZ'D & SERVICE | IP87: 360 PERSONNEL TECHN., SPÉCIALISÉ ET DE SOUTIEN
A88: =IF(Eng_Fren=1,II88,IP88) -> 370 SECRETARIAL, CLERICAL & OTHER | B88: =_OE7370 -> 0 | C88: =PERS737 -> 0 | D88: =IF(AND(B88=0,C88=0),0,IF(AND(B88=0,C88<>0),"Error",IF(AND(B88<>0,C88=0),"Error",B88/C88))) -> 0 | E88: =_OE8370 -> 0 | F88: =PERS837 -> 0 | G88: =IF(AND(E88=0,F88=0),0,IF(AND(E88=0,F88<>0),"Error",IF(AND(E88<>0,F88=0),"Error",E88/F88))) -> 0 | II88: 370 SECRETARIAL, CLERICAL & OTHER | IP88: 370 PERSONNEL DE BUREAU ET AUTRE
A89: =IF(Eng_Fren=1,II89,IP89) -> 390 INFORMATION TECHNOLOGY | B89: =_OE7390 -> 0 | C89: =PERS739 -> 0 | D89: =IF(AND(B89=0,C89=0),0,IF(AND(B89=0,C89<>0),"Error",IF(AND(B89<>0,C89=0),"Error",B89/C89))) -> 0 | E89: =_OE8390 -> 0 | F89: =PERS839 -> 0 | G89: =IF(AND(E89=0,F89=0),0,IF(AND(E89=0,F89<>0),"Error",IF(AND(E89<>0,F89=0),"Error",E89/F89))) -> 0 | II89: 390 INFORMATION TECHNOLOGY | IP89: 390 TECHNOLOGIE DE L'INFORMATION

Sheet Ratios
B1: ="Ratios for "&DIVNAME&": "&FIXED(THISCALYR,0,1)&" Tax Year" -> Ratios for School Division Name: 2024 Tax Year
B2: (To be used after you have entered your special requirement in the budget and completed your special levy form)
C3: Assessment | D3: Levy | F3: INSTRUCTIONS :
A4: Line | B4: Locality | C4: Ratios | D4: Amount | F4: Levy amounts are rounded to the nearest dollar.
A5: =IF(B5=0,0,1) -> 0 | B5: =AM404 -> 0 | C5: =AN404 -> 0 | D5: =ROUND(C5*D$62,0) -> 0 | F5: If you want to remove rounding, edit the formula.
A6: =IF(B6=0,0,2) -> 0 | B6: 0 | C6: 0 | D6: 0 | F6: in the top cell of the Levy Amount column to read
A7: =IF(B7=0,0,A6+1) -> 0 | B7: 0 | C7: 0 | D7: 0 | F7: =C5*D$24 and copy down the column. You can
A8: 0 | B8: 0 | C8: 0 | D8: 0 | F8: also alter Levy amounts by either inputting a
A9: 0 | B9: 0 | C9: 0 | D9: 0 | F9: number over the formula or by adding a number
A10: 0 | B10: 0 | C10: 0 | D10: 0 | F10: to the formula in edit mode.
A11: 0 | B11: 0 | C11: 0 | D11: 0 | F11: To print all your tax notices, click the 'Print All'
A12: 0 | B12: 0 | C12: 0 | D12: 0 | F12: button >
A13: 0 | B13: 0 | C13: 0 | D13: 0 | F13: < To print individual notices, click the green
A14: 0 | B14: 0 | C14: 0 | D14: 0 | F14: < buttons beside the table.
A15: 0 | B15: 0 | C15: 0 | D15: 0 | F15: > Buttons print one copy of each tax notice. For
A16: 0 | B16: 0 | C16: 0 | D16: 0 | F16: additional copies, click button(s) again.
A17: 0 | B17: 0 | C17: 0 | D17: 0 | F17: > The Tax Notice form (on next worksheet) has
A18: 0 | B18: 0 | C18: 0 | D18: 0 | F18: today's date. You can enter a different date
A19: 0 | B19: 0 | C19: 0 | D19: 0 | F19: if necessary.
A20: 0 | B20: 0 | C20: 0 | D20: 0 | F20: Check to Special Levy:
A21: 0 | B21: 0 | C21: 0 | D21: 0 | F21: (variance of $1.00 or less is OK)
A22: 0 | B22: 0 | C22: 0 | D22: 0 | G22: (a) - (b) = | H22: =IF(AND(SLCURRPOR=0,SLCURRPORLT=0),0,IF(D61<>D62,D61-D62,"OK !")) -> 0
A23: 0 | B23: 0 | C23: 0 | D23: 0 | F23: =IF(D61>D62+1," * Total of tax notices exceeds special levy",IF(D61<D62-1,"* Total of tax notices is less than special levy","")) -> 
A24: 0 | B24: 0 | C24: 0 | D24: 0
A25: 0 | B25: 0 | C25: 0 | D25: 0
A26: =IF(B26=0,0,A25+1) -> 0 | B26: 0 | C26: 0 | D26: 0
A27: 0 | B27: 0 | C27: 0 | D27: 0
A28: 0 | B28: 0 | C28: 0 | D28: 0
A29: 0 | B29: 0 | C29: 0 | D29: 0
A30: 0 | B30: 0 | C30: 0 | D30: 0
A31: 0 | B31: 0 | C31: 0 | D31: 0
A32: 0 | B32: 0 | C32: 0 | D32: 0
A33: 0 | B33: 0 | C33: 0 | D33: 0
A34: 0 | B34: 0 | C34: 0 | D34: 0
A35: 0 | B35: 0 | C35: 0 | D35: 0
A36: 0 | B36: 0 | C36: 0 | D36: 0
A37: 0 | B37: 0 | C37: 0 | D37: 0
A38: 0 | B38: 0 | C38: 0 | D38: 0
A39: 0 | B39: 0 | C39: 0 | D39: 0
A40: 0 | B40: 0 | C40: 0 | D40: 0
A41: 0 | B41: 0 | C41: 0 | D41: 0
A42: 0 | B42: 0 | C42: 0 | D42: 0
A43: 0 | B43: 0 | C43: 0 | D43: 0
A44: 0 | B44: 0 | C44: 0 | D44: 0
A45: 0 | B45: 0 | C45: 0 | D45: 0
A46: =IF(B46=0,0,A45+1) -> 0 | B46: =AM445 -> 0 | C46: =AN445 -> 0 | D46: =ROUND(C46*D$62,0) -> 0
A47: 0 | B47: 0 | C47: 0 | D47: 0
A48: 0 | B48: 0 | C48: 0 | D48: 0
A49: 0 | B49: 0 | C49: 0 | D49: 0
A50: 0 | B50: 0 | C50: 0 | D50: 0
A51: 0 | B51: 0 | C51: 0 | D51: 0
A52: 0 | B52: 0 | C52: 0 | D52: 0
A53: 0 | B53: 0 | C53: 0 | D53: 0
A54: 0 | B54: 0 | C54: 0 | D54: 0
A55: 0 | B55: 0 | C55: 0 | D55: 0
A56: 0 | B56: 0 | C56: 0 | D56: 0
A57: 0 | B57: 0 | C57: 0 | D57: 0
A58: 0 | B58: 0 | C58: 0 | D58: 0
A59: 0 | B59: 0 | C59: 0 | D59: 0
B61: Total of Ratios & Tax Notices > | C61: =SUM(C5:C59) -> 0 | D61: =SUM(D5:D59) -> 0 | E61: (a)
B62: Special Levy on Special Levy Form > | D62: =IF(SLPREV=0,SPLEVLT,SPLEV) -> 0 | E62: (b)
A65: Line
A66: 3 | AL66: DIVNUM_MUN | AM66: MUN | AN66: RATIO
AL67: Co.
A68: Line | B68: Locality | C68: Ratios | D68: Amount | AK68: BE | AL68: BE | AM68: RM OF ELTON (124) | AN68: 0.01443904983
A69: 3 | AK69: BE | AL69: BE | AM69: MUNICIPALITY OF GLENELLA-LANSDOWNE (142) | AN69: 0.07749334192
AK70: BE | AL70: BE | AM70: MUNICIPALITY OF NORTH CYPRESS-LANGFORD (155) | AN70: 0.4959872617
AK71: BE | AL71: BE | AM71: MUNICIPALITY OF NORTH NORFOLK (156) | AN71: 0.000845538657
AK72: BE | AL72: BE | AM72: RM OF MINTO-ODANAH (159) | AN72: 0.006978464431
AK73: BE | AL73: BE | AM73: RM OF ROSEDALE (170) | AN73: 0.1072955791
AK74: BE | AL74: BE | AM74: MUNICIPALITY OF GLENBORO-SOUTH CYPRESS (187) | AN74: 0.000827681938
AK75: BE | AL75: BE | AM75: RM OF VICTORIA (197) | AN75: 0.000301724191
AK76: BE | AL76: BE | AM76: TOWN OF CARBERRY (407) | AN76: 0.07757418853
AK77: BE | AL77: BE | AM77: TOWN OF NEEPAWA (437) | AN77: 0.2182571698
AK78: BO | AL78: BO | AM78: RM OF DE SALABERRY (119) | AN78: 0.01872166367
AK79: BO | AL79: BO | AM79: MUNICIPALITY OF EMERSON-FRANKLIN (127) | AN79: 0.2089714098
AK80: BO | AL80: BO | AM80: RM OF LA BROQUERIE (138) | AN80: 0.01414483135
AK81: BO | AL81: BO | AM81: RM OF MONTCALM (151) | AN81: 0.1174199515
AK82: BO | AL82: BO | AM82: RM OF MORRIS (152) | AN82: 0.003448567875
AK83: BO | AL83: BO | AM83: MUNICIPALITY OF RHINELAND (164) | AN83: 0.3306656957
AK84: BO | AL84: BO | AM84: TOWN OF ALTONA (400) | AN84: 0.1789117879
AK85: BO | AL85: BO | AM85: RM OF PINEY (610) | AN85: 0.06201558211
AK86: BO | AL86: BO | AM86: RM OF STUARTBURN (612) | AN86: 0.06570050998
AK87: BR | AL87: BR | AM87: RM OF CORNWALLIS (116) | AN87: 0.06096744235
AK88: BR | AL88: BR | AM88: RM OF ELTON (124) | AN88: 0.008714305738
AK89: BR | AL89: BR | AM89: MUNICIPALITY OF NORTH CYPRESS-LANGFORD (155) | AN89: 0.02680995196
AK90: BR | AL90: BR | AM90: MUNICIPALITY OF OAKLAND-WAWANESA (157) | AN90: 0.007908150726
AK91: BR | AL91: BR | AM91: MUNICIPALITY OF GLENBORO-SOUTH CYPRESS (187) | AN91: 0.01081794242
AK92: BR | AL92: BR | AM92: RM OF WHITEHEAD (202) | AN92: 0.03716820083
AK93: BR | AL93: BR | AM93: RIVERDALE MUNICIPALITY (443) | AN93: 0.002444893892
AK94: BR | AL94: BR | AM94: MUNICIPALITY OF SOURIS-GLENWOOD (449) | AN94: 4.5061035e-05
AK95: BR | AL95: BR | AM95: CITY OF BRANDON (500) | AN95: 0.845124051
AK96: EV | AL96: EV | AM96: MUNICIPALITY OF BIFROST-RIVERTON (105) | AN96: 0.2062061482
AK97: EV | AL97: EV | AM97: RM OF GIMLI (129) | AN97: 0.4912854011
AK98: EV | AL98: EV | AM98: RM OF ROCKWOOD (168) | AN98: 0.000343288695
AK99: EV | AL99: EV | AM99: RM OF ST. ANDREWS (174) | AN99: 0.03664469415
AK100: EV | AL100: EV | AM100: TOWN OF ARBORG (300) | AN100: 0.04486813725
AK101: EV | AL101: EV | AM101: VILLAGE OF DUNNOTTAR (311) | AN101: 0.07501079095
AK102: EV | AL102: EV | AM102: TOWN OF WINNIPEG BEACH (465) | AN102: 0.09840977861
AK103: EV | AL103: EV | AM103: RM OF ARMSTRONG (602) | AN103: 0.0471170604
AK104: EV | AL104: EV | AM104: RM OF FISHER (605) | AN104: 0.000114700688
AK105: FL | AL105: FL | AM105: CITY OF FLIN FLON (540) | AN105: 1
AK106: FO | AL106: FO | AM106: RM OF ELLICE-ARCHIE (101) | AN106: 0.07630335154
AK107: FO | AL107: FO | AM107: MUNICIPALITY OF TWO BORDERS (122) | AN107: 0.03638187875
AK108: FO | AL108: FO | AM108: RM OF PIPESTONE (162) | AN108: 0.3339007592
AK109: FO | AL109: FO | AM109: RM OF SIFTON (184) | AN109: 0.09321349686
AK110: FO | AL110: FO | AM110: RM OF WALLACE-WOODWORTH (199) | AN110: 0.3056471435
AK111: FO | AL111: FO | AM111: RM OF WHITEHEAD (202) | AN111: 0.002715378155
AK112: FO | AL112: FO | AM112: TOWN OF VIRDEN (461) | AN112: 0.1518379921
AK113: FR | AL113: FR | AM113: RM OF LAKESHORE (143) | AN113: 0.09842819805
AK114: FR | AL114: FR | AM114: TOWN OF LEAF RAPIDS (428) | AN114: 0.009492696529
AK115: FR | AL115: FR | AM115: TOWN OF SNOW LAKE (448) | AN115: 0.1596079515
AK116: FR | AL116: FR | AM116: RM OF ALONSA (601) | AN116: 0.008771845931
AK117: FR | AL117: FR | AM117: TOWN OF CHURCHILL (603) | AN117: 0.1507690497
AK118: FR | AL118: FR | AM118: RM OF KELSEY (604) | AN118: 0.08873335208
AK119: FR | AL119: FR | AM119: RM OF GRAHAMDALE (606) | AN119: 0.05207622827
AK120: FR | AL120: FR | AM120: TOWN OF LYNN LAKE (614) | AN120: 0.01657483637
AK121: FR | AL121: FR | AM121: TOWN OF GRAND RAPIDS (615) | AN121: 0.0520243727
AK122: FR | AL122: FR | AM122: RM OF MOUNTAIN (617) | AN122: 0.007451674409
AK123: FR | AL123: FR | AM123: TOWN OF GILLAM (619) | AN123: 0.02944890875
AK124: FR | AL124: FR | AM124: INDIGENOUS AND NORTHERN RELATIONS (700) | AN124: 0.000608557471
AK125: FR | AL125: FR | AM125: INDIGENOUS AND NORTHERN RELATIONS (701) | AN125: 0.02882045998
AK126: FR | AL126: FR | AM126: INDIGENOUS AND NORTHERN RELATIONS (702) | AN126: 0.000671649626
AK127: FR | AL127: FR | AM127: INDIGENOUS AND NORTHERN RELATIONS (703) | AN127: 0.001776035069
AK128: FR | AL128: FR | AM128: INCORPORATED COMMUNITY OF CROSS LAKE (707) | AN128: 0.0176280208
AK129: FR | AL129: FR | AM129: INCORPORATED COMMUNITY OF SEYMOURVILLE (708) | AN129: 0.003147843974
AK130: FR | AL130: FR | AM130: NORWAY HOUSE-NORTHERN AFFAIRS ACT (710) | AN130: 0.02920123114
AK131: FR | AL131: FR | AM131: PIKWITONEI-NORTHERN AFFAIRS ACT (712) | AN131: 0.003413012846
AK132: FR | AL132: FR | AM132: SHERRIDON-NORTHERN AFFAIRS ACT (713) | AN132: 0.006752751518
AK133: FR | AL133: FR | AM133: INCORPORATED COMMUNITY OF SOUTH INDIAN LAKE (714) | AN133: 0.00169570621
AK134: FR | AL134: FR | AM134: THICKET PORTAGE-NORTHERN AFFAIRS ACT (715) | AN134: 0.003945023351
AK135: FR | AL135: FR | AM135: WABOWDEN-NORTHERN AFFAIRS ACT (716) | AN135: 0.02438360874
AK136: FR | AL136: FR | AM136: CRANE RIVER-NORTHERN AFFAIRS ACT (727) | AN136: 0.005344323708
AK137: FR | AL137: FR | AM137: MALLARD-NORTHERN AFFAIRS ACT (728) | AN137: 0.001636759591
AK138: FR | AL138: FR | AM138: MEADOW PORTAGE-NORTHERN AFFAIRS ACT (729) | AN138: 0.01746881766
AK139: FR | AL139: FR | AM139: SALT POINT-NORTHERN AFFAIRS ACT (731) | AN139: 0.000323824576
AK140: FR | AL140: FR | AM140: SPENCE LAKE-NORTHERN AFFAIRS ACT (732) | AN140: 0.010345477
AK141: FR | AL141: FR | AM141: WATERHEN-NORTHERN AFFAIRS ACT (733) | AN141: 0.01548772399
AK142: FR | AL142: FR | AM142: BROCHET-NORTHERN AFFAIRS ACT (734) | AN142: 0.00426277508
AK143: FR | AL143: FR | AM143: EASTERVILLE-NORTHERN AFFAIRS ACT (736) | AN143: 0.001422500815
AK144: FR | AL144: FR | AM144: HERB LAKE LANDING-NORTHERN AFFAIRS ACT (738) | AN144: 7.3965097e-05
AK145: FR | AL145: FR | AM145: ILFORD-NORTHERN AFFAIRS ACT (739) | AN145: 0.000949800572
AK146: FR | AL146: FR | AM146: AGHAMING-NORTHERN AFFAIRS ACT (741) | AN146: 0.000499937144
AK147: FR | AL147: FR | AM147: BERENS RIVER-NORTHERN AFFAIRS ACT (744) | AN147: 0.003684436387
AK148: FR | AL148: FR | AM148: BISSETT-NORTHERN AFFAIRS ACT (746) | AN148: 0.03284279395
AK149: FR | AL149: FR | AM149: DALLAS-RED ROSE-NORTHERN AFFAIRS ACT (747) | AN149: 0.007775280799
AK150: FR | AL150: FR | AM150: DAUPHIN RIVER-NORTHERN AFFAIRS ACT (748) | AN150: 0.000875180917
AK151: FR | AL151: FR | AM151: FISHER BAY-NORTHERN AFFAIRS ACT (750) | AN151: 0.001862545868
AK152: FR | AL152: FR | AM152: HOMEBROOK - PEONAN POINT-NORTHERN AFFAIRS ACT (754) | AN152: 0.004842531982
AK153: FR | AL153: FR | AM153: LOON STRAITS-NORTHERN AFFAIRS ACT (761) | AN153: 0.002622633603
AK154: FR | AL154: FR | AM154: MANIGOTAGAN-NORTHERN AFFAIRS ACT (762) | AN154: 0.03561441231
AK155: FR | AL155: FR | AM155: MATHESON ISLAND-NORTHERN AFFAIRS ACT (763) | AN155: 0.01563423598
AK156: FR | AL156: FR | AM156: PINE DOCK-NORTHERN AFFAIRS ACT (765) | AN156: 0.006632349141
AK157: FR | AL157: FR | AM157: PRINCESS HARBOUR-NORTHERN AFFAIRS ACT (766) | AN157: 0.000664813127
AK158: FR | AL158: FR | AM158: BADEN-NORTHERN AFFAIRS ACT (781) | AN158: 0.000283387414
AK159: FR | AL159: FR | AM159: BARROWS-NORTHERN AFFAIRS ACT (782) | AN159: 0.00179508999
AK160: FR | AL160: FR | AM160: CAMPERVILLE-NORTHERN AFFAIRS ACT (783) | AN160: 0.01233198895
AK161: FR | AL161: FR | AM161: CORMORANT-NORTHERN AFFAIRS ACT (784) | AN161: 0.007987394078
AK162: FR | AL162: FR | AM162: DAWSON BAY-NORTHERN AFFAIRS ACT (785) | AN162: 0.001187878001
AK163: FR | AL163: FR | AM163: DUCK BAY-NORTHERN AFFAIRS ACT (786) | AN163: 0.006742933142
AK164: FR | AL164: FR | AM164: MOOSE LAKE-NORTHERN AFFAIRS ACT (787) | AN164: 0.001716906628
AK165: FR | AL165: FR | AM165: NATIONAL MILLS-NORTHERN AFFAIRS ACT (788) | AN165: 0.000221168003
AK166: FR | AL166: FR | AM166: PELICAN RAPIDS-NORTHERN AFFAIRS ACT (789) | AN166: 0.001089803337
AK167: FR | AL167: FR | AM167: RED DEER LAKE-NORTHERN AFFAIRS ACT (792) | AN167: 0.000353316067
AK168: GA | AL168: GA | AM168: MUNICIPALITY OF RHINELAND (164) | AN168: 0.1338564277
AK169: GA | AL169: GA | AM169: RM OF ROLAND (169) | AN169: 0.01686123244
AK170: GA | AL170: GA | AM170: RM OF STANLEY (190) | AN170: 0.3041120504
AK171: GA | AL171: GA | AM171: CITY OF WINKLER (463) | AN171: 0.5451702894
AK172: HA | AL172: HA | AM172: RM OF DE SALABERRY (119) | AN172: 0.01072764941
AK173: HA | AL173: HA | AM173: MUNICIPALITY OF EMERSON-FRANKLIN (127) | AN173: 6.113404e-05
AK174: HA | AL174: HA | AM174: RM OF HANOVER (135) | AN174: 0.3342519035
AK175: HA | AL175: HA | AM175: RM OF LA BROQUERIE (138) | AN175: 0.03761931982
AK176: HA | AL176: HA | AM176: RM OF RITCHOT (165) | AN176: 0.01814894114
AK177: HA | AL177: HA | AM177: RM OF STE. ANNE (175) | AN177: 0.03682665058
AK178: HA | AL178: HA | AM178: RM OF TACHE (194) | AN178: 0.06016212477
AK179: HA | AL179: HA | AM179: TOWN OF NIVERVILLE (340) | AN179: 0.1146807817
AK180: HA | AL180: HA | AM180: CITY OF STEINBACH (451) | AN180: 0.3875214951
AK181: IN | AL181: IN | AM181: RM OF ROCKWOOD (168) | AN181: 0.3059019713
AK182: IN | AL182: IN | AM182: RM OF ROSSER (172) | AN182: 0.3161912699
AK183: IN | AL183: IN | AM183: RM OF ST. ANDREWS (174) | AN183: 0.0100997757
AK184: IN | AL184: IN | AM184: RM OF ST. LAURENT (178) | AN184: 6.5556612e-05
AK185: IN | AL185: IN | AM185: RM OF WEST ST. PAUL (201) | AN185: 0.01488952101
AK186: IN | AL186: IN | AM186: RM OF WOODLANDS (206) | AN186: 0.1458396832
AK187: IN | AL187: IN | AM187: TOWN OF TEULON (363) | AN187: 0.02761413911
AK188: IN | AL188: IN | AM188: TOWN OF STONEWALL (453) | AN188: 0.1716228062
AK189: IN | AL189: IN | AM189: CITY OF WINNIPEG (590) | AN189: 0.001861013332
AK190: IN | AL190: IN | AM190: RM OF ARMSTRONG (602) | AN190: 0.005914263638
AK191: KE | AL191: KE | AM191: TOWN OF THE PAS (457) | AN191: 0.7002092552
AK192: KE | AL192: KE | AM192: RM OF KELSEY (604) | AN192: 0.2997907448
AK193: LA | AL193: LA | AM193: MUNICIPALITY OF BIFROST-RIVERTON (105) | AN193: 0.007578959101
AK194: LA | AL194: LA | AM194: RM OF COLDWELL (115) | AN194: 0.1779275548
AK195: LA | AL195: LA | AM195: RM OF ROCKWOOD (168) | AN195: 0.001728175208
AK196: LA | AL196: LA | AM196: RM OF ST. LAURENT (178) | AN196: 0.000749206886
AK197: LA | AL197: LA | AM197: MUNICIPALITY OF WEST INTERLAKE (185) | AN197: 0.2653580427
AK198: LA | AL198: LA | AM198: RM OF ARMSTRONG (602) | AN198: 0.09499185931
AK199: LA | AL199: LA | AM199: RM OF FISHER (605) | AN199: 0.2775808521
AK200: LA | AL200: LA | AM200: RM OF GRAHAMDALE (606) | AN200: 0.1740853499
AK201: LO | AL201: LO | AM201: RM OF BROKENHEAD (110) | AN201: 0.002364666456
AK202: LO | AL202: LO | AM202: RM OF ST. ANDREWS (174) | AN202: 0.337269542
AK203: LO | AL203: LO | AM203: RM OF ST. CLEMENTS (176) | AN203: 0.2546094259
... 167 more rows

Sheet Contents
C1: =IF(Eng_Fren=1,L1,M1) -> TABLE OF CONTENTS | L1: TABLE OF CONTENTS | M1: TABLE DES MATIÈRES
C2: =UPPER(Title) -> 2024/25 FRAME BUDGET
D3: =IF(C4="","","PAGE") -> PAGE
C4: =IF(Eng_Fren=1,L4,M4) -> EXPENDITURE DEFINITIONS | D4: =IF(C4="","","i ") -> i | L4: =IF(YESNO3=TRUE,"EXPENDITURE DEFINITIONS","") -> EXPENDITURE DEFINITIONS | M4: =IF(YESNO3=TRUE,"DÉFINITIONS DES DÉPENSES","") -> DÉFINITIONS DES DÉPENSES
C5: OPERATING FUND | D5: =IF(C4="","PAGE","") ->  | L5: OPERATING FUND | M5: FONDS DE FONCTIONNEMENT
C6: SCHEDULE OF REVENUE AND EXPENSES | D6: 1 | L6: SCHEDULE OF REVENUE AND EXPENSES | M6: TABLEAU DES RECETTES ET DES DÉPENSES
C7: REVENUE DETAIL: PROVINCE OF MANITOBA | D7: 2 - 3 | L7: REVENUE DETAIL: PROVINCE OF MANITOBA | M7: ÉTAT DÉTAILLÉ DES RECETTES : PROVINCE DU MANITOBA
C8: REVENUE DETAIL: NON-PROVINCIAL GOVERNMENT SOURCES | D8: 4 | L8: REVENUE DETAIL: NON-PROVINCIAL GOVERNMENT SOURCES | M8: RECETTES DE SOURCES AUTRES QUE LE GOUVERNEMENT PROVINCIAL
C9: EXPENSES BY FUNCTION AND BY OBJECT | D9: 5 | L9: EXPENSES BY FUNCTION AND BY OBJECT | M9: DÉPENSES PAR FONCTION ET PAR OBJET
C10: EXPENSE DETAIL | L10: EXPENSE DETAIL | M10: DÉPENSES DÉTAILLÉES
C11: - Function 100: Regular Instruction | D11: 6 | L11: - Function 100: Regular Instruction | M11: - Fonction 100 : Enseignement ordinaire
C12: - Function 200: Student Support Services | D12: 7 | L12: - Function 200: Student Support Services | M12: - Fonction 200 : Services de soutien aux élèves
C13: - Function 300: Adult Learning Centres | D13: 8 | L13: - Function 300: Adult Learning Centres | M13: - Fonction 300 : Centres d'apprentissage pour adultes
C14: - Function 400: Community Education and Services | D14: 9 | L14: - Function 400: Community Education and Services | M14: - Fonction 400 : Éducation et services communautaires
C15: - Function 500: Divisional Administration | D15: 10 | L15: - Function 500: Divisional Administration | M15: - Fonction 500 : Administration de la division
C16: - Function 600: Instructional and Other Support Services | D16: 11 | L16: - Function 600: Instructional and Other Support Services | M16: - Fonction 600 : Services pédagogiques et autres services de soutien
C17: - Function 700: Transportation of Pupils | D17: 12 | L17: - Function 700: Transportation of Pupils | M17: - Fonction 700 : Transport des élèves
C18: - Function 800: Operations and Maintenance | D18: 13 | L18: - Function 800: Operations and Maintenance | M18: - Fonction 800 : Fonctionnement et entretien
C19: DETAIL OF TRANSFERS TO (FROM) CAPITAL FUND | D19: 14 | L19: DETAIL OF TRANSFERS TO (FROM) CAPITAL FUND | M19: VENTILATION DES TRANSFERTS AU (DU) FONDS DE CAPITAL ET D'EMPRUNT
C20: STUDENT ENROLMENTS (FRAME) AND TRANSPORTATION STATISTICS | D20: 15 | L20: STUDENT ENROLMENTS (FRAME) AND TRANSPORTATION STATISTICS | M20: STATISTIQUES SUR LES INSCRIPTIONS (FRAME) ET LE TRANSPORT DES ÉLÈVES
C21: FULL TIME EQUIVALENT PERSONNEL | D21: 16 | L21: FULL TIME EQUIVALENT PERSONNEL | M21: PERSONNEL ÉQUIVALENT TEMPS PLEIN
C22: CACULATION OF ADMINISTRATION COSTS | D22: =IF(OR(DIVCODE="FR",DIVCODE="WT",DIVCODE="XW"),"N/A",IF(DIVCODE="DI","S/O",17)) -> 17 | L22: CACULATION OF ADMINISTRATION COSTS | M22: CALCUL DES FRAIS D'ADMINISTRATION
C23: =IF(YESNO2=TRUE,Allowable!D2,"") -> CALCULATION OF ALLOWABLE AND UNSUPPORTED EXPENSES | D23: =IF(C23="","","18 - 20") -> 18 - 20 | L23: CALCULATION OF ALLOWABLE EXPENSES | M23: CALCUL DES DÉPENSES AUTORISÉES

Sheet Tax Notice
E2: NOTICE OF TAX REQUIREMENTS
E3: =THISCALYR -> 2024
F5: Date | G5: =NOW() -> 2024-02-09T11:53:25.340
B7: To The | D7: =IF(DIVCODE="XW","L.G.D. of Pinawa",IF(DIVCODE="FL","City of Flin Flon, Municipality",IF(DIVCODE="MY","City of Thompson",IF(DIVCODE="WI","City of Winnipeg",Ratios!B69)))) -> 0
D8: (Municipality, Department of Indigenous and Northern Relations, etc.)
C10: In accordance with Section 187 of The Public Schools Act, the Board of the
B11: =IF(DIVNUM=1,"",MID(DIVNAME,1,FIND(" School ",DIVNAME,1)-1)) ->  | F11: School Division is submitting herewith the
B12: amount required to be raised by levy on the total school assessment in that part
B13: of the municipality, local government district or special locality that is included in
B14: this school division.
C16: The amount which you are required to levy under Section 188 of The Public
B17: ="Schools Act for the year "&THISCALYR&" is $" -> Schools Act for the year 2024 is $ | F17: =IF(OR(DIVCODE="XW",DIVCODE="FL"),SPLEV,IF(OR(DIVCODE="MY",DIVCODE="WI"),SPLEVLT,Ratios!D69)) -> 0
C19: You are requested to remit the amount shown above, net of the Education
B20: Property Tax Credit, in accordance with the Regulations made under Section 191
B21: of The Public Schools Act.
C23: In accordance with Section 3 of Manitoba Regulation 371/88, the total levy raised
B24: must be remitted in full on or before January 31 in the year following the year in which
B25: the education levies were apportioned.
F28: Chair
D29: Seal
F31: Secretary-Treasurer
B33: Copies to: | D33: Municipality
D34: Education Funding Branch

Sheet Special Levy 1
A2: ='Special Levy 2'!A2 -> CALCULATION OF 2024 SPECIAL LEVY
A3: ="To accompany the "&Title -> To accompany the 2024/25 FRAME Budget
A5: =IF(OR(DIVCODE="DI",DIVCODE="XP"),"",UPPER(DIVNAME)) -> SCHOOL DIVISION NAME
A11: A. | B11: ='Special Levy 2'!B8 -> Special Requirement: 2023/24 Budget (1) | F11: =IF(ISERROR(VLOOKUP(DIVCODE,LEVDATA1,3,FALSE)),0,VLOOKUP(DIVCODE,LEVDATA1,3,FALSE)) -> 0
A12: B. | B12: ='Special Levy 2'!B9 -> Amount related to 2023/24 included in 2023 Special Levy | F12: =IF(ISERROR(VLOOKUP(DIVCODE,LEVDATA1,4,FALSE)),0,VLOOKUP(DIVCODE,LEVDATA1,4,FALSE)) -> 0
A13: C. | B13: ='Special Levy 2'!B10 -> Balance of 2023/24 to be raised in 2024 (A - B) | G13: =F11-F12 -> 0
A14: D. | B14: ='Special Levy 2'!B11 -> Special Requirement: 2024/25 Budget (1) | F14: =SPECREQ -> 0 | J14: < Percentage OR
A15: E. | B15: ="Amount included in "&FIXED(THISCALYR,0,1)&" Special Levy ("&IF(F14=0," "&"% of D) (2)",FIXED((G15/F14)*100,1,TRUE)&"% of D) (2)") -> Amount included in 2024 Special Levy ( % of D) (2) | G15: =ROUND(IF(AND(I14=0,I15=0),0,IF(IF(I14>0,I14*F14,I15)<0.4*F14," ERROR",IF(I14>0,I14*F14,I15))),0) -> 0 | J15: < Amount (for Line E)
A16: F. | B16: ='Special Levy 2'!B13 -> Surplus (Applied)/Raised (not included in the Special Requirement)
A17: G. | B17: =FIXED(THISCALYR,0,1)&" SPECIAL LEVY BEFORE TAX INCENTIVE GRANT (C + E + F)" -> 2024 SPECIAL LEVY BEFORE TAX INCENTIVE GRANT (C + E + F) | G17: =G13+G15+G16 -> 0
A18: H. | B18: Less: Tax Incentive Grant | G18: =IF(ISERROR(VLOOKUP(DIVCODE,DATA,51,FALSE)),0,VLOOKUP(DIVCODE,DATA,51,FALSE)) -> 0
A19: I. | B19: ='Special Levy 2'!B20 -> Less: Property Tax Offset Grant (PTOG) | G19: =IF(ISERROR(VLOOKUP(DIVCODE,DATA,54,FALSE)),0,VLOOKUP(DIVCODE,DATA,54,FALSE)) -> 0
A20: J. | B20: =FIXED(THISCALYR,0,1)&" TOTAL SPECIAL LEVY (G - H - I) (3)" -> 2024 TOTAL SPECIAL LEVY (G - H - I) (3) | G20: =G17-SUM(G18:G19) -> 0
A24: (1) | B24: Special Requirement must agree with the Special Requirement shown under Municipal Government
B25: in your budget.
A26: (2) | B26: ='Special Levy 2'!B39 -> The percentage of the 2024/25 Special Requirement shown in E must not be less than 40%.
A27: (3) | B27: ='Special Levy 2'!B40 -> Please ensure that the 2024 Special Levy calculated on this form agrees with the total of levies
B28: requested on your Notices of Tax Requirements.
A31: PLEASE REMIT THIS FORM AND YOUR NOTICES OF TAX REQUIREMENTS WITH YOUR BUDGET
C37: DATE | E37: CHAIRPERSON
C41: DATE | E41: SECRETARY-TREASURER
A43: (SL Form 1)

Sheet Special Levy 2
A2: ="CALCULATION OF "&FIXED(THISCALYR,0,1)&" SPECIAL LEVY" -> CALCULATION OF 2024 SPECIAL LEVY
A3: ="To accompany the "&Title -> To accompany the 2024/25 FRAME Budget
A5: =IF(OR(DIVCODE="DI",DIVCODE="XP"),"",UPPER(DIVNAME)) -> SCHOOL DIVISION NAME
A8: A. | B8: ="Special Requirement: "&LASTYR&" Budget (1)" -> Special Requirement: 2023/24 Budget (1) | F8: =IF(ISERROR(VLOOKUP(DIVCODE,LEVDATA2,3,FALSE)),0,VLOOKUP(DIVCODE,LEVDATA2,3,FALSE)) -> 0
A9: B. | B9: ="Amount related to "&LASTYR&" included in "&FIXED(PREVCALYR,0,1)&" Special Levy" -> Amount related to 2023/24 included in 2023 Special Levy | F9: =IF(ISERROR(VLOOKUP(DIVCODE,LEVDATA2,4,FALSE)),0,VLOOKUP(DIVCODE,LEVDATA2,4,FALSE)) -> 0
A10: C. | B10: ="Balance of "&LASTYR&" to be raised in "&FIXED(THISCALYR,0,1)&" (A - B)" -> Balance of 2023/24 to be raised in 2024 (A - B) | G10: =F8-F9 -> 0
A11: D. | B11: ="Special Requirement: "&THISYR&" Budget (1)" -> Special Requirement: 2024/25 Budget (1) | F11: =SPECREQ -> 0 | J11: < Percentage OR
A12: E. | B12: ="Amount included in "&FIXED(THISCALYR,0,1)&" Special Levy ("&IF(F11=0," "&"% of D) (2)",FIXED((G12/F11)*100,1,TRUE)&"% of D) (2)") -> Amount included in 2024 Special Levy ( % of D) (2) | G12: =ROUND(IF(AND(I11=0,I12=0),0,IF(IF(I11>0,I11*F11,I12)<0.4*F11," ERROR",IF(I11>0,I11*F11,I12))),0) -> 0 | J12: < Amount (for Line E)
A13: F. | B13: Surplus (Applied)/Raised (not included in the Special Requirement)
A14: G. | B14: =FIXED(THISCALYR,0,1)&" SPECIAL LEVY FOR DIVISION (C + E + F)" -> 2024 SPECIAL LEVY FOR DIVISION (C + E + F) | G14: =G10+G12+G13 -> 0
A15: H. | B15: =FIXED(THISCALYR,0,1)&" SPECIAL LEVY FOR D.S.F.M. (from line T below)" -> 2024 SPECIAL LEVY FOR D.S.F.M. (from line T below) | G15: =G33 -> 0
A16: I. | B16: =IF(DIVCODE="PR",FIXED(PREVCALYR,0,1)&" SPECIAL LEVY ADJUSTMENT FOR D.S.F.M. (from line I of Adjustment form)",FIXED(PREVCALYR,0,1)&" SPECIAL LEVY ADJUSTMENT FOR D.S.F.M. (from line G of Adjustment form)") -> 2023 SPECIAL LEVY ADJUSTMENT FOR D.S.F.M. (from line G of Adjustment form) | G16: =SLADJLT -> 0
A17: J. | B17: SPECIAL LEVY BEFORE TAX INCENTIVE GRANT (G + H + I) | G17: =G14+G15+G16 -> 0
A18: K. | B18: Less: Tax Incentive Grant Guarantee adjustment 2021/22 | G18: =+Code!BG8 -> 0
A19: L. | B19: Less: Tax Incentive Grant 2022/23 | G19: =IF(SLPREVLT=0,0,IF(ISERROR(VLOOKUP(DIVCODE,DATA,51,FALSE)),0,VLOOKUP(DIVCODE,DATA,51,FALSE))) -> 0
A20: M. | B20: Less: Property Tax Offset Grant (PTOG) | G20: =IF(SLPREVLT=0,0,IF(ISERROR(VLOOKUP(DIVCODE,DATA,53,FALSE)),0,VLOOKUP(DIVCODE,DATA,53,FALSE))) -> 0
A21: N. | B21: =FIXED(THISCALYR,0,1)&" TOTAL SPECIAL LEVY (J - K - L - M ) (3)" -> 2024 TOTAL SPECIAL LEVY (J - K - L - M ) (3) | G21: =G17-G19-G18-G20 -> 0
A25: =FIXED(THISCALYR,0,1)&" SPECIAL LEVY FOR D.S.F.M." -> 2024 SPECIAL LEVY FOR D.S.F.M.
A29: P. | B29: =FIXED(THISCALYR,0,1)&" Special Levy for Division (from line G above)" -> 2024 Special Levy for Division (from line G above) | F29: =G14 -> 0
A30: Q. | B30: ="Resident Non-D.S.F.M. pupils at September 30, "&FIXED(PREVCALYR,0,1)&" (4)" -> Resident Non-D.S.F.M. pupils at September 30, 2023 (4) | F30: =IF(ISERROR(VLOOKUP(DIVCODE,LEVDATA2,12,FALSE)),0,VLOOKUP(DIVCODE,LEVDATA2,12,FALSE)) -> 0
A31: R. | B31: Special Levy per resident pupil (P ÷ Q) | F31: =IF(F30=0,0,ROUND(F29/F30,2)) -> 0
A32: S. | B32: ="Resident D.S.F.M. pupils at September 30, "&FIXED(PREVCALYR,0,1)&" (4)" -> Resident D.S.F.M. pupils at September 30, 2023 (4) | F32: =IF(ISERROR(VLOOKUP(DIVCODE,LEVDATA2,13,FALSE)),0,VLOOKUP(DIVCODE,LEVDATA2,13,FALSE)) -> 0
A33: T. | B33: =FIXED(THISCALYR,0,1)&" Special Levy for D.S.F.M. (R x S)" -> 2024 Special Levy for D.S.F.M. (R x S) | G33: =ROUND(F31*F32,0) -> 0
A37: (1) | B37: Special Requirement must agree with the Special Requirement shown under Municipal Government
B38: in your budget.
A39: (2) | B39: ="The percentage of the "&THISYR&" Special Requirement shown in E must not be less than 40%." -> The percentage of the 2024/25 Special Requirement shown in E must not be less than 40%.
A40: (3) | B40: ="Please ensure that the "&FIXED(THISCALYR,0,1)&" Special Levy calculated on this form agrees with the total of levies" -> Please ensure that the 2024 Special Levy calculated on this form agrees with the total of levies
B41: requested on your Notices of Tax Requirements.
A42: (4) | B42: From Resident Pupils form.
A45: PLEASE REMIT THIS FORM AND YOUR NOTICES OF TAX REQUIREMENTS WITH YOUR BUDGET
C51: DATE | E51: CHAIRPERSON
C55: DATE | E55: SECRETARY-TREASURER
A56: Copy to la Division scolaire franco-manitobaine by March 15
A57: (SL Form 2a)

Sheet DSFM Adjust
A2: ="ADJUSTMENT RE: D.S.F.M. "&FIXED(PREVCALYR,0,1)&" SPECIAL LEVY" -> ADJUSTMENT RE: D.S.F.M. 2023 SPECIAL LEVY
A4: ="Schedule forming part of the Calculation of "&FIXED(THISCALYR,0,1)&" Special Levy" -> Schedule forming part of the Calculation of 2024 Special Levy
A5: ="To accompany the "&Title -> To accompany the 2024/25 FRAME Budget
A7: =DIVHEADER -> SCHOOL DIVISION NAME
A10: A. | B10: =FIXED(PREVCALYR,0,1)&" Special Levy (excluding DSFM portion) (1)" -> 2023 Special Levy (excluding DSFM portion) (1) | F10: =IF(ISERROR(VLOOKUP(DIVCODE,LEVDATA2,5,FALSE)),0,VLOOKUP(DIVCODE,LEVDATA2,5,FALSE)) -> 0
A11: B. | B11: ="Resident non-D.S.F.M. pupils at September 29, "&FIXED(PREVCALYR-1,0,1)&" (2)" -> Resident non-D.S.F.M. pupils at September 29, 2022 (2) | F11: =IF(ISERROR(VLOOKUP(DIVCODE,LEVDATA2,10,FALSE)),0,VLOOKUP(DIVCODE,LEVDATA2,10,FALSE)) -> 0
A12: C. | B12: Special Levy per Pupil (A ÷ B) | F12: =IF(F11=0,0,ROUND(F10/F11,2)) -> 0
A13: D. | B13: ="Resident D.S.F.M. Pupils at September 29, "&FIXED(PREVCALYR-1,0,1)&" (2)" -> Resident D.S.F.M. Pupils at September 29, 2022 (2) | F13: =IF(ISERROR(VLOOKUP(DIVCODE,LEVDATA2,11,FALSE)),0,VLOOKUP(DIVCODE,LEVDATA2,11,FALSE)) -> 0
A14: E. | B14: =FIXED(PREVCALYR,0,1)&" Special Levy for D.S.F.M. (C x D)" -> 2023 Special Levy for D.S.F.M. (C x D) | F14: =ROUND(F12*F13,0) -> 0
A15: F. | B15: =FIXED(PREVCALYR,0,1)&" Special Levy paid to D.S.F.M. (3)" -> 2023 Special Levy paid to D.S.F.M. (3) | F15: =IF(ISERROR(VLOOKUP(DIVCODE,LEVDATA2,6,FALSE)),0,VLOOKUP(DIVCODE,LEVDATA2,6,FALSE)) -> 0
A16: G. | B16: =FIXED(PREVCALYR,0,1)&" Calendar Year Adjustment (E - F)" -> 2023 Calendar Year Adjustment (E - F) | G16: =F14-F15 -> 0 | H16: ="*" -> *
H18: =IF(DIVCODE="PR","*","") -> 
A20: ="* CARRIED TO LINE I. OF THE CALCULATION OF "&FIXED(THISCALYR,0,1)&" SPECIAL LEVY FORM" -> * CARRIED TO LINE I. OF THE CALCULATION OF 2024 SPECIAL LEVY FORM
A23: (1) | B23: ="From line G of the Calculation of "&FIXED(PREVCALYR,0,1)&" Special Levy form." -> From line G of the Calculation of 2023 Special Levy form.
A24: (2) | B24: From the Resident Pupils form.
A25: (3) | B25: ="From line H of the Calculation of "&FIXED(PREVCALYR,0,1)&" Special Levy form." -> From line H of the Calculation of 2023 Special Levy form.
A64: Copy to la Division scolaire franco-manitobaine by March 15
A67: (SL Form 2b)

Sheet OP Rev Exp
B1: =DIVNAME -> School Division Name | E1: =IF(DATE=0,"",DATE) -> 2024-02-09T11:53:25.340
B2: =IF(Eng_Fren=1,K2,M2) -> OPERATING FUND | K2: OPERATING FUND | M2: FONDS DE FONCTIONNEMENT
B3: =IF(Eng_Fren=1,K3,M3) -> SCHEDULE OF REVENUE AND EXPENSES | K3: SCHEDULE OF REVENUE AND EXPENSES | M3: TABLEAU DES RECETTES ET DES DÉPENSES
B4: =ForYr -> Budget for the Year Ending June 30, 2025
B5: =IF(Eng_Fren=1,K5,M5) -> Revenue | K5: Revenue | M5: Recettes
B6: =IF(Eng_Fren=1,K6,M6) -> Provincial Government | D6: =OPPROVREV ->  | F6: =IF(D6-ROUND(D6,0)<>0,"No decimals!","") ->  | K6: Provincial Government | M6: Gouvernement provincial
B7: =IF(Eng_Fren=1,K7,M7) -> Federal Government | D7: =OPFEDREV -> 0 | F7: =IF(D7-ROUND(D7,0)<>0,"No decimals!","") ->  | K7: Federal Government | M7: Gouvernement fédéral
B8: =IF(Eng_Fren=1,K8,M8) -> Municipal Government | C8: =IF(Eng_Fren=1,L8,N8) -> - Property Tax | D8: =NETSPECREQ ->  | K8: Municipal Government | L8: - Property Tax | M8: Administration municipale | N8: - Impôt foncier
C9: =IF(Eng_Fren=1,L9,N9) -> - Other | D9: =MUNOTHR -> 0 | L9: - Other | N9: - Autres
B10: =IF(Eng_Fren=1,K10,M10) -> Other School Divisions | D10: =OPOSDREV -> 0 | K10: Other School Divisions | M10: Autres divisions scolaires
B11: =IF(Eng_Fren=1,K11,M11) -> First Nations | D11: =OPFNATIONREV -> 0 | K11: First Nations | M11: Premières nations
B12: =IF(Eng_Fren=1,K12,M12) -> Private Organizations and Individuals | D12: =OPPOIREV -> 0 | K12: Private Organizations and Individuals | M12: Particuliers et organismes privés
B13: =IF(Eng_Fren=1,K13,M13) -> Other Sources | D13: =OPOTHERREV -> 0 | K13: Other Sources | M13: Autres sources
D14: =SUM(D6:D13) -> 
B15: =IF(Eng_Fren=1,K15,M15) -> Expenses | K15: Expenses | M15: Dépenses
B16: Regular Instruction | D16: =_OE100 -> 0 | K16: Regular Instruction | M16: Enseignement ordinaire
B17: Student Support Services | D17: =_OE200 -> 0 | K17: Student Support Services | M17: Services de soutien aux élèves
B18: Adult Learning Centres | D18: =_OE300 -> 0 | K18: Adult Learning Centres | M18: Centres d'apprentissage pour adultes
B19: Community Education and Services | D19: =_OE400 -> 0 | K19: Community Education and Services | M19: Éducation et services communautaires
B20: Divisional Administration | D20: =_OE500 -> 0 | K20: Divisional Administration | M20: Administration de la division
B21: Instructional and Other Support Services | D21: =_OE600 -> 0 | K21: Instructional and Other Support Services | M21: Services pédagogiques et autres services de soutien
B22: Transportation of Pupils | D22: =_OE700 -> 0 | K22: Transportation of Pupils | M22: Transport des élèves
B23: Operations and Maintenance | D23: =_OE800 -> 0 | K23: Operations and Maintenance | M23: Fonctionnement et entretien
B24: Fiscal | D24: =_OE900 -> 0 | K24: Fiscal | M24: Frais et taxes
D25: =SUM(D16:D24) -> 0
B26: =IF(Eng_Fren=1,K26,M26) -> Current Year Operating Surplus (Deficit) | D26: =D14-D25 ->  | K26: Current Year Operating Surplus (Deficit) | M26: Excédent (déficit) du fonds de fonct. pour l'exercice en cours
B27: =IF(Eng_Fren=1,K27,M27) -> Net Transfers from (to) Capital Fund | D27: =-NETTRANS -> 0 | K27: Net Transfers from (to) Capital Fund | M27: Transferts nets au (du) fonds de capital et d'emprunt
B28: =IF(Eng_Fren=1,K28,M28) -> Net Current Year Surplus (Deficit) | D28: =D26+D27 ->  | K28: Net Current Year Surplus (Deficit) | M28: Excédent (déficit) net pour l'exercice en cours

Sheet Prov Rev 1
B1: =DIVNAME -> School Division Name | E1: =IF(DATE=0,"",DATE) -> 2024-02-09T11:53:25.340
B2: =IF(Eng_Fren=1,I2,J2) -> OPERATING FUND - REVENUE DETAIL | I2: OPERATING FUND - REVENUE DETAIL | J2: FONDS DE FONCTIONNEMENT – ÉTAT DÉTAILLÉ DES RECETTES
B3: =IF(Eng_Fren=1,I3,J3) -> PROVINCE OF MANITOBA | I3: PROVINCE OF MANITOBA | J3: PROVINCE DU MANITOBA
B4: =ForYr -> Budget for the Year Ending June 30, 2025
B5: =IF(Eng_Fren=1,I5,J5) -> Funding of Schools Program | I5: Funding of Schools Program | J5: Programme de financement des écoles
B6: Base Support | I6: Base Support | J6: Aide de base
B7: Instructional | C7: 0 | F7: =IF(C7-ROUND(C7,0)<>0,"No decimals!","") ->  | I7: Instructional | J7: Aide à l'enseignement
B8: Additional Instructional Support for Small Schools | C8: 0 | F8: =IF(C8-ROUND(C8,0)<>0,"No decimals!","") ->  | I8: Additional Instructional Support for Small Schools | J8: Aide à l'enseignement add. pour les petites écoles
B9: Sparsity | C9: 0 | I9: Sparsity | J9: Aide pour faible densité
B10: Curricular Materials | C10: 0 | I10: Curricular Materials | J10: Matériel didactique
B11: Information Technology | C11: 0 | I11: Information Technology | J11: Technologie de l'information
B12: Library Services | C12: 0 | I12: Library Services | J12: Services de bibliothèque
B13: Student Services | C13: 0 | I13: Student Services | J13: Services aux élèves
B14: Counselling and Guidance | C14: 0 | I14: Counselling and Guidance | J14: Orientation et consultation
B15: Professional Development | C15: 0 | I15: Professional Development | J15: Perfectionnement professionnel
B16: Physical Education | C16: 0 | I16: Physical Education | J16: Éducation physique
B17: Occupancy | C17: 0 | E17: =SUM(C7:C17) -> 0 | I17: Occupancy | J17: Aide à l'occupation
B18: Categorical Support | I18: Categorical Support | J18: Aide par catégorie
B19: Transportation | C19: 0 | I19: Transportation | J19: Transport
B20: Board and Room | C20: =BandRElig -> 0 | I20: Board and Room | J20: Élèves en pension
B21: Special Needs: Coordinator/Clinician | C21: =SNCCELIG -> 0 | I21: =IF(C21=SNCCELIG," Special Needs: Coordinator/Clinician"," ERROR: Does not match eligible support on Appendix A >") -> Special Needs: Coordinator/Clinician | J21: =IF(C21=SNCCELIG," Besoins spéciaux : coordonnateurs et spécialistes"," ERROR: Does not match eligible support on Appendix A >") -> Besoins spéciaux : coordonnateurs et spécialistes
B22: Special Needs: Level 2 | C22: 0 | I22: Special Needs: Level 2 | J22: Besoins spéciaux : Niveau 2
B23: Special Needs: Level 3 | C23: 0 | I23: Special Needs: Level 3 | J23: Besoins spéciaux : Niveau 3
B24: Senior Years Technology Education | C24: 0 | I24: Senior Years Technology Education | J24: Études technologiques du secondaire
B25: English as an Additional Language | C25: 0 | I25: English as an Additional Language | J25: Anglais langue additionnelle
B26: Indigenous Academic Achievement (included BSSIP) | C26: 0 | I26: Indigenous Academic Achievement (included BSSIP) | J26: Réussite scolaire des élèves autochtones (inclus BSSIP)
B27: Indigenous and International Languages | C27: 0 | I27: Indigenous and International Languages | J27: Langues autochtones et internationales
B28: French Language Education | C28: 0 | I28: French Language Education | J28: Éducation en langue française
B29: Small Schools | C29: =SMLLSCHELIG -> 0 | I29: =IF(C29=SMLLSCHELIG," Small Schools"," ERROR: Does not match eligible support on Appendix A >") -> Small Schools | J29: =IF(C29=SMLLSCHELIG," Petites écoles"," ERROR: Does not match eligible support on Appendix A >") -> Petites écoles
B30: Enrolment Change | C30: 0 | I30: Enrolment Change | J30: Changement du nombre d'inscriptions
B31: Northern Allowance | C31: 0 | I31: Northern Allowance | J31: Indemnité aux régions du Nord
B32: Early Childhood Development Initiative | C32: 0 | I32: Early Childhood Development Initiative | J32: Initiative pour le développement du jeune enfant
B33: Literacy and Numeracy | C33: 0 | I33: Literacy and Numeracy | J33: Littératie et Numératie
B34: Education for Sustainable Development | C34: 0 | E34: =SUM(C19:C34) -> 0 | F34: =IF(E34-ROUND(E34,0)<>0,"No decimals!","") ->  | I34: Education for Sustainable Development | J34: Éducation en matière de développement durable
B35: Equalization | E35: 0 | F35: =IF(E35-ROUND(E35,0)<>0,"No decimals!","") ->  | I35: Equalization | J35: Péréquation
B36: Additional Equalization | E36: 0 | F36: =IF(E36-ROUND(E36,0)<>0,"No decimals!","") ->  | I36: Additional Equalization | J36: Péréquation supplémentaire
B37: Formula Guarantee | E37: 0 | F37: =IF(E37-ROUND(E37,0)<>0,"No decimals!","") ->  | I37: Formula Guarantee | J37: Formule de calcul de la garantie
B38: Other Program Support | I38: Other Program Support | J38: Aide à d'autres programmes
B39: School Buildings Support: "D" Projects | C39: 0 | I39: School Buildings Support: "D" Projects | J39: Aide pour bâtiments scolaires : projets D
B40: Technology Education Equipment Replacement | C40: 0 | I40: Technology Education Equipment Replacement | J40: Remplacement de l'équipement d'ens. technique
B41: Skills Strategy Equipment Enhancement | C41: 0 | I41: Skills Strategy Equipment Enhancement | J41: Amélioration de l’équipement de la Stratégie en matière de compétences
B42: Other Minor Capital Support | C42: 0 | I42: Other Minor Capital Support | J42: Aide pour projets d'immob. mineurs
B43: Prior Year Support | I43: Prior Year Support | J43: Aide de l'exercice précédent
B44: Curricular Materials | C44: 0 | I44: Curricular Materials | J44: Matériel didactique
B45: School Buildings Support: "D" Projects | C45: 0 | I45: School Buildings Support: "D" Projects | J45: Aide pour bâtiments scolaires : projets D
B46: Technology Education Equipment | C46: 0 | E46: =SUM(C39:C42,C44:C46) -> 0 | F46: =IF(E46-ROUND(E46,0)<>0,"No decimals!","") ->  | I46: Technology Education Equipment | J46: Équipement d'enseignement technique
E47: =SUM(E17,E34:E37,E46) -> 0 | F47: =IF(E47-ROUND(E47,0)<>0,"No decimals!","") -> 

Sheet Prov Rev 2
B1: =DIVNAME -> School Division Name | G1: =IF(DATE=0,"",DATE) -> 2024-02-09T11:53:25.340
B2: =IF(Eng_Fren=1,K2,L2) -> OPERATING FUND - REVENUE DETAIL | K2: OPERATING FUND - REVENUE DETAIL | L2: FONDS DE FONCTIONNEMENT – ÉTAT DÉTAILLÉ DES RECETTES
B3: =IF(Eng_Fren=1,K3,L3) -> PROVINCE OF MANITOBA (CONT'D) | K3: PROVINCE OF MANITOBA (CONT'D) | L3: PROVINCE DU MANITOBA (SUITE)
B4: =ForYr -> Budget for the Year Ending June 30, 2025
B5: =IF(Eng_Fren=1,K5,L5) -> Other Department of Education and Early Childhood Learning | K5: Other Department of Education and Early Childhood Learning | L5: Autres Départment d’Éducation et l’Apprentissage de la Petite Enfance
B6: Non-Resident | E6: 0 | H6: =IF(E6-ROUND(E6,0)<>0,"No decimals!","") ->  | K6: Non-Resident | L6: Non-résidents
B7: =IF(Eng_Fren=1,K7,L7) -> Shared Services | E7: 0 | H7: =IF(E7-ROUND(E7,0)<>0,"No decimals!","") ->  | K7: Shared Services | L7: Services communs
B8: Special Needs | E8: 0 | K8: Special Needs | L8: Besoins spéciaux
B9: Institutional Programs | E9: 0 | K9: Institutional Programs | L9: Programmes institutionnels
B10: Nursing Supports (URIS) | E10: 0 | K10: Nursing Supports (URIS) | L10: Services d'infirmières (URIS)
B11: Substitute Fees | E11: 0 | K11: Substitute Fees | L11: Droits de suppléance
B12: General Support Grant | E12: =IF(DIVCODE="Co.",0,VLOOKUP(DIVCODE,DATA,52)) -> 0 | K12: General Support Grant | L12: Subvention d'aide générale
B13: Education Property Tax Credit (part of Tax Credits) | K13: Education Property Tax Credit (part of Tax Credits) | L13: Crédit d'impôt foncier en matière d'éducation
B14: Tax Incentive Grant | E14: =IF(DIVCODE="DI",ROUND(dsfmtig,0),VLOOKUP(DIVCODE,DATA,50)) ->  | K14: Tax Incentive Grant | L14: Incitatif fiscal
B15: Property Tax Offset Grant | E15: =IF(DIVCODE="DI",ROUND(dsfmtog,0),IF(DIVCODE="Co.",0,ROUND(VLOOKUP(DIVCODE,DATA,54),0))) -> 0 | K15: Property Tax Offset Grant | L15: Subvention de compensation d’impôt foncier
B16: Early Years Enhancement Grant | E16: 0 | K16: Early Years Enhancement Grant | L16: Subvention pour l’amélioration de l’apprentissage au niveau primaire
B17: Community Schools | E17: 0 | K17: Community Schools | L17: Écoles communautaires
B18: Healthy Schools Initiative | E18: 0 | K18: Healthy Schools Initiative | L18: Initiative Santé à l'école
B19: =IF(Eng_Fren=1,K19,L19) -> Learning to Age 18 Coordinator | E19: 0 | K19: Learning to Age 18 Coordinator | L19: Coordonnateur de l’apprentissage jusqu'à l'âge de 18 ans
B20: Other: | E20: 0 | K20: Other: | L20: Autres :
C21: =IF(Eng_Fren=1,K21,L21) -> Special Needs Additional Funding | E21: =IF(DIVCODE="Co.",0,VLOOKUP(DIVCODE,DATA,57)) -> 0 | H21: =IF(E21-ROUND(E21,0)<>0,"No decimals!","") ->  | K21: Special Needs Additional Funding | L21: Financement additionnel pour les besoins spéciaux
C22: =IF(Eng_Fren=1,K22,L22) -> Wage Assistance | E22: =IF(DIVCODE="Co.",0,VLOOKUP(DIVCODE,DATA,58)) -> 0 | K22: Wage Assistance | L22: Aide salariale
C23: =IF(Eng_Fren=1,K23,L23) -> Student Presence and Engagement | E23: =IF(DIVCODE="Co.",0,VLOOKUP(DIVCODE,DATA,59)) -> 0 | K23: Student Presence and Engagement | L23: Fréquentation scolaire et la participation des élèves
C24: =IF(Eng_Fren=1,K24,L24) -> Additional Operating Support | E24: =IF(DIVCODE="Co.",0,VLOOKUP(DIVCODE,DATA,60)) -> 0 | K24: Additional Operating Support | L24: Soutien additionnel pour les opérations
C25: Nutrition Support | E25: =IF(DIVCODE="Co.",0,VLOOKUP(DIVCODE,DATA,61)) -> 0
C26: Enrolment Growth Support | E26: =IF(DIVCODE="Co.",0,VLOOKUP(DIVCODE,DATA,62)) -> 0
G33: =SUM(E6:E33) -> 
B34: =IF(Eng_Fren=1,K34,L34) -> Other Provincial Government Departments (Not including GBE's) | K34: Other Provincial Government Departments (Not including GBE's) | L34: Autres ministères du gouvernement du Manitoba (à l’exclusion des entreprises publiques)
B35: =IF(Eng_Fren=1,K35,L35) -> Employment Programs | E35: 0 | K35: Employment Programs | L35: Programmes d'emploi
B36: =IF(Eng_Fren=1,K36,L36) -> Adult Learning Centres | E36: 0 | H36: =IF(E36-ROUND(E36,0)<>0,"No decimals!","") ->  | K36: Adult Learning Centres | L36: Centres d'apprentissage pour adultes
B37: =IF(Eng_Fren=1,K37,L37) -> Other: | E37: 0 | K37: Other: | L37: Autres :
G44: =SUM(E35:E44) -> 0
B45: =IF(Eng_Fren=1,K45,L45) -> Funding of Schools Program (previous page) | G45: =FSP -> 0 | H45: =IF(G45-ROUND(G45,0)<>0,"No decimals!","") ->  | K45: Funding of Schools Program (previous page) | L45: Programme de financement des écoles (page précédente)
B46: =IF(Eng_Fren=1,K46,L46) -> TOTAL PROVINCIAL GOVERNMENT REVENUE | G46: =SUM(G33,G44,G45) ->  | H46: =IF(G46-ROUND(G46,0)<>0,"No decimals!","") ->  | K46: TOTAL PROVINCIAL GOVERNMENT REVENUE | L46: RECETTES TOTALES DU GOUVERNEMENT PROVINCIAL

Sheet Other Rev
B1: =DIVNAME -> School Division Name | I1: =IF(DATE=0,"",DATE) -> 2024-02-09T11:53:25.340
B2: =IF(Eng_Fren=1,L2,N2) -> OPERATING FUND - REVENUE DETAIL | L2: OPERATING FUND - REVENUE DETAIL | N2: FONDS DE FONCTIONNEMENT – RECETTES DE SOURCES
B3: =IF(Eng_Fren=1,L3,N3) -> NON-PROVINCIAL GOVERNMENT SOURCES | L3: NON-PROVINCIAL GOVERNMENT SOURCES | N3: AUTRES QUE LE GOUVERNEMENT PROVINCIAL
B4: =ForYr -> Budget for the Year Ending June 30, 2025
B5: =IF(Eng_Fren=1,L5,N5) -> Federal Government | L5: Federal Government | N5: Gouvernement fédéral
C6: =IF(Eng_Fren=1,M6,O6) -> Tuition Fees | G6: 0 | J6: =IF(G6-ROUND(G6,0)<>0,"No decimals!","") ->  | M6: Tuition Fees | O6: Droits de scolarité
C7: =IF(Eng_Fren=1,M7,O7) -> Transportation of Pupils | G7: 0 | J7: =IF(G7-ROUND(G7,0)<>0,"No decimals!","") ->  | M7: Transportation of Pupils | O7: Transport des élèves
C8: =IF(Eng_Fren=1,M8,O8) -> French Language Monitor | G8: 0 | M8: French Language Monitor | O8: Moniteur de langue française
C9: =IF(Eng_Fren=1,M9,O9) -> English as an Additional Language (Adults) | G9: 0 | M9: English as an Additional Language (Adults) | O9: Anglais langue additionnelle (pour adultes)
C10: =IF(Eng_Fren=1,M10,O10) -> Other: | G10: 0 | M10: Other: | O10: Autres :
I13: =SUM(G6:G13) -> 0
B14: =IF(Eng_Fren=1,L14,N14) -> Municipal Government | L14: Municipal Government | N14: Administration municipale
C15: =IF(Eng_Fren=1,M15,O15) -> Special Requirement | M15: Special Requirement | O15: Fonds spéciaux
C16: =IF(Eng_Fren=1,M16,O16) -> Less: Education Property Tax Credit | E16: =-EPTC -> 0 | J16: =IF(E16-ROUND(E16,0)<>0,"No decimals!","") ->  | M16: Less: Education Property Tax Credit | O16: Moins : créd. d'imp. fonc. en mat. d'éduc.
C17: =IF(Eng_Fren=1,M17,O17) -> Less: Tax Incentive Grant | E17: =-TIG ->  | J17: =IF(G18-ROUND(G18,0)<>0,"No decimals!","") ->  | M17: Less: Tax Incentive Grant | O17: Moins : incitatif fiscal
C18: =IF(Eng_Fren=1,M18,O18) -> Less: Property Tax Offset Grant | E18: =-TOG -> 0 | G18: =E15+E16+E17+E18 ->  | M18: Less: Property Tax Offset Grant | O18: Moins : Subvention de compensation d’impôt foncier
C19: =IF(Eng_Fren=1,M19,O19) -> Other: | G19: 0 | I19: =SUM(G18:G19) ->  | J19: =IF(I19-ROUND(I19,0)<>0,"No decimals!","") ->  | M19: Other: | O19: Autres :
B20: =IF(Eng_Fren=1,L20,N20) -> Other School Divisions | L20: Other School Divisions | N20: Autres divisions scolaires
C21: =IF(Eng_Fren=1,M21,O21) -> Tuition Fees | M21: Tuition Fees | O21: Droits de scolarité
C22: =IF(Eng_Fren=1,M22,O22) -> Transfer Fees | G22: 0 | J22: =IF(G22-ROUND(G22,0)<>0,"No decimals!","") ->  | M22: Transfer Fees | O22: Frais de transfert
C23: =IF(Eng_Fren=1,M23,O23) -> Residual Fees | G23: 0 | J23: =IF(G23-ROUND(G23,0)<>0,"No decimals!","") ->  | M23: Residual Fees | O23: Frais supplémentaires
C24: =IF(Eng_Fren=1,M24,O24) -> Transportation of Pupils | G24: 0 | J24: =IF(G24-ROUND(G24,0)<>0,"No decimals!","") ->  | M24: Transportation of Pupils | O24: Transport des élèves
C25: =IF(Eng_Fren=1,M25,O25) -> Other: | G25: 0 | J25: =IF(G25-ROUND(G25,0)<>0,"No decimals!","") ->  | M25: Other: | O25: Autres :
J26: =IF(G26-ROUND(G26,0)<>0,"No decimals!","") -> 
I27: =SUM(G21:G27) -> 0 | J27: =IF(I27-ROUND(I27,0)<>0,"No decimals!","") -> 
B28: =IF(Eng_Fren=1,L28,N28) -> First Nations | L28: First Nations | N28: Premières nations
C29: =IF(Eng_Fren=1,M29,O29) -> Tuition Fees | G29: 0 | J29: =IF(G29-ROUND(G29,0)<>0,"No decimals!","") ->  | M29: Tuition Fees | O29: Droits de scolarité
C30: =IF(Eng_Fren=1,M30,O30) -> Transportation of Pupils | G30: 0 | M30: Transportation of Pupils | O30: Transport des élèves
C31: =IF(Eng_Fren=1,M31,O31) -> Other: | G31: 0 | M31: Other: | O31: Autres :
I35: =SUM(G29:G35) -> 0 | J35: =IF(I35-ROUND(I35,0)<>0,"No decimals!","") -> 
B36: =IF(Eng_Fren=1,L36,N36) -> Private Organizations and Individuals (Includes GBE's) | L36: Private Organizations and Individuals (Includes GBE's) | N36: Particuliers et organismes privés privés (incluant les entreprises publiques)
C37: =IF(Eng_Fren=1,M37,O37) -> Regular Tuition | G37: 0 | J37: =IF(G37-ROUND(G37,0)<>0,"No decimals!","") ->  | M37: Regular Tuition | O37: Droits de scolarité ordinaires
C38: International Tuition | G38: 0 | M38: International Tuition | O38: Droits de scolarité internationaux
C39: Continuing Education | G39: 0 | M39: Continuing Education | O39: Éducation permanente
C40: Other Tuition: | G40: 0 | M40: Other Tuition: | O40: Autres droits de scolarité :
C41: Food Service | G41: 0 | M41: Food Service | O41: Entreprises publiques
C42: Government Business Enterprises (GBE's) | G42: 0 | M42: Government Business Enterprises (GBE's) | O42: Services d'alimentation
C43: Other: | G43: 0 | M43: Other: | O43: Autres :
I48: =SUM(G37:G48) -> 0 | J48: =IF(I48-ROUND(I48,0)<>0,"No decimals!","") -> 
B49: =IF(Eng_Fren=1,L49,N49) -> Other Sources | L49: Other Sources | N49: Autres sources
C50: =IF(Eng_Fren=1,M50,O50) -> Interest | G50: 0 | J50: =IF(G50-ROUND(G50,0)<>0,"No decimals!","") ->  | M50: Interest | O50: Intérêts
C51: =IF(Eng_Fren=1,M51,O51) -> Donations | G51: 0 | M51: Donations | O51: Dons
C52: =IF(Eng_Fren=1,M52,O52) -> Other: | M52: Other: | O52: Autres :
I60: =SUM(G50:G60) -> 0 | J60: =IF(I60-ROUND(I60,0)<>0,"No decimals!","") -> 
B61: =IF(Eng_Fren=1,L61,N61) -> TOTAL NON-PROVINCIAL GOVERNMENT REVENUE | I61: =SUM(I13,I19,I27,I35,I48,I60) ->  | J61: =IF(I61-ROUND(I61,0)<>0,"No decimals!","") ->  | L61: TOTAL NON-PROVINCIAL GOVERNMENT REVENUE | N61: RECETTES TOTALES DE SOURCES AUTRES QUE LE GOUV. PROVINCIAL
N62: RECETTES TOTALES DE SOURCES AUTRES QUE LE GOUV. PROVINCIAL

Sheet By Object
B1: =DIVNAME -> School Division Name | M1: =IF(DATE=0,"",DATE) -> 2024-02-09T11:53:25.340
B2: =IF(Eng_Fren=1,BL2,BX2) -> OPERATING FUND - EXPENSE BY FUNCTION AND BY OBJECT | BL2: OPERATING FUND - EXPENSE BY FUNCTION AND BY OBJECT | BX2: FONDS D'ADMINISTRATION GÉNÉRALE – DÉPENSES SELON LA FONCTION ET L'OBJET
B3: =ForYr -> Budget for the Year Ending June 30, 2025
B5: =IF(Eng_Fren=1,BK5,BW5) -> FUNCTION | C5: 100 | D5: 200 | E5: 300 | F5: 400 | G5: 500 | H5: 600 | I5: 700 | J5: 800 | K5: 900 | BK5: FUNCTION | BW5: FONCTION
F6: =IF(Eng_Fren=1,BO6,CA6) -> Community | H6: =IF(Eng_Fren=1,BQ6,CC6) -> Instructional | BO6: Community | BQ6: Instructional | CA6: Éducation | CC6: Services
D7: =IF(Eng_Fren=1,BM7,BY7) -> Student | E7: Adult | F7: =IF(Eng_Fren=1,BO7,CA7) -> Education | H7: =IF(Eng_Fren=1,BQ7,CC7) -> and Pupil | J7: =IF(Eng_Fren=1,BS7,CE7) -> Operations | L7: =yrend -> 2025 | M7: =THISCALYR -> 2024 | BM7: Student | BN7: Adult | BO7: Education | BQ7: and Pupil | BS7: Operations | BY7: Services | BZ7: Centres | CA7: et services | CC7: pédagogiques | CE7: Fonctionnement
C8: =IF(Eng_Fren=1,BL8,BX8) -> Regular | D8: Support | E8: Learning | F8: =IF(Eng_Fren=1,BO8,CA8) -> and | G8: =IF(Eng_Fren=1,BP8,CB8) -> Divisional | H8: =IF(Eng_Fren=1,BQ8,CC8) -> Support | I8: =IF(Eng_Fren=1,"",CD8) ->  | J8: =IF(Eng_Fren=1,BS8,CE8) -> and | K8: =IF(Eng_Fren=1,"",CF8) ->  | BL8: Regular | BM8: Support | BN8: Learning | BO8: and | BP8: Divisional | BQ8: Support | BS8: and | BX8: Enseignement | BY8: de soutien | BZ8: d'apprentissage | CA8: communau- | CB8: Administration | CC8: et autres serv. | CD8: Transport | CE8: et | CF8: Frais et
B9: =IF(Eng_Fren=1,BK9,BW9) -> OBJECT | C9: =IF(Eng_Fren=1,BL9,BX9) -> Instruction | D9: Services | E9: Centres | F9: =IF(Eng_Fren=1,BO9,CA9) -> Services | G9: =IF(Eng_Fren=1,BP9,CB9) -> Administration | H9: =IF(Eng_Fren=1,BQ9,CC9) -> Services | I9: =IF(Eng_Fren=1,BR9,CD9) -> Transportation | J9: =IF(Eng_Fren=1,BS9,CE9) -> Maintenance | K9: =IF(Eng_Fren=1,BT9,CF9) -> Fiscal | L9: =IF(Eng_Fren=1,BU9,CG9) -> TOTALS | M9: =L9 -> TOTALS | BK9: OBJECT | BL9: Instruction | BM9: Services | BN9: Centres | BO9: Services | BP9: Administration | BQ9: Services | BR9: Transportation | BS9: Maintenance | BT9: Fiscal | BU9: TOTALS | BV9: TOTALS | BW9: OBJET | BX9: ordinaire | BY9: aux élèves | BZ9: pour adultes | CA9: taires | CB9: de la division | CC9: de soutien | CD9: des élèves | CE9: entretien | CF9: taxes | CG9: TOTAUX | CH9: TOTAUX
B10: Salaries | C10: =OE1SAL -> 0 | D10: =OE2SAL -> 0 | E10: =OE3SAL -> 0 | F10: =OE4SAL -> 0 | G10: =OE5SAL -> 0 | H10: =OE6SAL -> 0 | I10: =OE7SAL -> 0 | J10: =OE8SAL -> 0 | L10: =SUM(C10:J10) -> 0 | M10: =IF(DIVCODE="Co.",0,VLOOKUP(DIVCODE,DATA,41)) -> 0 | BK10: Salaries | BW10: Salaires
B11: Employees Benefits and Allowances | C11: =OE1BEN -> 0 | D11: =OE2BEN -> 0 | E11: =OE3BEN -> 0 | F11: =OE4BEN -> 0 | G11: =OE5BEN -> 0 | H11: =OE6BEN -> 0 | I11: =OE7BEN -> 0 | J11: =OE8BEN -> 0 | L11: =SUM(C11:J11) -> 0 | M11: =IF(DIVCODE="Co.",0,VLOOKUP(DIVCODE,DATA,42)) -> 0 | BK11: Employees Benefits and Allowances | BW11: Avantages sociaux et indemnités des employés
A12: 5 | B12: Services | C12: =OE1SERV -> 0 | D12: =OE2SERV -> 0 | E12: =OE3SERV -> 0 | F12: =OE4SERV -> 0 | G12: =OE5SERV -> 0 | H12: =OE6SERV -> 0 | I12: =OE7SERV -> 0 | J12: =OE8SERV -> 0 | L12: =SUM(C12:J12) -> 0 | M12: =IF(DIVCODE="Co.",0,VLOOKUP(DIVCODE,DATA,43)) -> 0 | N12: 5 | BK12: Services | BW12: Services
B13: Supplies, Materials and Minor Equipment | C13: =OE1SUPP -> 0 | D13: =OE2SUPP -> 0 | E13: =OE3SUPP -> 0 | F13: =OE4SUPP -> 0 | G13: =OE5SUPP -> 0 | H13: =OE6SUPP -> 0 | I13: =OE7SUPP -> 0 | J13: =OE8SUPP -> 0 | L13: =SUM(C13:J13) -> 0 | M13: =IF(DIVCODE="Co.",0,VLOOKUP(DIVCODE,DATA,44)) -> 0 | BK13: Supplies, Materials and Minor Equipment | BW13: Fournitures, matériel et équipement annexe
B14: Short Term Loan Interest and Bank Charges | K14: 0 | L14: =K14 -> 0 | M14: =IF(DIVCODE="Co.",0,VLOOKUP(DIVCODE,DATA,45)) -> 0 | BK14: Short Term Loan Interest and Bank Charges | BW14: Intérêts de prêts à court terme et frais bancaires
B15: Bad Debt Expense | K15: 0 | L15: =K15 -> 0 | M15: =IF(DIVCODE="Co.",0,VLOOKUP(DIVCODE,DATA,28)) -> 0 | BK15: Bad Debt Expense | BW15: Créances estimées irrécouvrables
K16: =IF(Eng_Fren=1,BT16,CF16) -> (PAYROLL TAX) | BT16: (PAYROLL TAX) | CF16: (IMPÔT SUR LA PAYE)
B17: =IF(Eng_Fren=1,BK17,BW17) -> Transfers | C17: =OE1TRANS -> 0 | D17: =OE2TRANS -> 0 | E17: =OE3TRANS -> 0 | F17: =OE4TRANS -> 0 | G17: =OE5TRANS -> 0 | H17: =OE6TRANS -> 0 | I17: =OE7TRANS -> 0 | J17: =OE899X -> 0 | K17: 0 | L17: =SUM(C17:K17) -> 0 | M17: =IF(DIVCODE="Co.",0,VLOOKUP(DIVCODE,DATA,46)) -> 0 | BK17: Transfers | BW17: Transferts
B19: =L9 -> TOTALS | C19: =SUM(C10:C13,C17) -> 0 | D19: 0 | E19: 0 | F19: 0 | G19: 0 | H19: 0 | I19: 0 | J19: 0 | K19: =SUM(K14:K17) -> 0 | L19: =SUM(L10:L17) -> 0 | M19: =SUM(M10:M15,M17) -> 0 | BK19: TOTALS | BW19: TOTAUX
L20: =IF(L19-ROUND(L19,0)<>0,"No decimals!","") ->  | M20: =IF(M19-ROUND(M19,0)<>0,"No decimals!","") -> 

Sheet 100
B1: =DIVNAME -> School Division Name | C1: =IF(Eng_Fren=1,HA1,HI1) -> OPERATING FUND - EXPENSE DETAIL: FUNCTION 100 | I1: =IF(DATE=0,"",DATE) -> 2024-02-09T11:53:25.340 | HA1: OPERATING FUND - EXPENSE DETAIL: FUNCTION 100 | HI1: FONDS DE FONCTIONNEMENT – DÉPENSES DÉTAILLÉES : FONCTION 100
C2: =" "&ForYr -> Budget for the Year Ending June 30, 2025
B3: =IF(Eng_Fren=1,HA3,HI3) -> REGULAR INSTRUCTION | C3: 10 | D3: =IF(Eng_Fren=1,HC3,HK3) -> SINGLE TRACK SCHOOLS * | G3: 80 | H3: 90 | HA3: REGULAR INSTRUCTION | HC3: SINGLE TRACK SCHOOLS * | HI3: ENSEIGNEMENT ORDINAIRE | HK3: ÉCOLES À VOIE UNIQUE *
D4: 20 | E4: 50 | F4: 70 | H4: =IF(Eng_Fren=1,HG4,HO4) -> SENIOR YEARS | HG4: SENIOR YEARS | HO4: ÉTUDES
D5: =IF(Eng_Fren=1,HC5,"") -> ENGLISH | F5: =IF(Eng_Fren=1,HE5,HM5) -> FRENCH | G5: =IF(Eng_Fren=1,HF5,HN5) -> DUAL TRACK | H5: =IF(Eng_Fren=1,HG5,HO5) -> TECHNOLOGY | HC5: ENGLISH | HE5: FRENCH | HF5: DUAL TRACK | HG5: TECHNOLOGY | HM5: IMMERSION | HN5: ÉCOLES À | HO5: TECHNOLOGIQUES
B6: =IF(Eng_Fren=1,HA6,HI6) -> CODE OBJECT \ PROGRAM | C6: =IF(Eng_Fren=1,HB6,HJ6) -> ADMINISTRATION | D6: =IF(Eng_Fren=1,HC6,HK6) -> LANGUAGE | E6: =IF(Eng_Fren=1,HD6,HL6) -> FRANÇAIS | F6: =IF(Eng_Fren=1,HE6,HM6) -> IMMERSION | G6: =IF(Eng_Fren=1,HF6,HN6) -> SCHOOLS ** | H6: =IF(Eng_Fren=1,HG6,HO6) -> EDUCATION | I6: ='By Object'!L9 -> TOTALS | HA6: CODE OBJECT \ PROGRAM | HB6: ADMINISTRATION | HC6: LANGUAGE | HD6: FRANÇAIS | HE6: IMMERSION | HF6: SCHOOLS ** | HG6: EDUCATION | HI6: CODE OBJET OU PROGRAMME | HJ6: ADMINISTRATION | HK6: ANGLAIS | HL6: FRANÇAIS | HM6: FRANÇAISE | HN6: DOUBLE VOIE ** | HO6: DU SECONDAIRE
B7: =IF(Eng_Fren=1,HA7,HI7) -> 3XX SALARIES | HA7: 3XX SALARIES | HI7: 3XX SALAIRES
B8: 320 Executive, Managerial and Supervisory | I8: =C8 -> 0 | HA8: 320 Executive, Managerial and Supervisory | HI8: 320 Cadres, dirigeants et superviseurs
B9: 330 Instructional - Teaching | I9: =SUM(C9:H9) -> 0 | HA9: 330 Instructional - Teaching | HI9: 330 Éducateurs – Enseignants
B10: 350 Instructional - Other | I10: =SUM(D10:H10) -> 0 | HA10: 350 Instructional - Other | HI10: 350 Éducateurs – Autres
B11: 360 Technical, Specialized and Service | I11: =SUM(C11:H11) -> 0 | HA11: 360 Technical, Specialized and Service | HI11: 360 Personnel technique, spécialisé et de soutien
B12: 370 Secretarial, Clerical and Other | I12: =C12 -> 0 | HA12: 370 Secretarial, Clerical and Other | HI12: 370 Personnel de bureau et autre
B13: 390 Information Technology | I13: =C13 -> 0 | HA13: 390 Information Technology | HI13: 390 Technologie de l'information
B14: Total Salaries | C14: =SUM(C8:C9,C11:C13) -> 0 | D14: =SUM(D9:D11) -> 0 | E14: =SUM(E9:E11) -> 0 | F14: =SUM(F9:F11) -> 0 | G14: =SUM(G9:G11) -> 0 | H14: =SUM(H9:H11) -> 0 | I14: =SUM(I8:I13) -> 0 | HA14: Total Salaries | HI14: Total des salaires
B15: 4XX EMPLOYEES BENEFITS AND ALLOWANCES | I15: =SUM(C15:H15) -> 0 | HA15: 4XX EMPLOYEES BENEFITS AND ALLOWANCES | HI15: 4XX AVANT. SOC. ET INDEMNITÉS DES EMPLOYÉS
B16: 5-6XX SERVICES | HA16: 5-6XX SERVICES | HI16: 5-6XX SERVICES
B17: 510 Professional, Technical and Specialized | I17: =SUM(C17:H17) -> 0 | HA17: 510 Professional, Technical and Specialized | HI17: 510 Services professionnels, techniques et spécialisés
B18: 520 Communications | I18: 0 | HA18: 520 Communications | HI18: 520 Communications
B19: 540 Travel and Meetings | I19: 0 | HA19: 540 Travel and Meetings | HI19: 540 Déplacements et réunions
B20: 560 Tuition | I20: =SUM(D20:H20) -> 0 | HA20: 560 Tuition | HI20: 560 Droits de scolarité
A21: 6 | B21: 570 Printing and Binding | I21: 0 | J21: 6 | HA21: 570 Printing and Binding | HI21: 570 Impression et reliure
B22: 580 Insurance and Bond Premiums | I22: 0 | HA22: 580 Insurance and Bond Premiums | HI22: 580 Primes d’assurance et d’émission d’obligations
B23: 590 Maintenance and Repair Services | I23: 0 | HA23: 590 Maintenance and Repair Services | HI23: 590 Services d'entretien et de réparation
B24: 610 Rentals | I24: 0 | HA24: 610 Rentals | HI24: 610 Locations
B25: 630 Advertising | I25: 0 | HA25: 630 Advertising | HI25: 630 Publicité
B26: 640 Dues and Fees | I26: 0 | HA26: 640 Dues and Fees | HI26: 640 Cotisations et frais
B27: 650 Professional and Staff Development | I27: 0 | HA27: 650 Professional and Staff Development | HI27: 650 Perfectionnement professionnel et du personnel
B28: 680 Information Technology Services | I28: 0 | HA28: 680 Information Technology Services | HI28: 680 Services de technologie de l'information
B29: Total Services | C29: =SUM(C17:C19,C21:C28) -> 0 | D29: =SUM(D17:D28) -> 0 | E29: 0 | F29: 0 | G29: =SUM(G17:G28) -> 0 | H29: =SUM(H17:H28) -> 0 | I29: 0 | HA29: Total Services | HI29: Total des services
B30: 7XX SUPPLIES, MATERIALS & MINOR EQUIPMENT | HA30: 7XX SUPPLIES, MATERIALS & MINOR EQUIPMENT | HI30: 7XX FOURNITURES, MATÉRIEL ET ÉQUIP. ANNEXE
B31: 710 Supplies | I31: =SUM(C31:H31) -> 0 | HA31: 710 Supplies | HI31: 710 Fournitures
B32: 740 Curricular and Media Materials | I32: =SUM(C32:H32) -> 0 | HA32: 740 Curricular and Media Materials | HI32: 740 Matériel didactique et médiatique
B33: 760 Minor Equipment | I33: =SUM(C33:H33) -> 0 | HA33: 760 Minor Equipment | HI33: 760 Équipement annexe
B34: 780 Information Technology Equipment | I34: =SUM(C34:H34) -> 0 | HA34: 780 Information Technology Equipment | HI34: 780 Matériel informatique
B35: Total Supplies, Materials & Minor Equipment | C35: =SUM(C31:C34) -> 0 | D35: 0 | E35: 0 | F35: 0 | G35: 0 | H35: 0 | I35: 0 | HA35: Total Supplies, Materials & Minor Equipment | HI35: Total – Fournitures, matériel et équip. annexe
B36: 95X-99 TRANSFERS | HA36: 95X-99 TRANSFERS | HI36: 95X-99 TRANSFERTS
B37: 960 School Divisions | I37: =SUM(D37:H37) -> 0 | HA37: 960 School Divisions | HI37: 960 Divisions scolaires
B38: 980 Organizations, Individuals and Other Entities | I38: =SUM(C38:H38) -> 0 | HA38: 980 Organizations, Individuals and Other Entities | HI38: 980 Organismes, particuliers et autres
B39: Total Transfers | C39: =C38 -> 0 | D39: =SUM(D37:D38) -> 0 | E39: 0 | F39: 0 | G39: =SUM(G37:G38) -> 0 | H39: =SUM(H37:H38) -> 0 | I39: 0 | HA39: Total Transfers | HI39: Total des transferts
B41: =I6 -> TOTALS | C41: =SUM(C39,C35,C29,C15,C14) -> 0 | D41: 0 | E41: 0 | F41: 0 | G41: 0 | H41: 0 | I41: 0
B43: =IF(Eng_Fren=1,HA43,HI43) -> * 90% or more of enrolment is in one of the following instructional programs: English Language, Français, French Immersion. | I43: =IF(I41-ROUND(I41,0)<>0,"No decimals!","") ->  | HA43: * 90% or more of enrolment is in one of the following instructional programs: English Language, Français, French Immersion. | HI43: * 90 % ou plus des inscriptions sont dans un des programmes d'enseignement suivants : Anglais, Français, Immersion française.
B44: =IF(Eng_Fren=1,HA44,HI44) -> ** includes multi-track schools. | HA44: ** includes multi-track schools. | HI44: ** Comprend les écoles à voies multiples.

Sheet 200
B1: =DIVNAME -> School Division Name | C1: =IF(Eng_Fren=1,Z1,AI1) -> OPERATING FUND - EXPENSE DETAIL: FUNCTION 200 | I1: =IF(DATE=0,"",DATE) -> 2024-02-09T11:53:25.340 | Z1: OPERATING FUND - EXPENSE DETAIL: FUNCTION 200 | AI1: FONDS DE FONCTIONNEMENT – DÉPENSES DÉTAILLÉES : FONCTION 200
C2: =" "&ForYr -> Budget for the Year Ending June 30, 2025
B3: =IF(Eng_Fren=1,Z3,AI3) -> STUDENT SUPPORT SERVICES | C3: 10 | D3: 30 | E3: 40 | F3: 50 | G3: 60 | H3: 70 | Z3: STUDENT SUPPORT SERVICES | AI3: SERVICES DE SOUTIEN AUX ÉLÈVES
D4: =IF(Eng_Fren=1,"",AL4) ->  | AL4: SERVICES DE
D5: =IF(Eng_Fren=1,AC5,AL5) -> CLINICAL AND | H5: =IF(Eng_Fren=1,"",AP5) ->  | AC5: CLINICAL AND | AF5: OTHER | AK5: ÉDUCATION | AL5: SPÉCIALISTES | AO5: AUTRES | AP5: ORIENTATION
C6: =IF(Eng_Fren=1,AA6,AJ6) -> ADMINISTRATION | D6: =IF(Eng_Fren=1,AC6,AL6) -> RELATED | E6: =IF(Eng_Fren=1,AD6,AM6) -> SPECIAL | F6: REGULAR | G6: RESOURCE | H6: COUNSELLING | AA6: ADMINISTRATION | AB6: GIFTED | AC6: RELATED | AD6: SPECIAL | AE6: REGULAR | AF6: RESOURCE | AG6: COUNSELLING | AJ6: ADMINISTRATION | AK6: DES ÉLÈVES | AL6: ET SERVICES | AM6: PLACEMENT | AN6: PLACEMENT | AO6: RESSOURCES | AP6: ET
B7: ='100'!B6 -> CODE OBJECT \ PROGRAM | C7: =IF(Eng_Fren=1,AA7,AJ7) -> /CO-ORDINATION | D7: =IF(Eng_Fren=1,AC7,AL7) -> SERVICES | E7: PLACEMENT | F7: PLACEMENT | G7: SERVICES | H7: AND GUIDANCE | I7: =B43 -> TOTALS | AA7: /CO-ORDINATION | AB7: EDUCATION * | AC7: SERVICES | AD7: PLACEMENT | AE7: PLACEMENT | AF7: SERVICES | AG7: AND GUIDANCE | AJ7: ET COORDINATION | AK7: DOUÉS * | AL7: CONNEXES | AM7: SPÉCIAL | AN7: ORDINAIRE | AO7: PÉDAGOGIQUES | AP7: CONSULTATION
B8: ='100'!B7 -> 3XX SALARIES
B9: ='100'!B8 -> 320 Executive, Managerial and Supervisory | I9: =SUM(C9,D9,G9,H9) -> 0
B10: ='100'!B9 -> 330 Instructional - Teaching | I10: =SUM(C10:H10) -> 0
B11: ='100'!B10 -> 350 Instructional - Other | I11: =SUM(D11:H11) -> 0
B12: ='100'!B11 -> 360 Technical, Specialized and Service | I12: =SUM(C12:H12) -> 0
B13: ='100'!B12 -> 370 Secretarial, Clerical and Other | I13: =SUM(C13,D13,H13) -> 0
B14: =IF(Eng_Fren=1,Z14,AI14) -> 380 Clinician | I14: =D14+H14 -> 0 | Z14: 380 Clinician | AI14: 380 Spécialistes
B15: ='100'!B13 -> 390 Information Technology | I15: =SUM(C15:G15) -> 0
B16: ='100'!B14 -> Total Salaries | C16: =SUM(C9:C10,C12:C13,C15) -> 0 | D16: =SUM(D9:D15) -> 0 | E16: =SUM(E10:E12,E15) -> 0 | F16: =SUM(F10:F12,F15) -> 0 | G16: =SUM(G9:G12,G15) -> 0 | H16: =SUM(H9:H14) -> 0 | I16: =SUM(I9:I15) -> 0
B17: ='100'!B15 -> 4XX EMPLOYEES BENEFITS AND ALLOWANCES | I17: =SUM(C17:H17) -> 0
B18: ='100'!B16 -> 5-6XX SERVICES
B19: ='100'!B17 -> 510 Professional, Technical and Specialized | I19: =SUM(C19:H19) -> 0
B20: ='100'!B18 -> 520 Communications | I20: =SUM(C20:H20) -> 0
A21: 7 | B21: ='100'!B19 -> 540 Travel and Meetings | I21: =SUM(C21:H21) -> 0 | J21: 7
B22: ='100'!B20 -> 560 Tuition | I22: =SUM(C22:H22) -> 0
B23: ='100'!B21 -> 570 Printing and Binding | I23: =SUM(C23:H23) -> 0
B24: ='100'!B22 -> 580 Insurance and Bond Premiums | I24: 0
B25: ='100'!B23 -> 590 Maintenance and Repair Services | I25: 0
B26: ='100'!B24 -> 610 Rentals | I26: 0
B27: ='100'!B25 -> 630 Advertising | I27: 0
B28: ='100'!B26 -> 640 Dues and Fees | I28: 0
B29: ='100'!B27 -> 650 Professional and Staff Development | I29: 0
B30: ='100'!B28 -> 680 Information Technology Services | I30: 0
B31: ='100'!B29 -> Total Services | C31: =SUM(C19:C21,C23:C30) -> 0 | D31: =SUM(D19:D21,D23:D30) -> 0 | E31: =SUM(E19:E30) -> 0 | F31: =SUM(F19:F30) -> 0 | G31: =SUM(G19:G21,G23:G30) -> 0 | H31: =SUM(H19:H30) -> 0 | I31: =SUM(I19:I30) -> 0
B32: ='100'!B30 -> 7XX SUPPLIES, MATERIALS & MINOR EQUIPMENT
B33: ='100'!B31 -> 710 Supplies | I33: =SUM(C33:H33) -> 0
B34: ='100'!B32 -> 740 Curricular and Media Materials | I34: =SUM(C34:H34) -> 0
B35: ='100'!B33 -> 760 Minor Equipment | I35: =SUM(C35:H35) -> 0
B36: ='100'!B34 -> 780 Information Technology Equipment | I36: =SUM(C36:H36) -> 0
B37: ='100'!B35 -> Total Supplies, Materials & Minor Equipment | C37: =SUM(C33:C36) -> 0 | D37: 0 | E37: 0 | F37: 0 | G37: 0 | H37: =SUM(H33:H36) -> 0 | I37: 0
B38: ='100'!B36 -> 95X-99 TRANSFERS
B39: ='100'!B37 -> 960 School Divisions | I39: =SUM(E39:F39) -> 0
B40: ='100'!B38 -> 980 Organizations, Individuals and Other Entities | I40: =SUM(C40,D40:F40) -> 0
B41: ='100'!B39 -> Total Transfers | C41: =C40 -> 0 | D41: =D40 -> 0 | E41: =SUM(E39:E40) -> 0 | F41: =SUM(F39:F40) -> 0 | I41: =SUM(I39:I40) -> 0
B43: ='100'!B41 -> TOTALS | C43: =SUM(C41,C37,C31,C17,C16) -> 0 | D43: 0 | E43: 0 | F43: 0 | G43: 0 | H43: =SUM(H37,H31,H17,H16) -> 0 | I43: 0
I45: =IF(I43-ROUND(I43,0)<>0,"No decimals!","") ->  | AB45: * Does not include enrichment activities undertaken by the School Division. | AK45: * Ne comprend pas les activités d'enrichissement offertes par la division scolaire.

Sheet 300
B1: =DIVNAME -> School Division Name | C1: =IF(Eng_Fren=1,AA1,AF1) -> OPERATING FUND - EXPENSE DETAIL: FUNCTION 300 | F1: =IF(DATE=0,"",DATE) -> 2024-02-09T11:53:25.340 | AA1: OPERATING FUND - EXPENSE DETAIL: FUNCTION 300 | AF1: FONDS DE FONCTIONNEMENT – DÉPENSES DÉTAILLÉES : FONCTION 300
D2: =ForYr -> Budget for the Year Ending June 30, 2025
B3: =IF(Eng_Fren=1,Z3,AE3) -> ADULT LEARNING CENTRES | C3: 10 | D3: 20 | Z3: ADULT LEARNING CENTRES | AE3: CENTRES D'APPRENTISSAGE POUR ADULTES
C4: =IF(Eng_Fren=1,AA4,AF4) -> ADMINISTRATION | AA4: ADMINISTRATION | AF4: ADMINISTRATION
B5: ='100'!B6 -> CODE OBJECT \ PROGRAM | C5: =IF(Eng_Fren=1,AA5,AF5) -> AND OTHER | D5: =IF(Eng_Fren=1,AB5,AG5) -> INSTRUCTION | E5: =B43 -> TOTALS | AA5: AND OTHER | AB5: INSTRUCTION | AF5: ET AUTRE | AG5: ENSEIGNEMENT
B6: ='100'!B7 -> 3XX SALARIES
B7: ='100'!B8 -> 320 Executive, Managerial and Supervisory | E7: =C7 -> 0
B8: ='100'!B9 -> 330 Instructional - Teaching | E8: =D8 -> 0
B9: ='100'!B10 -> 350 Instructional - Other | E9: =D9 -> 0
B10: ='100'!B11 -> 360 Technical, Specialized and Service | E10: =SUM(C10:D10) -> 0
B11: ='100'!B12 -> 370 Secretarial, Clerical and Other | E11: =SUM(C11:D11) -> 0
B12: ='100'!B13 -> 390 Information Technology | E12: =SUM(C12:D12) -> 0
B13: ='100'!B14 -> Total Salaries | C13: =SUM(C7,C10:C12) -> 0 | D13: =SUM(D8:D12) -> 0 | E13: =SUM(E7:E12) -> 0
B14: ='100'!B15 -> 4XX EMPLOYEES BENEFITS AND ALLOWANCES | E14: =SUM(C14:D14) -> 0
B15: ='100'!B16 -> 5-6XX SERVICES
B16: ='100'!B17 -> 510 Professional, Technical and Specialized | E16: =SUM(C16:D16) -> 0
B17: ='100'!B18 -> 520 Communications | E17: 0
B18: ='800'!B18 -> 530 Utility Services | E18: =C18 -> 0
B19: ='100'!B19 -> 540 Travel and Meetings | E19: 0
B20: ='100'!B20 -> 560 Tuition | E20: =D20 -> 0
B21: ='100'!B21 -> 570 Printing and Binding | E21: 0
A22: 8 | B22: ='500'!B20 -> 580 Insurance and Bond Premiums | E22: =C22 -> 0 | H22: 8
B23: ='100'!B23 -> 590 Maintenance and Repair Services | E23: 0
B24: ='100'!B24 -> 610 Rentals | E24: 0
B25: ='800'!B24 -> 620 Property Taxes | E25: =C25 -> 0
B26: ='100'!B25 -> 630 Advertising | E26: 0
B27: ='100'!B26 -> 640 Dues and Fees | E27: 0
B28: ='100'!B27 -> 650 Professional and Staff Development | E28: 0
B29: ='100'!B28 -> 680 Information Technology Services | E29: 0
B30: ='100'!B29 -> Total Services | C30: =SUM(C16:C19,C21:C29) -> 0 | D30: =SUM(D16:D17,D19:D21,D23:D24,D26:D29) -> 0 | E30: =SUM(E16:E29) -> 0
B31: ='100'!B30 -> 7XX SUPPLIES, MATERIALS & MINOR EQUIPMENT
B32: ='100'!B31 -> 710 Supplies | E32: =SUM(C32:D32) -> 0
B33: ='100'!B32 -> 740 Curricular and Media Materials | E33: =SUM(C33:D33) -> 0
B34: ='100'!B33 -> 760 Minor Equipment | E34: =SUM(C34:D34) -> 0
B35: ='100'!B34 -> 780 Information Technology Equipment | E35: =SUM(C35:D35) -> 0
B36: ='100'!B35 -> Total Supplies, Materials & Minor Equipment | C36: =SUM(C32:C35) -> 0 | D36: =SUM(D32:D35) -> 0 | E36: =SUM(E32:E35) -> 0
B37: ='100'!B36 -> 95X-99 TRANSFERS
B38: ='100'!B37 -> 960 School Divisions | E38: =SUM(C38:D38) -> 0
B39: ='100'!B38 -> 980 Organizations, Individuals and Other Entities | E39: =SUM(C39:D39) -> 0
B40: =IF(Eng_Fren=1,IF(C40>0," 999 Recharge *"," 999 Recharge"),IF(C40>0," 999 Comptes débités de nouveau *"," 999 Comptes débités de nouveau")) -> 999 Recharge | E40: =C40 -> 0 | F40: =IF(E40+OE499X<>-OE599X-OE899X," OUT OF BALANCE WITH FUNCTION 500 AND/OR 800 RECHARGE","") -> 
B41: ='100'!B39 -> Total Transfers | C41: =SUM(C38:C40) -> 0 | D41: =SUM(D38:D39) -> 0 | E41: =SUM(E38:E40) -> 0 | F41: =IF(F40<>""," ENSURE CORRESPONDING ENTRIES BALANCE TO ZERO ","") -> 
B43: ='200'!B43 -> TOTALS | C43: =SUM(C41,C36,C30,C14,C13) -> 0 | D43: =SUM(D41,D36,D30,D14,D13) -> 0 | E43: =SUM(E36,E41,E30,E14,E13) -> 0
B45: =IF(AND(E40<>0,OE499X<>0),"* Costs reallocated from Function 500 and/or Function 800.","") ->  | E45: =IF(E43-ROUND(E43,0)<>0,"No decimals!","") -> 

Sheet 400
B1: =DIVNAME -> School Division Name | C1: =IF(Eng_Fren=1,BA1,BG1) -> OPERATING FUND - EXPENSE DETAIL: FUNCTION 400 | G1: =IF(DATE=0,"",DATE) -> 2024-02-09T11:53:25.340 | BA1: OPERATING FUND - EXPENSE DETAIL: FUNCTION 400 | BG1: FONDS DE FONCTIONNEMENT – DÉPENSES DÉTAILLÉES : FONCTION 400
C2: =ForYr -> Budget for the Year Ending June 30, 2025
B3: =IF(Eng_Fren=1,BA3,BG3) -> COMMUNITY EDUCATION AND SERVICES | C3: 10 | D3: 20 | E3: 30 | F3: 40 | BA3: COMMUNITY EDUCATION AND SERVICES | BG3: ÉDUCATION ET SERVICES COMMUNAUTAIRES
D4: =IF(Eng_Fren=1,BC4,BI4) -> ENGLISH AS AN | E4: COMMUNITY | BC4: ENGLISH AS AN | BD4: COMMUNITY | BI4: ANGLAIS LANGUE | BJ4: LOISIRS
C5: =IF(Eng_Fren=1,BB5,BH5) -> CONTINUING | D5: ADDITIONAL LANGUAGE | E5: SERVICES AND | F5: =IF(Eng_Fren=1,BE5,BK5) -> PRE-KINDERGARTEN | BB5: CONTINUING | BC5: ADDITIONAL LANGUAGE | BD5: SERVICES AND | BE5: PRE-KINDERGARTEN | BH5: ÉDUCATION | BI5: ADDITIONNELLE | BJ5: ET SERVICES | BK5: ÉDUCATION
B6: ='100'!B6 -> CODE OBJECT \ PROGRAM | C6: =IF(Eng_Fren=1,BB6,BH6) -> EDUCATION | D6: FOR ADULTS | E6: RECREATION | F6: =IF(Eng_Fren=1,BE6,BK6) -> EDUCATION | G6: ='300'!E5 -> TOTALS | BB6: EDUCATION | BC6: FOR ADULTS | BD6: RECREATION | BE6: EDUCATION | BH6: PERMANENTE | BI6: POUR ADULTES | BJ6: COMMUNAUTAIRES | BK6: PRÉMATERNELLE
B7: ='100'!B7 -> 3XX SALARIES
B8: ='100'!B8 -> 320 Executive, Managerial and Supervisory | G8: =SUM(C8:F8) -> 0
B9: ='100'!B9 -> 330 Instructional - Teaching | G9: 0
B10: ='100'!B10 -> 350 Instructional - Other | G10: 0
B11: ='100'!B11 -> 360 Technical, Specialized and Service | G11: 0
B12: ='100'!B12 -> 370 Secretarial, Clerical and Other | G12: 0
B13: ='200'!B14 -> 380 Clinician | G13: =F13 -> 0
B14: ='100'!B13 -> 390 Information Technology | G14: 0
B15: ='100'!B14 -> Total Salaries | C15: =SUM(C8:C14) -> 0 | D15: =SUM(D8:D14) -> 0 | E15: =SUM(E8:E14) -> 0 | F15: =SUM(F8:F14) -> 0 | G15: =SUM(G8:G14) -> 0
B16: ='100'!B15 -> 4XX EMPLOYEES BENEFITS AND ALLOWANCES | G16: =SUM(C16:F16) -> 0
B17: ='100'!B16 -> 5-6XX SERVICES
B18: ='100'!B17 -> 510 Professional, Technical and Specialized | G18: =SUM(C18:F18) -> 0
A19: 9 | B19: ='100'!B18 -> 520 Communications | G19: 0 | H19: 9
B20: ='100'!B19 -> 540 Travel and Meetings | G20: 0
B21: ='100'!B21 -> 570 Printing and Binding | G21: 0
B22: ='100'!B22 -> 580 Insurance and Bond Premiums | G22: =SUM(C22:F22) -> 0
B23: ='100'!B23 -> 590 Maintenance and Repair Services | G23: 0
B24: ='100'!B24 -> 610 Rentals | G24: 0
B25: ='100'!B25 -> 630 Advertising | G25: 0
B26: ='100'!B26 -> 640 Dues and Fees | G26: 0
B27: ='100'!B27 -> 650 Professional and Staff Development | G27: 0
B28: ='100'!B28 -> 680 Information Technology Services | G28: 0
B29: ='100'!B29 -> Total Services | C29: =SUM(C18:C28) -> 0 | D29: =SUM(D18:D28) -> 0 | E29: =SUM(E18:E28) -> 0 | F29: =SUM(F18:F28) -> 0 | G29: =SUM(G18:G28) -> 0
B30: ='100'!B30 -> 7XX SUPPLIES, MATERIALS & MINOR EQUIPMENT
B31: ='100'!B31 -> 710 Supplies | G31: =SUM(C31:F31) -> 0
B32: ='100'!B32 -> 740 Curricular and Media Materials | G32: =SUM(C32:F32) -> 0
B33: ='100'!B33 -> 760 Minor Equipment | G33: =SUM(C33:F33) -> 0
B34: ='100'!B34 -> 780 Information Technology Equipment | G34: =SUM(C34:F34) -> 0
B35: ='100'!B35 -> Total Supplies, Materials & Minor Equipment | C35: =SUM(C31:C34) -> 0 | D35: =SUM(D31:D34) -> 0 | E35: =SUM(E31:E34) -> 0 | F35: =SUM(F31:F34) -> 0 | G35: =SUM(G31:G34) -> 0
B36: ='100'!B36 -> 95X-99 TRANSFERS
B37: ='100'!B38 -> 980 Organizations, Individuals and Other Entities | G37: =SUM(C37:F37) -> 0
B38: =IF(Eng_Fren=1,IF(D38>0," 999 Recharge *"," 999 Recharge"),IF(D38>0," 999 Comptes débités de nouveau *"," 999 Comptes débités de nouveau")) -> 999 Recharge | G38: =SUM(C38:F38) -> 0 | H38: =IF(OE399X+G38<>-OE599X-OE899X," OUT OF BALANCE WITH FUNCTION 500 AND/OR 800 RECHARGE","") -> 
B39: ='100'!B39 -> Total Transfers | C39: =SUM(C37:C38) -> 0 | D39: =SUM(D37:D38) -> 0 | E39: =SUM(E37:E38) -> 0 | F39: =SUM(F37:F38) -> 0 | G39: =SUM(G37:G38) -> 0 | H39: =IF(H38<>""," ENSURE CORRESPONDING ENTRIES BALANCE TO ZERO ","") -> 
B41: =G6 -> TOTALS | C41: =SUM(C39,C35,C29,C16,C15) -> 0 | D41: =SUM(D39,D35,D29,D16,D15) -> 0 | E41: =SUM(E39,E35,E29,E16,E15) -> 0 | F41: =SUM(F39,F35,F29,F16,F15) -> 0 | G41: =SUM(G39,G35,G29,G16,G15) -> 0
B43: =IF(AND(G38<>0,OE399X<>0),"* Costs reallocated from Function 500 and/or Function 800.","") ->  | G43: =IF(G41-ROUND(G41,0)<>0,"No decimals!","") -> 

Sheet 500
B1: =DIVNAME -> School Division Name | C1: =IF(Eng_Fren=1,BA1,BG1) -> OPERATING FUND - EXPENSE DETAIL: FUNCTION 500 | G1: =IF(DATE=0,"",DATE) -> 2024-02-09T11:53:25.340 | BA1: OPERATING FUND - EXPENSE DETAIL: FUNCTION 500 | BG1: FONDS DE FONCTIONNEMENT – DÉPENSES DÉTAILLÉES : FONCTION 500
C2: =ForYr -> Budget for the Year Ending June 30, 2025
B3: =IF(Eng_Fren=1,BA3,BG3) -> DIVISIONAL ADMINISTRATION | C3: 10 | D3: 20 | E3: 30 | F3: 50 | BA3: DIVISIONAL ADMINISTRATION | BG3: ADMINISTRATION DE LA DIVISION
D4: =IF(Eng_Fren=1,BC4,BI4) -> INSTRUCTIONAL | E4: BUSINESS AND | F4: MANAGEMENT | BC4: INSTRUCTIONAL | BD4: BUSINESS AND | BE4: MANAGEMENT | BI4: GESTION ET | BJ4: SERVICES | BK4: SERVICES
C5: =IF(Eng_Fren=1,BB5,BH5) -> BOARD OF | D5: MANAGEMENT & | E5: ADMINISTRATIVE | F5: INFORMATION | BB5: BOARD OF | BC5: MANAGEMENT & | BD5: ADMINISTRATIVE | BE5: INFORMATION | BH5: COMMISSION | BI5: ADMINISTRATION | BJ5: D'ADMINISTRATION ET | BK5: DE GESTION
B6: ='100'!B6 -> CODE OBJECT \ PROGRAM | C6: =IF(Eng_Fren=1,BB6,BH6) -> TRUSTEES | D6: ADMINISTRATION | E6: SERVICES | F6: SERVICES | G6: =B40 -> TOTALS | BB6: TRUSTEES | BC6: ADMINISTRATION | BD6: SERVICES | BE6: SERVICES | BH6: SCOLAIRE | BI6: SCOLAIRES | BJ6: DE FONCTIONNEMENT | BK6: DE L'INFORMATION
B7: ='100'!B7 -> 3XX SALARIES
B8: =IF(Eng_Fren=1,BA8,BG8) -> 310 Trustees Remuneration | G8: =C8 -> 0 | BA8: 310 Trustees Remuneration | BG8: 310 Traitement des commissaires
B9: ='100'!B8 -> 320 Executive, Managerial and Supervisory | G9: =SUM(C9:F9) -> 0
B10: ='100'!B11 -> 360 Technical, Specialized and Service | G10: =SUM(C10:F10) -> 0
B11: ='100'!B12 -> 370 Secretarial, Clerical and Other | G11: =SUM(C11:F11) -> 0
B12: ='100'!B13 -> 390 Information Technology | G12: =SUM(E12:F12) -> 0
B13: ='100'!B14 -> Total Salaries | C13: =SUM(C8:C11) -> 0 | D13: =SUM(D9:D11) -> 0 | E13: =SUM(E9:E12) -> 0 | F13: =SUM(F9:F12) -> 0 | G13: =SUM(G8:G12) -> 0
B14: ='100'!B15 -> 4XX EMPLOYEES BENEFITS AND ALLOWANCES | G14: =SUM(C14:F14) -> 0
B15: ='100'!B16 -> 5-6XX SERVICES
B16: ='100'!B17 -> 510 Professional, Technical and Specialized | G16: =SUM(C16:F16) -> 0
B17: ='100'!B18 -> 520 Communications | G17: 0
B18: ='100'!B19 -> 540 Travel and Meetings | G18: 0
B19: ='100'!B21 -> 570 Printing and Binding | G19: 0
A20: 10 | B20: =IF(Eng_Fren=1,BA20,BG20) -> 580 Insurance and Bond Premiums | G20: 0 | H20: 10 | BA20: 580 Insurance and Bond Premiums | BG20: 580 Primes d’assurance et d’émission d’obligations
B21: ='100'!B23 -> 590 Maintenance and Repair Services | G21: 0
B22: ='100'!B24 -> 610 Rentals | G22: 0
B23: ='100'!B25 -> 630 Advertising | G23: 0
B24: ='100'!B26 -> 640 Dues and Fees | G24: 0
B25: ='100'!B27 -> 650 Professional and Staff Development | G25: 0
B26: ='100'!B28 -> 680 Information Technology Services | G26: 0
B27: ='100'!B29 -> Total Services | C27: =SUM(C16:C26) -> 0 | D27: =SUM(D16:D26) -> 0 | E27: =SUM(E16:E26) -> 0 | F27: =SUM(F16:F26) -> 0 | G27: =SUM(G16:G26) -> 0
B28: ='100'!B30 -> 7XX SUPPLIES, MATERIALS & MINOR EQUIPMENT
B29: ='100'!B31 -> 710 Supplies | G29: =SUM(C29:F29) -> 0
B30: ='100'!B32 -> 740 Curricular and Media Materials | G30: =SUM(C30:F30) -> 0
B31: ='100'!B33 -> 760 Minor Equipment | G31: =SUM(C31:F31) -> 0
B32: ='100'!B34 -> 780 Information Technology Equipment | G32: =SUM(C32:F32) -> 0
B33: ='100'!B35 -> Total Supplies, Materials & Minor Equipment | C33: =SUM(C29:C32) -> 0 | D33: =SUM(D29:D32) -> 0 | E33: =SUM(E29:E32) -> 0 | F33: =SUM(F29:F32) -> 0 | G33: =SUM(G29:G32) -> 0
B34: ='100'!B36 -> 95X-99 TRANSFERS
B35: ='100'!B37 -> 960 School Divisions | G35: =SUM(C35,E35) -> 0
B36: ='100'!B38 -> 980 Organizations, Individuals and Other Entities | G36: =SUM(C36:E36) -> 0
B37: =IF(Eng_Fren=1,IF(G37>0," 999 Recharge *"," 999 Recharge"),IF(G37>0," 999 Comptes débités de nouveau *"," 999 Comptes débités de nouveau")) -> 999 Recharge | G37: =SUM(C37:E37) -> 0
B38: ='100'!B39 -> Total Transfers | C38: =SUM(C35:C36) -> 0 | D38: =SUM(D36:D37) -> 0 | E38: =SUM(E35:E37) -> 0 | G38: =SUM(G35:G37) -> 0
B40: ='400'!B41 -> TOTALS | C40: =SUM(C38,C33,C27,C14,C13) -> 0 | D40: =SUM(D38,D33,D27,D14,D13) -> 0 | E40: =SUM(E38,E33,E27,E14,E13) -> 0 | F40: =SUM(F33,F27,F14,F13) -> 0 | G40: =SUM(G38,G33,G27,G14,G13) -> 0
B42: =IF(G37<0," * Reallocation of costs associated with Adult Learning Centres to Function 300 or with EAL centres to Function 400.","") ->  | G42: =IF(G40-ROUND(G40,0)<>0,"No decimals!","") -> 

Sheet 600
B1: =DIVNAME -> School Division Name | C1: =IF(Eng_Fren=1,BA1,BG1) -> OPERATING FUND - EXPENSE DETAIL: FUNCTION 600 | H1: =IF(DATE=0,"",DATE) -> 2024-02-09T11:53:25.340 | BA1: OPERATING FUND - EXPENSE DETAIL: FUNCTION 600 | BG1: FONDS DE FONCTIONNEMENT – DÉPENSES DÉTAILLÉES : FONCTION 600
C2: =ForYr -> Budget for the Year Ending June 30, 2025
B3: =IF(Eng_Fren=1,BA3,BG3) -> INSTRUCTIONAL AND OTHER SUPPORT SERVICES | C3: 05 | D3: 10 | E3: 20 | F3: 30 | G3: 80 | BA3: INSTRUCTIONAL AND OTHER SUPPORT SERVICES | BG3: SERVICES PÉDAGOGIQUES ET AUTRES SERVICES DE SOUTIEN
C4: =IF(Eng_Fren=1,BB4,BH4) -> CURRICULUM | D4: =IF(Eng_Fren=1,"",BI4) ->  | BB4: CURRICULUM | BH4: ADMINISTRATION – | BI4: PROGRAMMES
C5: =IF(Eng_Fren=1,BB5,BH5) -> CONSULTING & | D5: =IF(Eng_Fren=1,BC5,BI5) -> CURRICULUM | E5: LIBRARY / | F5: PROFESSIONAL | BB5: CONSULTING & | BC5: CURRICULUM | BD5: LIBRARY / | BE5: PROFESSIONAL | BH5: PROGR. D'ÉTUDES – | BI5: D'ÉTUDES – | BJ5: BIBLIOTHÈQUE | BK5: PERFECTIONNEMENT
C6: =IF(Eng_Fren=1,BB6,BH6) -> DEVELOPMENT | D6: CONSULTING & | E6: MEDIA | F6: AND STAFF | BB6: DEVELOPMENT | BC6: CONSULTING & | BD6: MEDIA | BE6: AND STAFF | BH6: CONSULTATION ET | BI6: CONSULTATION | BJ6: ET | BK6: PROFESSIONNEL
B7: ='100'!B6 -> CODE OBJECT \ PROGRAM | C7: =IF(Eng_Fren=1,BB7,BH7) -> ADMINISTRATION | D7: DEVELOPMENT | E7: CENTRE | F7: DEVELOPMENT | G7: =IF(Eng_Fren=1,BF7,BL7) -> OTHER | H7: =B42 -> TOTALS | BB7: ADMINISTRATION | BC7: DEVELOPMENT | BD7: CENTRE | BE7: DEVELOPMENT | BF7: OTHER | BH7: ÉLABORATION | BI7: ET ÉLABORATION | BJ7: MÉDIATHÈQUE | BK7: ET DU PERSONNEL | BL7: AUTRE
B8: ='100'!B7 -> 3XX SALARIES
B9: ='100'!B8 -> 320 Executive, Managerial and Supervisory | H9: =SUM(C9:F9) -> 0
B10: ='100'!B9 -> 330 Instructional - Teaching | H10: =SUM(D10:G10) -> 0
B11: ='100'!B10 -> 350 Instructional - Other | H11: =SUM(D11:G11) -> 0
B12: ='100'!B11 -> 360 Technical, Specialized and Service | H12: =SUM(C12:G12) -> 0
B13: ='100'!B12 -> 370 Secretarial, Clerical and Other | H13: =SUM(C13:G13) -> 0
B14: ='100'!B13 -> 390 Information Technology | H14: =SUM(C14:F14) -> 0
B15: ='100'!B14 -> Total Salaries | C15: =SUM(C9,C12:C14) -> 0 | D15: =SUM(D9:D14) -> 0 | E15: =SUM(E9:E14) -> 0 | F15: =SUM(F9:F14) -> 0 | G15: =SUM(G9:G14) -> 0 | H15: =SUM(H9:H14) -> 0
B16: ='100'!B15 -> 4XX EMPLOYEES BENEFITS AND ALLOWANCES | H16: =SUM(C16:G16) -> 0
B17: ='100'!B16 -> 5-6XX SERVICES
B18: ='100'!B17 -> 510 Professional, Technical and Specialized | H18: =SUM(C18:G18) -> 0
B19: ='100'!B18 -> 520 Communications | H19: 0
A20: 11 | B20: ='100'!B19 -> 540 Travel and Meetings | H20: 0 | I20: 11
B21: ='100'!B20 -> 560 Tuition | H21: 0
B22: ='100'!B21 -> 570 Printing and Binding | H22: 0
B23: ='500'!B20 -> 580 Insurance and Bond Premiums | H23: 0
B24: ='100'!B23 -> 590 Maintenance and Repair Services | H24: =SUM(C24:G24) -> 0
B25: ='100'!B24 -> 610 Rentals | H25: 0
B26: ='100'!B25 -> 630 Advertising | H26: 0
B27: ='100'!B26 -> 640 Dues and Fees | H27: 0
B28: ='100'!B27 -> 650 Professional and Staff Development | H28: 0
B29: ='100'!B28 -> 680 Information Technology Services | H29: 0
B30: ='100'!B29 -> Total Services | C30: =SUM(C18:C29) -> 0 | D30: =SUM(D18:D29) -> 0 | E30: =SUM(E18:E29) -> 0 | F30: =SUM(F18,F19,F22:F29) -> 0 | G30: =SUM(G18:G29) -> 0 | H30: =SUM(H18:H29) -> 0
B31: ='100'!B30 -> 7XX SUPPLIES, MATERIALS & MINOR EQUIPMENT
B32: ='100'!B31 -> 710 Supplies | H32: =SUM(C32:G32) -> 0
B33: ='100'!B32 -> 740 Curricular and Media Materials | H33: =SUM(C33:G33) -> 0
B34: ='100'!B33 -> 760 Minor Equipment | H34: =SUM(C34:G34) -> 0
B35: ='100'!B34 -> 780 Information Technology Equipment | H35: =SUM(C35:G35) -> 0
B36: ='100'!B35 -> Total Supplies, Materials & Minor Equipment | C36: =SUM(C32:C35) -> 0 | D36: 0 | E36: 0 | F36: 0 | G36: 0 | H36: 0
B37: ='100'!B36 -> 95X-99 TRANSFERS
B38: ='100'!B37 -> 960 School Divisions | H38: =G38 -> 0
B39: ='100'!B38 -> 980 Organizations, Individuals and Other Entities | H39: =G39 -> 0
B40: ='100'!B39 -> Total Transfers | G40: =SUM(G38:G39) -> 0 | H40: =SUM(H38:H39) -> 0
B42: ='500'!B40 -> TOTALS | C42: =SUM(C36,C30,C16,C15) -> 0 | D42: =SUM(D36,D30,D16,D15) -> 0 | E42: =SUM(E36,E30,E16,E15) -> 0 | F42: =SUM(F36,F30,F16,F15) -> 0 | G42: =SUM(G40,G36,G30,G16,G15) -> 0 | H42: =SUM(H40,H36,H30,H16,H15) -> 0
H44: =IF(H42-ROUND(H42,0)<>0,"No decimals!","") -> 

Sheet 700
B1: =DIVNAME -> School Division Name | C1: =IF(Eng_Fren=1,BA1,BH1) -> OPERATING FUND - EXPENSE DETAIL: FUNCTION 700 | H1: =IF(DATE=0,"",DATE) -> 2024-02-09T11:53:25.340 | BA1: OPERATING FUND - EXPENSE DETAIL: FUNCTION 700 | BH1: FONDS DE FONCTIONNEMENT – DÉPENSES DÉTAILLÉES : FONCTION 700
C2: =ForYr -> Budget for the Year Ending June 30, 2025
B3: =IF(Eng_Fren=1,BA3,BH3) -> TRANSPORTATION OF PUPILS | C3: 10 | D3: 20 | E3: 70 | F3: 80 | G3: 90 | BA3: TRANSPORTATION OF PUPILS | BH3: TRANSPORT DES ÉLÈVES
E4: =IF(Eng_Fren=1,BD4,BK4) -> ALLOWANCES | F4: BOARDING OF | G4: FIELD TRIPS | BD4: ALLOWANCES | BE4: BOARDING OF | BF4: FIELD TRIPS | BK4: INDEMNITÉS | BL4: ÉLÈVES EN | BM4: EXCURSIONS
E5: IN LIEU OF | F5: STUDENTS/ | G5: AND | BD5: IN LIEU OF | BE5: STUDENTS/ | BF5: AND | BK5: DE | BL5: PENSION OU | BM5: SCOLAIRES
B6: ='100'!B6 -> CODE OBJECT \ PROGRAM | C6: =IF(Eng_Fren=1,BB6,BI6) -> ADMINISTRATION | D6: =IF(Eng_Fren=1,BC6,BJ6) -> REGULAR | E6: TRANSPORTATION | F6: DORMITORIES | G6: OTHER | H6: ='600'!H7 -> TOTALS | BB6: ADMINISTRATION | BC6: REGULAR | BD6: TRANSPORTATION | BE6: DORMITORIES | BF6: OTHER | BI6: ADMINISTRATION | BJ6: ORDINAIRE | BK6: TRANSPORT | BL6: DORTOIRS | BM6: ET AUTRES
B7: ='100'!B7 -> 3XX SALARIES
B8: ='100'!B8 -> 320 Executive, Managerial and Supervisory | H8: =SUM(C8,F8) -> 0
B9: ='100'!B10 -> 350 Instructional - Other | H9: =SUM(D9,F9:G9) -> 0
B10: ='100'!B11 -> 360 Technical, Specialized and Service | H10: =SUM(C10:D10,F10:G10) -> 0
B11: ='100'!B12 -> 370 Secretarial, Clerical and Other | H11: =SUM(C11:D11,F11:G11) -> 0
B12: ='100'!B13 -> 390 Information Technology | H12: =C12 -> 0
B13: ='100'!B14 -> Total Salaries | C13: =SUM(C8,C10:C12) -> 0 | D13: =SUM(D9:D11) -> 0 | F13: =SUM(F8:F11) -> 0 | G13: =SUM(G9:G11) -> 0 | H13: =SUM(H8:H12) -> 0
B14: ='100'!B15 -> 4XX EMPLOYEES BENEFITS AND ALLOWANCES | H14: =SUM(C14:D14,F14:G14) -> 0
B15: ='100'!B16 -> 5-6XX SERVICES
B16: ='100'!B17 -> 510 Professional, Technical and Specialized | H16: =SUM(C16:G16) -> 0
B17: ='100'!B18 -> 520 Communications | H17: 0
B18: ='100'!B19 -> 540 Travel and Meetings | H18: 0
B19: ='100'!B21 -> 570 Printing and Binding | H19: 0
A20: 12 | B20: =IF(Eng_Fren=1,BA20,BH20) -> 550 Transportation of Pupils | H20: =SUM(D20:G20) -> 0 | I20: 12 | BA20: 550 Transportation of Pupils | BH20: 550 Transport des élèves
B21: ='500'!B20 -> 580 Insurance and Bond Premiums | H21: =SUM(C21:D21,F21:G21) -> 0
B22: ='100'!B23 -> 590 Maintenance and Repair Services | H22: =SUM(C22:D22,F22:G22) -> 0
B23: ='100'!B24 -> 610 Rentals | H23: =SUM(C23:D23,F23:G23) -> 0
B24: ='100'!B25 -> 630 Advertising | H24: 0
B25: ='100'!B26 -> 640 Dues and Fees | H25: =SUM(C25,D25) -> 0
B26: ='100'!B27 -> 650 Professional and Staff Development | H26: =SUM(C26:D26,F26:G26) -> 0
B27: ='100'!B28 -> 680 Information Technology Services | H27: =SUM(C27:D27,F27:G27) -> 0
B28: ='100'!B29 -> Total Services | C28: =SUM(C16:C19,C21:C27) -> 0 | D28: =SUM(D16:D27) -> 0 | E28: =SUM(E16:E20,E24) -> 0 | F28: =SUM(F16:F24,F26:F27) -> 0 | G28: =SUM(G16:G24,G26:G27) -> 0 | H28: =SUM(H16:H27) -> 0
B29: ='100'!B30 -> 7XX SUPPLIES, MATERIALS & MINOR EQUIPMENT
B30: ='100'!B31 -> 710 Supplies | H30: =SUM(C30:D30,F30:G30) -> 0
B31: ='100'!B32 -> 740 Curricular and Media Materials | H31: =SUM(C31:D31,F31:G31) -> 0
B32: ='100'!B33 -> 760 Minor Equipment | H32: =SUM(C32:D32,F32:G32) -> 0
B33: ='100'!B34 -> 780 Information Technology Equipment | H33: =SUM(C33:D33,F33:G33) -> 0
B34: ='100'!B35 -> Total Supplies, Materials & Minor Equipment | C34: =SUM(C30:C33) -> 0 | D34: =SUM(D30:D33) -> 0 | F34: =SUM(F30:F33) -> 0 | G34: =SUM(G30:G33) -> 0 | H34: =SUM(H30:H33) -> 0
B35: ='100'!B36 -> 95X-99 TRANSFERS
B36: ='100'!B37 -> 960 School Divisions | H36: =SUM(D36,E36) -> 0
B37: ='100'!B38 -> 980 Organizations, Individuals and Other Entities | H37: =SUM(D37:G37) -> 0
B38: =IF(Eng_Fren=1,IF(H38>0," 999 Recharge *"," 999 Recharge"),IF(H38>0," 999 Comptes débités de nouveau *"," 999 Comptes débités de nouveau")) -> 999 Recharge | H38: =SUM(C38:G38) -> 0 | I38: =IF(H38<>0," ERROR: TOTAL SHOULD BE ZERO.","") -> 
B39: ='100'!B39 -> Total Transfers | C39: =C38 -> 0 | D39: =SUM(D36:D38) -> 0 | E39: =SUM(E36:E38) -> 0 | F39: =SUM(F37:F38) -> 0 | G39: =SUM(G37:G38) -> 0 | H39: =SUM(H36:H38) -> 0
B41: ='600'!B42 -> TOTALS | C41: =SUM(C39,C34,C28,C14,C13) -> 0 | D41: 0 | E41: 0 | F41: 0 | G41: 0 | H41: 0
H43: =IF(H41-ROUND(H41,0)<>0,"No decimals!","") -> 

Sheet 800
B1: =DIVNAME -> School Division Name | C1: =IF(Eng_Fren=1,BA1,BH1) -> OPERATING FUND - EXPENSE DETAIL: FUNCTION 800 | H1: =IF(DATE=0,"",DATE) -> 2024-02-09T11:53:25.340 | BA1: OPERATING FUND - EXPENSE DETAIL: FUNCTION 800 | BH1: FONDS DE FONCTIONNEMENT – DÉPENSES DÉTAILLÉES : FONCTION 800
C2: =ForYr -> Budget for the Year Ending June 30, 2025
B3: =IF(Eng_Fren=1,BA3,BH3) -> OPERATIONS AND MAINTENANCE | C3: 10 | D3: 20 | E3: 50 | F3: 70 | G3: 80 | BA3: OPERATIONS AND MAINTENANCE | BH3: FONCTIONNEMENT ET ENTRETIEN
E4: =IF(Eng_Fren=1,BD4,BK4) -> SCHOOL | BD4: SCHOOL | BK4: RÉPARATION ET
D5: =IF(Eng_Fren=1,BC5,BJ5) -> SCHOOL | E5: =IF(Eng_Fren=1,BD5,BK5) -> BUILDINGS | BC5: SCHOOL | BD5: BUILDINGS | BJ5: ENTRETIEN | BK5: REMPLACEMENT
D6: =IF(Eng_Fren=1,BC6,BJ6) -> BUILDINGS | E6: =IF(Eng_Fren=1,BD6,BK6) -> REPAIRS AND | F6: =IF(Eng_Fren=1,BE6,BL6) -> OTHER | BC6: BUILDINGS | BD6: REPAIRS AND | BE6: OTHER | BJ6: DES BÂTIMENTS | BK6: DES BÂTIMENTS | BL6: AUTRES
B7: ='100'!B6 -> CODE OBJECT \ PROGRAM | C7: =IF(Eng_Fren=1,BB7,BI7) -> ADMINISTRATION | D7: =IF(Eng_Fren=1,BC7,BJ7) -> MAINTENANCE | E7: =IF(Eng_Fren=1,BD7,BK7) -> REPLACEMENTS | F7: =IF(Eng_Fren=1,BE7,BL7) -> BUILDINGS | G7: =IF(Eng_Fren=1,BF7,BM7) -> GROUNDS | H7: =B39 -> TOTALS | BB7: ADMINISTRATION | BC7: MAINTENANCE | BD7: REPLACEMENTS | BE7: BUILDINGS | BF7: GROUNDS | BI7: ADMINISTRATION | BJ7: SCOLAIRES | BK7: SCOLAIRES | BL7: BÂTIMENTS | BM7: TERRAINS
B8: ='100'!B7 -> 3XX SALARIES
B9: ='100'!B8 -> 320 Executive, Managerial and Supervisory | H9: =C9 -> 0
B10: ='100'!B11 -> 360 Technical, Specialized and Service | H10: =SUM(C10:G10) -> 0
B11: ='100'!B12 -> 370 Secretarial, Clerical and Other | H11: =SUM(C11:G11) -> 0
B12: ='100'!B13 -> 390 Information Technology | H12: =SUM(C12:E12) -> 0
B13: ='100'!B14 -> Total Salaries | C13: =SUM(C9:C12) -> 0 | D13: =SUM(D10:D12) -> 0 | E13: =SUM(E10:E12) -> 0 | F13: =SUM(F10:F11) -> 0 | G13: =SUM(G10:G11) -> 0 | H13: =SUM(H9:H12) -> 0
B14: ='100'!B15 -> 4XX EMPLOYEES BENEFITS AND ALLOWANCES | H14: =SUM(C14:G14) -> 0
B15: ='100'!B16 -> 5-6XX SERVICES
B16: ='100'!B17 -> 510 Professional, Technical and Specialized | H16: =SUM(C16:G16) -> 0
B17: ='100'!B18 -> 520 Communications | H17: 0
A18: 13 | B18: =IF(Eng_Fren=1,BA18,BH18) -> 530 Utility Services | H18: =SUM(D18,F18:G18) -> 0 | I18: 13 | BA18: 530 Utility Services | BH18: 530 Services publics
B19: ='100'!B19 -> 540 Travel and Meetings | H19: 0
B20: ='100'!B21 -> 570 Printing and Binding | H20: 0
B21: ='500'!B20 -> 580 Insurance and Bond Premiums | H21: 0
B22: ='100'!B23 -> 590 Maintenance and Repair Services | H22: 0
B23: ='100'!B24 -> 610 Rentals | H23: 0
B24: =IF(Eng_Fren=1,BA24,BH24) -> 620 Property Taxes | H24: =SUM(D24:G24) -> 0 | BA24: 620 Property Taxes | BH24: 620 Impôt foncier
B25: ='100'!B25 -> 630 Advertising | H25: 0
B26: ='100'!B26 -> 640 Dues and Fees | H26: =SUM(C26:D26,F26) -> 0
B27: ='100'!B27 -> 650 Professional and Staff Development | H27: =SUM(C27:D27,F27) -> 0
B28: ='100'!B28 -> 680 Information Technology Services | H28: =SUM(C28:F28) -> 0
B29: ='100'!B29 -> Total Services | C29: =SUM(C16:C17,C19:C23,C25:C28) -> 0 | D29: =SUM(D16:D28) -> 0 | E29: =SUM(E16:E17,E19:E25,E28) -> 0 | F29: =SUM(F16:F28) -> 0 | G29: =SUM(G16:G25) -> 0 | H29: =SUM(H16:H28) -> 0
B30: ='100'!B30 -> 7XX SUPPLIES, MATERIALS & MINOR EQUIPMENT
B31: ='100'!B31 -> 710 Supplies | H31: =SUM(C31:G31) -> 0
B32: ='100'!B32 -> 740 Curricular and Media Materials | H32: =SUM(C32:G32) -> 0
B33: ='100'!B33 -> 760 Minor Equipment | H33: =SUM(C33:G33) -> 0
B34: ='100'!B34 -> 780 Information Technology Equipment | H34: =SUM(C34:F34) -> 0
B35: ='100'!B35 -> Total Supplies, Materials & Minor Equipment | C35: =SUM(C31:C34) -> 0 | D35: 0 | E35: 0 | F35: 0 | G35: =SUM(G31:G33) -> 0 | H35: 0
B36: ='100'!B37 -> 960 School Divisions
B37: =IF(Eng_Fren=1,IF(H37>0," 999 Recharge *"," 999 Recharge"),IF(H37>0," 999 Comptes débités de nouveau *"," 999 Comptes débités de nouveau")) -> 999 Recharge | H37: =D37 -> 0
B39: ='700'!B41 -> TOTALS | C39: =SUM(C35,C29,C14,C13) -> 0 | D39: =SUM(D37,D35,D29,D14,D13) -> 0 | E39: =SUM(E35,E29,E14,E13) -> 0 | F39: =SUM(F35,F29,F14,F13) -> 0 | G39: =SUM(G35,G29,G14,G13) -> 0 | H39: =SUM(H37,H35,H29,H14,H13) -> 0
B41: =IF(H37<0," * Reallocation of costs associated with Adult Learning Centres to Function 300 or with EAL centres to Function 400.","") ->  | H41: =IF(H39-ROUND(H39,0)<>0,"No decimals!","") -> 

Sheet Transfers
B1: =DIVNAME -> School Division Name | G1: =IF(DATE=0,"",DATE) -> 2024-02-09T11:53:25.340
B2: =IF(Eng_Fren=1,K2,Q2) -> OPERATING FUND - DETAIL OF TRANSFERS | K2: OPERATING FUND - DETAIL OF TRANSFERS | Q2: FONDS DE FONCTIONNEMENT – VENTILATION DES TRANSFERTS
B3: =IF(Eng_Fren=1,K3,Q3) -> TO (FROM) CAPITAL FUND | K3: TO (FROM) CAPITAL FUND | Q3: AU (DU) FONDS DE CAPITAL ET D'EMPRUNT
B4: =ForYr -> Budget for the Year Ending June 30, 2025
B5: =IF(Eng_Fren=1,K5,Q5) -> Transfers to Capital Fund | K5: Transfers to Capital Fund | Q5: Transferts au fonds de capital et d'emprunt
B6: Category "D" School Buildings | F6: 0 | H6: =IF(F6-ROUND(F6,0)<>0,"No decimals!","") ->  | K6: Category "D" School Buildings | Q6: Bâtiments scolaires de catégorie D
B7: Bus Reserve | F7: 0 | H7: =IF(F7-ROUND(F7,0)<>0,"No decimals!","") ->  | K7: Bus Reserve | Q7: Réserve pour autobus
B8: Bus Purchases | F8: 0 | K8: Bus Purchases | Q8: Achats d'autobus
B9: Other Vehicles | F9: 0 | K9: Other Vehicles | Q9: Autres véhicules
B10: Furniture/Fixtures & Equipment | F10: 0 | K10: Furniture/Fixtures & Equipment | Q10: Mobilier/Accessoires et équipement
B11: Computer Hardware & Software | F11: 0 | K11: Computer Hardware & Software | Q11: Matériel informatique et logiciels
B12: Assets Under Construction | F12: 0 | K12: Assets Under Construction | Q12: Immeubles en construction
B13: Other: | F13: 0 | K13: Other: | Q13: Autres :
G25: =SUM(F6:F25) -> 0 | H25: =IF(G25-ROUND(G25,0)<>0,"No decimals!","") -> 
B27: =IF(Eng_Fren=1,K27,Q27) -> Less: Transfers from Capital Fund | K27: Less: Transfers from Capital Fund | Q27: Moins : transferts du fonds de capital et d'emprunt
F28: 0
G32: =SUM(F28:F32) -> 0 | H32: =IF(G32-ROUND(G32,0)<>0,"No decimals!","") -> 
B34: =IF(Eng_Fren=1,K34,Q34) -> Net Transfers to (from) Capital Fund | G34: =G25-G32 -> 0 | H34: =IF(G34-ROUND(G34,0)<>0,"No decimals!","") ->  | K34: Net Transfers to (from) Capital Fund | Q34: Transferts nets au (du) fonds de capital et d'emprunt
B37: =IF(Eng_Fren=1,K37,Q37) -> CAPITAL EXPENDITURES FOR STATISTICS CANADA | C37: 0 | D37: 0 | E37: 0 | F37: 0 | G37: 0 | K37: CAPITAL EXPENDITURES FOR STATISTICS CANADA | Q37: DÉPENSES EN CAPITAL POUR STATISTIQUES CANADA
B38: =ForYr -> Budget for the Year Ending June 30, 2025
B40: =IF(Eng_Fren=1,K40,Q40) -> (include additions to work in progress) | C40: New Assets/ Renovation/Retrofit | D40: =IF(Eng_Fren=1,L40,R40) -> New Assets/ Renovation/Retrofit | F40: =IF(Eng_Fren=1,M40,S40) -> Purchase of Used Cdn. Assets | G40: =IF(Eng_Fren=1,N40,T40) -> Total Capital Expenses | K40: (include additions to work in progress) | L40: New Assets/ Renovation/Retrofit | M40: Purchase of Used Cdn. Assets | N40: Total Capital Expenses | Q40: (comprend les ajouts aux travaux en cours) | R40: Nouveaux actifs et rénov. ou réfection | S40: Achat d'immobil. canad. usagées | T40: Total des dépenses en immobilisations
B41: 0 | C41: 0
B42: 0 | C42: (thousands of dollars) | L42: (thousands of dollars) | R42: (en milliers de dollars)
B43: =IF(Eng_Fren=1,K43,Q43) -> Land | G43: =D43 -> 0 | K43: Land | Q43: Terrain
B44: =IF(Eng_Fren=1,K44,Q44) -> Building Construction | G44: =D44+F44 -> 0 | K44: Building Construction | Q44: Construction immobilière
B45: =IF(Eng_Fren=1,K45,Q45) -> School Buses, Vehicles & Equipment | G45: =D45+F45 -> 0 | K45: School Buses, Vehicles & Equipment | Q45: Les autobus scolaires, véhicules et équipement
B46: =IF(Eng_Fren=1,K46,Q46) -> Software | G46: =D46+F46 -> 0 | K46: Software | Q46: Logiciels
B48: Total | D48: =SUM(D43:E46) -> 0 | F48: =SUM(F44:F46) -> 0 | G48: =SUM(G43:G46) -> 0 | K48: Total | Q48: Total
B49: Note: The amounts entered here should be for the Division's own expenses only, not those funded by PSFB.

Sheet Students
B1: =DIVNAME -> School Division Name | G1: =IF(DATE=0,"",DATE) -> 2024-02-09T11:53:25.340
B2: =IF(Eng_Fren=1,P2,S2) -> STUDENT ENROLMENTS (FRAME) AND TRANSPORTATION STATISTICS | P2: STUDENT ENROLMENTS (FRAME) AND TRANSPORTATION STATISTICS | S2: STATISTIQUES SUR LES INSCRIPTIONS (FRAME) ET LE TRANSPORT DES ÉLÈVES
G4: =IF(Eng_Fren=1,R4,U4) -> Estimated | J4: INSTRUCTIONS - WILL APPEAR IN LARGER PRINT ABOVE (scroll left to return to the form): | R4: Estimated | U4: Inscriptions ETP
C5: =IF(Eng_Fren=1,P5,S5) -> ENROLMENTS BY PROGRAM | G5: =IF(Eng_Fren=1,R5,U5) -> F.T.E. Enrolment | P5: ENROLMENTS BY PROGRAM | R5: F.T.E. Enrolment | S5: INSCRIPTIONS PAR PROGRAMME | U5: prévues
G6: =ATSEP -> September 29, 2024 | J6: ENROLMENTS BY PROGRAM: In order to match program costs to students, it is necessary that both costs and students be reported on the same basis using common definitions. Refer to FRAME Manual Section 5 for program definitions. For additional instructions on reporting statistics, see Section 13 of the FRAME Manual.
C8: =IF(Eng_Fren=1,P8,S8) -> REGULAR INSTRUCTION | P8: REGULAR INSTRUCTION | S8: ENSEIGNEMENT ORDINAIRE
C9: =IF(Eng_Fren=1,P9,S9) -> English Language - Single Track | J9: SINGLE TRACK SCHOOLS (Programs 120, 150 and 170): Include all pupils registered in these schools, not just those in the designated language program. | P9: English Language - Single Track | S9: Anglais – Voie unique
C10: =IF(Eng_Fren=1,P10,S10) -> Francais - Single Track | G10: 0 | P10: Francais - Single Track | S10: Français – Voie unique
C11: =IF(Eng_Fren=1,P11,S11) -> French Immersion - Single Track | G11: 0 | J11: SENIOR YEARS TECHNOLOGY EDUCATION (Program 190): If (non-transfer) expenditures are reported for either or both Vocational Industrial and Co-operative Vocational Education then the number of students must be reported also. Include only students in approved programs. If an actual student count cannot be done, F.T.E. must be calculated using one of the following methods: | P11: French Immersion - Single Track | S11: Immersion française – Voie unique
C12: =IF(Eng_Fren=1,P12,S12) -> Dual Track | P12: Dual Track | S12: Double voie
D13: =IF(Eng_Fren=1,Q13,T13) -> - English Language | E13: 0 | Q13: - English Language | T13: – Anglais
D14: =IF(Eng_Fren=1,Q14,T14) -> - Francais | E14: 0 | J14: i ) | K14: divide the total number of credits being taken in Vocational Industrial by seven (the number of credits considered a full course load for this calculation); or | Q14: - Francais | T14: – Français
D15: =IF(Eng_Fren=1,Q15,T15) -> - French Immersion | E15: 0 | Q15: - French Immersion | T15: – Immersion française
D16: =IF(Eng_Fren=1,Q16,T16) -> - Other Bilingual | E16: 0 | G16: =IF(SUM(E13:E16)=0,0,IF(ERROR.TYPE(MATCH(SUM(E13:E16),E13:E16,0))=7,SUM(E13:E16))) -> 0 | J16: ii ) | K16: calculate the percentage of the day that each student spends in a Vocational Industrial or Co-operative Vocational class and use that as the F.T.E. | Q16: - Other Bilingual | T16: – Autres programmes bilingues
C17: =IF(Eng_Fren=1,P17,S17) -> Senior Years Technology Education | G17: 0 | P17: Senior Years Technology Education | S17: Études technologiques du secondaire
J18: Divisions using W.T.C. and the Red River Vocational Area need to make a special adjustment for students attending away from their home division - see FRAME Manual Section 13. These divisions do not need to reconcile to their division total enrolment as per instructions regarding total number of F.T.E. K-12 students below.
P19: TOTAL REGULAR INSTRUCTION | S19: TOTAL – ENSEIGNEMENT ORDINAIRE
J21: TOTAL NUMBER OF FULL TIME EQUIVALENT (F.T.E.) K - 12 STUDENTS is the Division total enrolment less
C22: =IF(Eng_Fren=1,P22,S22) -> TOTAL NUMBER OF FULL TIME EQUIVALENT K - 12 STUDENTS | G22: =SUM(G9:G11,G16,G17) -> 0 | J22: ="100% Nursery"&IF(DIVCODE="DI",".","and 50% of Kindergarten pupils.")&" Include all students whether or not they are eligible for support." -> 100% Nurseryand 50% of Kindergarten pupils. Include all students whether or not they are eligible for support. | P22: TOTAL NUMBER OF FULL TIME EQUIVALENT K - 12 STUDENTS | S22: NOMBRE TOTAL D'ÉLÈVES ÉQUIVALENT TEMPS PLEIN M-12
J23: Count adults on a full time equivalent basis (e.g.. an adult attending half time would be counted as 0.5).
J25: TRANSPORTATION OF PUPILS (Function 700): Count all students on division buses whether the student is funded or not. Refer to FRAME Manual Section 13 for the reporting of all transportation statistics. When reporting kilometers, include distances for contracted service as well as division-owned buses.
C28: =IF(Eng_Fren=1,P28,S28) -> TRANSPORTATION OF PUPILS | P28: TRANSPORTATION OF PUPILS | S28: TRANSPORT DES ÉLÈVES
D29: =IF(Eng_Fren=1,Q29,T29) -> TRANSPORTED STUDENTS (September 29) | G29: 0 | Q29: TRANSPORTED STUDENTS (September 29) | T29: ÉLÈVES TRANSPORTÉS (le 30 septembre)
D30: =IF(Eng_Fren=1,Q30,T30) -> TOTAL KILOMETERS - LOG BOOK (For the period ended June 30) | G30: 0 | Q30: TOTAL KILOMETERS - LOG BOOK (For the period ended June 30) | T30: TOTAL DES KILOMÈTRES – CARNET DE BORD (pour la période qui se termine le 30 juin)
D31: =IF(Eng_Fren=1,Q31,T31) -> TOTAL KILOMETERS - BUS ROUTES (For the period ended June 30) | G31: 0 | Q31: TOTAL KILOMETERS - BUS ROUTES (For the period ended June 30) | T31: TOTAL DES KILOMÈTRES – PARCOURS DES AUTOBUS (pour la période qui se termine le 30 juin)
D32: =IF(Eng_Fren=1,Q32,T32) -> LOADED KILOMETERS (For the period ended June 30) | G32: 0 | Q32: LOADED KILOMETERS (For the period ended June 30) | T32: KILOMÈTRES EN CHARGE (pour la période qui se termine le 30 juin)

Sheet Personnel
B1: =DIVNAME -> School Division Name | K1: =IF(DATE=0,"",DATE) -> 2024-02-09T11:53:25.340
B3: =IF(Eng_Fren=1,BA3,BB3) -> FULL TIME EQUIVALENT PERSONNEL EMPLOYED | BA3: FULL TIME EQUIVALENT PERSONNEL EMPLOYED | BB3: PERSONNEL ÉQUIVALENT TEMPS PLEIN
B4: =IF(Eng_Fren=1,BA4,BB4) -> For the 2024/25 Fiscal Year | BA4: ="For the "&THISYR&" Fiscal Year" -> For the 2024/25 Fiscal Year | BB4: ="Pour l’exercice financier "&THISYR -> Pour l’exercice financier 2024/25
C8: =IF(Eng_Fren=1,"FUNCTION","FONCTION") -> FUNCTION | D8: =C8 -> FUNCTION | E8: FUNCTION | F8: FUNCTION | G8: FUNCTION | H8: FUNCTION | I8: FUNCTION | J8: FUNCTION
B9: =IF(Eng_Fren=1,BA9,BB9) -> CODE OBJECT \ FUNCTION | C9: 100 | D9: 200 | E9: 300 | F9: 400 | G9: 500 | H9: 600 | I9: 700 | J9: 800 | K9: ='800'!H7 -> TOTALS | BA9: CODE OBJECT \ FUNCTION | BB9: CODE OBJET OU FONCTION
B10: 320 Executive, Managerial, and Supervisory | K10: =SUM(C10:J10) -> 0 | BA10: 320 Executive, Managerial, and Supervisory | BB10: 320 Cadres, dirigeants et superviseurs
B11: 330 Instructional - Teaching | K11: =SUM(C11:F11,H11) -> 0 | BA11: 330 Instructional - Teaching | BB11: 330 Éducateurs – Enseignants
B12: 350 Instructional - Other | K12: =SUM(C12:F12,H12,I12) -> 0 | BA12: 350 Instructional - Other | BB12: 350 Éducateurs – Autres
A13: 16 | B13: 360 Technical, Specialized and Service | K13: =SUM(C13:J13) -> 0 | L13: 16 | BA13: 360 Technical, Specialized and Service | BB13: 360 Personnel technique, spécialisé et de soutien
B14: 370 Secretarial, Clerical and Other | K14: =SUM(C14:J14) -> 0 | BA14: 370 Secretarial, Clerical and Other | BB14: 370 Personnel de bureau et autre
B15: 380 Clinician | K15: =D15+F15 -> 0 | BA15: 380 Clinician | BB15: 380 Spécialistes
B16: 390 Information Technology | K16: =SUM(C16:J16) -> 0 | BA16: 390 Information Technology | BB16: 390 Technologie de l'information
B18: =IF(Eng_Fren=1,BA18,BB18) -> TOTALS (excluding Trustees) | C18: =SUM(C10:C14,C16) -> 0 | D18: =SUM(D10:D16) -> 0 | E18: =SUM(E10:E16) -> 0 | F18: =SUM(F10:F16) -> 0 | G18: =SUM(G10:G14,G16) -> 0 | H18: =SUM(H10:H14,H16) -> 0 | I18: =SUM(I10:I14,I16) -> 0 | J18: =SUM(J10:J14,J16) -> 0 | K18: =SUM(K10:K16) -> 0 | BA18: TOTALS (excluding Trustees) | BB18: TOTAUX (sauf les commissaires)
B20: =IF(Eng_Fren=1,BA20,BB20) -> 510 Clinicians contracted/outsourced/private or employed by other divisions on a Full Time Equivalent basis | BA20: 510 Clinicians contracted/outsourced/private or employed by other divisions on a Full Time Equivalent basis | BB20: 510 Spécialistes contractuels/impartis/privés ou employés par d'autres divisions en équivalents temps plein.
B22: =IF(Eng_Fren=1,BA22,BB22) -> 310 TRUSTEES | BA22: 310 TRUSTEES | BB22: 310 COMMISSAIRES
C34: FUNCTION | D34: FUNCTION | E34: FUNCTION | F34: FUNCTION | G34: FUNCTION | H34: FUNCTION | I34: FUNCTION | J34: FUNCTION
B35: CODE OBJECT \ FUNCTION | C35: 100 | D35: 200 | E35: 300 | F35: 400 | G35: 500 | H35: 600 | I35: 700 | J35: 800 | K35: TOTALS
B36: 320 Executive, Managerial, and Supervisory | C36: =_OE1320 -> 0 | D36: =_OE2320 -> 0 | E36: =_OE3320 -> 0 | F36: =_OE4320 -> 0 | G36: =_OE5320 -> 0 | H36: =_OE6320 -> 0 | I36: =_OE7320 -> 0 | J36: =_OE8320 -> 0 | K36: 0
B37: 330 Instructional - Teaching | C37: =_OE1330 -> 0 | D37: =_OE2330 -> 0 | E37: =_OE3330 -> 0 | F37: =_OE4330 -> 0 | H37: =_OE6330 -> 0 | K37: 0
B38: 350 Instructional - Other | C38: =_OE1350 -> 0 | D38: =_OE2350 -> 0 | E38: =_OE3350 -> 0 | F38: =_OE4350 -> 0 | H38: =_OE6350 -> 0 | I38: =_OE7350 -> 0 | K38: 0
B39: 360 Technical, Specialized and Service | C39: =_OE1360 -> 0 | D39: =_OE2360 -> 0 | E39: =_OE3360 -> 0 | F39: =_OE4360 -> 0 | G39: =_OE5360 -> 0 | H39: =_OE6360 -> 0 | I39: =_OE7360 -> 0 | J39: =_OE8360 -> 0 | K39: 0
B40: 370 Secretarial, Clerical and Other | C40: =_OE1370 -> 0 | D40: =_OE2370 -> 0 | E40: =_OE3370 -> 0 | F40: =_OE4370 -> 0 | G40: =_OE5370 -> 0 | H40: =_OE6370 -> 0 | I40: =_OE7370 -> 0 | J40: =_OE8370 -> 0 | K40: 0
B41: 380 Clinician | D41: =_OE2380 -> 0 | F41: =_OE4380 -> 0 | K41: 0
B42: 390 Information Technology | C42: =_OE1390 -> 0 | D42: =_OE2390 -> 0 | E42: =_OE3390 -> 0 | F42: =_OE4390 -> 0 | G42: =_OE5390 -> 0 | H42: =_OE6390 -> 0 | I42: =_OE7390 -> 0 | J42: =_OE8390 -> 0 | K42: 0
B44: TOTALS (excluding Trustees) | C44: 0 | D44: 0 | E44: 0 | F44: 0 | G44: 0 | H44: 0 | I44: 0 | J44: 0 | K44: 0
B46: 510 Clinicians contracted/outsourced/private or employed by other divisions on a Full Time Equivalent basis | D46: =_OE2510 -> 0
B48: 310 TRUSTEES | G48: =_OE5310 -> 0

Sheet Admin. Costs
B1: =DIVNAME&" : "&Title -> School Division Name : 2024/25 FRAME Budget | I1: =IF(DATE=0,"",DATE) -> 2024-02-09T11:53:25.340
B2: CALCULATION OF ADMINISTRATION COSTS
B3: AS A PERCENTAGE OF TOTAL EXPENSES
B4: Administration Costs
C5: Divisional Administration, Function 500 | I5: =_OE500 -> 0 | K5: =IF(I5-ROUND(I5,0)<>0,"No decimals!","") -> 
C6: Less: | D6: Liability Insurance | I6: 0 | O6: FO | P6: Incremental administration costs related to Canupawakpa Dakota Nation Trustee
D7: Administration portion of self-funded expenses (see below) | I7: =IF(OR(PENREV="",PENREV=0),0,MIN(PENADMIN,PENREV))+IF(OR(FORREV="",FORREV=0),0,MIN(FORADMIN,FORREV)) -> 0 | J7: * | O7: PA | P7: Incremental administration costs related to Waywayseecappo
D8: Trustee election costs | I8: 0 | O8: RO | P8: Incremental administration costs related to Rolling River First Nation Trustee
D9: =+P9 ->  | I9: 0 | O9: =DIVCODE -> Co. | P9: =_xlfn.IFNA(VLOOKUP(O9,O6:P8,2,FALSE),"") -> 
I10: =I5-SUM(I6:I9) -> 0 | J10: (A)
B11: Expense Base
C12: Total Operating Expenses | I12: =OPEXP -> 0
C13: Plus: | D13: Transfers to Capital | I13: =TRANSTOCAP -> 0
C14: Less: | D14: Adult Learning Centres, Function 300 | I14: =_OE300 -> 0
I15: =I12+I13-I14 -> 0 | J15: (B)
B16: Percentage (A) / (B) | I16: =IF(ADMIN=0,0,ADMIN/EXPBASE) -> 0 | N16: Spec Ley 1 | P16: Spec Ley 2
B17: ="% increase in "&THISYR&" Special Requirement" -> % increase in 2024/25 Special Requirement | J17: =IF(I17=0,"",IF(I17>0.02,"Limit Exceeded","Limit Met")) ->  | N17: =LASTYR -> 2023/24 | O17: =THISYR -> 2024/25 | P17: =+N17 -> 2023/24 | Q17: =+O17 -> 2024/25
B18: Maximum Allowable Percentage | I18: =IF(ENROLTOT=0,0,IF(OR(DIVCODE="FL",DIVCODE="KE",DIVCODE="MY"),4.25%,M25)) -> 0 | L18: =DIVCODE -> Co. | N18: =+SLPREV -> 0 | O18: =+'Special Levy 1'!F14 -> 0 | P18: =+SLPREVLT -> 0 | Q18: =+'Special Levy 2'!F11 -> 0
N19: =IF(OR(N18=0,O18=0),0,+O18/N18-1) -> 0 | P19: =IF(OR(P18=0,Q18=0),0,+Q18/P18-1) -> 0 | Q19: HA and BR | R19: =+Q19 -> HA and BR | S19: Rest | T19: =+S19 -> Rest
E20: Special Requirement Limit | F20: Met | G20: Exceeded | M20: =IF($I$17>0.02,"Limit Exceeded","Limit Met") -> Limit Met | N20: Old rates | O20: =IF(N19=0,P19,N19) -> 0 | Q20: =+F20 -> Met | R20: =+G20 -> Exceeded
E21: If FTE Enrolment is 5,000 or over | F21: =+O21 -> 0.027 | G21: =+P21 -> 0.024 | L21: 5000 + | M21: =IF($I$17>0.02,G21,F21) -> 0.027 | N21: 0.03 | O21: =IF(OR($L$18="HA",$L$18="BR"),Q21,S21) -> 0.027 | P21: =IF(OR($L$18="HA",$L$18="BR"),R21,T21) -> 0.024 | Q21: =ROUND($N21*0.98,4) -> 0.0294 | R21: =ROUND($N21*0.95,4) -> 0.0285 | S21: 0.027 | T21: 0.024
E22: If FTE Enrolment is 1,000 or less | F22: 0.0353 | G22: 0.0342 | L22: -1000 | M22: =IF($I$17>0.02,G22,F22) -> 0.0353 | N22: 0.036 | Q22: =ROUND($N22*0.98,4) -> 0.0353 | R22: =ROUND($N22*0.95,4) -> 0.0342
E23: If FTE enrolment is between 1,000 and 5,000 | F23: =IF(ROUND((N27+(O27-P27)*Q27),4)>F22,F22,ROUND((N27+(O27-P27)*Q27),4)) -> 0.0353 | G23: =IF(ROUND((N28+(O28-P28)*Q28),4)>G22,G22,ROUND((N28+(O28-P28)*Q28),4)) -> 0.0342 | L23: Bet 1k and 5k | M23: =IF($I$17>0.02,G23,F23) -> 0.0353 | N23: 0.03 | Q23: =ROUND($N23*0.98,4) -> 0.0294 | R23: =ROUND($N23*0.95,4) -> 0.0285
E24: Northern Division | F24: 0.0425 | G24: 0.0425 | L24: Northern | M24: =IF($I$17>0.02,G24,F24) -> 0.0425 | N24: 0.0425 | Q24: =+N24 -> 0.0425 | R24: =+N24 -> 0.0425
M25: =ROUND(IF(ENROLTOT<=1000,M22,IF(ENROLTOT>=5000,M21,M23)),4) -> 0.0353
E26: If FTE enrolment is between 1,000 and 5,000: | O26: Max | P26: FTE Enrol
E27: 2% Special Requirement limit met - To a maximum of 3.53% | F27: 2.94% + (5,000 - enrolment) x 0.0001475% | N27: 0.0294 | O27: 5000 | P27: =IF(AND(ENROLTOT>1000,ENROLTOT<=5000),ENROLTOT,0) -> 0 | Q27: 1.475e-06
E28: 2% Special Requirement limit exceeded - To a maximum of 3.42% | F28: 2.85% + (5,000 - enrolment) x 0.0001425% | N28: 0.0285 | O28: 5000 | P28: =+P27 -> 0 | Q28: 1.425e-06
E29: =IF(ENROLTOT=0,"Note: Enter Enrolment on Student tab.","") -> Note: Enter Enrolment on Student tab.
B30: Self-Funded Expenses (fully offset by incremental revenues):
C31: Foreign Student Programs
C32: Expenses (1)
D33: Instructional | I33: 0 | K33: =IF(I33-ROUND(I33,0)<>0,"No decimals!","") -> 
D34: Administration (deducted above) | I34: 0 | J34: *
D35: Other: | I35: 0
I36: 0
I37: =SUM(I33:I36) -> 0
C38: Associated Revenue (2) | I38: 0
C39: Self-Administered Pension Plans
C40: Expenses (1)
D41: Administration (deducted above) | I41: 0 | J41: * | K41: =IF(I41-ROUND(I41,0)<>0,"No decimals!","") -> 
D42: Other: | I42: 0 | K42: =IF(I42-ROUND(I42,0)<>0,"No decimals!","") -> 
I43: 0 | K43: =IF(I43-ROUND(I43,0)<>0,"No decimals!","") -> 
I44: =SUM(I41:I43) -> 0 | K44: =IF(I44-ROUND(I44,0)<>0,"No decimals!","") -> 
C45: Associated Revenue (2) | I45: 0 | K45: =IF(I45-ROUND(I45,0)<>0,"No decimals!","") -> 
C46: (1) Incremental costs of the program.
C47: (2) Tuition fees from foreign students or the pension plan administration fee.

Sheet Allow Guide
C3: TO PRINT, CLICK THE PRINTER ICON ON YOUR TOOLBAR (PRINTS 3 LEGAL SIZE PAGES)
C6: GUIDE FOR THE COMPLETION OF ALLOWABLE AND UNSUPPORTED EXPENSES | H6: PAGE 1 OF 3
C9: ="For the "&Code!B19&" budget, the Allowable and Unsupported expenses worksheets, including Appendices A and B, are used in the calculation of:" -> For the 2024/25 budget, the Allowable and Unsupported expenses worksheets, including Appendices A and B, are used in the calculation of:
C12: (1) Allowable Expenses for:
C13: (a) | D13: Library Services, Student Services, Counselling and Guidance and Professional Development for
D14: =THISYR&";" -> 2024/25;
C15: (b) | D15: ="Occupancy for "&TEXT(yrend,"0")&"/"&TEXT(Code!B11,"0")&" and;" -> Occupancy for 2025/2026 and;
C16: (c) | D16: ="Coordinator /Clinician, Board and Room and Small Schools supports for "&THISYR&"; and" -> Coordinator /Clinician, Board and Room and Small Schools supports for 2024/25; and
C18: ="(2) Unsupported Expenses for Equalization support for "&TEXT(yrend,"0")&"/"&TEXT(Code!B11,"0")&"." -> (2) Unsupported Expenses for Equalization support for 2025/2026.
C20: The first page of the Calculation of Allowable and Unsupported Expenses schedule (page 18 - worksheet tab 'Allowable') is comprised of two inter-related sections - Calculation of Allowable Expenses and Calculation of Unsupported Expenses - with data from the first section flowing into the second section. It is a comprehensive statement of all expenses and the adjustments and deductions necessary to arrive at Allowable and Unsupported Expenses. Appendices A and B, (pages 19 and 20) are calculations of those adjustments and deductions. It is recommended that the appendices be completed first, and then the two input schedules, 'Allow Input' and 'Allow Input 2'. No input is allowed on the Calculation of Allowable and Unsupported Expenses schedule.
C28: Total Expenses on page 18 are carried forward from the Operating Fund Expense Detail pages. Functions or programs whose allowable expenses are used in a “lesser of” comparison for calculating components of base support have been included in the Calculation of Allowable Expenses section. Functions 300 and 400 have also been included for the calculation of unsupported expenses purposes.
C33: Allocations to the appropriate functions/programs (i.e. the functions/programs where the related expenses are recorded) are made on Appendix A and the two input schedules, and then appear in the Calculation of Allowable Expenses section of page 18. When you click on the function/program cell, a drop down list will appear. If the appropriate function/program is not included in the list, select 'Unallocated'.
C38: The Calculation of Unsupported Expenses section adds the Allowable Expenses (calculated in the Calculation of Allowable Expenses section) to the total of the functions and programs not included in that section, and then deducts the Unallocated Adjustments/Reductions (from the Allowable section), Base Support and Formula Guarantee (from page 2), and school bus amortization (from the Tangible Capital Assets Schedule in the 2020/21 financial statements).
C43: ALLOW INPUT AND ALLOW INPUT 2
C45: The use of the allowable input schedules is mandatory, as no input is allowed on the Calculation of Allowable and Unsupported Expenses schedule. The input schedules are used for all Allowable Expense allocations, with the exception of the items reported in the Adjustments to Expenses section of Appendix A, as those allocations are made right on Appendix A. The allocable amounts total for each section of Appendices A and B are carried to the input pages where error messages will appear until all allocable revenues have been entered. If the appropriate function/program is not included in the drop down list, select "Unallocated".
C52: APPENDIX A, page 19
C54: ADJUSTMENTS TO EXPENSES: amounts entered here are carried forward to the Calculation of Allowable and Unsupported Expenses, page 18. Select the appropriate function/program from the drop down lists. If the appropriate function/program is not included in the list, select 'Unallocated'.
C59: (a) | D59: Capitalized Energy Management Systems Costs (including lease or loan payments), net of any related revenues, are to be added to Function 800, Operations and Maintenance.
C62: (b) | D62: Capitalized Section "D" School Buildings Costs are Section "D" expenses that have been capitalized. These should be added to Function 800 Allowable Expenses in order to be included for Occupancy funding. These expenses must be net of any related revenues other than Section "D" Support (e.g. federal funding, insurance proceeds, Manitoba Hydro' s share of retrofitting costs, donations, etc.).
C67: (c) | D67: Transfers from the Capital Fund - In most cases, funds transferred to the Operating Fund must be deducted from the function where the related expenditure is recorded. This figure is brought forward from the Detail of Transfers to(from) Capital Fund (page 14).
C71: (d) | D71: Leased Non-School Space - Lease costs for non-school space, such as division administration buildings and bus garages, must be deducted from Function 800 allowable expenses. If the lease costs include utilities, maintenance, etc., those costs remain in Function 800 to be available for Occupancy funding, and only the rental portion is removed.
C76: (e) | D76: Other Capitalized Equipment and Vehicles - Items that have been capitalized such as photocopiers, computer hardware and software, servers, network infrastructure, furniture & fixtures, photocopiers, other equipment (excluding surplus building expenses) and vehicles (other than buses) may be added to the appropriate function or program on page 18 to be available for funding. To do this, on Appendix A enter the adjustment amounts, including lease and loan payments, and the function/program to which each amount is to be allocated. The adjustments will be carried forward to page 18.
C83: GUIDE FOR THE COMPLETION OF ALLOWABLE AND UNSUPPORTED EXPENSES | H83: PAGE 2 OF 3
C85: APPENDIX A (cont'd)
C87: CATEGORICAL SUPPORT TO BE ALLOCATED: all items except Coordinator/Clinician, Board and Room, and Small Schools data (see notes (a), (b) and (c) below) are cell-referenced from operating fund revenues entered on page 2, Revenue Detail - Province of Manitoba. The Allocable Categorical Support on Appendix A includes only support that could properly be allocated to one of the functions/programs in the Calculation of Allowable Expenses section of the previous page. To make the allocations, the input schedule (Allow Input tab) must be used. The total Allocable Categorical support is carried back to the Allowable Input schedule where an error message will appear at the bottom of the Categorical section until all allocable amounts have been entered. The total Categorical Support is carried to page18. The difference between the total Categorical Support and the amounts allocated on the input schedule are automatically entered on page 18 on the Unallocated Adjustments/Reductions line.
C98: Please note the following additional data entry requirements:
C100: (a) | D100: Special Needs: Coordinator/Clinician grant is determined by taking the lesser of the maximum support (as provided in your Calculation of Support) and allowable expenses. Allowable expenses are eligible expenses minus any related revenues. Eligible expenses consist of salaries, benefits and allowances, professional service fees, and travel and meeting expenses for qualified clinicians and up to one qualified coordinator. Maximum support, eligible expenses and any related revenues are entered on lines A, B and C respectively under the "Special Needs: Coordinator/Clinician" heading.
D107: To be classified as a ‘qualified’ Coordinator, for purposes of coordinator and clinician support, an individual must hold a Manitoba Special Education Coordinator Certificate or Special Education Teacher Certificate and perform functions which include coordinating special education services and providing consultant services to special education, resource and regular classroom teachers. To be classified as a ‘qualified’ Clinician, a Manitoba Permanent School Clinician Certificate, or a current Provisional School Clinician Certificate must be held.
D113: Expenses related to individuals with Special Education Teacher certificates, who are not providing coordination services, are not allowable for purposes of the coordinator/clinician support calculation.
D116: Maximum support, eligible expenses and any related revenues are entered on lines A, B and C respectively under the "Special Needs: Coordinator/Clinician" heading.
C119: (b) | D119: Small Schools - both the maximum support (as provided in your Calculation of Support) and the program expenses must be entered on lines A and B under the Small Schools heading. Program expenses consist of the actual amount expended in respect of all small schools in the school division to:
E122: (i) improve the quality of education in small schools, and
E123: (ii) provide human and material resources not otherwise available to schools.
D124: Eligible support is the lesser of the two, and is forwarded to Prov Rev 1 page 2.
C126: (c) | D126: Board and Room - both the maximum support (as provided in your Calculation of Support) and the program expenses must be entered on lines A and B under the Board and Room heading. Then, eligible support is the lesser of the two, and is forwarded to Prov Rev 1 page 2. Program expenses consist of the sum of the actual amount of board and room, transportation and other miscellaneous costs expended per pupil eligible for board and room support. Expenses related to board and room support must be reported under Program 780, Boarding of Students/Dormitories, in the financial statements. Expenses under Program 780 must be equal to or greater than the expenses reported on the Calculation of Allowable Expenses (Appendix A).
C134: OTHER PROGRAM SUPPORT
C135: Other Program Support is allocated on the allowable input schedule - tab 'Allow Input'.
D139: CALCULATION OF ALLOWABLE SCHOOL BUILDINGS SUPPORT "D" EXPENSES
D141: To determine allowable Section "D" expenses:
D143: Add: | E143: - | F143: Total of Program 850, School Building Repairs and Replacements.
E144: - | F144: Capitalized Section "D" expenses, net of all related revenues except Section "D" Support
E145: - | F145: Grounds - expenses included in Program 880 which are also listed in Section "D" of the
F146: Capital Support Program
D148: Deduct: | E148: - | F148: Related revenue other than "D" Support - e.g. Minor Capital Support, federal funding,
F149: Manitoba Hydro's share of retrofitting, insurance proceeds, donations, etc.
D151: These calculations determine your school division's allowable Section "D" expenses. If the maximum
D152: support is greater than Allowable Section D Expenses, and the Division wants to carry forward a portion
D153: of their 2022/2023 "D" support to 2023/2024, the Division may overwrite the amount in box D to insert a
D154: lesser amount. The lesser of box C or box D will be used to calculate your "D" support for 2022/2023.
C159: GUIDE FOR THE COMPLETION OF ALLOWABLE AND UNSUPPORTED EXPENSES | H159: PAGE 3 OF 3
C161: APPENDIX B (page 20)
C163: Amounts to be allocated re OTHER PROVINCIAL GOVERNMENT REVENUE and NON-PROVINCIAL SOURCES are calculated on Appendix B. A calculation on the right hand side of page 20 starts with the Total Other Provincial Government Revenue and subtracts the Education Property Tax Credit and the Tax Incentive Grant. The resulting amount is carried to page 18 and difference between it and the allocated revenues is automatically entered on the Unallocated Adjustments/Reductions line to be deducted in the Calculation of Unsupported Expenses. Total Allocable Other Provincial Government Revenue is carried to the Allow Input schedule where the allocations are made. Non-Provincial Sources revenues are split into Total Allocable Fees and Total Allocable Other Revenue on the right hand side of page 20. These totals are carried to both page 18 and Allow Input 2.
C173: On the Allow Input schedules select the appropriate function/program from the drop down lists. If the appropriate function/program is not included in the list, select 'Unallocated'. It is up to the division whether all items that would fall into the unallocated category are listed separately on the input schedules or entered as one total. Until all allocable amounts have been entered, an error message will appear at the bottom of the appropriate section of the input schedules.
C180: It is not necessary to allocate the following revenues:
C182: 1 | D182: Special Requirement, Education Property Tax Credit, Tax Incentive Grant and Property Tax Offset Grant.
C184: 2 | D184: Interest
C186: 3 | D186: General Support Grant
C188: 4 | D188: Advertising Revenue
D189: Advertising revenue is defined as revenue derived from external advertising placed in or on school/school division property for remuneration. Advertising revenue is to be allocated to the extent of any incremental costs incurred to earn the revenue. If there are no incremental costs, the advertising revenue does not have to be allocated.
C193: 5 | D193: International Student Tuition
D194: The amount of international student tuition revenue to be allocated on the Calculation of Allowable and Unsupported Expenses is the total of the division’s per pupil expenditure (calculated in accordance with FRAME) times the international student enrolment plus any incremental expenses incurred in generating international student tuition. International student tuition revenue in excess of this total does not have to be allocated.
C199: 6 | D199: School/School Division Donations
D200: Donations provided in support of specific activities or expenses must be allocated if the associated expenses are included in the school division financial statements. Donations that are not provided in support of specific activities or specific expense are not allocated.
C204: 7 | D204: School/School Division Fees and Charges
D205: If the associated expenses are included in the division operating fund then the revenue is to be allocated in the Calculation of Allowable and Unsupported Expenses.
C209: 8 | D209: Rental Revenue for Surplus School Buildings
D210: Rental revenue for each surplus building must be allocated on the Calculation of Allowable and Unsupported Expenses up to the amount of the direct cost for the building included in Function 800. Direct cost includes all costs associated with the operation of the property including maintenance, repairs and replacements, insurance and property taxes.
C215: If there are special circumstances, other than those mentioned above, for not allocating revenues, the amount not allocated is to be reported in the "Non-allocable" column on page 20 and the reasons for not allocating must be provided.

Sheet Allow Input
B1: =DIVNAME&" : "&Title -> School Division Name : 2024/25 FRAME Budget | F1: =NOW() -> 2024-02-09T11:53:25.340 | IT1: List2 | IV1: List
IT2: Unallocated | IV2: Unallocated
B3: DETAIL OF REVENUE ALLOCATIONS FOR ALLOWABLE EXPENSES | IT3: 210-260 | IV3: 210-260
B4: CATEGORICAL SUPPORT AND | IT4: 270 | IV4: 270
B5: OTHER PROVINCIAL GOVERNMENT REVENUES | IT5: 300 | IV5: 400
IT6: 400 | IV6: 620
IT7: 620 | IV7: 630
IT8: 630 | IV8: 800
D9: Function/ | IT9: 800
B10: CATEGORICAL SUPPORT (From Appendix A) | D10: Program | F10: Amount
IV11: =IF(D11=$IV$3,200,"") -> 
G12: =IF(I12+J12=0,"","A Function/Program or Amount is Missing") ->  | I12: =IF(AND(F12<>0,D12=""),1,0) -> 0 | J12: =IF(AND(F12="",D12<>""),1,0) -> 0
G13: =IF(I13+J13=0,"","A Function/Program or Amount is Missing") ->  | I13: =IF(AND(F13<>0,D13=""),1,0) -> 0 | J13: =IF(AND(F13="",D13<>""),1,0) -> 0
I14: 0 | J14: 0
I15: 0 | J15: 0
I16: 0 | J16: 0
I17: 0 | J17: 0
I18: 0 | J18: 0
I19: 0 | J19: 0
I20: 0 | J20: 0
I21: 0 | J21: 0
B23: =+'AppX A'!J30&": "&TEXT(CATALLOCATE,"$0,0") -> Total allocable Categorical Support (carried to Allow Input): $00 | F23: =IF(SUM(F12:F21)<>CATALLOCATE,"OUT BY: "&TEXT(CATALLOCATE-SUM(F12:F21),"0,0"),SUM(F12:F21)) -> 0
D25: Function/ | F25: Amount
B26: OTHER PROGRAM SUPPORT | D26: Program
G28: =IF(I28+J28=0,"","A Function/Program or Amount is Missing") ->  | I28: =IF(AND(F28<>0,D28=""),1,0) -> 0 | J28: =IF(AND(F28="",D28<>""),1,0) -> 0
I29: 0 | J29: 0
I30: 0 | J30: 0
I31: 0 | J31: 0
I32: 0 | J32: 0
I33: 0 | J33: 0
I34: 0 | J34: 0
B36: ="Total Other Program Support: "&TEXT(OTHRPROGCARRIED,"$0,0") -> Total Other Program Support: $00 | F36: =IF(SUM(F28:F35)<>OTHRPROGCARRIED,"OUT BY: "&TEXT(OTHRPROGCARRIED-SUM(F28:F35),"0,0"),SUM(F28:F35)) -> 0
D38: Function/ | F38: Amount
B39: OTHER PROVINCIAL GOVERNMENT REVENUE | D39: Program
F40: AMOUNT
B42: ='Prov Rev 2'!C21 -> Special Needs Additional Funding | F42: =OTHODE2 -> 0 | G42: =IF(I42+J42=0,"","A Function/Program or Amount is Missing") ->  | I42: =IF(AND(F42<>0,D42=""),1,0) -> 0 | J42: =IF(AND(F42="",D42<>""),1,0) -> 0
B43: ='Prov Rev 2'!C22 -> Wage Assistance | F43: =OTHODE3 -> 0 | I43: 0 | J43: 0
B44: ='Prov Rev 2'!C23 -> Student Presence and Engagement | F44: =OTHODE4 -> 0 | I44: 0 | J44: 0
B45: ='Prov Rev 2'!C24 -> Additional Operating Support | F45: =OTHODE5 -> 0 | I45: 0 | J45: 0
I46: 0 | J46: 0
I47: 0 | J47: 0
I48: 0 | J48: 0
I49: 0 | J49: 0
I50: 0 | J50: 0
I51: 0 | J51: 0
I52: 0 | J52: 0
I53: 0 | J53: 0
I54: 0 | J54: 0
I55: 0 | J55: 0
I56: 0 | J56: 0
I57: 0 | J57: 0
I58: 0 | J58: 0
I59: 0 | J59: 0
I60: 0 | J60: 0
I61: 0 | J61: 0
I62: 0 | J62: 0
I63: 0 | J63: 0
I64: 0 | J64: 0
I65: 0 | J65: 0
I66: 0 | J66: 0
I67: 0 | J67: 0
I68: 0 | J68: 0
I69: 0 | J69: 0
I70: 0 | J70: 0
B72: ="Total Allocable: "&TEXT('AppX B'!D17,"$0,0") ->  | F72: =IF(SUM(F42:F71)<>'AppX B'!D17,"OUT BY: "&TEXT('AppX B'!D17-SUM(F42:F71),"0,0"),SUM(F42:F71)) -> 
IV87: =IF(D87=$IV$3,200,"") -> 
... 2 more rows

Sheet Allow Input 2
B1: =DIVNAME&" : "&Title -> School Division Name : 2024/25 FRAME Budget | F1: =NOW() -> 2024-02-09T11:53:25.340 | IV1: List
IV2: Unallocated
B3: DETAIL OF REVENUE ALLOCATIONS FOR ALLOWABLE EXPENSES | IV3: 210-260
B4: NON-PROVINCIAL SOURCES - OTHER | IV4: 270
IV5: 300
IV6: 400
IV7: 620
D8: Function/ | IV8: 630
B9: NON-PROVINCIAL SOURCES - OTHER | D9: Program | F9: Amount | IV9: 800
G11: =IF(K11+L11=0,"","A Function/Program or Amount is Missing") ->  | K11: =IF(AND(F11<>0,D11=""),1,0) -> 0 | L11: =IF(AND(F11="",D11<>""),1,0) -> 0 | IV11: =IF(D11=$IV$3,200,"") -> 
G12: =IF(K12+L12=0,"","A Function/Program or Amount is Missing") ->  | K12: =IF(AND(F12<>0,D12=""),1,0) -> 0 | L12: =IF(AND(F12="",D12<>""),1,0) -> 0
K13: 0 | L13: 0
K14: 0 | L14: 0
K15: 0 | L15: 0
K16: 0 | L16: 0
K17: 0 | L17: 0
K18: 0 | L18: 0
K19: 0 | L19: 0
K20: 0 | L20: 0
K21: 0 | L21: 0
K22: 0 | L22: 0
K23: 0 | L23: 0
K24: 0 | L24: 0
K25: 0 | L25: 0
K26: 0 | L26: 0
K27: 0 | L27: 0
K28: 0 | L28: 0
K29: 0 | L29: 0
K30: 0 | L30: 0
K31: 0 | L31: 0
K32: 0 | L32: 0
K33: 0 | L33: 0
K34: 0 | L34: 0
K35: 0 | L35: 0
K36: 0 | L36: 0
K37: 0 | L37: 0
K38: 0 | L38: 0
K39: 0 | L39: 0
K40: 0 | L40: 0
K41: 0 | L41: 0
K42: 0 | L42: 0
K43: 0 | L43: 0
B45: ="Total Non-Provincial Sources - Other: "&TEXT(TOTNONTUIT,"$0,0") -> Total Non-Provincial Sources - Other: $00 | F45: =IF(SUM(F11:F43)<>TOTNONTUIT,"OUT BY: "&TEXT(TOTNONTUIT-SUM(F11:F43),"0,0"),SUM(F11:F43)) -> 0
D47: Function/
B48: TUITION, TRANSFER AND RESIDUAL FEES | D48: Program | F48: Amount
G50: =IF(K50+L50=0,"","A Function/Program or Amount is Missing") ->  | K50: =IF(AND(F50<>0,D50=""),1,0) -> 0 | L50: =IF(AND(F50="",D50<>""),1,0) -> 0
K51: 0 | L51: 0
K52: 0 | L52: 0
K53: 0 | L53: 0
K54: 0 | L54: 0
K55: 0 | L55: 0
K56: 0 | L56: 0
K57: 0 | L57: 0
K58: 0 | L58: 0
K59: 0 | L59: 0
K60: 0 | L60: 0
K61: 0 | L61: 0
K62: 0 | L62: 0
K63: 0 | L63: 0
B65: ="Total Tuition, Transfer and Residual Fees: "&TEXT(TOTFEES+'AppX B'!J38,"$0,0") -> Total Tuition, Transfer and Residual Fees: $00 | F65: =IF(SUM(F50:F63)<>'AppX B'!J38,"OUT BY: "&TEXT('AppX B'!J38-SUM(F50:F63),"0,0"),SUM(F50:F63)) -> 0
IV75: =IF(D75=$IV$3,200,"") -> 
... 2 more rows

Sheet Allowable
B1: =DIVNAME&" : "&Title -> School Division Name : 2024/25 FRAME Budget | J1: =NOW() -> 2024-02-09T11:53:25.340 | AW1: FALSE | AX1: =IF(Eng_Fren=1,AY1,AZ1) -> OPEN OR CLOSE DETAIL | AY1: OPEN OR CLOSE DETAIL | AZ1: Afficher/Masquer les détails
D2: =IF(Eng_Fren=1,BA3,BJ3) -> CALCULATION OF ALLOWABLE AND UNSUPPORTED EXPENSES
AX3: FALSE | BA3: CALCULATION OF ALLOWABLE AND UNSUPPORTED EXPENSES | BJ3: CALCUL DES DÉPENSES ADMISSIBLES ET NON FINANCÉES
B4: =IF(Eng_Fren=1,BA4,BJ4) -> CALCULATION OF ALLOWABLE EXPENSES | BA4: CALCULATION OF ALLOWABLE EXPENSES | BJ4: CALCUL DES DÉPENSES ADMISSIBLES
E5: =IF(Eng_Fren=1,BD5,BM5) -> R E D U C T I O N S T O E X P E N S E S | BD5: R E D U C T I O N S T O E X P E N S E S | BM5: R É D U C T I O N D E S D É P E N S E S
G6: =IF(Eng_Fren=1,BF6,BO6) -> OTHER | H6: NON-PROVINCIAL SOURCES | BF6: OTHER | BG6: NON-PROVINCIAL SOURCES | BO6: AUTRES | BP6: SOURCES NON PROVINCIALES
D7: =IF(Eng_Fren=1,BC7,BL7) -> ADJUSTMENTS | F7: OTHER | G7: PROVINCIAL | H7: TUITION, | BC7: ADJUSTMENTS | BE7: OTHER | BF7: PROVINCIAL | BG7: TUITION, | BL7: REDRESSEMENTS | BN7: AIDE | BO7: RECETTES DU | BP7: DR. SCOLARITÉ,
D8: TO | E8: CATEGORICAL | F8: PROGRAM | G8: GOVERNMENT | H8: TRANSFER AND | BC8: TO | BD8: CATEGORICAL | BE8: PROGRAM | BF8: GOVERNMENT | BG8: TRANSFER AND | BL8: DES | BM8: AIDE PAR | BN8: À D'AUTRES | BO8: GOUVERNEMENT | BP8: TRANSFERTS ET
B9: =IF(Eng_Fren=1,BA9,BJ9) -> FUNCTION / PROGRAM | C9: =IF(Eng_Fren=1,BB9,BK9) -> TOTAL | D9: EXPENSES | E9: SUPPORT | F9: SUPPORT | G9: REVENUE | H9: RESIDUAL FEES | I9: =IF(Eng_Fren=1,BH9,BQ9) -> OTHER | J9: =IF(Eng_Fren=1,BI9,BR9) -> ALLOWABLE | BA9: FUNCTION / PROGRAM | BB9: TOTAL | BC9: EXPENSES | BD9: SUPPORT | BE9: SUPPORT | BF9: REVENUE | BG9: RESIDUAL FEES | BH9: OTHER | BI9: ALLOWABLE | BJ9: FONCTION OU PROGRAMME | BK9: DÉPENSES | BL9: DÉPENSES | BM9: CATÉGORIE | BN9: PROGRAMMES | BO9: PROVINCIAL | BP9: FRAIS SUPPL. | BQ9: AUTRES | BR9: DÉPENSES
C10: =IF(Eng_Fren=1,BB10,BK10) -> EXPENSES | D10: =IF(Eng_Fren=1,BC10,BL10) -> < < < < < (from Appendix A) > > > > > | G10: =IF(Eng_Fren=1,BF10,BO10) -> < < < < < (from Appendix B) > > > > > | J10: =IF(Eng_Fren=1,BI10,BR10) -> EXPENSES | BB10: EXPENSES | BC10: < < < < < (from Appendix A) > > > > > | BF10: < < < < < (from Appendix B) > > > > > | BI10: EXPENSES | BK10: TOTALES | BL10: < < < < < (voir Annexe A) > > > > > | BO10: < < < < < (voir Annexe B) > > > > > | BR10: ADMISSIBLES
B11: =IF(Eng_Fren=1,BA11,BJ11) -> 210 - 260 Student Support Services | C11: =_OE200-_OE270 -> 0 | D11: =SUMIF('AppX A'!X9:X20,200,'AppX A'!G9:G26) -> 0 | E11: =SUMIF('Allow Input'!$IV$11:$IV$21,200,'Allow Input'!F11:F21) -> 0 | F11: =SUMIF('Allow Input'!$IV$27:$IV$34,200,'Allow Input'!$F$27:$F$34) -> 0 | G11: =SUMIF('Allow Input'!$IV$41:$IV$70,200,'Allow Input'!$F$41:$F$70) -> 0 | H11: =SUMIF('Allow Input 2'!IV49:IV63,200,'Allow Input 2'!F49:F63) -> 0 | I11: =SUMIF('Allow Input 2'!IV10:IV43,200,'Allow Input 2'!F10:F43) -> 0 | J11: =SUM(C11,D11)-SUM(E11:I11) -> 0 | BA11: 210 - 260 Student Support Services | BJ11: 210 - 260 Services de soutien aux élèves
B12: 270 Counselling and Guidance | C12: =_OE270 -> 0 | D12: =SUMIF('AppX A'!E9:E26,270,'AppX A'!G9:G26) -> 0 | E12: =SUMIF('Allow Input'!D11:D21,270,'Allow Input'!F11:F21) -> 0 | F12: =SUMIF('Allow Input'!$D$27:$D$34,270,'Allow Input'!$F$27:$F$34) -> 0 | G12: =SUMIF('Allow Input'!$D$41:$D$70,270,'Allow Input'!$F$41:$F$70) -> 0 | H12: =SUMIF('Allow Input 2'!D49:D63,270,'Allow Input 2'!F49:F63) -> 0 | I12: =SUMIF('Allow Input 2'!D10:D43,270,'Allow Input 2'!F10:F43) -> 0 | J12: =C12+D12-SUM(E12:I12) -> 0 | BA12: 270 Counselling and Guidance | BJ12: 270 Orientation et consultation
B13: 300 Adult Learning Centres | C13: =_OE300 -> 0 | G13: =SUMIF('Allow Input'!$D$41:$D$70,300,'Allow Input'!$F$41:$F$70) -> 0 | H13: =SUMIF('Allow Input 2'!D49:D63,300,'Allow Input 2'!F49:F63) -> 0 | I13: =SUMIF('Allow Input 2'!D10:D43,300,'Allow Input 2'!F10:F43) -> 0 | BA13: 300 Adult Learning Centres | BJ13: 300 Centres d'apprentissage pour adultes
B14: 400 Community Education and Services | C14: =_OE400 -> 0 | E14: =SUMIF('Allow Input'!D11:D21,400,'Allow Input'!F11:F21) -> 0 | F14: =SUMIF('Allow Input'!$D$27:$D$34,400,'Allow Input'!$F$27:$F$34) -> 0 | G14: =SUMIF('Allow Input'!$D$41:$D$70,400,'Allow Input'!$F$41:$F$70) -> 0 | H14: =SUMIF('Allow Input 2'!D49:D63,400,'Allow Input 2'!F49:F63) -> 0 | I14: =SUMIF('Allow Input 2'!D10:D43,400,'Allow Input 2'!F10:F43) -> 0 | BA14: 400 Community Education and Services | BJ14: 400 Éducation et services communautaires
B15: 620 Library / Media Centre | C15: =_OE620 -> 0 | D15: =SUMIF('AppX A'!E9:E26,620,'AppX A'!G9:G26) -> 0 | E15: =SUMIF('Allow Input'!D11:D21,620,'Allow Input'!F11:F21) -> 0 | F15: =SUMIF('Allow Input'!$D$27:$D$34,620,'Allow Input'!$F$27:$F$34) -> 0 | G15: =SUMIF('Allow Input'!$D$41:$D$70,620,'Allow Input'!$F$41:$F$70) -> 0 | H15: =SUMIF('Allow Input 2'!D49:D63,620,'Allow Input 2'!F49:F63) -> 0 | I15: =SUMIF('Allow Input 2'!D10:D43,620,'Allow Input 2'!F10:F43) -> 0 | J15: =SUM(C15,D15)-SUM(E15:I15) -> 0 | BA15: 620 Library / Media Centre | BJ15: 620 Bibliothèque et médiathèque
B16: 630 Professional and Staff Development | C16: =_OE630 -> 0 | D16: =SUMIF('AppX A'!E9:E26,630,'AppX A'!G9:G26) -> 0 | E16: =SUMIF('Allow Input'!D11:D21,630,'Allow Input'!F11:F21) -> 0 | F16: =SUMIF('Allow Input'!$D$27:$D$34,630,'Allow Input'!$F$27:$F$34) -> 0 | G16: =SUMIF('Allow Input'!$D$41:$D$70,630,'Allow Input'!$F$41:$F$70) -> 0 | H16: =SUMIF('Allow Input 2'!D49:D63,630,'Allow Input 2'!F49:F63) -> 0 | I16: =SUMIF('Allow Input 2'!D10:D43,630,'Allow Input 2'!F10:F43) -> 0 | J16: =SUM(C16,D16)-SUM(E16:I16) -> 0 | BA16: 630 Professional and Staff Development | BJ16: 630 Perfectionnement prof. et du personnel
B17: 800 Operations and Maintenance | C17: =_OE800 -> 0 | D17: =SUMIF('AppX A'!E9:E26,800,'AppX A'!G9:G26) -> 0 | E17: =SUMIF('Allow Input'!D11:D21,800,'Allow Input'!F11:F21) -> 0 | F17: =SUMIF('Allow Input'!$D$27:$D$34,800,'Allow Input'!$F$27:$F$34) -> 0 | G17: =SUMIF('Allow Input'!$D$41:$D$70,800,'Allow Input'!$F$41:$F$70) -> 0 | H17: =SUMIF('Allow Input 2'!D49:D63,800,'Allow Input 2'!F49:F63) -> 0 | I17: =SUMIF('Allow Input 2'!D10:D43,800,'Allow Input 2'!F10:F43) -> 0 | J17: =SUM(C17,D17)-SUM(E17:I17) -> 0 | BA17: 800 Operations and Maintenance | BJ17: 800 Fonctionnement et entretien
B18: ALLOCATED ADJUSTMENTS/REDUCTIONS | D18: =SUM(D11:D17) -> 0 | E18: 0 | F18: 0 | G18: 0 | H18: 0 | I18: 0 | BA18: ALLOCATED ADJUSTMENTS/REDUCTIONS | BJ18: REDRESSEMENTS ET RÉDUCTIONS ALLOUÉS
B19: UNALLOCATED ADJUSTMENTS/REDUCTIONS | D19: =D20-D18 -> 0 | E19: =E20-E18 -> 0 | F19: 0 | H19: 0 | I19: 0 | J19: (1) | BA19: UNALLOCATED ADJUSTMENTS/REDUCTIONS | BJ19: REDRESSEMENTS ET RÉDUCTIONS NON ALLOUÉS
A20: 18 | B20: TOTALS | C20: =SUM(C11:C17) -> 0 | D20: =TOTADJUST -> 0 | E20: =CATSUP -> 0 | F20: =OTHRPROGCARRIED -> 0 | G20: ='AppX B'!J34 ->  | H20: ='AppX B'!J38 -> 0 | I20: =TOTNONTUIT -> 0 | J20: =SUM(J11:J17) -> 0 | K20: 18 | BA20: TOTALS | BJ20: TOTAUX
B22: =B33 -> OTHER FUNCTION/PROGRAMS EXPENSES | C22: =SUM(C23:C29) -> 0 | BA22: OTHER FUNCTION/PROGRAMS EXPENSES
B23: =IF(Eng_Fren=1,BA23,BJ23) -> 100 Regular Instruction | C23: =_OE100 -> 0 | BA23: 100 Regular Instruction | BJ23: 100 Enseignement ordinaire
B24: 500 Administration | C24: =_OE500 -> 0 | BA24: 500 Administration | BJ24: 500 Administration
B25: 605 Curriculum Consulting Admin. | C25: =_OE605 -> 0 | BA25: 605 Curriculum Consulting Admin. | BJ25: 605 Admin. et consult. – Progr. d'études
B26: 610 Curriculum Consulting | C26: =_OE610 -> 0 | BA26: 610 Curriculum Consulting | BJ26: 610 Consultation – Progr. d'études
B27: 680 Other | C27: =_OE680 -> 0 | BA27: 680 Other | BJ27: 680 Autres
B28: 700 Transportation of Pupils | C28: =_OE700 -> 0 | BA28: 700 Transportation of Pupils | BJ28: 700 Transport des élèves
B29: 900 Fiscal | C29: =_OE900 -> 0 | BA29: 900 Fiscal | BJ29: 900 Frais et taxes
B30: TOTAL EXPENSES | C30: =C20+C22 -> 0 | BA30: TOTAL EXPENSES | BJ30: DÉPENSES TOTALES
B32: =IF(Eng_Fren=1,BA32,BJ32) -> CALCULATION OF UNSUPPORTED EXPENSES | BA32: CALCULATION OF UNSUPPORTED EXPENSES | BJ32: CALCUL DES DÉPENSES NON FINANCÉES
B33: =IF(Eng_Fren=1,BA33,BJ33) -> OTHER FUNCTION/PROGRAMS EXPENSES | C33: =C22 -> 0 | BA33: OTHER FUNCTION/PROGRAMS EXPENSES | BJ33: AUTRES FONCTION OU PROGRAMME DÉPENSES
B34: =IF(Eng_Fren=1,BA34,BJ34) -> TOTAL ALLOWABLE EXPENSES | C34: =SUM(J11:J17) -> 0 | BA34: TOTAL ALLOWABLE EXPENSES | BJ34: CALCUL DES DÉPENSES ADMISSIBLES
B35: =IF(Eng_Fren=1,BA35,BJ35)&" "&J19 -> TOTAL UNALLOCATED ADJUSTMENTS/REDUCTIONS (1) | C35: =SUM(D19)-SUM(E19:I19) ->  | BA35: TOTAL UNALLOCATED ADJUSTMENTS/REDUCTIONS | BJ35: TOTAL REDRESS. ET RÉDUCT. NON ALLOUÉS
B36: =IF(Eng_Fren=1,BA36,BJ36) -> - ADJUSTMENTS TO EXPENSES | C36: =D19 -> 0 | BA36: - ADJUSTMENTS TO EXPENSES | BJ36: - REDRESSEMENTS DES DÉPENSES
B37: - CATEGORICAL SUPPORT | C37: =-E19 -> 0 | BA37: - CATEGORICAL SUPPORT | BJ37: - AIDE PAR CATÉGORIE
B38: - OTHER PROGRAM SUPPORT | C38: =-F19 -> 0 | BA38: - OTHER PROGRAM SUPPORT | BJ38: - AIDE À D'AUTRES PROGRAMMES
B39: - OTHER PROVINCIAL GOVERNMENT REVENUE | C39: =-G19 ->  | BA39: - OTHER PROVINCIAL GOVERNMENT REVENUE | BJ39: - AUTRES RECETTES DU GOUVERNEMENT PROVINCIAL
B40: - NON-PROV. SOURCES - TUITION, TRANSFER AND RESIDUAL FEES | C40: =-H19 -> 0 | BA40: - NON-PROV. SOURCES - TUITION, TRANSFER AND RESIDUAL FEES | BJ40: - SOURCES NON PROV. - DR. SCOLARITÉ, TRANSFERTS ET FRAIS SUPPL.
B41: - NON-PROV. SOURCES - OTHER | C41: =-I19 -> 0 | BA41: - NON-PROV. SOURCES - OTHER | BJ41: - SOURCES NON PROV. - AUTRES
B42: =TRIM('Prov Rev 1'!B6)&" "&IF(Eng_Fren=1,BA42,BJ42) -> Base Support (from page 2) | C42: =-BASE -> 0 | BA42: (from page 2) | BJ42: (de page 2)
B43: =TRIM('Prov Rev 1'!B37)&" "&IF(Eng_Fren=1,BA43,BJ43) -> Formula Guarantee (from page 2) | C43: =-FORMGUAR -> 0 | BA43: (from page 2) | BJ43: (de page 2)
B44: =IF(Eng_Fren=1,BA44,BJ44) -> SCHOOL BUS AMORTIZATION (from F/S) | C44: =BUSDEPR -> 0 | BA44: SCHOOL BUS AMORTIZATION (from F/S) | BJ44: AMORTIS. AUTOBUS SCOL. (ÉTATS FIN.)
B45: =IF(Eng_Fren=1,BA45,BJ45) -> TOTAL UNSUPPORTED EXPENSES | C45: =C33+C34+C35+C42+C43+C44 ->  | BA45: TOTAL UNSUPPORTED EXPENSES | BJ45: TOTAL NON FINANCÉES

Sheet AppX A
B1: =DIVNAME&" : "&Title -> School Division Name : 2024/25 FRAME Budget | M1: =NOW() -> 2024-02-09T11:53:25.340
B3: =IF(Eng_Fren=1,AA3,AN3) -> CALCULATION OF ALLOWABLE EXPENSES (refer to "Allow Guide") | M3: =IF(Eng_Fren=1,AK3,AW3) -> APPENDIX A | V3: =_OE780 -> 0 | AA3: CALCULATION OF ALLOWABLE EXPENSES (refer to "Allow Guide") | AK3: APPENDIX A | AN3: CALCUL DES DÉPENSES ADMISSIBLES (voir Allow Guide) | AW3: ANNEXE A
C6: =IF(Eng_Fren=1,AB6,AO6) -> ADJUSTMENTS TO EXPENSES: | E6: =IF(Eng_Fren=1,AD6,AQ6) -> Function/ | G6: =IF(Eng_Fren=1,AF6,AS6) -> Amount | J6: =IF(Eng_Fren=1,AG6,AT6) -> CATEGORICAL SUPPORT TO BE ALLOCATED | Q6: 100 | V6: List | AB6: ADJUSTMENTS TO EXPENSES: | AD6: Function/ | AF6: Amount | AG6: CATEGORICAL SUPPORT TO BE ALLOCATED | AK6: ELIGIBLE | AO6: REDRESSEMENTS DES DÉPENSES : | AQ6: Fonction ou | AS6: Montant | AT6: AIDE PAR CATÉGORIE À AFFECTER : | AW6: AIDE
C7: =IF(Eng_Fren=1,AB7,AO7) -> (enter deductions as negative amounts) | E7: =IF(Eng_Fren=1,AD7,AQ7) -> Program | Q7: 200 | V7: 210-260 | AB7: (enter deductions as negative amounts) | AD7: Program | AK7: SUPPORT | AO7: (inscrire les déductions comme montants négatifs) | AQ7: programme | AW7: ADMISSIBLE
E8: FUNCTION | G8: AMOUNT | J8: =IF(Eng_Fren=1,AG8,AT8) -> Special Needs: Coordinator/Clinician | Q8: 270 | V8: 270 | AG8: Special Needs: Coordinator/Clinician | AT8: Besoins spéciaux : coordonnateurs et spécialistes
B9: =IF(E9=$V$7,200,"") ->  | C9: =IF(AND(G9<>0,E9=""),"Error: Funtion/Program Missing!",IF(Eng_Fren=1,AB9,AO9)) -> Capitalized Energy Mgmt. Systems Costs (add) (1), (2) | E9: 800 | J9: =IF(Eng_Fren=1,AG9,AT9) -> (A) Maximum Support | Q9: 500 | U9: Enter Fct./Prog/ First | V9: 620 | X9: =IF(E9="","",IF(E9="210-260",200,"")) ->  | Y9: =IF(AND(E15="",G15<>""),1,0) -> 0 | AB9: Capitalized Energy Mgmt. Systems Costs (add) (1), (2) | AG9: (A) Maximum Support | AO9: Coûts capitalisés des syst. de gestion de l'énergie (ajouter) (1), (2) | AT9: (A) Aide maximale
C10: =IF(AND(G10<>0,E10=""),"Error: Funtion/Program Missing!",IF(Eng_Fren=1,AB10,AO10)) -> Capitalized Section "D" School Bldgs. Costs (add) (1) | E10: 800 | J10: =IF(Eng_Fren=1,AG10,AT10) -> (B) Eligible Expenses | Q10: 610 | V10: 630 | X10: =IF(E10="","",IF(E10="210-260",200,"")) ->  | Y10: 0 | AB10: Capitalized Section "D" School Bldgs. Costs (add) (1) | AG10: (B) Eligible Expenses | AO10: Coûts capitalisés des bâtiments scolaires de catégorie D (ajouter) (1) | AT10: (B) Dépenses admissibles
C11: =IF(AND(G11<>0,E11=""),"Error: Funtion/Program Missing!",IF(Eng_Fren=1,AB12,AO12)) -> Transfers from Capital Fund (deduct) | E11: 800 | G11: =-TRANSFRCAP -> 0 | J11: =IF(Eng_Fren=1,AG11,AT11) -> (C) Less related revenues | M11: =SPECNEEDCLIN -> 0 | Q11: 620 | V11: 800 | Y11: 0 | AB11: Lease costs paid to other School Divisions (deduct) | AG11: (C) Less related revenues | AO11: Frais de location payés à d'autres divisions scolaires (déduire) | AT11: (C) Moins recettes associées
C12: =IF(AND(G12<>0,E12=""),"Error: Funtion/Program Missing!",IF(Eng_Fren=1,AB13,AO13)) -> Leased Non-School Space (deduct) | E12: 800 | J12: =IF(Eng_Fren=1,AG12,AT12) -> (D) Allowable Expenses (B) - (C) | K12: =K10-K11 -> 0 | L12: =IF(AND(K9>0,K10=0)," < Enter EXPENSES","") ->  | Q12: 630 | V12: Unallocated | Y12: 0 | AB12: Transfers from Capital Fund (deduct) | AG12: (D) Allowable Expenses (B) - (C) | AO12: Transferts du fonds de capital et d'emprunt (déduire) | AT12: (D) Dépenses autorisées (B) - (C)
B13: 200 | C13: =IF(Eng_Fren=1,AB14,AO14) -> Other Capitalized Equipment and Vehicles (2) | Q13: 680 | Y13: 0 | AB13: Leased Non-School Space (deduct) | AO13: Locaux non scolaires loués (déduire)
B14: 200 | C14: =IF(Eng_Fren=1,AB15,AO15) -> (please specify item and Function/Program) | J14: =IF(Eng_Fren=1,AG14,AT14) -> Eligible Support (lesser of A or D) | K14: =IF(OR(M14=0,M14=SPECNEEDCLIN),"","Enter this amount >") ->  | M14: =IF(IF(AND(K9>0,K12=0),0,MIN(K9,K12))<0,0,IF(AND(K9>0,K12=0),0,MIN(K9,K12))) -> 0 | Q14: 700 | Y14: 0 | AB14: Other Capitalized Equipment and Vehicles (2) | AG14: Eligible Support (lesser of A or D) | AO14: Autres équipements et véhicules capitalisés (2) | AT14: Aide admissible (moindre de A ou D)
B15: =IF(E15=$V$7,200,"") -> 200 | J15: =IF(Eng_Fren=1,AG15,AT15) -> Special Needs: Level 2 and 3 | K15: =IF(OR(M14=0,M14=SPECNEEDCLIN),"","on Prov Rev 1") ->  | M15: =SPECNEED2+SPECNEED3 -> 0 | Q15: 800 | Y15: 0 | AB15: (please specify item and Function/Program) | AG15: Special Needs: Level 2 and 3 | AO15: (préciser l'objet et la fonction ou le programme) | AT15: Besoins spéciaux : Niveaux 2 et 3
J16: =IF(Eng_Fren=1,AG16,AT16) -> Indigenous Academic Achievement | M16: =AAA -> 0 | Y16: 0 | AG16: Indigenous Academic Achievement | AT16: Réussite scolaire chez les élèves autochtones
B17: =IF(E17=$V$7,200,"") -> 200 | J17: =IF(Eng_Fren=1,AG17,AT17) -> Literacy & Numeracy | M17: =EARLYNUM -> 0 | Y17: 0 | AG17: Literacy & Numeracy | AT17: Alphabétisation et notions de calcul
B18: =IF(E18=$V$7,200,"") -> 200 | Y18: 0 | AG18: Numeracy | AT18: Notions de calcul
B19: 200 | J19: =IF(Eng_Fren=1,AG20,AT20) -> Small Schools | Y19: 0 | AG19: Board and Room | AT19: Élèves en pension
B20: 200 | J20: =IF(Eng_Fren=1,AG21,AT21) -> (A) Maximum Support | Y20: 0 | AG20: Small Schools | AT20: Petites écoles
B21: 200 | J21: =IF(Eng_Fren=1,AG22,AT22) -> (B) Program Expenses | L21: =IF(AND(K20>0,K21=0)," < Enter EXPENSES","") ->  | AG21: (A) Maximum Support | AT21: (A) Aide maximale
B22: 200 | J22: =IF(Eng_Fren=1,AG23,AT23) -> Eligible Support (lesser of A or B) | K22: =IF(OR(M22=0,M22=SMLLSCH),"","Enter this amount >") ->  | M22: =IF(AND(K20>0,K21=0),0,MIN(K20,K21)) -> 0 | AG22: (B) Program Expenses | AT22: (B) Dépenses des programmes
B23: 200 | Y23: =IF(AND(E29="",G29<>""),1,0) -> 0 | AG23: Eligible Support (lesser of A or B) | AT23: Aide admissible (moindre de A ou B)
B24: 200 | J24: =IF(Eng_Fren=1,AG19,AT19) -> Board and Room | Y24: =IF(AND(E30="",G30<>""),1,0) -> 0 | AG24: Early Childhood Development | AT24: Développement du jeune enfant
A25: 19 | B25: 200 | J25: =J20 -> (A) Maximum Support | Y25: =IF(AND(E31="",G31<>""),1,0) -> 0
B26: 200 | J26: =J21 -> (B) Program Expenses | L26: =IF(AND(K25>0,K26=0)," < Enter EXPENSES","") ->  | O26: 19 | Y26: =SUM(Y9:Y25) -> 0 | AG26: Total allocable Categorical Support (carried to Allow Input) | AT26: Total de l'aide par catégorie pouvant être allouée
C27: =IF(Y26=0,"","A Function/Program is missing !!") ->  | J27: =J22 -> Eligible Support (lesser of A or B) | M27: =IF(AND(K25>0,K26=0),0,MIN(K25,K26)) -> 0
C28: =IF(Eng_Fren=1,AB28,AO28) -> Total Adjustments to Expenses (carried to page 18) | G28: =SUM(G9:G12,G14:G26) -> 0 | J28: =IF(Eng_Fren=1,AG24,AT24) -> Early Childhood Development | K28: =IF(OR(M22=0,M22=SMLLSCH),"","on Prov Rev 1") ->  | M28: =CHILD -> 0 | AB28: Total Adjustments to Expenses (carried to page 18) | AG28: Non-allocable Categorical Support | AO28: Total des redressements des dépenses (reporté à la page 18) | AT28: Aide par catégorie ne pouvant pas être allouée
C29: =IF(Eng_Fren=1,AB29,AO29) -> (1) Net of all related revenues. | AB29: (1) Net of all related revenues. | AG29: Total Categorical Support (carried to page 18) | AO29: (1) Net de toutes les recettes associées. | AT29: Total de l'aide par catégorie (reporté à la page 18)
C30: =IF(Eng_Fren=1,AB30,AO30) -> (2) For capitalized energy management systems costs and other capitalized items, lease and loan payments for eligible equipment may be included. | J30: =IF(Eng_Fren=1,AG26,AT26) -> Total allocable Categorical Support (carried to Allow Input) | M30: =SUM(M14:M28) -> 0 | AB30: (2) For capitalized energy management systems costs and other capitalized items, lease and loan payments for eligible equipment may be included. | AO30: (2) Les paiements de location et d'emprunt pour l'équipement admissible peuvent être comptés dans les coûts capitalisés des systèmes de gestion de l'énergie et autres coûts capitalisés.
J32: =IF(Eng_Fren=1,AG28,AT28) -> Non-allocable Categorical Support | M32: =M33-M30 -> 0
J33: =IF(Eng_Fren=1,AG29,AT29) -> Total Categorical Support (carried to page 18) | M33: =CATSUP -> 0
C36: =IF(Eng_Fren=1,AB36,AO36) -> OTHER PROGRAM SUPPORT: | Z36: OTHER PROGRAM SUPPORT: | AB36: OTHER PROGRAM SUPPORT: | AG36: CALCULATION OF ALLOWABLE SCHOOL BUILDINGS SUPPORT "D" EXPENSES: | AO36: AIDE À D'AUTRES PROGRAMMES : | AT36: CALCUL DES DÉPENSES DE CATÉGORIE D AUTORISÉES :
C38: School Buildings Support: "D" Projects | G38: =IF(M48>M45,"ERROR *",IF((CURRD+PREVD)>M48,"ERROR *",(CURRD+PREVD))) -> 0 | H38: =IF(CURRD>M48,"◄","") ->  | J38: =IF(Eng_Fren=1,AG36,AT36) -> CALCULATION OF ALLOWABLE SCHOOL BUILDINGS SUPPORT "D" EXPENSES: | AB38: School Buildings Support: "D" Projects | AG38: Program 850 School Building Repairs & Replacements | AO38: Aide pour bâtiments scolaires : projets D | AT38: Programme 850 – Réparations et remplacements de bâtiments scolaires
C39: Technology Education Equipment & Skills Strategy Equipment Enhancement | G39: =VOCREP+PREVVOC+SSEE -> 0 | J39: =IF(M45=M48,"",IF(M45<G38,"Grant exceeds Allowable Expense, to defer enter amount in Box (D).","")) ->  | AB39: Technology Education Equipment & Skills Strategy Equipment Enhancement | AG39: PLUS: Capitalized Section "D" Expenses (net) | AO39: Équipement d'ens. tech. et Initiative en matière d'enseign. technique et profess. | AT39: PLUS : Dépenses capitalisées de catégorie D (nettes)
C40: Other Minor Capital Support | G40: =MINCAP -> 0 | J40: =IF(Eng_Fren=1,AG38,AT38) -> Program 850 School Building Repairs & Replacements | M40: =_OE850 -> 0 | AB40: Other Minor Capital Support | AG40: Grounds | AO40: Aide pour autres projets d'immobilisations mineurs | AT40: Terrains
C41: Curricular Materials Prior Year Support | G41: =PREVCURR -> 0 | J41: =IF(Eng_Fren=1,AG39,AT39) -> PLUS: Capitalized Section "D" Expenses (net) | M41: =G10 -> 0 | AB41: Curricular Materials Prior Year Support | AG41: LESS: Related revenue other than "D" Support | AO41: Aide de l'exercice précédent pour matériel didactique | AT41: MOINS : Recettes associées autres que l'aide de catégorie D
J42: =IF(Eng_Fren=1,AG40,AT40) -> Grounds | M42: 0
C43: =IF(Eng_Fren=1,AB43,AO43) -> Amount carried forward to | G43: =SUM(G38:G41) -> 0 | J43: =IF(Eng_Fren=1,AG41,AT41) -> LESS: Related revenue other than "D" Support | AB43: Amount carried forward to | AG43: Allowable Section "D" Expenses | AO43: Montant reporté aux | AT43: Dépenses de catégorie D autorisées
Z44: Amount carried forward
J45: =IF(Eng_Fren=1,AG43,AT43) -> Allowable Section "D" Expenses | L45: (C) | M45: =SUM(M40:M42)-M43 -> 0 | N45: =IF(M48=M45,"",IF(M45<G38,"◄","")) -> 
C46: =IF(CURRD>M48,"Error: D Support is more that Allowable D Expenses .","") ->  | J46: =IF(Eng_Fren=1,AG47,AT47) -> < OR > | M46: =IF(M45=0,"",IF(OR(M48="",M48=0),"Enter amount in line D if different from line C.","")) -> 
J47: =IF(Eng_Fren=1,AG48,AT48) -> Expenses to be used for calculating "D" Grant. Enter an | N47: =IF(N45<>"","=","") ->  | AG47: < OR > | AT47: < OU >
J48: =IF(Eng_Fren=1,AG49,AT49) -> amount to overwrite if different from above. | L48: (D) | M48: =M45 -> 0 | N48: =IF(M48=M45,"",IF(M45<G38,"◄","")) ->  | AG48: Expenses to be used for calculating "D" Grant. Enter an | AT48: Dépenses à utiliser pour calculer la subvention D. Si le montant est différent
J49: =IF(Eng_Fren=1,AG50,AT50) -> (cannot be more than amount on line "C") | M49: =IF(CURRD>M48,"▲","") ->  | AG49: amount to overwrite if different from above. | AT49: de celui indiqué ci-dessus, l’écraser en inscrivant un autre montant.
J50: =IF(Eng_Fren=1,AG51,AT51) -> Refer to page 2 of the Allowable Expenses Guide when completing this section. | AG50: (cannot be more than amount on line "C") | AT50: (ne peut être supérieur au montant de la ligne C).
AG51: Refer to page 2 of the Allowable Expenses Guide when completing this section. | AT51: Voir la page 2 du guide des dépenses admissibles pour remplir cette section.

Sheet AppX B
B1: =DIVNAME&" : "&Title -> School Division Name : 2024/25 FRAME Budget | J1: =NOW() -> 2024-02-09T11:53:25.340
B3: =Allowable!D2 -> CALCULATION OF ALLOWABLE AND UNSUPPORTED EXPENSES | J3: =IF(Eng_Fren=1,BF3,BL3) -> APPENDIX B | BA3: CALCULATION OF ALLOWABLE EXPENSES | BF3: APPENDIX B | BH3: CALCUL DES DÉPENSES AUTORISÉES | BL3: ANNEXE B
C6: =IF(Eng_Fren=1,BA6,BH6) -> OTHER PROVINCIAL GOVERNMENT REVENUE: | I6: =IF(Eng_Fren=1,BF8,BL8) -> ALL REVENUES REPORTED ON THIS PAGE, EXCEPT THOSE SHADED, MUST BE DEDUCTED FROM TOTAL EXPENSES ON PAGE 18 UNLESS THERE ARE SPECIAL CIRCUMSTANCES WHICH WOULD MAKE AN ALLOCATION IMPRACTICAL OR INAPPROPRIATE. IN THOSE LIMITED CASES, REASONS FOR NOT ALLOCATING MUST BE PROVIDED BELOW. | BA6: OTHER PROVINCIAL GOVERNMENT REVENUE: | BH6: AUTRES RECETTES DU GOUVERNEMENT PROVINCIAL :
D8: =IF(Eng_Fren=1,BB8,BI8) -> Allocable | E8: =IF(Eng_Fren=1,BC8,BJ8) -> Non-allocable | F8: =IF(Eng_Fren=1,BD8,BK8) -> Total | BB8: Allocable | BC8: Non-allocable | BD8: Total | BF8: ALL REVENUES REPORTED ON THIS PAGE, EXCEPT THOSE SHADED, MUST BE DEDUCTED FROM TOTAL EXPENSES ON PAGE 18 UNLESS THERE ARE SPECIAL CIRCUMSTANCES WHICH WOULD MAKE AN ALLOCATION IMPRACTICAL OR INAPPROPRIATE. IN THOSE LIMITED CASES, REASONS FOR NOT ALLOCATING MUST BE PROVIDED BELOW. | BI8: Pouvant être allouée | BJ8: Ne pouvant pas être allouée | BK8: Total | BL8: TOUTES LES RECETTES DÉCLARÉES SUR CETTE PAGE, SAUF CELLES FIGURANT DANS LES CASES OMBRÉES, DOIVENT ÊTRE DÉDUITES DES DÉPENSES TOTALES À LA PAGE 18 SAUF SI L'AFFECTATION DE FONDS N'EST NI PRATIQUE NI APPROPRIÉE EN RAISON DE CIRCONSTANCES SPÉCIALES. DANS CES CAS LIMITÉS, INDIQUER CI-DESSOUS LES RAISONS POUR LESQUELLES LES FONDS N'ONT PAS ÉTÉ AFFECTÉS.
C9: =IF(Eng_Fren=1,BA9,BH9) -> Other Dept. of Education | BA9: Other Dept. of Education | BH9: Autres – Éducation
C10: General Support Grant | E10: =F10 -> 0 | F10: =GSG -> 0 | BA10: General Support Grant | BH10: Subvention d'aide générale
C11: Education Property Tax Credit | E11: =F11 -> 0 | F11: =EPTC -> 0 | BA11: Education Property Tax Credit | BH11: Crédit d'impôt foncier en matière d'éducation
C12: =IF(Eng_Fren=1,BA12,BH12) -> Tax Incentive Grant | E12: =F12 ->  | F12: =TIG ->  | BA12: Tax Incentive Grant | BH12: Incitatif fiscal
C13: =IF(Eng_Fren=1,BA13,BH13) -> Property Tax Offset Grant | E13: =F13 -> 0 | F13: =TOG -> 0 | BA13: Property Tax Offset Grant | BH13: Subvention de compensation d’impôt foncier
C14: All other | D14: =F14-E14 ->  | F14: =ODE-GSG-EPTC-TIG-TOG ->  | BA14: All other | BH14: Autres
C15: Other Provincial Government Departments | D15: =F15-E15 -> 0 | F15: =OPD -> 0 | BA15: Other Provincial Government Departments | BH15: Recettes d'autres ministères provinciaux
BH16: Total des recettes
C17: =IF(Eng_Fren=1,BA17,BH17) -> Total Revenue | D17: =SUM(D12:D15) ->  | E17: =SUM(E10:E15) ->  | F17: =SUM(F10:F15) ->  | BA17: Total Revenue | BH17: Total des recettes
C21: =IF(Eng_Fren=1,BA21,BH21) -> NON-PROVINCIAL SOURCES: | BA21: NON-PROVINCIAL SOURCES: | BH21: SOURCES NON PROVINCIALES :
D23: =D8 -> Allocable | E23: =E8 -> Non-allocable | F23: =F8 -> Total
C24: =IF(Eng_Fren=1,BA24,BH24) -> Federal Government | BA24: Federal Government | BH24: Gouvernement fédéral
A25: 20 | C25: Tuition Fees | D25: =F25 -> 0 | F25: =FEDTUIT -> 0 | K25: 20 | BA25: Tuition Fees | BH25: Droits de scolarité
C26: All other | D26: =F26-E26 -> 0 | F26: =OPFEDREV-FEDTUIT -> 0 | BA26: All other | BH26: Autres
C27: Municipal Government | BA27: Municipal Government | BH27: Administration municipale
C28: Special Requirement less Property Tax Credit | E28: =F28 ->  | F28: =NETSPECREQ ->  | BA28: Special Requirement less Property Tax Credit | BH28: Fonds spéciaux moins crédit d'impôt foncier
C29: Other | D29: =F29-E29 -> 0 | F29: =MUNOTHR -> 0 | I29: =C6 -> OTHER PROVINCIAL GOVERNMENT REVENUE: | BA29: Other | BF29: OTHER PROVINCIAL GOVERNMENT REVENUE: | BH29: Autres | BL29: AUTRES RECETTES DU GOUVERNEMENT PROVINCIAL :
C30: Other School Divisions | I30: =C17 -> Total Revenue | J30: =F17 ->  | BA30: Other School Divisions | BF30: Total Revenue | BH30: Autres divisions scolaires | BL30: Total Revenue
C31: =C25 -> Tuition Fees | D31: =F31 -> 0 | F31: =OSDTUIT -> 0 | I31: =C11 -> Education Property Tax Credit | J31: =-E11 -> 0
C32: Transfer Fees | D32: =F32 -> 0 | F32: =OSDTRANSFER -> 0 | I32: =C12 -> Tax Incentive Grant | J32: =-E12 ->  | BA32: Transfer Fees | BF32: Education Property Tax Credit | BH32: Frais de transfert | BL32: Education Property Tax Credit
C33: Residual Fees | D33: =F33 -> 0 | F33: =OSDRESIDUAL -> 0 | I33: =C13 -> Property Tax Offset Grant | J33: =-E13 -> 0 | BA33: Residual Fees | BF33: Tax Incentive Grant | BH33: Frais supplémentaires | BL33: Tax Incentive Grant & Prop. Tax Offset Grant
C34: All other | D34: =F34-E34 -> 0 | F34: =OPOSDREV-OSDTRANSFER-OSDRESIDUAL-OSDTUIT -> 0 | I34: =IF(Eng_Fren=1,BF34,BL34) -> PROVINCIAL REVENUE FOR EQUALIZATION | J34: =SUM(J30:J33) ->  | BA34: All other | BF34: PROVINCIAL REVENUE FOR EQUALIZATION | BH34: Autres | BL34: Recettes provinciales pour péréquation
C35: First Nations | I35: =IF(Eng_Fren=1,BF35,BL35) -> (to agree with Other Provincial Gov't Revenue on page 18) | BA35: First Nations | BF35: (to agree with Other Provincial Gov't Revenue on page 18) | BH35: Premières nations | BL35: (elles doivent correspondre aux autres recettes du gouvernement provincial)
C36: Tuition Fees | D36: =F36 -> 0 | F36: =BANDTUIT -> 0 | BA36: Tuition Fees | BH36: Droits de scolarité
C37: All other | D37: =F37-E37 -> 0 | F37: =OPFNATIONREV-BANDTUIT -> 0 | I37: =C21 -> NON-PROVINCIAL SOURCES: | BA37: All other | BF37: NON-PROVINCIAL SOURCES: | BH37: Autres | BL37: SOURCES NON PROVINCIALES :
C38: Private Organizations and Individuals | I38: =IF(Eng_Fren=1,BF38,BL38) -> TOTAL ALLOCABLE FEES | J38: =SUM(FEDTUIT,OSDTRANSFER,OSDRESIDUAL,BANDTUIT,F39,OSDTUIT)-E40 -> 0 | BA38: Private Organizations and Individuals | BF38: TOTAL ALLOCABLE FEES | BH38: Particuliers et organismes privés | BL38: Total des frais pouvant être allouée
C39: Tuition Fees | D39: =F39-E39 -> 0 | F39: =SUM(POITFREG,POITFINT,POITFCONED,POITFOTHR) -> 0 | I39: =IF(Eng_Fren=1,BF39,BL39) -> (Tuition, Transfer and Residual Fees) | BA39: Tuition Fees | BF39: (Tuition, Transfer and Residual Fees) | BH39: Droits de scolarité | BL39: (Frais supplémentaires, de scolarité, et de transfert)
C40: Ancillary Services | D40: =F40-E40 -> 0 | F40: =OPPOIREV-F39 -> 0 | BA40: Ancillary Services | BH40: Services auxiliaires
C41: Other Sources | BA41: Other Sources | BH41: Autres sources
C42: Interest | E42: =F42 -> 0 | F42: =OTHRINT -> 0 | I42: =IF(Eng_Fren=1,BF42,BL42) -> TOTAL ALLOCABLE OTHER REVENUE | J42: =J46-J38 -> 0 | BA42: Interest | BF42: TOTAL ALLOCABLE OTHER REVENUE | BH42: Intérêts | BL42: Total des autres recettes pouvant être allouée
C43: Donations | D43: =F43-E43 -> 0 | F43: =DONATION -> 0 | I43: =IF(Eng_Fren=1,BF43,BL43) -> (to agree with total other revenue on page 18) | BA43: Donations | BF43: (to agree with total other revenue on page 18) | BH43: Dons | BL43: (il doit correspondre au total des autres recettes à la page 18)
C44: Other | D44: =F44-E44 -> 0 | F44: =SUM('Other Rev'!G52:'Other Rev'!G60) -> 0 | BA44: Other | BH44: Autres
C46: =IF(Eng_Fren=1,BA46,BH46) -> Total Revenue | D46: =SUM(D25:D44) -> 0 | E46: =SUM(E25:E44) ->  | F46: =SUM(F25:F44) ->  | I46: =IF(Eng_Fren=1,BF46,BL46) -> TOTAL ALLOCABLE NON-PROV. SOURCES | J46: =D46 -> 0 | BA46: Total Revenue | BF46: TOTAL ALLOCABLE NON-PROV. SOURCES | BH46: Total des recettes | BL46: TOTAL SOURCES NON PROVINCIALES POUVANT ÊTRE ALLOUÉE

Sheet Net Exp
A1: =DIVNAME&" : "&Title -> School Division Name : 2024/25 FRAME Budget | K1: =IF(DATE=0,"",DATE) -> 2024-02-09T11:53:25.340
A3: =IF(Eng_Fren=1,BA3,BM3) -> CALCULATION OF NET EXPENSES (SPECIAL REQUIREMENT) | BA3: CALCULATION OF NET EXPENSES (SPECIAL REQUIREMENT) | BM3: CALCUL DES DÉPENSES NETTES (FONDS SPÉCIAUX)
A4: =IF(Eng_Fren=1,BA4,BM4) -> - Optional for Division/District use only - | BA4: - Optional for Division/District use only - | BM4: – Facultatif, pour la division ou le district seulement –
C5: =IF(Eng_Fren=1,BA5,BM5) -> LESS : | BA5: LESS : | BM5: MOINS :
G7: =IF(Eng_Fren=1,BG7,BS7) -> OTHER | H7: TOTAL | K7: =IF(Eng_Fren=1,BK7,BW7) -> NET | BG7: OTHER | BH7: TOTAL | BK7: NET | BS7: AUTRES | BT7: TOTAL DES | BW7: DÉPENSES
F8: =IF(Eng_Fren=1,BF8,BR8) -> OTHER | G8: PROVINCIAL | H8: PROVINCIAL | I8: =IF(Eng_Fren=1,BI8,BU8) -> NON - | J8: CURRENT | K8: =IF(Eng_Fren=1,BK8,BW8) -> EXPENSES | BF8: OTHER | BG8: PROVINCIAL | BH8: PROVINCIAL | BI8: NON - | BJ8: CURRENT | BK8: EXPENSES | BR8: AIDE À | BS8: RECETTES | BT8: RECETTES | BU8: SOURCES | BV8: SURPLUS DE | BW8: NETTES
B9: =IF(Eng_Fren=1,BB9,BN9) -> TOTAL | C9: BASE | D9: CATEGORICAL | E9: =IF(Eng_Fren=1,BE9,"") -> EQUALIZATION | F9: =IF(Eng_Fren=1,BF9,BR9) -> PROGRAM | G9: GOVERNMENT | H9: GOVERNMENT | I9: PROVINCIAL | J9: YEAR | K9: =IF(Eng_Fren=1,BK9,BW9) -> (SPECIAL | BB9: TOTAL | BC9: BASE | BD9: CATEGORICAL | BE9: EQUALIZATION | BF9: PROGRAM | BG9: GOVERNMENT | BH9: GOVERNMENT | BI9: PROVINCIAL | BJ9: YEAR | BK9: (SPECIAL | BN9: DÉPENSES | BO9: AIDE | BP9: AIDE PAR | BR9: D'AUTRES | BS9: DU GOUV. | BT9: DU GOUV. | BU9: NON | BV9: L'EXERCICE | BW9: (FONDS
A10: =IF(Eng_Fren=1,BA10,BM10) -> FUNCTION / PROGRAM | B10: EXPENSES | C10: SUPPORT | D10: SUPPORT | E10: =IF(Eng_Fren=1,BE10,BQ10) -> SUPPORT | F10: =IF(Eng_Fren=1,BF10,BR10) -> SUPPORT | G10: REVENUE | H10: REVENUE | I10: SOURCES | J10: SURPLUS | K10: =IF(Eng_Fren=1,BK10,BW10) -> REQUIREMENT) | BA10: FUNCTION / PROGRAM | BB10: EXPENSES | BC10: SUPPORT | BD10: SUPPORT | BE10: SUPPORT | BF10: SUPPORT | BG10: REVENUE | BH10: REVENUE | BI10: SOURCES | BJ10: SURPLUS | BK10: REQUIREMENT) | BM10: FONCTION OU PROGRAMME | BN10: TOTALES | BO10: DE BASE | BP10: CATÉGORIE | BQ10: PÉRÉQUATION | BR10: PROGRAMMES | BS10: PROVINCIAL | BT10: PROVINCIAL | BU10: PROVINCIALES | BV10: EN COURS | BW10: SPÉCIAUX)
A11: 100 Regular Instruction | B11: =_OE100 -> 0 | H11: =SUM(C11:G11) -> 0 | K11: =B11-SUM(H11:J11) -> 0 | BA11: 100 Regular Instruction | BM11: 100 Enseignement ordinaire
A12: 210 - 260 Student Support Services | B12: =_OE200-_OE270 -> 0 | H12: 0 | K12: 0 | BA12: 210 - 260 Student Support Services | BM12: 210 - 260 Services de soutien aux élèves
A13: 270 Counselling and Guidance | B13: =_OE270 -> 0 | H13: 0 | K13: 0 | BA13: 270 Counselling and Guidance | BM13: 270 Orientation et consultation
A14: 300 Adult Learning Centres | B14: =_OE300 -> 0 | H14: 0 | K14: 0 | BA14: 300 Adult Learning Centres | BM14: 300 Centres d'apprentissage pour adultes
A15: 400 Community Education and Services | B15: =_OE400 -> 0 | H15: 0 | K15: 0 | BA15: 400 Community Education and Services | BM15: 400 Éducation et services communautaires
A16: 500 Administration | B16: =_OE500 -> 0 | H16: 0 | K16: 0 | BA16: 500 Administration | BM16: 500 Administration
A17: 605 Curriculum Consulting Admin. | B17: =_OE605 -> 0 | H17: 0 | K17: 0 | BA17: 605 Curriculum Consulting Admin. | BM17: 605 Admin. et consultation – Progr. d'études
A18: 610 Curriculum Consulting | B18: =_OE610 -> 0 | H18: =SUM(C18:G18) -> 0 | K18: =B18-SUM(H18:J18) -> 0 | BA18: 610 Curriculum Consulting | BM18: 610 Consultation – Progr. d'études
A19: 620 Library / Media Centre | B19: =_OE620 -> 0 | H19: 0 | K19: 0 | BA19: 620 Library / Media Centre | BM19: 620 Bibliothèque et médiathèque
A20: 630 Professional and Staff Development | B20: =_OE630 -> 0 | H20: 0 | K20: 0 | BA20: 630 Professional and Staff Development | BM20: 630 Perfectionnement prof. et du personnel
A21: 680 Other | B21: =_OE680 -> 0 | H21: 0 | K21: 0 | BA21: 680 Other | BM21: 680 Autres
A22: 700 Transportation of Pupils | B22: =_OE700 -> 0 | H22: 0 | K22: 0 | BA22: 700 Transportation of Pupils | BM22: 700 Transport des élèves
A23: 800 Operations and Maintenance | B23: =_OE800 -> 0 | H23: 0 | K23: 0 | BA23: 800 Operations and Maintenance | BM23: 800 Fonctionnement et entretien
A24: 900 Fiscal | B24: =_OE900 -> 0 | H24: =E24+G24 -> 0 | K24: =B24-H24-I24 -> 0 | BA24: 900 Fiscal | BM24: 900 Frais et taxes
A25: Net Transfers to (from) Capital Fund | B25: =NETTRANS -> 0 | H25: =F25+G25 -> 0 | K25: =B25-SUM(H25:J25) -> 0 | BA25: Net Transfers to (from) Capital Fund | BM25: Transf. nets au (du) fonds de cap. et d'emp.
A26: UNALLOCATED REVENUE/FUNDING | BA26: UNALLOCATED REVENUE/FUNDING | BM26: RECETTES ET FONDS NON AFFECTÉS
A28: =IF(Eng_Fren=1,BA28,BM28) -> TOTAL | B28: =SUM(B11:B16,B17:B25) -> 0 | C28: =SUM(C11:C16,C17:C23) -> 0 | D28: =SUM(D11:D16,D17:D23) -> 0 | E28: =SUM(E11:E16,E17:E24) -> 0 | F28: =SUM(F11:F16,F17:F23,F25) -> 0 | G28: =SUM(G11:G16,G17:G25) -> 0 | H28: =SUM(H11:H16,H17:H25) -> 0 | I28: =SUM(I11:I16,I17:I26) -> 0 | J28: =SUM(J11:J16,J17:J23,J25,J26) -> 0 | K28: =SUM(K11:K16,K17:K25) -> 0 | BA28: TOTAL | BM28: TOTAUX

Sheet Senior Staff
A1: =DIVNAME&" : "&Title -> School Division Name : 2024/25 FRAME Budget | G1: =IF(DATE=0,"",DATE) -> 2024-02-09T11:53:25.340
B2: =IF(Eng_Fren=1,BA2,BC2) -> SENIOR STAFF ALLOCATION | BA2: SENIOR STAFF ALLOCATION | BC2: AFFECTATION DES CADRES SUPÉRIEURS
B4: =IF(Eng_Fren=1,BA4,BC4) -> Position: | C4: =B4 -> Position: | D4: =C4 -> Position: | E4: =C4 -> Position: | F4: =E4 -> Position: | G4: =F4 -> Position: | BA4: Position: | BC4: Poste :
B8: % | C8: % | D8: % | E8: % | F8: % | G8: %
A9: =IF(Eng_Fren=1,BA9,BC9) -> 100 Regular Instruction | BA9: 100 Regular Instruction | BC9: 100 Enseignement ordinaire
A10: 200 Student Support Services | BA10: 200 Student Support Services | BC10: 200 Services de soutien aux élèves
A11: 300 Adult Learning Centres | BA11: 300 Adult Learning Centres | BC11: 300 Centres d'apprentissage pour adultes
A12: 400 Community Education and Services | BA12: 400 Community Education and Services | BC12: 400 Éducation et services communautaires
A13: 500 Administration | BA13: 500 Administration | BC13: 500 Administration
A14: 600 Instructional and Other Support Services | BA14: 600 Instructional and Other Support Services | BC14: 600 Services pédag. et autres serv. de soutien
A15: 700 Transportation of Pupils | BA15: 700 Transportation of Pupils | BC15: 700 Transport des élèves
A16: 800 Operations and Maintenance | BA16: 800 Operations and Maintenance | BC16: 800 Fonctionnement et entretien
A18: =IF(Eng_Fren=1,BA18,BC18) -> TOTAL (must add to 100%) | B18: =SUM(B9:B16) -> 0 | C18: 0 | D18: 0 | E18: 0 | F18: 0 | G18: 0 | BA18: TOTAL (must add to 100%) | BC18: TOTAL (doit être de 100 %)
A21: =IF(Eng_Fren=1,BA21,BC21) -> Notes: To be completed for senior staff allocated to more than one function per the above table. | BA21: Notes: To be completed for senior staff allocated to more than one function per the above table. | BC21: Notes : Doit être rempli par les cadres supérieurs affectés à plus d'une des fonctions dans le tableau ci-dessus.
A22: =IF(Eng_Fren=1,BA22,BC22) -> Senior staff includes superintendents and secretary-treasurers and one reporting level down. | BA22: Senior staff includes superintendents and secretary-treasurers and one reporting level down. | BC22: Comprennent les directeurs généraux et les secrétaires-trésoriers et le niveau hiérarchique inférieur.
A23: =IF(Eng_Fren=1,BA23,BC23) -> Refer to Allocation Rule 1(b) on page 11.1 of the FRAME Manual. | BA23: Refer to Allocation Rule 1(b) on page 11.1 of the FRAME Manual. | BC23: Se reporter au règlement 1(b) sur l'affectation à la page 11.1 du manuel du système comptable FRAME.

Sheet Legal Cover
G14: =IF(Eng_Fren=1,BD14,BE14) -> Education Funding Branch | BD14: Education Funding Branch | BE14: Direction du financement de l'éducation
G15: =IF(Eng_Fren=1,BD15,BE15) -> 511-1181 Portage Avenue | BD15: 511-1181 Portage Avenue | BE15: 1181, avenue Portage, bureau 511
G16: =IF(Eng_Fren=1,BD16,BE16) -> Winnipeg, Manitoba | BD16: Winnipeg, Manitoba | BE16: Winnipeg (Manitoba) R3G 0T3
G17: =IF(Eng_Fren=1,BD17,"") -> R3G 0T3 | BD17: R3G 0T3
C35: =UPPER(SUBSTITUTE(DIVNAME,"No.","School Division No.")) -> SCHOOL DIVISION NAME
C36: =Address1 -> Address1
C37: =Address2 -> Address2
C40: =IF(Eng_Fren=1,BD40,BE40) -> FRAME BUDGET | BD40: FRAME BUDGET | BE40: BUDGET FRAME
C44: =UPPER(SUBSTITUTE(ForYr,"Budget for the","FOR THE FISCAL")) -> FOR THE FISCAL YEAR ENDING JUNE 30, 2025

Sheet Definitions Legal
B1: EXPENSE DEFINITIONS
B3: Operating Fund - consists of the nine functions defined below:
B5: Function 100 - Regular Instruction - Consists of costs related directly to the K - 12 classroom, e.g. teachers, educational assistants, textbooks (incl. e-books), related supplies, services, and equipment such as desks, chairs, tables, audio visual equipment and computers. Includes costs related to Gifted students, International Baccalaureate, Advanced Placement, university offered and correspondence courses, and enrichment activities that are generalized in nature. Also includes school based administration costs including principals, vice-principals, and support staff. Summer school costs are recorded here.
B12: Function 200 - Student Support Services - Consists of costs specifically related to students who have exceptional learning needs, as well as counselling and guidance and resource costs for all students. Students with exceptional learning needs are students who have physical, cognitive, sensory or emotional/behavioural disabilities. Costs include special education and resource teachers, special needs educational assistants, counsellors, clinicians, and related and appropriate services (e.g. occupational therapists), supplies, textbooks, materials, equipment and software. Special education co-ordinators or student services administrators and clerical staff are also included.
B20: Function 300 - Adult Learning Centres - Consists of costs related to Adult Learning Centres (ALC) owned and operated by school divisions. ALC's offer adult centred programs in which adult education principles and practices are applied to curriculum and program delivery. Does not include costs associated with adults in the regular classroom. Also, does not include costs associated with ALC's that are governed by their own board of directors.
B26: Function 400 - Community Education and Services - Consists of costs related to providing services (such as community use of facilities and gym rentals) and non-credit courses to community groups and individuals. Includes pre-kindergarten education.
B30: Function 500 - Divisional Administration - Consists of costs related to the administration of the school division including the board of trustees and the superintendent's and secretary-treasurer's departments.
B33: Function 600 - Instructional and Other Support Services - Consists of costs related to support services for students, teaching staff, and the educational process, such as libraries/media centres, professional development ,and curriculum consulting and development.
B37: Function 700 - Transportation of Pupils - Consists of all costs, including supervisory and clerical personnel, related to the transportation of pupils. Does not include the purchase of school buses over $20,000 per unit as they are recorded in the capital fund.
B41: Function 800 - Operations and Maintenance - Consists of all costs, including supervisory and clerical personnel, related to the upkeep, maintenance and minor repair of all school division buildings and grounds. Includes utilities, taxes, insurance and supplies. Does not include capital costs.
B45: Function 900 - Fiscal - Consists of short-term loan interest, bank charges and the Health and Education Levy.
B47: Note: Capital costs are not included in Operating Fund functions.

Sheet Definitions Legal (F)
B1: DÉFINITION DES DÉPENSES
B3: Fonds de fonctionnement – se compose des neuf fonctions décrites ci-dessous :
B5: Fonction 100 – Enseignement ordinaire – Comprend les coûts directement liés aux salles de classe de la maternelle au secondaire 4 (p. ex. les enseignants, les auxiliaires, les manuels scolaires, les fournitures, les services et l'équipement tel que les pupitres, les chaises, les tables, l'équipement audiovisuel et les ordinateurs). Comprend aussi les coûts administratifs scolaires y compris ceux liés aux directeurs d'école, aux directeurs adjoints et au personnel de soutien. Les coûts des classes d'été sont inscrits ici.
B11: Fonction 200 – Services de soutien aux élèves – Comprend les coûts expressément liés aux élèves qui ont des besoins d'apprentissage exceptionnels et les coûts des services d'orientation, de consultation et d'orthopédagogie pour tous les élèves. Les élèves qui ont des besoins d'apprentissage exceptionnels sont ceux qui ont des déficiences physiques, cognitives, sensorielles, affectives ou comportementales et ceux qui ont été qualifiés de doués. Ces coûts comprennent les éducateurs spécialisés et les orthopédagogues, les aides-enseignants de l'enfance en difficulté, les conseillers, les spécialistes et les services connexes et appropriés (p. ex. ergothérapeutes), les fournitures, les manuels scolaires, le matériel, l'équipement et les logiciels. Ils comprennent aussi les coordonnateurs de l'enseignement à l'enfance en difficulté, les administrateurs des services aux élèves et le personnel de bureau.
B21: Fonction 300 – Centres d'apprentissage pour adultes – Comprend les coûts liés aux centres d'apprentissage pour adultes qui appartiennent aux divisions scolaires et sont administrés par celles-ci. Ces centres offrent des programmes centrés sur les adultes qui appliquent les principes et pratiques de l'éducation des adultes aux programmes d'études et à la prestation des programmes. Les coûts liés aux adultes qui font partie des classes ordinaires ne sont pas inscrits ici, non plus que ceux des centres qui ont leur propre conseil d'administration.
B27: Fonction 400 – Éducation et services communautaires – Comprend les coûts liés à l'offre de services (tels que l'utilisation des installations et la location du gymnase par la collectivité) et de cours non crédités à des groupes et à des particuliers. Comprend l'enseignement de la prématernelle.
B31: Fonction 500 – Administration de la division – Comprend les coûts liés à l'administration de la division scolaire, y compris ceux liés aux commissaires, aux directeurs généraux et aux secrétaires-trésoriers.
B34: Fonction 600 – Services pédagogiques et autres services de soutien – Comprend les coûts liés aux services de soutien des élèves, du personnel enseignant et du processus éducationnel, tels que les bibliothèques et les médiathèques, le perfectionnement professionnel, la consultation en matière de programmes d'études et l'élaboration de programmes d'études.
B39: Fonction 700 – Transport des élèves – Comprend tous les coûts, y compris ceux du personnel de surveillance et de bureau, qui sont liés au transport des élèves. Ne comprend pas les achats d'autobus dont le coût unitaire dépasse 20 000 $, car ils figurent au fonds de capital et d'emprunt.
B43: Fonction 800 – Fonctionnement et entretien – Comprend tous les coûts, y compris ceux du personnel de surveillance et de bureau, qui sont liés à l'entretien et aux réparations mineures de tous les bâtiments et les terrains scolaires. Comprend les services publics, les taxes, les assurances et les fournitures, mais pas les coûts en immobilisations.
B48: Fonction 900 – Frais et taxes – Comprend les intérêts sur les prêts à court terme, les frais bancaires et la taxe d'aide à la santé et à l'éducation.
B51: Note : Les coûts d'immobilisations ne sont pas compris dans les fonctions du fonds de fonctionnement.

Sheet Letter Cover
G10: =+'Legal Cover'!G14 -> Education Funding Branch
G11: =+'Legal Cover'!G15 -> 511-1181 Portage Avenue
G12: =+'Legal Cover'!G16 -> Winnipeg, Manitoba
G13: =+'Legal Cover'!G17 -> R3G 0T3
C27: =UPPER(SUBSTITUTE(DIVNAME,"No.","School Division No.")) -> SCHOOL DIVISION NAME
C28: =Address1 -> Address1
C29: =Address2 -> Address2
C32: =+'Legal Cover'!C40 -> FRAME BUDGET
C36: =UPPER(SUBSTITUTE(ForYr,"Budget for the","FOR THE FISCAL")) -> FOR THE FISCAL YEAR ENDING JUNE 30, 2025

Sheet Definitions Letter (hidden)
B1: EXPENSE DEFINITIONS
B3: Operating Fund - consists of the nine functions defined below:
B5: Function 100 - Regular Instruction - Consists of costs related directly to the K - 12 classroom, e.g. teachers, educational assistants, textbooks (incl. e-books), related supplies, services, and equipment such as desks, chairs, tables, audio visual equipment and computers. Includes costs related to Gifted students, International Baccalaureate, Advanced Placement, university offered and correspondence courses, and enrichment activities that are generalized in nature. Also includes school based administration costs including principals, vice-principals, and support staff. Summer school costs are recorded here.
B12: Function 200 - Student Support Services - Consists of costs specifically related to students who have exceptional learning needs, as well as counselling and guidance and resource costs for all students. Students with exceptional learning needs are students who have physical, cognitive, sensory or emotional/behavioural disabilities. Costs include special education and resource teachers, special needs educational assistants, counsellors, clinicians, and related and appropriate services (e.g. occupational therapists), supplies, textbooks, materials, equipment and software. Special education co-ordinators or student services administrators and clerical staff are also included.
B20: Function 300 - Adult Learning Centres - Consists of costs related to Adult Learning Centres (ALC) owned and operated by school divisions. ALC's offer adult centred programs in which adult education principles and practices are applied to curriculum and program delivery. Does not include costs associated with adults in the regular classroom. Also, does not include costs associated with ALC's that are governed by their own board of directors.
B26: Function 400 - Community Education and Services - Consists of costs related to providing services (such as community use of facilities and gym rentals) and non-credit courses to community groups and individuals. Includes pre-kindergarten education.
B30: Function 500 - Divisional Administration - Consists of costs related to the administration of the school division including the board of trustees and the superintendent's and secretary-treasurer's departments.
B33: Function 600 - Instructional and Other Support Services - Consists of costs related to support services for students, teaching staff and the educational process, such as libraries/media centers, professional development, and curriculum consulting and development.
B37: Function 700 - Transportation of Pupils - Consists of all costs, including supervisory and clerical personnel, related to the transportation of pupils. Does not include the purchase of school buses over $20,000 per unit as they are recorded in the capital fund.
B41: Function 800 - Operations and Maintenance - Consists of all costs, including supervisory and clerical personnel, related to the upkeep, maintenance and minor repair of all school division buildings and grounds. Includes utilities, taxes, insurance and supplies. Does not include capital costs.
B45: Function 900 - Fiscal - Consists of short-term loan interest, bank charges and the Health and Education Levy.
B47: Note: Capital costs are not included in Operating Fund functions.

Sheet Definitions Letter (F) (hidden)
B1: DÉFINITION DES DÉPENSES
B3: Fonds de fonctionnement – se compose des neuf fonctions décrites ci-dessous :
B5: Fonction 100 – Enseignement ordinaire – Comprend les coûts directement liés aux salles de classe de la maternelle au secondaire 4 (p. ex. les enseignants, les auxiliaires, les manuels scolaires, les fournitures, les services et l'équipement tel que les pupitres, les chaises, les tables, l'équipement audiovisuel et les ordinateurs). Comprend aussi les coûts administratifs scolaires y compris ceux liés aux directeurs d'école, aux directeurs adjoints et au personnel de soutien. Les coûts des classes d'été sont inscrits ici.
B11: Fonction 200 – Services de soutien aux élèves – Comprend les coûts expressément liés aux élèves qui ont des besoins d'apprentissage exceptionnels et les coûts des services d'orientation, de consultation et d'orthopédagogie pour tous les élèves. Les élèves qui ont des besoins d'apprentissage exceptionnels sont ceux qui ont des déficiences physiques, cognitives, sensorielles, affectives ou comportementales et ceux qui ont été qualifiés de doués. Ces coûts comprennent les éducateurs spécialisés et les orthopédagogues, les aides-enseignants de l'enfance en difficulté, les conseillers, les spécialistes et les services connexes et appropriés (p. ex. ergothérapeutes), les fournitures, les manuels scolaires, le matériel, l'équipement et les logiciels. Ils comprennent aussi les coordonnateurs de l'enseignement à l'enfance en difficulté, les administrateurs des services aux élèves et le personnel de bureau.
B21: Fonction 300 – Centres d'apprentissage pour adultes – Comprend les coûts liés aux centres d'apprentissage pour adultes qui appartiennent aux divisions scolaires et sont administrés par celles-ci. Ces centres offrent des programmes centrés sur les adultes qui appliquent les principes et pratiques de l'éducation des adultes aux programmes d'études et à la prestation des programmes. Les coûts liés aux adultes qui font partie des classes ordinaires ne sont pas inscrits ici, non plus que ceux des centres qui ont leur propre conseil d'administration.
B27: Fonction 400 – Éducation et services communautaires – Comprend les coûts liés à l'offre de services (tels que l'utilisation des installations et la location du gymnase par la collectivité) et de cours non crédités à des groupes et à des particuliers. Comprend l'enseignement de la prématernelle.
B31: Fonction 500 – Administration de la division – Comprend les coûts liés à l'administration de la division scolaire, y compris ceux liés aux commissaires, aux directeurs généraux et aux secrétaires-trésoriers.
B34: Fonction 600 – Services pédagogiques et autres services de soutien – Comprend les coûts liés aux services de soutien des élèves, du personnel enseignant et du processus éducationnel, tels que les bibliothèques et les médiathèques, le perfectionnement professionnel, la consultation en matière de programmes d'études et l'élaboration de programmes d'études.
B39: Fonction 700 – Transport des élèves – Comprend tous les coûts, y compris ceux du personnel de surveillance et de bureau, qui sont liés au transport des élèves. Ne comprend pas les achats d'autobus dont le coût unitaire dépasse 20 000 $, car ils figurent au fonds de capital et d'emprunt.
B43: Fonction 800 – Fonctionnement et entretien – Comprend tous les coûts, y compris ceux du personnel de surveillance et de bureau, qui sont liés à l'entretien et aux réparations mineures de tous les bâtiments et les terrains scolaires. Comprend les services publics, les taxes, les assurances et les fournitures, mais pas les coûts en immobilisations.
B48: Fonction 900 – Frais et taxes – Comprend les intérêts sur les prêts à court terme, les frais bancaires et la taxe d'aide à la santé et à l'éducation.
B51: Note : Les coûts d'immobilisations ne sont pas compris dans les fonctions du fonds de fonctionnement.
